Workbook

Sheet Results
I7: Results
I8: Total Revenue | J8: =SUM(Simulation!$AW:$AW) -> 0
I9: Total Claims | J9: =SUM(Simulation!$AY:$AY) -> 0
I10: Annual Expenses | J10: 389398.96
I11: Profit | J11: =J8-J9-J10 -> -389398.96
I14: Number of claims | J14: =COUNTIF(Simulation!$AY:$AY,">0") -> 0

Sheet Simulation
A2: Number of Destinations | B2: Policy | C2: Company Industry Type | D2: Excutive Employees | E2: Officers | F2: Other Employees | G2: Company networth | H2: Max | I2: Destination | J2: Length of Stay | K2: Travel Frenquecy | L2: # of Employees | M2: Expected claim | N2: Kidnapped? | O2: Days Held Captive | P2: Costs of Services | Q2: Medical Needs | R2: Claim | S2: Destination | T2: Length of Stay | U2: Travel Frenquecy | V2: # of Employees | W2: Expected claim | X2: Kidnapped? | Y2: Days Held Captive | Z2: Costs of Services | AA2: Medical Needs | AB2: Claim | AC2: Destination | AD2: Length of Stay | AE2: Travel Frenquecy | AF2: # of Employees | AG2: Expected claim | AH2: Kidnapped? | AI2: Days Held Captive | AJ2: Costs of Services | AK2: Medical Needs | AL2: Claim | AM2: Destination | AN2: Length of Stay | AO2: Travel Frenquecy | AP2: # of Employees | AQ2: Expected claim | AR2: Kidnapped? | AS2: Days Held Captive | AT2: Costs of Services | AU2: Medical Needs | AV2: Claim | AW2: Destination | AX2: Length of Stay | AY2: Travel Frenquecy | AZ2: # of Employees | BA2: Expected claim | BB2: Kidnapped? | BC2: Days Held Captive | BD2: Costs of Services | BE2: Medical Needs | BF2: Claim | BG2: Destination | BH2: Length of Stay | BI2: Travel Frenquecy | BJ2: # of Employees | BK2: Expected claim | BL2: Kidnapped? | BM2: Days Held Captive | BN2: Costs of Services | BO2: Medical Needs | BP2: Claim | BQ2: Destination | BR2: Length of Stay | BS2: Travel Frenquecy | BT2: # of Employees | BU2: Expected claim | BV2: Kidnapped? | BW2: Days Held Captive | BX2: Costs of Services | BY2: Medical Needs | BZ2: Claim | CA2: Destination | CB2: Length of Stay | CC2: Travel Frenquecy | CD2: # of Employees | CE2: Expected claim | CF2: Kidnapped? | CG2: Days Held Captive | CH2: Costs of Services | CI2: Medical Needs | CJ2: Claim | CK2: Destination | CL2: Length of Stay | CM2: Travel Frenquecy | CN2: # of Employees | CO2: Expected claim | CP2: Kidnapped? | CQ2: Days Held Captive | CR2: Costs of Services | CS2: Medical Needs | CT2: Claim | CU2: Destination | CV2: Length of Stay | CW2: Travel Frenquecy | CX2: # of Employees | CY2: Expected claim | CZ2: Kidnapped? | DA2: Days Held Captive | DB2: Costs of Services | DC2: Medical Needs | DD2: Claim | DE2: Total Claims | DF2: Total Premium
A3: =RANDBETWEEN(0,10) -> 9 | B3: 1 | C3: =INDEX([1]Variables!$C$2:$C$19,INT((RAND()*10)+1),1) -> Transportation and Warehousing | D3: =RANDBETWEEN(1,50) -> 47 | E3: =RANDBETWEEN(D3,500) -> 102 | F3: =RANDBETWEEN(E3,20000) -> 17187 | G3: =RANDBETWEEN(500000,50000000) -> 24239240 | H3: =Variables!$H$18 -> 1000000 | I3: =INDEX([1]Variables!$A$2:$A$103,INT((RAND()*100)+1),1) -> Spain | J3: =INDEX(Variables!$E$3:$E$5,RANDBETWEEN(1,3),1) -> Medium (1 week to 1month) | K3: =INDEX([1]Variables!$G$3:$G$5,RANDBETWEEN(1,3),1) -> very frequent ( more than 12 times a year) | L3: =RANDBETWEEN(1,20) -> 1 | M3: =IF(ISNA(VLOOKUP(I3,Variables!$K$1:$K$36,1,FALSE)),SUM('Other cost'!$B$2,'Salary in Industry'!$AR2,IF(ISNA(VLOOKUP(Simulation!I3,'Ransom Statistics'!$A$1:$D$18,4,FALSE)),'Ransom Statistics'!$D$18,VLOOKUP(Simulation!I3,'Ransom Statistics'!$A$1:$D$18,4,FALSE)))*IF(ISNA(VLOOKUP(I3,'Industry Type P'!$A$2:$S$103,2,FALSE)),'Kidnapping Statistics'!$K$3,VLOOKUP(I3,'Industry Type P'!$A$1:$S$102,MATCH($C3,'Industry Type P'!$A$1:$S$1,0),FALSE))*VLOOKUP(K3,'travel frequence'!$A$1:$D$4,MATCH(J3,'travel frequence'!$A$1:$D$1,0),FALSE)*L3*IF(ISNA(VLOOKUP(L3,'travel frequence'!$A$7:$B$23,2,FALSE)),'travel frequence'!$B$23,VLOOKUP(L3,'travel frequence'!$A$7:$B$23,2,FALSE)),0) -> 4.575341581 | N3: =IF(VLOOKUP(I3,'Industry Type P'!$A$1:$S$102,MATCH($C3,'Industry Type P'!$A$1:$S$1,0),FALSE)>RAND(),"Y","N") -> N | O3: =IF(N3="N",0,RANDBETWEEN(1,200)) -> 0 | P3: =SUM(VLOOKUP(O3,Negotiation_Team,2,FALSE),VLOOKUP(O3,Recording_Equipment,2,FALSE),VLOOKUP(O3,Security,2,FALSE)) -> 0 | Q3: =IF(N3="N"," ",INDEX('Other cost'!$A$9:$A$13,RANDBETWEEN(1,5),1)) ->  | R3: =MIN($H3,IF(N3="N",0,SUM(P3,'Other cost'!$B$16,VLOOKUP(Q3,'Other cost'!$A$9:$B$13,2,FALSE),IF(O3>=30,HLOOKUP(30,'Salary in Industry'!$N$1:$AQ$1001,$B3+1,FALSE),HLOOKUP(O3,'Salary in Industry'!$N$1:$AQ$1001,$B3+1,FALSE)),IF(ISNA(VLOOKUP(I3,'Ransom Statistics'!$A$1:$D$18,4,FALSE)),'Ransom Statistics'!$D$18,VLOOKUP(I3,'Ransom Statistics'!$A$1:$D$18,4,FALSE))))) -> 0 | S3: =INDEX([1]Variables!$A$2:$A$103,INT((RAND()*100)+1),1) -> Guinea | T3: =INDEX(Variables!$E$3:$E$5,RANDBETWEEN(1,3),1) -> Medium (1 week to 1month) | U3: =INDEX([1]Variables!$G$3:$G$5,RANDBETWEEN(1,3),1) -> very frequent ( more than 12 times a year) | V3: =RANDBETWEEN(1,20) -> 10 | W3: =IF(ISNA(VLOOKUP(S3,Variables!$K$1:$K$36,1,FALSE)),SUM('Other cost'!$B$2,'Salary in Industry'!$AR2,IF(ISNA(VLOOKUP(Simulation!S3,'Ransom Statistics'!$A$1:$D$18,4,FALSE)),'Ransom Statistics'!$D$18,VLOOKUP(Simulation!S3,'Ransom Statistics'!$A$1:$D$18,4,FALSE)))*IF(ISNA(VLOOKUP(S3,'Industry Type P'!$A$2:$S$103,2,FALSE)),'Kidnapping Statistics'!$K$3,VLOOKUP(S3,'Industry Type P'!$A$1:$S$102,MATCH($C3,'Industry Type P'!$A$1:$S$1,0),FALSE))*VLOOKUP(U3,'travel frequence'!$A$1:$D$4,MATCH(T3,'travel frequence'!$A$1:$D$1,0),FALSE)*V3*IF(ISNA(VLOOKUP(V3,'travel frequence'!$A$7:$B$23,2,FALSE)),'travel frequence'!$B$23,VLOOKUP(V3,'travel frequence'!$A$7:$B$23,2,FALSE)),0) -> 6.279880601 | X3: =IF(VLOOKUP(S3,'Industry Type P'!$A$1:$S$102,MATCH($C3,'Industry Type P'!$A$1:$S$1,0),FALSE)>RAND(),"Y","N") -> N | Y3: =IF(X3="N",0,RANDBETWEEN(1,200)) -> 0 | Z3: =SUM(VLOOKUP(Y3,Negotiation_Team,2,FALSE),VLOOKUP(Y3,Recording_Equipment,2,FALSE),VLOOKUP(Y3,Security,2,FALSE)) -> 0 | AA3: =IF(X3="N"," ",INDEX('Other cost'!$A$9:$A$13,RANDBETWEEN(1,5),1)) ->  | AB3: =MIN($H3,IF(X3="N",0,SUM(Z3,'Other cost'!$B$16,VLOOKUP(AA3,'Other cost'!$A$9:$B$13,2,FALSE),IF(Y3>=30,HLOOKUP(30,'Salary in Industry'!$N$1:$AQ$1001,$B3+1,FALSE),HLOOKUP(Y3,'Salary in Industry'!$N$1:$AQ$1001,$B3+1,FALSE)),IF(ISNA(VLOOKUP(S3,'Ransom Statistics'!$A$1:$D$18,4,FALSE)),'Ransom Statistics'!$D$18,VLOOKUP(S3,'Ransom Statistics'!$A$1:$D$18,4,FALSE))))) -> 0 | AC3: =INDEX([1]Variables!$A$2:$A$103,INT((RAND()*100)+1),1) -> Cameroon | AD3: =INDEX(Variables!$E$3:$E$5,RANDBETWEEN(1,3),1) -> Short (less a week) | AE3: =INDEX([1]Variables!$G$3:$G$5,RANDBETWEEN(1,3),1) -> frequent (3 times to 12 times) | AF3: =RANDBETWEEN(1,20) -> 18 | AG3: =IF(ISNA(VLOOKUP(AC3,Variables!$K$1:$K$36,1,FALSE)),SUM('Other cost'!$B$2,'Salary in Industry'!$AR2,IF(ISNA(VLOOKUP(Simulation!AC3,'Ransom Statistics'!$A$1:$D$18,4,FALSE)),'Ransom Statistics'!$D$18,VLOOKUP(Simulation!AC3,'Ransom Statistics'!$A$1:$D$18,4,FALSE)))*IF(ISNA(VLOOKUP(AC3,'Industry Type P'!$A$2:$S$103,2,FALSE)),'Kidnapping Statistics'!$K$3,VLOOKUP(AC3,'Industry Type P'!$A$1:$S$102,MATCH($C3,'Industry Type P'!$A$1:$S$1,0),FALSE))*VLOOKUP(AE3,'travel frequence'!$A$1:$D$4,MATCH(AD3,'travel frequence'!$A$1:$D$1,0),FALSE)*AF3*IF(ISNA(VLOOKUP(AF3,'travel frequence'!$A$7:$B$23,2,FALSE)),'travel frequence'!$B$23,VLOOKUP(AF3,'travel frequence'!$A$7:$B$23,2,FALSE)),0) -> 0 | AH3: =IF(VLOOKUP(AC3,'Industry Type P'!$A$1:$S$102,MATCH($C3,'Industry Type P'!$A$1:$S$1,0),FALSE)>RAND(),"Y","N") -> N | AI3: =IF(AH3="N",0,RANDBETWEEN(1,200)) -> 0 | AJ3: =SUM(VLOOKUP(AI3,Negotiation_Team,2,FALSE),VLOOKUP(AI3,Recording_Equipment,2,FALSE),VLOOKUP(AI3,Security,2,FALSE)) -> 0 | AK3: =IF(AH3="N"," ",INDEX('Other cost'!$A$9:$A$13,RANDBETWEEN(1,5),1)) ->  | AL3: =MIN($H3,IF(AH3="N",0,SUM(AJ3,'Other cost'!$B$16,VLOOKUP(AK3,'Other cost'!$A$9:$B$13,2,FALSE),IF(AI3>=30,HLOOKUP(30,'Salary in Industry'!$N$1:$AQ$1001,$B3+1,FALSE),HLOOKUP(AI3,'Salary in Industry'!$N$1:$AQ$1001,$B3+1,FALSE)),IF(ISNA(VLOOKUP(AC3,'Ransom Statistics'!$A$1:$D$18,4,FALSE)),'Ransom Statistics'!$D$18,VLOOKUP(AC3,'Ransom Statistics'!$A$1:$D$18,4,FALSE))))) -> 0 | AM3: =INDEX([1]Variables!$A$2:$A$103,INT((RAND()*100)+1),1) -> Tajikistan | AN3: =INDEX(Variables!$E$3:$E$5,RANDBETWEEN(1,3),1) -> Medium (1 week to 1month) | AO3: =INDEX([1]Variables!$G$3:$G$5,RANDBETWEEN(1,3),1) -> infrequent (less than 3 times) | AP3: =RANDBETWEEN(1,20) -> 3 | AQ3: =IF(ISNA(VLOOKUP(AM3,Variables!$K$1:$K$36,1,FALSE)),SUM('Other cost'!$B$2,'Salary in Industry'!$AR2,IF(ISNA(VLOOKUP(Simulation!AM3,'Ransom Statistics'!$A$1:$D$18,4,FALSE)),'Ransom Statistics'!$D$18,VLOOKUP(Simulation!AM3,'Ransom Statistics'!$A$1:$D$18,4,FALSE)))*IF(ISNA(VLOOKUP(AM3,'Industry Type P'!$A$2:$S$103,2,FALSE)),'Kidnapping Statistics'!$K$3,VLOOKUP(AM3,'Industry Type P'!$A$1:$S$102,MATCH($C3,'Industry Type P'!$A$1:$S$1,0),FALSE))*VLOOKUP(AO3,'travel frequence'!$A$1:$D$4,MATCH(AN3,'travel frequence'!$A$1:$D$1,0),FALSE)*AP3*IF(ISNA(VLOOKUP(AP3,'travel frequence'!$A$7:$B$23,2,FALSE)),'travel frequence'!$B$23,VLOOKUP(AP3,'travel frequence'!$A$7:$B$23,2,FALSE)),0) -> 1.761628844 | AR3: =IF(VLOOKUP(AM3,'Industry Type P'!$A$1:$S$102,MATCH($C3,'Industry Type P'!$A$1:$S$1,0),FALSE)>RAND(),"Y","N") -> N | AS3: =IF(AR3="N",0,RANDBETWEEN(1,200)) -> 0 | AT3: =SUM(VLOOKUP(AS3,Negotiation_Team,2,FALSE),VLOOKUP(AS3,Recording_Equipment,2,FALSE),VLOOKUP(AS3,Security,2,FALSE)) -> 0 | AU3: =IF(AR3="N"," ",INDEX('Other cost'!$A$9:$A$13,RANDBETWEEN(1,5),1)) ->  | AV3: =MIN($H3,IF(AR3="N",0,SUM(AT3,'Other cost'!$B$16,VLOOKUP(AU3,'Other cost'!$A$9:$B$13,2,FALSE),IF(AS3>=30,HLOOKUP(30,'Salary in Industry'!$N$1:$AQ$1001,$B3+1,FALSE),HLOOKUP(AS3,'Salary in Industry'!$N$1:$AQ$1001,$B3+1,FALSE)),IF(ISNA(VLOOKUP(AM3,'Ransom Statistics'!$A$1:$D$18,4,FALSE)),'Ransom Statistics'!$D$18,VLOOKUP(AM3,'Ransom Statistics'!$A$1:$D$18,4,FALSE))))) -> 0 | AW3: =INDEX([1]Variables!$A$2:$A$103,INT((RAND()*100)+1),1) -> Philippines | AX3: =INDEX(Variables!$E$3:$E$5,RANDBETWEEN(1,3),1) -> Short (less a week) | AY3: =INDEX([1]Variables!$G$3:$G$5,RANDBETWEEN(1,3),1) -> infrequent (less than 3 times) | AZ3: =RANDBETWEEN(1,20) -> 16 | BA3: =IF(ISNA(VLOOKUP(AW3,Variables!$K$1:$K$36,1,FALSE)),SUM('Other cost'!$B$2,'Salary in Industry'!$AR2,IF(ISNA(VLOOKUP(Simulation!AW3,'Ransom Statistics'!$A$1:$D$18,4,FALSE)),'Ransom Statistics'!$D$18,VLOOKUP(Simulation!AW3,'Ransom Statistics'!$A$1:$D$18,4,FALSE)))*IF(ISNA(VLOOKUP(AW3,'Industry Type P'!$A$2:$S$103,2,FALSE)),'Kidnapping Statistics'!$K$3,VLOOKUP(AW3,'Industry Type P'!$A$1:$S$102,MATCH($C3,'Industry Type P'!$A$1:$S$1,0),FALSE))*VLOOKUP(AY3,'travel frequence'!$A$1:$D$4,MATCH(AX3,'travel frequence'!$A$1:$D$1,0),FALSE)*AZ3*IF(ISNA(VLOOKUP(AZ3,'travel frequence'!$A$7:$B$23,2,FALSE)),'travel frequence'!$B$23,VLOOKUP(AZ3,'travel frequence'!$A$7:$B$23,2,FALSE)),0) -> 2004.733843 | BB3: =IF(VLOOKUP(AW3,'Industry Type P'!$A$1:$S$102,MATCH($C3,'Industry Type P'!$A$1:$S$1,0),FALSE)>RAND(),"Y","N") -> N | BC3: =IF(BB3="N",0,RANDBETWEEN(1,200)) -> 0 | BD3: =SUM(VLOOKUP(BC3,Negotiation_Team,2,FALSE),VLOOKUP(BC3,Recording_Equipment,2,FALSE),VLOOKUP(BC3,Security,2,FALSE)) -> 0 | BE3: =IF(BB3="N"," ",INDEX('Other cost'!$A$9:$A$13,RANDBETWEEN(1,5),1)) ->  | BF3: =MIN($H3,IF(BB3="N",0,SUM(BD3,'Other cost'!$B$16,VLOOKUP(BE3,'Other cost'!$A$9:$B$13,2,FALSE),IF(BC3>=30,HLOOKUP(30,'Salary in Industry'!$N$1:$AQ$1001,$B3+1,FALSE),HLOOKUP(BC3,'Salary in Industry'!$N$1:$AQ$1001,$B3+1,FALSE)),IF(ISNA(VLOOKUP(AW3,'Ransom Statistics'!$A$1:$D$18,4,FALSE)),'Ransom Statistics'!$D$18,VLOOKUP(AW3,'Ransom Statistics'!$A$1:$D$18,4,FALSE))))) -> 0 | BG3: =INDEX([1]Variables!$A$2:$A$103,INT((RAND()*100)+1),1) -> Guinea | BH3: =INDEX(Variables!$E$3:$E$5,RANDBETWEEN(1,3),1) -> Long (more than one month) | BI3: =INDEX([1]Variables!$G$3:$G$5,RANDBETWEEN(1,3),1) -> infrequent (less than 3 times) | BJ3: =RANDBETWEEN(1,20) -> 9 | BK3: =IF(ISNA(VLOOKUP(BG3,Variables!$K$1:$K$36,1,FALSE)),SUM('Other cost'!$B$2,'Salary in Industry'!$AR2,IF(ISNA(VLOOKUP(Simulation!BG3,'Ransom Statistics'!$A$1:$D$18,4,FALSE)),'Ransom Statistics'!$D$18,VLOOKUP(Simulation!BG3,'Ransom Statistics'!$A$1:$D$18,4,FALSE)))*IF(ISNA(VLOOKUP(BG3,'Industry Type P'!$A$2:$S$103,2,FALSE)),'Kidnapping Statistics'!$K$3,VLOOKUP(BG3,'Industry Type P'!$A$1:$S$102,MATCH($C3,'Industry Type P'!$A$1:$S$1,0),FALSE))*VLOOKUP(BI3,'travel frequence'!$A$1:$D$4,MATCH(BH3,'travel frequence'!$A$1:$D$1,0),FALSE)*BJ3*IF(ISNA(VLOOKUP(BJ3,'travel frequence'!$A$7:$B$23,2,FALSE)),'travel frequence'!$B$23,VLOOKUP(BJ3,'travel frequence'!$A$7:$B$23,2,FALSE)),0) -> 6.151719773 | BL3: =IF(VLOOKUP(BG3,'Industry Type P'!$A$1:$S$102,MATCH($C3,'Industry Type P'!$A$1:$S$1,0),FALSE)>RAND(),"Y","N") -> N | BM3: =IF(BL3="N",0,RANDBETWEEN(1,200)) -> 0 | BN3: =SUM(VLOOKUP(BM3,Negotiation_Team,2,FALSE),VLOOKUP(BM3,Recording_Equipment,2,FALSE),VLOOKUP(BM3,Security,2,FALSE)) -> 0 | BO3: =IF(BL3="N"," ",INDEX('Other cost'!$A$9:$A$13,RANDBETWEEN(1,5),1)) ->  | BP3: =MIN($H3,IF(BL3="N",0,SUM(BN3,'Other cost'!$B$16,VLOOKUP(BO3,'Other cost'!$A$9:$B$13,2,FALSE),IF(BM3>=30,HLOOKUP(30,'Salary in Industry'!$N$1:$AQ$1001,$B3+1,FALSE),HLOOKUP(BM3,'Salary in Industry'!$N$1:$AQ$1001,$B3+1,FALSE)),IF(ISNA(VLOOKUP(BG3,'Ransom Statistics'!$A$1:$D$18,4,FALSE)),'Ransom Statistics'!$D$18,VLOOKUP(BG3,'Ransom Statistics'!$A$1:$D$18,4,FALSE))))) -> 0 | BQ3: =INDEX([1]Variables!$A$2:$A$103,INT((RAND()*100)+1),1) -> Spain | BR3: =INDEX(Variables!$E$3:$E$5,RANDBETWEEN(1,3),1) -> Medium (1 week to 1month) | BS3: =INDEX([1]Variables!$G$3:$G$5,RANDBETWEEN(1,3),1) -> frequent (3 times to 12 times) | BT3: =RANDBETWEEN(1,20) -> 6 | BU3: =IF(ISNA(VLOOKUP(BQ3,Variables!$K$1:$K$36,1,FALSE)),SUM('Other cost'!$B$2,'Salary in Industry'!$AR2,IF(ISNA(VLOOKUP(Simulation!BQ3,'Ransom Statistics'!$A$1:$D$18,4,FALSE)),'Ransom Statistics'!$D$18,VLOOKUP(Simulation!BQ3,'Ransom Statistics'!$A$1:$D$18,4,FALSE)))*IF(ISNA(VLOOKUP(BQ3,'Industry Type P'!$A$2:$S$103,2,FALSE)),'Kidnapping Statistics'!$K$3,VLOOKUP(BQ3,'Industry Type P'!$A$1:$S$102,MATCH($C3,'Industry Type P'!$A$1:$S$1,0),FALSE))*VLOOKUP(BS3,'travel frequence'!$A$1:$D$4,MATCH(BR3,'travel frequence'!$A$1:$D$1,0),FALSE)*BT3*IF(ISNA(VLOOKUP(BT3,'travel frequence'!$A$7:$B$23,2,FALSE)),'travel frequence'!$B$23,VLOOKUP(BT3,'travel frequence'!$A$7:$B$23,2,FALSE)),0) -> 20.96338324 | BV3: =IF(VLOOKUP(BQ3,'Industry Type P'!$A$1:$S$102,MATCH($C3,'Industry Type P'!$A$1:$S$1,0),FALSE)>RAND(),"Y","N") -> N | BW3: =IF(BV3="N",0,RANDBETWEEN(1,200)) -> 0 | BX3: =SUM(VLOOKUP(BW3,Negotiation_Team,2,FALSE),VLOOKUP(BW3,Recording_Equipment,2,FALSE),VLOOKUP(BW3,Security,2,FALSE)) -> 0 | BY3: =IF(BV3="N"," ",INDEX('Other cost'!$A$9:$A$13,RANDBETWEEN(1,5),1)) ->  | BZ3: =MIN($H3,IF(BV3="N",0,SUM(BX3,'Other cost'!$B$16,VLOOKUP(BY3,'Other cost'!$A$9:$B$13,2,FALSE),IF(BW3>=30,HLOOKUP(30,'Salary in Industry'!$N$1:$AQ$1001,$B3+1,FALSE),HLOOKUP(BW3,'Salary in Industry'!$N$1:$AQ$1001,$B3+1,FALSE)),IF(ISNA(VLOOKUP(BQ3,'Ransom Statistics'!$A$1:$D$18,4,FALSE)),'Ransom Statistics'!$D$18,VLOOKUP(BQ3,'Ransom Statistics'!$A$1:$D$18,4,FALSE))))) -> 0 | CA3: =INDEX([1]Variables!$A$2:$A$103,INT((RAND()*100)+1),1) -> Oman | CB3: =INDEX(Variables!$E$3:$E$5,RANDBETWEEN(1,3),1) -> Short (less a week) | CC3: =INDEX([1]Variables!$G$3:$G$5,RANDBETWEEN(1,3),1) -> infrequent (less than 3 times) | CD3: =RANDBETWEEN(1,20) -> 18 | CE3: =IF(ISNA(VLOOKUP(CA3,Variables!$K$1:$K$36,1,FALSE)),SUM('Other cost'!$B$2,'Salary in Industry'!$AR2,IF(ISNA(VLOOKUP(Simulation!CA3,'Ransom Statistics'!$A$1:$D$18,4,FALSE)),'Ransom Statistics'!$D$18,VLOOKUP(Simulation!CA3,'Ransom Statistics'!$A$1:$D$18,4,FALSE)))*IF(ISNA(VLOOKUP(CA3,'Industry Type P'!$A$2:$S$103,2,FALSE)),'Kidnapping Statistics'!$K$3,VLOOKUP(CA3,'Industry Type P'!$A$1:$S$102,MATCH($C3,'Industry Type P'!$A$1:$S$1,0),FALSE))*VLOOKUP(CC3,'travel frequence'!$A$1:$D$4,MATCH(CB3,'travel frequence'!$A$1:$D$1,0),FALSE)*CD3*IF(ISNA(VLOOKUP(CD3,'travel frequence'!$A$7:$B$23,2,FALSE)),'travel frequence'!$B$23,VLOOKUP(CD3,'travel frequence'!$A$7:$B$23,2,FALSE)),0) -> 8.388708781 | CF3: =IF(VLOOKUP(CA3,'Industry Type P'!$A$1:$S$102,MATCH($C3,'Industry Type P'!$A$1:$S$1,0),FALSE)>RAND(),"Y","N") -> N | CG3: =IF(CF3="N",0,RANDBETWEEN(1,200)) -> 0 | CH3: =SUM(VLOOKUP(CG3,Negotiation_Team,2,FALSE),VLOOKUP(CG3,Recording_Equipment,2,FALSE),VLOOKUP(CG3,Security,2,FALSE)) -> 0 | CI3: =IF(CF3="N"," ",INDEX('Other cost'!$A$9:$A$13,RANDBETWEEN(1,5),1)) ->  | CJ3: =MIN($H3,IF(CF3="N",0,SUM(CH3,'Other cost'!$B$16,VLOOKUP(CI3,'Other cost'!$A$9:$B$13,2,FALSE),IF(CG3>=30,HLOOKUP(30,'Salary in Industry'!$N$1:$AQ$1001,$B3+1,FALSE),HLOOKUP(CG3,'Salary in Industry'!$N$1:$AQ$1001,$B3+1,FALSE)),IF(ISNA(VLOOKUP(CA3,'Ransom Statistics'!$A$1:$D$18,4,FALSE)),'Ransom Statistics'!$D$18,VLOOKUP(CA3,'Ransom Statistics'!$A$1:$D$18,4,FALSE))))) -> 0 | CK3: =INDEX([1]Variables!$A$2:$A$103,INT((RAND()*100)+1),1) -> Romania | CL3: =INDEX(Variables!$E$3:$E$5,RANDBETWEEN(1,3),1) -> Long (more than one month) | CM3: =INDEX([1]Variables!$G$3:$G$5,RANDBETWEEN(1,3),1) -> frequent (3 times to 12 times) | CN3: =RANDBETWEEN(1,20) -> 16 | CO3: =IF(ISNA(VLOOKUP(CK3,Variables!$K$1:$K$36,1,FALSE)),SUM('Other cost'!$B$2,'Salary in Industry'!$AR2,IF(ISNA(VLOOKUP(Simulation!CK3,'Ransom Statistics'!$A$1:$D$18,4,FALSE)),'Ransom Statistics'!$D$18,VLOOKUP(Simulation!CK3,'Ransom Statistics'!$A$1:$D$18,4,FALSE)))*IF(ISNA(VLOOKUP(CK3,'Industry Type P'!$A$2:$S$103,2,FALSE)),'Kidnapping Statistics'!$K$3,VLOOKUP(CK3,'Industry Type P'!$A$1:$S$102,MATCH($C3,'Industry Type P'!$A$1:$S$1,0),FALSE))*VLOOKUP(CM3,'travel frequence'!$A$1:$D$4,MATCH(CL3,'travel frequence'!$A$1:$D$1,0),FALSE)*CN3*IF(ISNA(VLOOKUP(CN3,'travel frequence'!$A$7:$B$23,2,FALSE)),'travel frequence'!$B$23,VLOOKUP(CN3,'travel frequence'!$A$7:$B$23,2,FALSE)),0) -> 115.4062629 | CP3: =IF(VLOOKUP(CK3,'Industry Type P'!$A$1:$S$102,MATCH($C3,'Industry Type P'!$A$1:$S$1,0),FALSE)>RAND(),"Y","N") -> N | CQ3: =IF(CP3="N",0,RANDBETWEEN(1,200)) -> 0 | CR3: =SUM(VLOOKUP(CQ3,Negotiation_Team,2,FALSE),VLOOKUP(CQ3,Recording_Equipment,2,FALSE),VLOOKUP(CQ3,Security,2,FALSE)) -> 0 | CS3: =IF(CP3="N"," ",INDEX('Other cost'!$A$9:$A$13,RANDBETWEEN(1,5),1)) ->  | CT3: =MIN($H3,IF(CP3="N",0,SUM(CR3,'Other cost'!$B$16,VLOOKUP(CS3,'Other cost'!$A$9:$B$13,2,FALSE),IF(CQ3>=30,HLOOKUP(30,'Salary in Industry'!$N$1:$AQ$1001,$B3+1,FALSE),HLOOKUP(CQ3,'Salary in Industry'!$N$1:$AQ$1001,$B3+1,FALSE)),IF(ISNA(VLOOKUP(CK3,'Ransom Statistics'!$A$1:$D$18,4,FALSE)),'Ransom Statistics'!$D$18,VLOOKUP(CK3,'Ransom Statistics'!$A$1:$D$18,4,FALSE))))) -> 0 | CU3: =INDEX([1]Variables!$A$2:$A$103,INT((RAND()*100)+1),1) -> South Sudan | CV3: =INDEX(Variables!$E$3:$E$5,RANDBETWEEN(1,3),1) -> Medium (1 week to 1month) | CW3: =INDEX([1]Variables!$G$3:$G$5,RANDBETWEEN(1,3),1) -> infrequent (less than 3 times) | CX3: =RANDBETWEEN(1,20) -> 9 | CY3: =IF(ISNA(VLOOKUP(CU3,Variables!$K$1:$K$36,1,FALSE)),SUM('Other cost'!$B$2,'Salary in Industry'!$AR2,IF(ISNA(VLOOKUP(Simulation!CU3,'Ransom Statistics'!$A$1:$D$18,4,FALSE)),'Ransom Statistics'!$D$18,VLOOKUP(Simulation!CU3,'Ransom Statistics'!$A$1:$D$18,4,FALSE)))*IF(ISNA(VLOOKUP(CU3,'Industry Type P'!$A$2:$S$103,2,FALSE)),'Kidnapping Statistics'!$K$3,VLOOKUP(CU3,'Industry Type P'!$A$1:$S$102,MATCH($C3,'Industry Type P'!$A$1:$S$1,0),FALSE))*VLOOKUP(CW3,'travel frequence'!$A$1:$D$4,MATCH(CV3,'travel frequence'!$A$1:$D$1,0),FALSE)*CX3*IF(ISNA(VLOOKUP(CX3,'travel frequence'!$A$7:$B$23,2,FALSE)),'travel frequence'!$B$23,VLOOKUP(CX3,'travel frequence'!$A$7:$B$23,2,FALSE)),0) -> 3140.548934 | CZ3: =IF(VLOOKUP(CU3,'Industry Type P'!$A$1:$S$102,MATCH($C3,'Industry Type P'!$A$1:$S$1,0),FALSE)>RAND(),"Y","N") -> N | DA3: =IF(CZ3="N",0,RANDBETWEEN(1,200)) -> 0 | DB3: =SUM(VLOOKUP(DA3,Negotiation_Team,2,FALSE),VLOOKUP(DA3,Recording_Equipment,2,FALSE),VLOOKUP(DA3,Security,2,FALSE)) -> 0 | DC3: =IF(CZ3="N"," ",INDEX('Other cost'!$A$9:$A$13,RANDBETWEEN(1,5),1)) ->  | DD3: =MIN($H3,IF(CZ3="N",0,SUM(DB3,'Other cost'!$B$16,VLOOKUP(DC3,'Other cost'!$A$9:$B$13,2,FALSE),IF(DA3>=30,HLOOKUP(30,'Salary in Industry'!$N$1:$AQ$1001,$B3+1,FALSE),HLOOKUP(DA3,'Salary in Industry'!$N$1:$AQ$1001,$B3+1,FALSE)),IF(ISNA(VLOOKUP(CU3,'Ransom Statistics'!$A$1:$D$18,4,FALSE)),'Ransom Statistics'!$D$18,VLOOKUP(CU3,'Ransom Statistics'!$A$1:$D$18,4,FALSE))))) -> 0 | DE3: =IF(A3=0,0,IF(A3=1,R3,IF(A3=2,R3+AB3,IF(A3=3,R3+AB3+AL3,IF(A3=4,R3+AB3+AL3+AV3,IF(A3=5,R3+AB3+AL3+AV3+BF3,IF(A3=6,R3+AB3+AL3+AV3+BF3+BP3,IF(A3=7,R3+AB3+AL3+AV3+BF3+BP3+BZ3,IF(A3=8,R3+AB3+AL3+AV3+BF3+BP3+BZ3+CJ3,IF(A3=9,R3+AB3+AL3+AV3+BF3+BP3+BZ3+CJ3+CT3,IF(A3=10,R3+AB3+AL3+AV3+BF3+BP3+BZ3+CJ3+CT3+DD3))))))))))) -> 0 | DF3: =((IF(A3=0,0,IF(A3=1,M3,IF(A3=2,M3+W3,IF(A3=3,M3+W3+AG3,IF(A3=4,M3+W3+AG3+AQ3,IF(A3=5,M3+W3+AG3+AQ3+BA3,IF(A3=6,M3+W3+AG3+AQ3+BA3+BK3,IF(A3=7,M3+W3+AG3+AQ3+BA3+BK3+BU3,IF(A3=8,M3+W3+AG3+AQ3+BA3+BK3+BU3+CE3,IF(A3=9,M3+W3+AG3+AQ3+BA3+BK3+BU3+CE3+CO3,IF(A3=10,M3+W3+AG3+AQ3+BA3+BK3+BU3+CE3+CO3+CY3))))))))))))/(1+Variables!$G$12))*(1+Variables!$F$19) -> 2593.124168
A4: =RANDBETWEEN(0,10) -> 8 | B4: =B3+1 -> 2 | C4: =INDEX([1]Variables!$C$2:$C$19,INT((RAND()*10)+1),1) -> Construction | D4: =RANDBETWEEN(1,50) -> 27 | E4: =RANDBETWEEN(D4,500) -> 262 | F4: =RANDBETWEEN(E4,20000) -> 9706 | G4: =RANDBETWEEN(500000,50000000) -> 20278313 | H4: =Variables!$H$18 -> 1000000 | I4: =INDEX([1]Variables!$A$2:$A$103,INT((RAND()*100)+1),1) -> CAR | J4: =INDEX(Variables!$E$3:$E$5,RANDBETWEEN(1,3),1) -> Long (more than one month) | K4: =INDEX([1]Variables!$G$3:$G$5,RANDBETWEEN(1,3),1) -> very frequent ( more than 12 times a year) | L4: =RANDBETWEEN(1,20) -> 12 | M4: =IF(ISNA(VLOOKUP(I4,Variables!$K$1:$K$36,1,FALSE)),SUM('Other cost'!$B$2,'Salary in Industry'!$AR3,IF(ISNA(VLOOKUP(Simulation!I4,'Ransom Statistics'!$A$1:$D$18,4,FALSE)),'Ransom Statistics'!$D$18,VLOOKUP(Simulation!I4,'Ransom Statistics'!$A$1:$D$18,4,FALSE)))*IF(ISNA(VLOOKUP(I4,'Industry Type P'!$A$2:$S$103,2,FALSE)),'Kidnapping Statistics'!$K$3,VLOOKUP(I4,'Industry Type P'!$A$1:$S$102,MATCH($C4,'Industry Type P'!$A$1:$S$1,0),FALSE))*VLOOKUP(K4,'travel frequence'!$A$1:$D$4,MATCH(J4,'travel frequence'!$A$1:$D$1,0),FALSE)*L4*IF(ISNA(VLOOKUP(L4,'travel frequence'!$A$7:$B$23,2,FALSE)),'travel frequence'!$B$23,VLOOKUP(L4,'travel frequence'!$A$7:$B$23,2,FALSE)),0) -> 51458.29375 | N4: =IF(VLOOKUP(I4,'Industry Type P'!$A$1:$S$102,MATCH($C4,'Industry Type P'!$A$1:$S$1,0),FALSE)>RAND(),"Y","N") -> N | O4: =IF(N4="N",0,RANDBETWEEN(1,200)) -> 0 | P4: 0 | Q4: =IF(N4="N"," ",INDEX('Other cost'!$A$9:$A$13,RANDBETWEEN(1,5),1)) ->  | R4: =MIN($H4,IF(N4="N",0,SUM(P4,'Other cost'!$B$16,VLOOKUP(Q4,'Other cost'!$A$9:$B$13,2,FALSE),IF(O4>=30,HLOOKUP(30,'Salary in Industry'!$N$1:$AQ$1001,$B4+1,FALSE),HLOOKUP(O4,'Salary in Industry'!$N$1:$AQ$1001,$B4+1,FALSE)),IF(ISNA(VLOOKUP(I4,'Ransom Statistics'!$A$1:$D$18,4,FALSE)),'Ransom Statistics'!$D$18,VLOOKUP(I4,'Ransom Statistics'!$A$1:$D$18,4,FALSE))))) -> 0 | S4: =INDEX([1]Variables!$A$2:$A$103,INT((RAND()*100)+1),1) -> Vietnam | T4: =INDEX(Variables!$E$3:$E$5,RANDBETWEEN(1,3),1) -> Medium (1 week to 1month) | U4: =INDEX([1]Variables!$G$3:$G$5,RANDBETWEEN(1,3),1) -> frequent (3 times to 12 times) | V4: =RANDBETWEEN(1,20) -> 1 | W4: =IF(ISNA(VLOOKUP(S4,Variables!$K$1:$K$36,1,FALSE)),SUM('Other cost'!$B$2,'Salary in Industry'!$AR3,IF(ISNA(VLOOKUP(Simulation!S4,'Ransom Statistics'!$A$1:$D$18,4,FALSE)),'Ransom Statistics'!$D$18,VLOOKUP(Simulation!S4,'Ransom Statistics'!$A$1:$D$18,4,FALSE)))*IF(ISNA(VLOOKUP(S4,'Industry Type P'!$A$2:$S$103,2,FALSE)),'Kidnapping Statistics'!$K$3,VLOOKUP(S4,'Industry Type P'!$A$1:$S$102,MATCH($C4,'Industry Type P'!$A$1:$S$1,0),FALSE))*VLOOKUP(U4,'travel frequence'!$A$1:$D$4,MATCH(T4,'travel frequence'!$A$1:$D$1,0),FALSE)*V4*IF(ISNA(VLOOKUP(V4,'travel frequence'!$A$7:$B$23,2,FALSE)),'travel frequence'!$B$23,VLOOKUP(V4,'travel frequence'!$A$7:$B$23,2,FALSE)),0) -> 256.8867325 | X4: =IF(VLOOKUP(S4,'Industry Type P'!$A$1:$S$102,MATCH($C4,'Industry Type P'!$A$1:$S$1,0),FALSE)>RAND(),"Y","N") -> N | Y4: =IF(X4="N",0,RANDBETWEEN(1,200)) -> 0 | Z4: 0 | AA4: =IF(X4="N"," ",INDEX('Other cost'!$A$9:$A$13,RANDBETWEEN(1,5),1)) ->  | AB4: =MIN($H4,IF(X4="N",0,SUM(Z4,'Other cost'!$B$16,VLOOKUP(AA4,'Other cost'!$A$9:$B$13,2,FALSE),IF(Y4>=30,HLOOKUP(30,'Salary in Industry'!$N$1:$AQ$1001,$B4+1,FALSE),HLOOKUP(Y4,'Salary in Industry'!$N$1:$AQ$1001,$B4+1,FALSE)),IF(ISNA(VLOOKUP(S4,'Ransom Statistics'!$A$1:$D$18,4,FALSE)),'Ransom Statistics'!$D$18,VLOOKUP(S4,'Ransom Statistics'!$A$1:$D$18,4,FALSE))))) -> 0 | AC4: =INDEX([1]Variables!$A$2:$A$103,INT((RAND()*100)+1),1) -> Nepal | AD4: =INDEX(Variables!$E$3:$E$5,RANDBETWEEN(1,3),1) -> Medium (1 week to 1month) | AE4: =INDEX([1]Variables!$G$3:$G$5,RANDBETWEEN(1,3),1) -> infrequent (less than 3 times) | AF4: =RANDBETWEEN(1,20) -> 13 | AG4: =IF(ISNA(VLOOKUP(AC4,Variables!$K$1:$K$36,1,FALSE)),SUM('Other cost'!$B$2,'Salary in Industry'!$AR3,IF(ISNA(VLOOKUP(Simulation!AC4,'Ransom Statistics'!$A$1:$D$18,4,FALSE)),'Ransom Statistics'!$D$18,VLOOKUP(Simulation!AC4,'Ransom Statistics'!$A$1:$D$18,4,FALSE)))*IF(ISNA(VLOOKUP(AC4,'Industry Type P'!$A$2:$S$103,2,FALSE)),'Kidnapping Statistics'!$K$3,VLOOKUP(AC4,'Industry Type P'!$A$1:$S$102,MATCH($C4,'Industry Type P'!$A$1:$S$1,0),FALSE))*VLOOKUP(AE4,'travel frequence'!$A$1:$D$4,MATCH(AD4,'travel frequence'!$A$1:$D$1,0),FALSE)*AF4*IF(ISNA(VLOOKUP(AF4,'travel frequence'!$A$7:$B$23,2,FALSE)),'travel frequence'!$B$23,VLOOKUP(AF4,'travel frequence'!$A$7:$B$23,2,FALSE)),0) -> 3079.821679 | AH4: =IF(VLOOKUP(AC4,'Industry Type P'!$A$1:$S$102,MATCH($C4,'Industry Type P'!$A$1:$S$1,0),FALSE)>RAND(),"Y","N") -> N | AI4: =IF(AH4="N",0,RANDBETWEEN(1,200)) -> 0 | AJ4: 0 | AK4: =IF(AH4="N"," ",INDEX('Other cost'!$A$9:$A$13,RANDBETWEEN(1,5),1)) ->  | AL4: =MIN($H4,IF(AH4="N",0,SUM(AJ4,'Other cost'!$B$16,VLOOKUP(AK4,'Other cost'!$A$9:$B$13,2,FALSE),IF(AI4>=30,HLOOKUP(30,'Salary in Industry'!$N$1:$AQ$1001,$B4+1,FALSE),HLOOKUP(AI4,'Salary in Industry'!$N$1:$AQ$1001,$B4+1,FALSE)),IF(ISNA(VLOOKUP(AC4,'Ransom Statistics'!$A$1:$D$18,4,FALSE)),'Ransom Statistics'!$D$18,VLOOKUP(AC4,'Ransom Statistics'!$A$1:$D$18,4,FALSE))))) -> 0 | AM4: =INDEX([1]Variables!$A$2:$A$103,INT((RAND()*100)+1),1) -> Gaza Strip | AN4: =INDEX(Variables!$E$3:$E$5,RANDBETWEEN(1,3),1) -> Long (more than one month) | AO4: =INDEX([1]Variables!$G$3:$G$5,RANDBETWEEN(1,3),1) -> frequent (3 times to 12 times) | AP4: =RANDBETWEEN(1,20) -> 10 | AQ4: =IF(ISNA(VLOOKUP(AM4,Variables!$K$1:$K$36,1,FALSE)),SUM('Other cost'!$B$2,'Salary in Industry'!$AR3,IF(ISNA(VLOOKUP(Simulation!AM4,'Ransom Statistics'!$A$1:$D$18,4,FALSE)),'Ransom Statistics'!$D$18,VLOOKUP(Simulation!AM4,'Ransom Statistics'!$A$1:$D$18,4,FALSE)))*IF(ISNA(VLOOKUP(AM4,'Industry Type P'!$A$2:$S$103,2,FALSE)),'Kidnapping Statistics'!$K$3,VLOOKUP(AM4,'Industry Type P'!$A$1:$S$102,MATCH($C4,'Industry Type P'!$A$1:$S$1,0),FALSE))*VLOOKUP(AO4,'travel frequence'!$A$1:$D$4,MATCH(AN4,'travel frequence'!$A$1:$D$1,0),FALSE)*AP4*IF(ISNA(VLOOKUP(AP4,'travel frequence'!$A$7:$B$23,2,FALSE)),'travel frequence'!$B$23,VLOOKUP(AP4,'travel frequence'!$A$7:$B$23,2,FALSE)),0) -> 1883.836038 | AR4: =IF(VLOOKUP(AM4,'Industry Type P'!$A$1:$S$102,MATCH($C4,'Industry Type P'!$A$1:$S$1,0),FALSE)>RAND(),"Y","N") -> N | AS4: =IF(AR4="N",0,RANDBETWEEN(1,200)) -> 0 | AT4: 0 | AU4: =IF(AR4="N"," ",INDEX('Other cost'!$A$9:$A$13,RANDBETWEEN(1,5),1)) ->  | AV4: =MIN($H4,IF(AR4="N",0,SUM(AT4,'Other cost'!$B$16,VLOOKUP(AU4,'Other cost'!$A$9:$B$13,2,FALSE),IF(AS4>=30,HLOOKUP(30,'Salary in Industry'!$N$1:$AQ$1001,$B4+1,FALSE),HLOOKUP(AS4,'Salary in Industry'!$N$1:$AQ$1001,$B4+1,FALSE)),IF(ISNA(VLOOKUP(AM4,'Ransom Statistics'!$A$1:$D$18,4,FALSE)),'Ransom Statistics'!$D$18,VLOOKUP(AM4,'Ransom Statistics'!$A$1:$D$18,4,FALSE))))) -> 0 | AW4: =INDEX([1]Variables!$A$2:$A$103,INT((RAND()*100)+1),1) -> Ecuador | AX4: =INDEX(Variables!$E$3:$E$5,RANDBETWEEN(1,3),1) -> Short (less a week) | AY4: =INDEX([1]Variables!$G$3:$G$5,RANDBETWEEN(1,3),1) -> frequent (3 times to 12 times) | AZ4: =RANDBETWEEN(1,20) -> 7 | BA4: =IF(ISNA(VLOOKUP(AW4,Variables!$K$1:$K$36,1,FALSE)),SUM('Other cost'!$B$2,'Salary in Industry'!$AR3,IF(ISNA(VLOOKUP(Simulation!AW4,'Ransom Statistics'!$A$1:$D$18,4,FALSE)),'Ransom Statistics'!$D$18,VLOOKUP(Simulation!AW4,'Ransom Statistics'!$A$1:$D$18,4,FALSE)))*IF(ISNA(VLOOKUP(AW4,'Industry Type P'!$A$2:$S$103,2,FALSE)),'Kidnapping Statistics'!$K$3,VLOOKUP(AW4,'Industry Type P'!$A$1:$S$102,MATCH($C4,'Industry Type P'!$A$1:$S$1,0),FALSE))*VLOOKUP(AY4,'travel frequence'!$A$1:$D$4,MATCH(AX4,'travel frequence'!$A$1:$D$1,0),FALSE)*AZ4*IF(ISNA(VLOOKUP(AZ4,'travel frequence'!$A$7:$B$23,2,FALSE)),'travel frequence'!$B$23,VLOOKUP(AZ4,'travel frequence'!$A$7:$B$23,2,FALSE)),0) -> 164.4075088 | BB4: =IF(VLOOKUP(AW4,'Industry Type P'!$A$1:$S$102,MATCH($C4,'Industry Type P'!$A$1:$S$1,0),FALSE)>RAND(),"Y","N") -> N | BC4: =IF(BB4="N",0,RANDBETWEEN(1,200)) -> 0 | BD4: 0 | BE4: =IF(BB4="N"," ",INDEX('Other cost'!$A$9:$A$13,RANDBETWEEN(1,5),1)) ->  | BF4: =MIN($H4,IF(BB4="N",0,SUM(BD4,'Other cost'!$B$16,VLOOKUP(BE4,'Other cost'!$A$9:$B$13,2,FALSE),IF(BC4>=30,HLOOKUP(30,'Salary in Industry'!$N$1:$AQ$1001,$B4+1,FALSE),HLOOKUP(BC4,'Salary in Industry'!$N$1:$AQ$1001,$B4+1,FALSE)),IF(ISNA(VLOOKUP(AW4,'Ransom Statistics'!$A$1:$D$18,4,FALSE)),'Ransom Statistics'!$D$18,VLOOKUP(AW4,'Ransom Statistics'!$A$1:$D$18,4,FALSE))))) -> 0 | BG4: =INDEX([1]Variables!$A$2:$A$103,INT((RAND()*100)+1),1) -> Congo | BH4: =INDEX(Variables!$E$3:$E$5,RANDBETWEEN(1,3),1) -> Medium (1 week to 1month) | BI4: =INDEX([1]Variables!$G$3:$G$5,RANDBETWEEN(1,3),1) -> frequent (3 times to 12 times) | BJ4: =RANDBETWEEN(1,20) -> 1 | BK4: =IF(ISNA(VLOOKUP(BG4,Variables!$K$1:$K$36,1,FALSE)),SUM('Other cost'!$B$2,'Salary in Industry'!$AR3,IF(ISNA(VLOOKUP(Simulation!BG4,'Ransom Statistics'!$A$1:$D$18,4,FALSE)),'Ransom Statistics'!$D$18,VLOOKUP(Simulation!BG4,'Ransom Statistics'!$A$1:$D$18,4,FALSE)))*IF(ISNA(VLOOKUP(BG4,'Industry Type P'!$A$2:$S$103,2,FALSE)),'Kidnapping Statistics'!$K$3,VLOOKUP(BG4,'Industry Type P'!$A$1:$S$102,MATCH($C4,'Industry Type P'!$A$1:$S$1,0),FALSE))*VLOOKUP(BI4,'travel frequence'!$A$1:$D$4,MATCH(BH4,'travel frequence'!$A$1:$D$1,0),FALSE)*BJ4*IF(ISNA(VLOOKUP(BJ4,'travel frequence'!$A$7:$B$23,2,FALSE)),'travel frequence'!$B$23,VLOOKUP(BJ4,'travel frequence'!$A$7:$B$23,2,FALSE)),0) -> 0.8562891082 | BL4: =IF(VLOOKUP(BG4,'Industry Type P'!$A$1:$S$102,MATCH($C4,'Industry Type P'!$A$1:$S$1,0),FALSE)>RAND(),"Y","N") -> N | BM4: =IF(BL4="N",0,RANDBETWEEN(1,200)) -> 0 | BN4: 0 | BO4: =IF(BL4="N"," ",INDEX('Other cost'!$A$9:$A$13,RANDBETWEEN(1,5),1)) ->  | BP4: =MIN($H4,IF(BL4="N",0,SUM(BN4,'Other cost'!$B$16,VLOOKUP(BO4,'Other cost'!$A$9:$B$13,2,FALSE),IF(BM4>=30,HLOOKUP(30,'Salary in Industry'!$N$1:$AQ$1001,$B4+1,FALSE),HLOOKUP(BM4,'Salary in Industry'!$N$1:$AQ$1001,$B4+1,FALSE)),IF(ISNA(VLOOKUP(BG4,'Ransom Statistics'!$A$1:$D$18,4,FALSE)),'Ransom Statistics'!$D$18,VLOOKUP(BG4,'Ransom Statistics'!$A$1:$D$18,4,FALSE))))) -> 0 | BQ4: =INDEX([1]Variables!$A$2:$A$103,INT((RAND()*100)+1),1) -> Coted'lvoire | BR4: =INDEX(Variables!$E$3:$E$5,RANDBETWEEN(1,3),1) -> Medium (1 week to 1month) | BS4: =INDEX([1]Variables!$G$3:$G$5,RANDBETWEEN(1,3),1) -> infrequent (less than 3 times) | BT4: =RANDBETWEEN(1,20) -> 2 | BU4: =IF(ISNA(VLOOKUP(BQ4,Variables!$K$1:$K$36,1,FALSE)),SUM('Other cost'!$B$2,'Salary in Industry'!$AR3,IF(ISNA(VLOOKUP(Simulation!BQ4,'Ransom Statistics'!$A$1:$D$18,4,FALSE)),'Ransom Statistics'!$D$18,VLOOKUP(Simulation!BQ4,'Ransom Statistics'!$A$1:$D$18,4,FALSE)))*IF(ISNA(VLOOKUP(BQ4,'Industry Type P'!$A$2:$S$103,2,FALSE)),'Kidnapping Statistics'!$K$3,VLOOKUP(BQ4,'Industry Type P'!$A$1:$S$102,MATCH($C4,'Industry Type P'!$A$1:$S$1,0),FALSE))*VLOOKUP(BS4,'travel frequence'!$A$1:$D$4,MATCH(BR4,'travel frequence'!$A$1:$D$1,0),FALSE)*BT4*IF(ISNA(VLOOKUP(BT4,'travel frequence'!$A$7:$B$23,2,FALSE)),'travel frequence'!$B$23,VLOOKUP(BT4,'travel frequence'!$A$7:$B$23,2,FALSE)),0) -> 440.3772556 | BV4: =IF(VLOOKUP(BQ4,'Industry Type P'!$A$1:$S$102,MATCH($C4,'Industry Type P'!$A$1:$S$1,0),FALSE)>RAND(),"Y","N") -> N | BW4: =IF(BV4="N",0,RANDBETWEEN(1,200)) -> 0 | BX4: 0 | BY4: =IF(BV4="N"," ",INDEX('Other cost'!$A$9:$A$13,RANDBETWEEN(1,5),1)) ->  | BZ4: =MIN($H4,IF(BV4="N",0,SUM(BX4,'Other cost'!$B$16,VLOOKUP(BY4,'Other cost'!$A$9:$B$13,2,FALSE),IF(BW4>=30,HLOOKUP(30,'Salary in Industry'!$N$1:$AQ$1001,$B4+1,FALSE),HLOOKUP(BW4,'Salary in Industry'!$N$1:$AQ$1001,$B4+1,FALSE)),IF(ISNA(VLOOKUP(BQ4,'Ransom Statistics'!$A$1:$D$18,4,FALSE)),'Ransom Statistics'!$D$18,VLOOKUP(BQ4,'Ransom Statistics'!$A$1:$D$18,4,FALSE))))) -> 0 | CA4: =INDEX([1]Variables!$A$2:$A$103,INT((RAND()*100)+1),1) -> North Korea | CB4: =INDEX(Variables!$E$3:$E$5,RANDBETWEEN(1,3),1) -> Medium (1 week to 1month) | CC4: =INDEX([1]Variables!$G$3:$G$5,RANDBETWEEN(1,3),1) -> very frequent ( more than 12 times a year) | CD4: =RANDBETWEEN(1,20) -> 7 | CE4: =IF(ISNA(VLOOKUP(CA4,Variables!$K$1:$K$36,1,FALSE)),SUM('Other cost'!$B$2,'Salary in Industry'!$AR3,IF(ISNA(VLOOKUP(Simulation!CA4,'Ransom Statistics'!$A$1:$D$18,4,FALSE)),'Ransom Statistics'!$D$18,VLOOKUP(Simulation!CA4,'Ransom Statistics'!$A$1:$D$18,4,FALSE)))*IF(ISNA(VLOOKUP(CA4,'Industry Type P'!$A$2:$S$103,2,FALSE)),'Kidnapping Statistics'!$K$3,VLOOKUP(CA4,'Industry Type P'!$A$1:$S$102,MATCH($C4,'Industry Type P'!$A$1:$S$1,0),FALSE))*VLOOKUP(CC4,'travel frequence'!$A$1:$D$4,MATCH(CB4,'travel frequence'!$A$1:$D$1,0),FALSE)*CD4*IF(ISNA(VLOOKUP(CD4,'travel frequence'!$A$7:$B$23,2,FALSE)),'travel frequence'!$B$23,VLOOKUP(CD4,'travel frequence'!$A$7:$B$23,2,FALSE)),0) -> 0 | CF4: =IF(VLOOKUP(CA4,'Industry Type P'!$A$1:$S$102,MATCH($C4,'Industry Type P'!$A$1:$S$1,0),FALSE)>RAND(),"Y","N") -> N | CG4: =IF(CF4="N",0,RANDBETWEEN(1,200)) -> 0 | CH4: 0 | CI4: =IF(CF4="N"," ",INDEX('Other cost'!$A$9:$A$13,RANDBETWEEN(1,5),1)) ->  | CJ4: =MIN($H4,IF(CF4="N",0,SUM(CH4,'Other cost'!$B$16,VLOOKUP(CI4,'Other cost'!$A$9:$B$13,2,FALSE),IF(CG4>=30,HLOOKUP(30,'Salary in Industry'!$N$1:$AQ$1001,$B4+1,FALSE),HLOOKUP(CG4,'Salary in Industry'!$N$1:$AQ$1001,$B4+1,FALSE)),IF(ISNA(VLOOKUP(CA4,'Ransom Statistics'!$A$1:$D$18,4,FALSE)),'Ransom Statistics'!$D$18,VLOOKUP(CA4,'Ransom Statistics'!$A$1:$D$18,4,FALSE))))) -> 0 | CK4: =INDEX([1]Variables!$A$2:$A$103,INT((RAND()*100)+1),1) -> Serbia | CL4: =INDEX(Variables!$E$3:$E$5,RANDBETWEEN(1,3),1) -> Medium (1 week to 1month) | CM4: =INDEX([1]Variables!$G$3:$G$5,RANDBETWEEN(1,3),1) -> frequent (3 times to 12 times) | CN4: =RANDBETWEEN(1,20) -> 19 | CO4: =IF(ISNA(VLOOKUP(CK4,Variables!$K$1:$K$36,1,FALSE)),SUM('Other cost'!$B$2,'Salary in Industry'!$AR3,IF(ISNA(VLOOKUP(Simulation!CK4,'Ransom Statistics'!$A$1:$D$18,4,FALSE)),'Ransom Statistics'!$D$18,VLOOKUP(Simulation!CK4,'Ransom Statistics'!$A$1:$D$18,4,FALSE)))*IF(ISNA(VLOOKUP(CK4,'Industry Type P'!$A$2:$S$103,2,FALSE)),'Kidnapping Statistics'!$K$3,VLOOKUP(CK4,'Industry Type P'!$A$1:$S$102,MATCH($C4,'Industry Type P'!$A$1:$S$1,0),FALSE))*VLOOKUP(CM4,'travel frequence'!$A$1:$D$4,MATCH(CL4,'travel frequence'!$A$1:$D$1,0),FALSE)*CN4*IF(ISNA(VLOOKUP(CN4,'travel frequence'!$A$7:$B$23,2,FALSE)),'travel frequence'!$B$23,VLOOKUP(CN4,'travel frequence'!$A$7:$B$23,2,FALSE)),0) -> 18.54722208 | CP4: =IF(VLOOKUP(CK4,'Industry Type P'!$A$1:$S$102,MATCH($C4,'Industry Type P'!$A$1:$S$1,0),FALSE)>RAND(),"Y","N") -> N | CQ4: =IF(CP4="N",0,RANDBETWEEN(1,200)) -> 0 | CR4: 0 | CS4: =IF(CP4="N"," ",INDEX('Other cost'!$A$9:$A$13,RANDBETWEEN(1,5),1)) ->  | CT4: =MIN($H4,IF(CP4="N",0,SUM(CR4,'Other cost'!$B$16,VLOOKUP(CS4,'Other cost'!$A$9:$B$13,2,FALSE),IF(CQ4>=30,HLOOKUP(30,'Salary in Industry'!$N$1:$AQ$1001,$B4+1,FALSE),HLOOKUP(CQ4,'Salary in Industry'!$N$1:$AQ$1001,$B4+1,FALSE)),IF(ISNA(VLOOKUP(CK4,'Ransom Statistics'!$A$1:$D$18,4,FALSE)),'Ransom Statistics'!$D$18,VLOOKUP(CK4,'Ransom Statistics'!$A$1:$D$18,4,FALSE))))) -> 0 | CU4: =INDEX([1]Variables!$A$2:$A$103,INT((RAND()*100)+1),1) -> Turkey | CV4: =INDEX(Variables!$E$3:$E$5,RANDBETWEEN(1,3),1) -> Short (less a week) | CW4: =INDEX([1]Variables!$G$3:$G$5,RANDBETWEEN(1,3),1) -> very frequent ( more than 12 times a year) | CX4: =RANDBETWEEN(1,20) -> 20 | CY4: =IF(ISNA(VLOOKUP(CU4,Variables!$K$1:$K$36,1,FALSE)),SUM('Other cost'!$B$2,'Salary in Industry'!$AR3,IF(ISNA(VLOOKUP(Simulation!CU4,'Ransom Statistics'!$A$1:$D$18,4,FALSE)),'Ransom Statistics'!$D$18,VLOOKUP(Simulation!CU4,'Ransom Statistics'!$A$1:$D$18,4,FALSE)))*IF(ISNA(VLOOKUP(CU4,'Industry Type P'!$A$2:$S$103,2,FALSE)),'Kidnapping Statistics'!$K$3,VLOOKUP(CU4,'Industry Type P'!$A$1:$S$102,MATCH($C4,'Industry Type P'!$A$1:$S$1,0),FALSE))*VLOOKUP(CW4,'travel frequence'!$A$1:$D$4,MATCH(CV4,'travel frequence'!$A$1:$D$1,0),FALSE)*CX4*IF(ISNA(VLOOKUP(CX4,'travel frequence'!$A$7:$B$23,2,FALSE)),'travel frequence'!$B$23,VLOOKUP(CX4,'travel frequence'!$A$7:$B$23,2,FALSE)),0) -> 1521.421867 | CZ4: =IF(VLOOKUP(CU4,'Industry Type P'!$A$1:$S$102,MATCH($C4,'Industry Type P'!$A$1:$S$1,0),FALSE)>RAND(),"Y","N") -> N | DA4: =IF(CZ4="N",0,RANDBETWEEN(1,200)) -> 0 | DB4: 0 | DC4: =IF(CZ4="N"," ",INDEX('Other cost'!$A$9:$A$13,RANDBETWEEN(1,5),1)) ->  | DD4: =MIN($H4,IF(CZ4="N",0,SUM(DB4,'Other cost'!$B$16,VLOOKUP(DC4,'Other cost'!$A$9:$B$13,2,FALSE),IF(DA4>=30,HLOOKUP(30,'Salary in Industry'!$N$1:$AQ$1001,$B4+1,FALSE),HLOOKUP(DA4,'Salary in Industry'!$N$1:$AQ$1001,$B4+1,FALSE)),IF(ISNA(VLOOKUP(CU4,'Ransom Statistics'!$A$1:$D$18,4,FALSE)),'Ransom Statistics'!$D$18,VLOOKUP(CU4,'Ransom Statistics'!$A$1:$D$18,4,FALSE))))) -> 0 | DE4: =IF(A4=0,0,IF(A4=1,R4,IF(A4=2,R4+AB4,IF(A4=3,R4+AB4+AL4,IF(A4=4,R4+AB4+AL4+AV4,IF(A4=5,R4+AB4+AL4+AV4+BF4,IF(A4=6,R4+AB4+AL4+AV4+BF4+BP4,IF(A4=7,R4+AB4+AL4+AV4+BF4+BP4+BZ4,IF(A4=8,R4+AB4+AL4+AV4+BF4+BP4+BZ4+CJ4,IF(A4=9,R4+AB4+AL4+AV4+BF4+BP4+BZ4+CJ4+CT4,IF(A4=10,R4+AB4+AL4+AV4+BF4+BP4+BZ4+CJ4+CT4+DD4))))))))))) -> 0 | DF4: =((IF(A4=0,0,IF(A4=1,M4,IF(A4=2,M4+W4,IF(A4=3,M4+W4+AG4,IF(A4=4,M4+W4+AG4+AQ4,IF(A4=5,M4+W4+AG4+AQ4+BA4,IF(A4=6,M4+W4+AG4+AQ4+BA4+BK4,IF(A4=7,M4+W4+AG4+AQ4+BA4+BK4+BU4,IF(A4=8,M4+W4+AG4+AQ4+BA4+BK4+BU4+CE4,IF(A4=9,M4+W4+AG4+AQ4+BA4+BK4+BU4+CE4+CO4,IF(A4=10,M4+W4+AG4+AQ4+BA4+BK4+BU4+CE4+CO4+CY4))))))))))))/(1+Variables!$G$12))*(1+Variables!$F$19) -> 68509.18013
A5: 7 | B5: 3 | C5: =INDEX([1]Variables!$C$2:$C$19,INT((RAND()*10)+1),1) -> Retail Trade | D5: 11 | E5: 335 | F5: 12299 | G5: 23263193 | H5: =Variables!$H$18 -> 1000000 | I5: =INDEX([1]Variables!$A$2:$A$103,INT((RAND()*100)+1),1) -> Tanzania | J5: =INDEX(Variables!$E$3:$E$5,RANDBETWEEN(1,3),1) -> Medium (1 week to 1month) | K5: =INDEX([1]Variables!$G$3:$G$5,RANDBETWEEN(1,3),1) -> very frequent ( more than 12 times a year) | L5: 9 | M5: =IF(ISNA(VLOOKUP(I5,Variables!$K$1:$K$36,1,FALSE)),SUM('Other cost'!$B$2,'Salary in Industry'!$AR4,IF(ISNA(VLOOKUP(Simulation!I5,'Ransom Statistics'!$A$1:$D$18,4,FALSE)),'Ransom Statistics'!$D$18,VLOOKUP(Simulation!I5,'Ransom Statistics'!$A$1:$D$18,4,FALSE)))*IF(ISNA(VLOOKUP(I5,'Industry Type P'!$A$2:$S$103,2,FALSE)),'Kidnapping Statistics'!$K$3,VLOOKUP(I5,'Industry Type P'!$A$1:$S$102,MATCH($C5,'Industry Type P'!$A$1:$S$1,0),FALSE))*VLOOKUP(K5,'travel frequence'!$A$1:$D$4,MATCH(J5,'travel frequence'!$A$1:$D$1,0),FALSE)*L5*IF(ISNA(VLOOKUP(L5,'travel frequence'!$A$7:$B$23,2,FALSE)),'travel frequence'!$B$23,VLOOKUP(L5,'travel frequence'!$A$7:$B$23,2,FALSE)),0) -> 6.459013047 | N5: =IF(VLOOKUP(I5,'Industry Type P'!$A$1:$S$102,MATCH($C5,'Industry Type P'!$A$1:$S$1,0),FALSE)>RAND(),"Y","N") -> N | O5: 0 | P5: 0 | Q5: =IF(N5="N"," ",INDEX('Other cost'!$A$9:$A$13,RANDBETWEEN(1,5),1)) ->  | R5: =MIN($H5,IF(N5="N",0,SUM(P5,'Other cost'!$B$16,VLOOKUP(Q5,'Other cost'!$A$9:$B$13,2,FALSE),IF(O5>=30,HLOOKUP(30,'Salary in Industry'!$N$1:$AQ$1001,$B5+1,FALSE),HLOOKUP(O5,'Salary in Industry'!$N$1:$AQ$1001,$B5+1,FALSE)),IF(ISNA(VLOOKUP(I5,'Ransom Statistics'!$A$1:$D$18,4,FALSE)),'Ransom Statistics'!$D$18,VLOOKUP(I5,'Ransom Statistics'!$A$1:$D$18,4,FALSE))))) -> 0 | S5: =INDEX([1]Variables!$A$2:$A$103,INT((RAND()*100)+1),1) -> Iran | T5: =INDEX(Variables!$E$3:$E$5,RANDBETWEEN(1,3),1) -> Long (more than one month) | U5: =INDEX([1]Variables!$G$3:$G$5,RANDBETWEEN(1,3),1) -> very frequent ( more than 12 times a year) | V5: 9 | W5: =IF(ISNA(VLOOKUP(S5,Variables!$K$1:$K$36,1,FALSE)),SUM('Other cost'!$B$2,'Salary in Industry'!$AR4,IF(ISNA(VLOOKUP(Simulation!S5,'Ransom Statistics'!$A$1:$D$18,4,FALSE)),'Ransom Statistics'!$D$18,VLOOKUP(Simulation!S5,'Ransom Statistics'!$A$1:$D$18,4,FALSE)))*IF(ISNA(VLOOKUP(S5,'Industry Type P'!$A$2:$S$103,2,FALSE)),'Kidnapping Statistics'!$K$3,VLOOKUP(S5,'Industry Type P'!$A$1:$S$102,MATCH($C5,'Industry Type P'!$A$1:$S$1,0),FALSE))*VLOOKUP(U5,'travel frequence'!$A$1:$D$4,MATCH(T5,'travel frequence'!$A$1:$D$1,0),FALSE)*V5*IF(ISNA(VLOOKUP(V5,'travel frequence'!$A$7:$B$23,2,FALSE)),'travel frequence'!$B$23,VLOOKUP(V5,'travel frequence'!$A$7:$B$23,2,FALSE)),0) -> 0 | X5: =IF(VLOOKUP(S5,'Industry Type P'!$A$1:$S$102,MATCH($C5,'Industry Type P'!$A$1:$S$1,0),FALSE)>RAND(),"Y","N") -> N | Y5: 0 | Z5: 0 | AA5: =IF(X5="N"," ",INDEX('Other cost'!$A$9:$A$13,RANDBETWEEN(1,5),1)) ->  | AB5: =MIN($H5,IF(X5="N",0,SUM(Z5,'Other cost'!$B$16,VLOOKUP(AA5,'Other cost'!$A$9:$B$13,2,FALSE),IF(Y5>=30,HLOOKUP(30,'Salary in Industry'!$N$1:$AQ$1001,$B5+1,FALSE),HLOOKUP(Y5,'Salary in Industry'!$N$1:$AQ$1001,$B5+1,FALSE)),IF(ISNA(VLOOKUP(S5,'Ransom Statistics'!$A$1:$D$18,4,FALSE)),'Ransom Statistics'!$D$18,VLOOKUP(S5,'Ransom Statistics'!$A$1:$D$18,4,FALSE))))) -> 0 | AC5: =INDEX([1]Variables!$A$2:$A$103,INT((RAND()*100)+1),1) -> Rwanda | AD5: =INDEX(Variables!$E$3:$E$5,RANDBETWEEN(1,3),1) -> Medium (1 week to 1month) | AE5: =INDEX([1]Variables!$G$3:$G$5,RANDBETWEEN(1,3),1) -> frequent (3 times to 12 times) | AF5: 7 | AG5: =IF(ISNA(VLOOKUP(AC5,Variables!$K$1:$K$36,1,FALSE)),SUM('Other cost'!$B$2,'Salary in Industry'!$AR4,IF(ISNA(VLOOKUP(Simulation!AC5,'Ransom Statistics'!$A$1:$D$18,4,FALSE)),'Ransom Statistics'!$D$18,VLOOKUP(Simulation!AC5,'Ransom Statistics'!$A$1:$D$18,4,FALSE)))*IF(ISNA(VLOOKUP(AC5,'Industry Type P'!$A$2:$S$103,2,FALSE)),'Kidnapping Statistics'!$K$3,VLOOKUP(AC5,'Industry Type P'!$A$1:$S$102,MATCH($C5,'Industry Type P'!$A$1:$S$1,0),FALSE))*VLOOKUP(AE5,'travel frequence'!$A$1:$D$4,MATCH(AD5,'travel frequence'!$A$1:$D$1,0),FALSE)*AF5*IF(ISNA(VLOOKUP(AF5,'travel frequence'!$A$7:$B$23,2,FALSE)),'travel frequence'!$B$23,VLOOKUP(AF5,'travel frequence'!$A$7:$B$23,2,FALSE)),0) -> 1438.59836 | AH5: =IF(VLOOKUP(AC5,'Industry Type P'!$A$1:$S$102,MATCH($C5,'Industry Type P'!$A$1:$S$1,0),FALSE)>RAND(),"Y","N") -> N | AI5: 0 | AJ5: 0 | AK5: =IF(AH5="N"," ",INDEX('Other cost'!$A$9:$A$13,RANDBETWEEN(1,5),1)) ->  | AL5: =MIN($H5,IF(AH5="N",0,SUM(AJ5,'Other cost'!$B$16,VLOOKUP(AK5,'Other cost'!$A$9:$B$13,2,FALSE),IF(AI5>=30,HLOOKUP(30,'Salary in Industry'!$N$1:$AQ$1001,$B5+1,FALSE),HLOOKUP(AI5,'Salary in Industry'!$N$1:$AQ$1001,$B5+1,FALSE)),IF(ISNA(VLOOKUP(AC5,'Ransom Statistics'!$A$1:$D$18,4,FALSE)),'Ransom Statistics'!$D$18,VLOOKUP(AC5,'Ransom Statistics'!$A$1:$D$18,4,FALSE))))) -> 0 | AM5: =INDEX([1]Variables!$A$2:$A$103,INT((RAND()*100)+1),1) -> East Timor | AN5: =INDEX(Variables!$E$3:$E$5,RANDBETWEEN(1,3),1) -> Long (more than one month) | AO5: =INDEX([1]Variables!$G$3:$G$5,RANDBETWEEN(1,3),1) -> frequent (3 times to 12 times) | AP5: 18 | AQ5: =IF(ISNA(VLOOKUP(AM5,Variables!$K$1:$K$36,1,FALSE)),SUM('Other cost'!$B$2,'Salary in Industry'!$AR4,IF(ISNA(VLOOKUP(Simulation!AM5,'Ransom Statistics'!$A$1:$D$18,4,FALSE)),'Ransom Statistics'!$D$18,VLOOKUP(Simulation!AM5,'Ransom Statistics'!$A$1:$D$18,4,FALSE)))*IF(ISNA(VLOOKUP(AM5,'Industry Type P'!$A$2:$S$103,2,FALSE)),'Kidnapping Statistics'!$K$3,VLOOKUP(AM5,'Industry Type P'!$A$1:$S$102,MATCH($C5,'Industry Type P'!$A$1:$S$1,0),FALSE))*VLOOKUP(AO5,'travel frequence'!$A$1:$D$4,MATCH(AN5,'travel frequence'!$A$1:$D$1,0),FALSE)*AP5*IF(ISNA(VLOOKUP(AP5,'travel frequence'!$A$7:$B$23,2,FALSE)),'travel frequence'!$B$23,VLOOKUP(AP5,'travel frequence'!$A$7:$B$23,2,FALSE)),0) -> 9.68851957 | AR5: =IF(VLOOKUP(AM5,'Industry Type P'!$A$1:$S$102,MATCH($C5,'Industry Type P'!$A$1:$S$1,0),FALSE)>RAND(),"Y","N") -> N | AS5: 0 | AT5: 0 | AU5: =IF(AR5="N"," ",INDEX('Other cost'!$A$9:$A$13,RANDBETWEEN(1,5),1)) ->  | AV5: =MIN($H5,IF(AR5="N",0,SUM(AT5,'Other cost'!$B$16,VLOOKUP(AU5,'Other cost'!$A$9:$B$13,2,FALSE),IF(AS5>=30,HLOOKUP(30,'Salary in Industry'!$N$1:$AQ$1001,$B5+1,FALSE),HLOOKUP(AS5,'Salary in Industry'!$N$1:$AQ$1001,$B5+1,FALSE)),IF(ISNA(VLOOKUP(AM5,'Ransom Statistics'!$A$1:$D$18,4,FALSE)),'Ransom Statistics'!$D$18,VLOOKUP(AM5,'Ransom Statistics'!$A$1:$D$18,4,FALSE))))) -> 0 | AW5: =INDEX([1]Variables!$A$2:$A$103,INT((RAND()*100)+1),1) -> Myanmar | AX5: =INDEX(Variables!$E$3:$E$5,RANDBETWEEN(1,3),1) -> Long (more than one month) | AY5: =INDEX([1]Variables!$G$3:$G$5,RANDBETWEEN(1,3),1) -> very frequent ( more than 12 times a year) | AZ5: 11 | BA5: =IF(ISNA(VLOOKUP(AW5,Variables!$K$1:$K$36,1,FALSE)),SUM('Other cost'!$B$2,'Salary in Industry'!$AR4,IF(ISNA(VLOOKUP(Simulation!AW5,'Ransom Statistics'!$A$1:$D$18,4,FALSE)),'Ransom Statistics'!$D$18,VLOOKUP(Simulation!AW5,'Ransom Statistics'!$A$1:$D$18,4,FALSE)))*IF(ISNA(VLOOKUP(AW5,'Industry Type P'!$A$2:$S$103,2,FALSE)),'Kidnapping Statistics'!$K$3,VLOOKUP(AW5,'Industry Type P'!$A$1:$S$102,MATCH($C5,'Industry Type P'!$A$1:$S$1,0),FALSE))*VLOOKUP(AY5,'travel frequence'!$A$1:$D$4,MATCH(AX5,'travel frequence'!$A$1:$D$1,0),FALSE)*AZ5*IF(ISNA(VLOOKUP(AZ5,'travel frequence'!$A$7:$B$23,2,FALSE)),'travel frequence'!$B$23,VLOOKUP(AZ5,'travel frequence'!$A$7:$B$23,2,FALSE)),0) -> 2170.946052 | BB5: =IF(VLOOKUP(AW5,'Industry Type P'!$A$1:$S$102,MATCH($C5,'Industry Type P'!$A$1:$S$1,0),FALSE)>RAND(),"Y","N") -> N | BC5: 0 | BD5: 0 | BE5: =IF(BB5="N"," ",INDEX('Other cost'!$A$9:$A$13,RANDBETWEEN(1,5),1)) ->  | BF5: =MIN($H5,IF(BB5="N",0,SUM(BD5,'Other cost'!$B$16,VLOOKUP(BE5,'Other cost'!$A$9:$B$13,2,FALSE),IF(BC5>=30,HLOOKUP(30,'Salary in Industry'!$N$1:$AQ$1001,$B5+1,FALSE),HLOOKUP(BC5,'Salary in Industry'!$N$1:$AQ$1001,$B5+1,FALSE)),IF(ISNA(VLOOKUP(AW5,'Ransom Statistics'!$A$1:$D$18,4,FALSE)),'Ransom Statistics'!$D$18,VLOOKUP(AW5,'Ransom Statistics'!$A$1:$D$18,4,FALSE))))) -> 0 | BG5: =INDEX([1]Variables!$A$2:$A$103,INT((RAND()*100)+1),1) -> Chile | BH5: =INDEX(Variables!$E$3:$E$5,RANDBETWEEN(1,3),1) -> Short (less a week) | BI5: =INDEX([1]Variables!$G$3:$G$5,RANDBETWEEN(1,3),1) -> frequent (3 times to 12 times) | BJ5: 13 | BK5: =IF(ISNA(VLOOKUP(BG5,Variables!$K$1:$K$36,1,FALSE)),SUM('Other cost'!$B$2,'Salary in Industry'!$AR4,IF(ISNA(VLOOKUP(Simulation!BG5,'Ransom Statistics'!$A$1:$D$18,4,FALSE)),'Ransom Statistics'!$D$18,VLOOKUP(Simulation!BG5,'Ransom Statistics'!$A$1:$D$18,4,FALSE)))*IF(ISNA(VLOOKUP(BG5,'Industry Type P'!$A$2:$S$103,2,FALSE)),'Kidnapping Statistics'!$K$3,VLOOKUP(BG5,'Industry Type P'!$A$1:$S$102,MATCH($C5,'Industry Type P'!$A$1:$S$1,0),FALSE))*VLOOKUP(BI5,'travel frequence'!$A$1:$D$4,MATCH(BH5,'travel frequence'!$A$1:$D$1,0),FALSE)*BJ5*IF(ISNA(VLOOKUP(BJ5,'travel frequence'!$A$7:$B$23,2,FALSE)),'travel frequence'!$B$23,VLOOKUP(BJ5,'travel frequence'!$A$7:$B$23,2,FALSE)),0) -> 394.6633093 | BL5: =IF(VLOOKUP(BG5,'Industry Type P'!$A$1:$S$102,MATCH($C5,'Industry Type P'!$A$1:$S$1,0),FALSE)>RAND(),"Y","N") -> N | BM5: 0 | BN5: 0 | BO5: =IF(BL5="N"," ",INDEX('Other cost'!$A$9:$A$13,RANDBETWEEN(1,5),1)) ->  | BP5: =MIN($H5,IF(BL5="N",0,SUM(BN5,'Other cost'!$B$16,VLOOKUP(BO5,'Other cost'!$A$9:$B$13,2,FALSE),IF(BM5>=30,HLOOKUP(30,'Salary in Industry'!$N$1:$AQ$1001,$B5+1,FALSE),HLOOKUP(BM5,'Salary in Industry'!$N$1:$AQ$1001,$B5+1,FALSE)),IF(ISNA(VLOOKUP(BG5,'Ransom Statistics'!$A$1:$D$18,4,FALSE)),'Ransom Statistics'!$D$18,VLOOKUP(BG5,'Ransom Statistics'!$A$1:$D$18,4,FALSE))))) -> 0 | BQ5: =INDEX([1]Variables!$A$2:$A$103,INT((RAND()*100)+1),1) -> Oman | BR5: =INDEX(Variables!$E$3:$E$5,RANDBETWEEN(1,3),1) -> Medium (1 week to 1month) | BS5: =INDEX([1]Variables!$G$3:$G$5,RANDBETWEEN(1,3),1) -> infrequent (less than 3 times) | BT5: 10 | BU5: =IF(ISNA(VLOOKUP(BQ5,Variables!$K$1:$K$36,1,FALSE)),SUM('Other cost'!$B$2,'Salary in Industry'!$AR4,IF(ISNA(VLOOKUP(Simulation!BQ5,'Ransom Statistics'!$A$1:$D$18,4,FALSE)),'Ransom Statistics'!$D$18,VLOOKUP(Simulation!BQ5,'Ransom Statistics'!$A$1:$D$18,4,FALSE)))*IF(ISNA(VLOOKUP(BQ5,'Industry Type P'!$A$2:$S$103,2,FALSE)),'Kidnapping Statistics'!$K$3,VLOOKUP(BQ5,'Industry Type P'!$A$1:$S$102,MATCH($C5,'Industry Type P'!$A$1:$S$1,0),FALSE))*VLOOKUP(BS5,'travel frequence'!$A$1:$D$4,MATCH(BR5,'travel frequence'!$A$1:$D$1,0),FALSE)*BT5*IF(ISNA(VLOOKUP(BT5,'travel frequence'!$A$7:$B$23,2,FALSE)),'travel frequence'!$B$23,VLOOKUP(BT5,'travel frequence'!$A$7:$B$23,2,FALSE)),0) -> 5.708723652 | BV5: =IF(VLOOKUP(BQ5,'Industry Type P'!$A$1:$S$102,MATCH($C5,'Industry Type P'!$A$1:$S$1,0),FALSE)>RAND(),"Y","N") -> N | BW5: 0 | BX5: 0 | BY5: =IF(BV5="N"," ",INDEX('Other cost'!$A$9:$A$13,RANDBETWEEN(1,5),1)) ->  | BZ5: =MIN($H5,IF(BV5="N",0,SUM(BX5,'Other cost'!$B$16,VLOOKUP(BY5,'Other cost'!$A$9:$B$13,2,FALSE),IF(BW5>=30,HLOOKUP(30,'Salary in Industry'!$N$1:$AQ$1001,$B5+1,FALSE),HLOOKUP(BW5,'Salary in Industry'!$N$1:$AQ$1001,$B5+1,FALSE)),IF(ISNA(VLOOKUP(BQ5,'Ransom Statistics'!$A$1:$D$18,4,FALSE)),'Ransom Statistics'!$D$18,VLOOKUP(BQ5,'Ransom Statistics'!$A$1:$D$18,4,FALSE))))) -> 0 | CA5: =INDEX([1]Variables!$A$2:$A$103,INT((RAND()*100)+1),1) -> Northern Ireland | CB5: =INDEX(Variables!$E$3:$E$5,RANDBETWEEN(1,3),1) -> Short (less a week) | CC5: =INDEX([1]Variables!$G$3:$G$5,RANDBETWEEN(1,3),1) -> very frequent ( more than 12 times a year) | CD5: 14 | CE5: =IF(ISNA(VLOOKUP(CA5,Variables!$K$1:$K$36,1,FALSE)),SUM('Other cost'!$B$2,'Salary in Industry'!$AR4,IF(ISNA(VLOOKUP(Simulation!CA5,'Ransom Statistics'!$A$1:$D$18,4,FALSE)),'Ransom Statistics'!$D$18,VLOOKUP(Simulation!CA5,'Ransom Statistics'!$A$1:$D$18,4,FALSE)))*IF(ISNA(VLOOKUP(CA5,'Industry Type P'!$A$2:$S$103,2,FALSE)),'Kidnapping Statistics'!$K$3,VLOOKUP(CA5,'Industry Type P'!$A$1:$S$102,MATCH($C5,'Industry Type P'!$A$1:$S$1,0),FALSE))*VLOOKUP(CC5,'travel frequence'!$A$1:$D$4,MATCH(CB5,'travel frequence'!$A$1:$D$1,0),FALSE)*CD5*IF(ISNA(VLOOKUP(CD5,'travel frequence'!$A$7:$B$23,2,FALSE)),'travel frequence'!$B$23,VLOOKUP(CD5,'travel frequence'!$A$7:$B$23,2,FALSE)),0) -> 259.5566354 | CF5: =IF(VLOOKUP(CA5,'Industry Type P'!$A$1:$S$102,MATCH($C5,'Industry Type P'!$A$1:$S$1,0),FALSE)>RAND(),"Y","N") -> N | CG5: 0 | CH5: 0 | CI5: =IF(CF5="N"," ",INDEX('Other cost'!$A$9:$A$13,RANDBETWEEN(1,5),1)) ->  | CJ5: =MIN($H5,IF(CF5="N",0,SUM(CH5,'Other cost'!$B$16,VLOOKUP(CI5,'Other cost'!$A$9:$B$13,2,FALSE),IF(CG5>=30,HLOOKUP(30,'Salary in Industry'!$N$1:$AQ$1001,$B5+1,FALSE),HLOOKUP(CG5,'Salary in Industry'!$N$1:$AQ$1001,$B5+1,FALSE)),IF(ISNA(VLOOKUP(CA5,'Ransom Statistics'!$A$1:$D$18,4,FALSE)),'Ransom Statistics'!$D$18,VLOOKUP(CA5,'Ransom Statistics'!$A$1:$D$18,4,FALSE))))) -> 0 | CK5: =INDEX([1]Variables!$A$2:$A$103,INT((RAND()*100)+1),1) -> Cameroon | CL5: =INDEX(Variables!$E$3:$E$5,RANDBETWEEN(1,3),1) -> Long (more than one month) | CM5: =INDEX([1]Variables!$G$3:$G$5,RANDBETWEEN(1,3),1) -> frequent (3 times to 12 times) | CN5: 10 | CO5: =IF(ISNA(VLOOKUP(CK5,Variables!$K$1:$K$36,1,FALSE)),SUM('Other cost'!$B$2,'Salary in Industry'!$AR4,IF(ISNA(VLOOKUP(Simulation!CK5,'Ransom Statistics'!$A$1:$D$18,4,FALSE)),'Ransom Statistics'!$D$18,VLOOKUP(Simulation!CK5,'Ransom Statistics'!$A$1:$D$18,4,FALSE)))*IF(ISNA(VLOOKUP(CK5,'Industry Type P'!$A$2:$S$103,2,FALSE)),'Kidnapping Statistics'!$K$3,VLOOKUP(CK5,'Industry Type P'!$A$1:$S$102,MATCH($C5,'Industry Type P'!$A$1:$S$1,0),FALSE))*VLOOKUP(CM5,'travel frequence'!$A$1:$D$4,MATCH(CL5,'travel frequence'!$A$1:$D$1,0),FALSE)*CN5*IF(ISNA(VLOOKUP(CN5,'travel frequence'!$A$7:$B$23,2,FALSE)),'travel frequence'!$B$23,VLOOKUP(CN5,'travel frequence'!$A$7:$B$23,2,FALSE)),0) -> 0 | CP5: =IF(VLOOKUP(CK5,'Industry Type P'!$A$1:$S$102,MATCH($C5,'Industry Type P'!$A$1:$S$1,0),FALSE)>RAND(),"Y","N") -> N | CQ5: 0 | CR5: 0 | CS5: =IF(CP5="N"," ",INDEX('Other cost'!$A$9:$A$13,RANDBETWEEN(1,5),1)) ->  | CT5: =MIN($H5,IF(CP5="N",0,SUM(CR5,'Other cost'!$B$16,VLOOKUP(CS5,'Other cost'!$A$9:$B$13,2,FALSE),IF(CQ5>=30,HLOOKUP(30,'Salary in Industry'!$N$1:$AQ$1001,$B5+1,FALSE),HLOOKUP(CQ5,'Salary in Industry'!$N$1:$AQ$1001,$B5+1,FALSE)),IF(ISNA(VLOOKUP(CK5,'Ransom Statistics'!$A$1:$D$18,4,FALSE)),'Ransom Statistics'!$D$18,VLOOKUP(CK5,'Ransom Statistics'!$A$1:$D$18,4,FALSE))))) -> 0 | CU5: =INDEX([1]Variables!$A$2:$A$103,INT((RAND()*100)+1),1) -> East Timor | CV5: =INDEX(Variables!$E$3:$E$5,RANDBETWEEN(1,3),1) -> Short (less a week) | CW5: =INDEX([1]Variables!$G$3:$G$5,RANDBETWEEN(1,3),1) -> very frequent ( more than 12 times a year) | CX5: 1 | CY5: =IF(ISNA(VLOOKUP(CU5,Variables!$K$1:$K$36,1,FALSE)),SUM('Other cost'!$B$2,'Salary in Industry'!$AR4,IF(ISNA(VLOOKUP(Simulation!CU5,'Ransom Statistics'!$A$1:$D$18,4,FALSE)),'Ransom Statistics'!$D$18,VLOOKUP(Simulation!CU5,'Ransom Statistics'!$A$1:$D$18,4,FALSE)))*IF(ISNA(VLOOKUP(CU5,'Industry Type P'!$A$2:$S$103,2,FALSE)),'Kidnapping Statistics'!$K$3,VLOOKUP(CU5,'Industry Type P'!$A$1:$S$102,MATCH($C5,'Industry Type P'!$A$1:$S$1,0),FALSE))*VLOOKUP(CW5,'travel frequence'!$A$1:$D$4,MATCH(CV5,'travel frequence'!$A$1:$D$1,0),FALSE)*CX5*IF(ISNA(VLOOKUP(CX5,'travel frequence'!$A$7:$B$23,2,FALSE)),'travel frequence'!$B$23,VLOOKUP(CX5,'travel frequence'!$A$7:$B$23,2,FALSE)),0) -> 0.8543668051 | CZ5: =IF(VLOOKUP(CU5,'Industry Type P'!$A$1:$S$102,MATCH($C5,'Industry Type P'!$A$1:$S$1,0),FALSE)>RAND(),"Y","N") -> N | DA5: 0 | DB5: 0 | DC5: =IF(CZ5="N"," ",INDEX('Other cost'!$A$9:$A$13,RANDBETWEEN(1,5),1)) ->  | DD5: =MIN($H5,IF(CZ5="N",0,SUM(DB5,'Other cost'!$B$16,VLOOKUP(DC5,'Other cost'!$A$9:$B$13,2,FALSE),IF(DA5>=30,HLOOKUP(30,'Salary in Industry'!$N$1:$AQ$1001,$B5+1,FALSE),HLOOKUP(DA5,'Salary in Industry'!$N$1:$AQ$1001,$B5+1,FALSE)),IF(ISNA(VLOOKUP(CU5,'Ransom Statistics'!$A$1:$D$18,4,FALSE)),'Ransom Statistics'!$D$18,VLOOKUP(CU5,'Ransom Statistics'!$A$1:$D$18,4,FALSE))))) -> 0 | DE5: 0 | DF5: =((IF(A5=0,0,IF(A5=1,M5,IF(A5=2,M5+W5,IF(A5=3,M5+W5+AG5,IF(A5=4,M5+W5+AG5+AQ5,IF(A5=5,M5+W5+AG5+AQ5+BA5,IF(A5=6,M5+W5+AG5+AQ5+BA5+BK5,IF(A5=7,M5+W5+AG5+AQ5+BA5+BK5+BU5,IF(A5=8,M5+W5+AG5+AQ5+BA5+BK5+BU5+CE5,IF(A5=9,M5+W5+AG5+AQ5+BA5+BK5+BU5+CE5+CO5,IF(A5=10,M5+W5+AG5+AQ5+BA5+BK5+BU5+CE5+CO5+CY5))))))))))))/(1+Variables!$G$12))*(1+Variables!$F$19) -> 4814.957661 | DJ5: Results
A6: 6 | B6: 4 | C6: =INDEX([1]Variables!$C$2:$C$19,INT((RAND()*10)+1),1) -> Transportation and Warehousing | D6: 5 | E6: 392 | F6: 10424 | G6: 9233710 | H6: =Variables!$H$18 -> 1000000 | I6: =INDEX([1]Variables!$A$2:$A$103,INT((RAND()*100)+1),1) -> Mexico | J6: =INDEX(Variables!$E$3:$E$5,RANDBETWEEN(1,3),1) -> Long (more than one month) | K6: =INDEX([1]Variables!$G$3:$G$5,RANDBETWEEN(1,3),1) -> very frequent ( more than 12 times a year) | L6: 5 | M6: =IF(ISNA(VLOOKUP(I6,Variables!$K$1:$K$36,1,FALSE)),SUM('Other cost'!$B$2,'Salary in Industry'!$AR5,IF(ISNA(VLOOKUP(Simulation!I6,'Ransom Statistics'!$A$1:$D$18,4,FALSE)),'Ransom Statistics'!$D$18,VLOOKUP(Simulation!I6,'Ransom Statistics'!$A$1:$D$18,4,FALSE)))*IF(ISNA(VLOOKUP(I6,'Industry Type P'!$A$2:$S$103,2,FALSE)),'Kidnapping Statistics'!$K$3,VLOOKUP(I6,'Industry Type P'!$A$1:$S$102,MATCH($C6,'Industry Type P'!$A$1:$S$1,0),FALSE))*VLOOKUP(K6,'travel frequence'!$A$1:$D$4,MATCH(J6,'travel frequence'!$A$1:$D$1,0),FALSE)*L6*IF(ISNA(VLOOKUP(L6,'travel frequence'!$A$7:$B$23,2,FALSE)),'travel frequence'!$B$23,VLOOKUP(L6,'travel frequence'!$A$7:$B$23,2,FALSE)),0) -> 0 | N6: =IF(VLOOKUP(I6,'Industry Type P'!$A$1:$S$102,MATCH($C6,'Industry Type P'!$A$1:$S$1,0),FALSE)>RAND(),"Y","N") -> N | O6: 0 | P6: 0 | Q6: =IF(N6="N"," ",INDEX('Other cost'!$A$9:$A$13,RANDBETWEEN(1,5),1)) ->  | R6: =MIN($H6,IF(N6="N",0,SUM(P6,'Other cost'!$B$16,VLOOKUP(Q6,'Other cost'!$A$9:$B$13,2,FALSE),IF(O6>=30,HLOOKUP(30,'Salary in Industry'!$N$1:$AQ$1001,$B6+1,FALSE),HLOOKUP(O6,'Salary in Industry'!$N$1:$AQ$1001,$B6+1,FALSE)),IF(ISNA(VLOOKUP(I6,'Ransom Statistics'!$A$1:$D$18,4,FALSE)),'Ransom Statistics'!$D$18,VLOOKUP(I6,'Ransom Statistics'!$A$1:$D$18,4,FALSE))))) -> 0 | S6: =INDEX([1]Variables!$A$2:$A$103,INT((RAND()*100)+1),1) -> EI Salvador | T6: =INDEX(Variables!$E$3:$E$5,RANDBETWEEN(1,3),1) -> Short (less a week) | U6: =INDEX([1]Variables!$G$3:$G$5,RANDBETWEEN(1,3),1) -> frequent (3 times to 12 times) | V6: 5 | W6: =IF(ISNA(VLOOKUP(S6,Variables!$K$1:$K$36,1,FALSE)),SUM('Other cost'!$B$2,'Salary in Industry'!$AR5,IF(ISNA(VLOOKUP(Simulation!S6,'Ransom Statistics'!$A$1:$D$18,4,FALSE)),'Ransom Statistics'!$D$18,VLOOKUP(Simulation!S6,'Ransom Statistics'!$A$1:$D$18,4,FALSE)))*IF(ISNA(VLOOKUP(S6,'Industry Type P'!$A$2:$S$103,2,FALSE)),'Kidnapping Statistics'!$K$3,VLOOKUP(S6,'Industry Type P'!$A$1:$S$102,MATCH($C6,'Industry Type P'!$A$1:$S$1,0),FALSE))*VLOOKUP(U6,'travel frequence'!$A$1:$D$4,MATCH(T6,'travel frequence'!$A$1:$D$1,0),FALSE)*V6*IF(ISNA(VLOOKUP(V6,'travel frequence'!$A$7:$B$23,2,FALSE)),'travel frequence'!$B$23,VLOOKUP(V6,'travel frequence'!$A$7:$B$23,2,FALSE)),0) -> 22.6926743 | X6: =IF(VLOOKUP(S6,'Industry Type P'!$A$1:$S$102,MATCH($C6,'Industry Type P'!$A$1:$S$1,0),FALSE)>RAND(),"Y","N") -> N | Y6: 0 | Z6: 0 | AA6: =IF(X6="N"," ",INDEX('Other cost'!$A$9:$A$13,RANDBETWEEN(1,5),1)) ->  | AB6: =MIN($H6,IF(X6="N",0,SUM(Z6,'Other cost'!$B$16,VLOOKUP(AA6,'Other cost'!$A$9:$B$13,2,FALSE),IF(Y6>=30,HLOOKUP(30,'Salary in Industry'!$N$1:$AQ$1001,$B6+1,FALSE),HLOOKUP(Y6,'Salary in Industry'!$N$1:$AQ$1001,$B6+1,FALSE)),IF(ISNA(VLOOKUP(S6,'Ransom Statistics'!$A$1:$D$18,4,FALSE)),'Ransom Statistics'!$D$18,VLOOKUP(S6,'Ransom Statistics'!$A$1:$D$18,4,FALSE))))) -> 0 | AC6: =INDEX([1]Variables!$A$2:$A$103,INT((RAND()*100)+1),1) -> Nigeria | AD6: =INDEX(Variables!$E$3:$E$5,RANDBETWEEN(1,3),1) -> Short (less a week) | AE6: =INDEX([1]Variables!$G$3:$G$5,RANDBETWEEN(1,3),1) -> very frequent ( more than 12 times a year) | AF6: 18 | AG6: =IF(ISNA(VLOOKUP(AC6,Variables!$K$1:$K$36,1,FALSE)),SUM('Other cost'!$B$2,'Salary in Industry'!$AR5,IF(ISNA(VLOOKUP(Simulation!AC6,'Ransom Statistics'!$A$1:$D$18,4,FALSE)),'Ransom Statistics'!$D$18,VLOOKUP(Simulation!AC6,'Ransom Statistics'!$A$1:$D$18,4,FALSE)))*IF(ISNA(VLOOKUP(AC6,'Industry Type P'!$A$2:$S$103,2,FALSE)),'Kidnapping Statistics'!$K$3,VLOOKUP(AC6,'Industry Type P'!$A$1:$S$102,MATCH($C6,'Industry Type P'!$A$1:$S$1,0),FALSE))*VLOOKUP(AE6,'travel frequence'!$A$1:$D$4,MATCH(AD6,'travel frequence'!$A$1:$D$1,0),FALSE)*AF6*IF(ISNA(VLOOKUP(AF6,'travel frequence'!$A$7:$B$23,2,FALSE)),'travel frequence'!$B$23,VLOOKUP(AF6,'travel frequence'!$A$7:$B$23,2,FALSE)),0) -> 0 | AH6: =IF(VLOOKUP(AC6,'Industry Type P'!$A$1:$S$102,MATCH($C6,'Industry Type P'!$A$1:$S$1,0),FALSE)>RAND(),"Y","N") -> N | AI6: 0 | AJ6: 0 | AK6: =IF(AH6="N"," ",INDEX('Other cost'!$A$9:$A$13,RANDBETWEEN(1,5),1)) ->  | AL6: =MIN($H6,IF(AH6="N",0,SUM(AJ6,'Other cost'!$B$16,VLOOKUP(AK6,'Other cost'!$A$9:$B$13,2,FALSE),IF(AI6>=30,HLOOKUP(30,'Salary in Industry'!$N$1:$AQ$1001,$B6+1,FALSE),HLOOKUP(AI6,'Salary in Industry'!$N$1:$AQ$1001,$B6+1,FALSE)),IF(ISNA(VLOOKUP(AC6,'Ransom Statistics'!$A$1:$D$18,4,FALSE)),'Ransom Statistics'!$D$18,VLOOKUP(AC6,'Ransom Statistics'!$A$1:$D$18,4,FALSE))))) -> 0 | AM6: =INDEX([1]Variables!$A$2:$A$103,INT((RAND()*100)+1),1) -> Tanzania | AN6: =INDEX(Variables!$E$3:$E$5,RANDBETWEEN(1,3),1) -> Short (less a week) | AO6: =INDEX([1]Variables!$G$3:$G$5,RANDBETWEEN(1,3),1) -> frequent (3 times to 12 times) | AP6: 10 | AQ6: =IF(ISNA(VLOOKUP(AM6,Variables!$K$1:$K$36,1,FALSE)),SUM('Other cost'!$B$2,'Salary in Industry'!$AR5,IF(ISNA(VLOOKUP(Simulation!AM6,'Ransom Statistics'!$A$1:$D$18,4,FALSE)),'Ransom Statistics'!$D$18,VLOOKUP(Simulation!AM6,'Ransom Statistics'!$A$1:$D$18,4,FALSE)))*IF(ISNA(VLOOKUP(AM6,'Industry Type P'!$A$2:$S$103,2,FALSE)),'Kidnapping Statistics'!$K$3,VLOOKUP(AM6,'Industry Type P'!$A$1:$S$102,MATCH($C6,'Industry Type P'!$A$1:$S$1,0),FALSE))*VLOOKUP(AO6,'travel frequence'!$A$1:$D$4,MATCH(AN6,'travel frequence'!$A$1:$D$1,0),FALSE)*AP6*IF(ISNA(VLOOKUP(AP6,'travel frequence'!$A$7:$B$23,2,FALSE)),'travel frequence'!$B$23,VLOOKUP(AP6,'travel frequence'!$A$7:$B$23,2,FALSE)),0) -> 5.708625878 | AR6: =IF(VLOOKUP(AM6,'Industry Type P'!$A$1:$S$102,MATCH($C6,'Industry Type P'!$A$1:$S$1,0),FALSE)>RAND(),"Y","N") -> N | AS6: 0 | AT6: 0 | AU6: =IF(AR6="N"," ",INDEX('Other cost'!$A$9:$A$13,RANDBETWEEN(1,5),1)) ->  | AV6: =MIN($H6,IF(AR6="N",0,SUM(AT6,'Other cost'!$B$16,VLOOKUP(AU6,'Other cost'!$A$9:$B$13,2,FALSE),IF(AS6>=30,HLOOKUP(30,'Salary in Industry'!$N$1:$AQ$1001,$B6+1,FALSE),HLOOKUP(AS6,'Salary in Industry'!$N$1:$AQ$1001,$B6+1,FALSE)),IF(ISNA(VLOOKUP(AM6,'Ransom Statistics'!$A$1:$D$18,4,FALSE)),'Ransom Statistics'!$D$18,VLOOKUP(AM6,'Ransom Statistics'!$A$1:$D$18,4,FALSE))))) -> 0 | AW6: =INDEX([1]Variables!$A$2:$A$103,INT((RAND()*100)+1),1) -> Mauritania | AX6: =INDEX(Variables!$E$3:$E$5,RANDBETWEEN(1,3),1) -> Short (less a week) | AY6: =INDEX([1]Variables!$G$3:$G$5,RANDBETWEEN(1,3),1) -> frequent (3 times to 12 times) | AZ6: 2 | BA6: =IF(ISNA(VLOOKUP(AW6,Variables!$K$1:$K$36,1,FALSE)),SUM('Other cost'!$B$2,'Salary in Industry'!$AR5,IF(ISNA(VLOOKUP(Simulation!AW6,'Ransom Statistics'!$A$1:$D$18,4,FALSE)),'Ransom Statistics'!$D$18,VLOOKUP(Simulation!AW6,'Ransom Statistics'!$A$1:$D$18,4,FALSE)))*IF(ISNA(VLOOKUP(AW6,'Industry Type P'!$A$2:$S$103,2,FALSE)),'Kidnapping Statistics'!$K$3,VLOOKUP(AW6,'Industry Type P'!$A$1:$S$102,MATCH($C6,'Industry Type P'!$A$1:$S$1,0),FALSE))*VLOOKUP(AY6,'travel frequence'!$A$1:$D$4,MATCH(AX6,'travel frequence'!$A$1:$D$1,0),FALSE)*AZ6*IF(ISNA(VLOOKUP(AZ6,'travel frequence'!$A$7:$B$23,2,FALSE)),'travel frequence'!$B$23,VLOOKUP(AZ6,'travel frequence'!$A$7:$B$23,2,FALSE)),0) -> 0 | BB6: =IF(VLOOKUP(AW6,'Industry Type P'!$A$1:$S$102,MATCH($C6,'Industry Type P'!$A$1:$S$1,0),FALSE)>RAND(),"Y","N") -> N | BC6: 0 | BD6: 0 | BE6: =IF(BB6="N"," ",INDEX('Other cost'!$A$9:$A$13,RANDBETWEEN(1,5),1)) ->  | BF6: =MIN($H6,IF(BB6="N",0,SUM(BD6,'Other cost'!$B$16,VLOOKUP(BE6,'Other cost'!$A$9:$B$13,2,FALSE),IF(BC6>=30,HLOOKUP(30,'Salary in Industry'!$N$1:$AQ$1001,$B6+1,FALSE),HLOOKUP(BC6,'Salary in Industry'!$N$1:$AQ$1001,$B6+1,FALSE)),IF(ISNA(VLOOKUP(AW6,'Ransom Statistics'!$A$1:$D$18,4,FALSE)),'Ransom Statistics'!$D$18,VLOOKUP(AW6,'Ransom Statistics'!$A$1:$D$18,4,FALSE))))) -> 0 | BG6: =INDEX([1]Variables!$A$2:$A$103,INT((RAND()*100)+1),1) -> Kazakhstan | BH6: =INDEX(Variables!$E$3:$E$5,RANDBETWEEN(1,3),1) -> Long (more than one month) | BI6: =INDEX([1]Variables!$G$3:$G$5,RANDBETWEEN(1,3),1) -> frequent (3 times to 12 times) | BJ6: 7 | BK6: =IF(ISNA(VLOOKUP(BG6,Variables!$K$1:$K$36,1,FALSE)),SUM('Other cost'!$B$2,'Salary in Industry'!$AR5,IF(ISNA(VLOOKUP(Simulation!BG6,'Ransom Statistics'!$A$1:$D$18,4,FALSE)),'Ransom Statistics'!$D$18,VLOOKUP(Simulation!BG6,'Ransom Statistics'!$A$1:$D$18,4,FALSE)))*IF(ISNA(VLOOKUP(BG6,'Industry Type P'!$A$2:$S$103,2,FALSE)),'Kidnapping Statistics'!$K$3,VLOOKUP(BG6,'Industry Type P'!$A$1:$S$102,MATCH($C6,'Industry Type P'!$A$1:$S$1,0),FALSE))*VLOOKUP(BI6,'travel frequence'!$A$1:$D$4,MATCH(BH6,'travel frequence'!$A$1:$D$1,0),FALSE)*BJ6*IF(ISNA(VLOOKUP(BJ6,'travel frequence'!$A$7:$B$23,2,FALSE)),'travel frequence'!$B$23,VLOOKUP(BJ6,'travel frequence'!$A$7:$B$23,2,FALSE)),0) -> 27.62974925 | BL6: =IF(VLOOKUP(BG6,'Industry Type P'!$A$1:$S$102,MATCH($C6,'Industry Type P'!$A$1:$S$1,0),FALSE)>RAND(),"Y","N") -> N | BM6: 0 | BN6: 0 | BO6: =IF(BL6="N"," ",INDEX('Other cost'!$A$9:$A$13,RANDBETWEEN(1,5),1)) ->  | BP6: =MIN($H6,IF(BL6="N",0,SUM(BN6,'Other cost'!$B$16,VLOOKUP(BO6,'Other cost'!$A$9:$B$13,2,FALSE),IF(BM6>=30,HLOOKUP(30,'Salary in Industry'!$N$1:$AQ$1001,$B6+1,FALSE),HLOOKUP(BM6,'Salary in Industry'!$N$1:$AQ$1001,$B6+1,FALSE)),IF(ISNA(VLOOKUP(BG6,'Ransom Statistics'!$A$1:$D$18,4,FALSE)),'Ransom Statistics'!$D$18,VLOOKUP(BG6,'Ransom Statistics'!$A$1:$D$18,4,FALSE))))) -> 0 | BQ6: =INDEX([1]Variables!$A$2:$A$103,INT((RAND()*100)+1),1) -> Panama | BR6: =INDEX(Variables!$E$3:$E$5,RANDBETWEEN(1,3),1) -> Long (more than one month) | BS6: =INDEX([1]Variables!$G$3:$G$5,RANDBETWEEN(1,3),1) -> frequent (3 times to 12 times) | BT6: 14 | BU6: =IF(ISNA(VLOOKUP(BQ6,Variables!$K$1:$K$36,1,FALSE)),SUM('Other cost'!$B$2,'Salary in Industry'!$AR5,IF(ISNA(VLOOKUP(Simulation!BQ6,'Ransom Statistics'!$A$1:$D$18,4,FALSE)),'Ransom Statistics'!$D$18,VLOOKUP(Simulation!BQ6,'Ransom Statistics'!$A$1:$D$18,4,FALSE)))*IF(ISNA(VLOOKUP(BQ6,'Industry Type P'!$A$2:$S$103,2,FALSE)),'Kidnapping Statistics'!$K$3,VLOOKUP(BQ6,'Industry Type P'!$A$1:$S$102,MATCH($C6,'Industry Type P'!$A$1:$S$1,0),FALSE))*VLOOKUP(BS6,'travel frequence'!$A$1:$D$4,MATCH(BR6,'travel frequence'!$A$1:$D$1,0),FALSE)*BT6*IF(ISNA(VLOOKUP(BT6,'travel frequence'!$A$7:$B$23,2,FALSE)),'travel frequence'!$B$23,VLOOKUP(BT6,'travel frequence'!$A$7:$B$23,2,FALSE)),0) -> 40.43990572 | BV6: =IF(VLOOKUP(BQ6,'Industry Type P'!$A$1:$S$102,MATCH($C6,'Industry Type P'!$A$1:$S$1,0),FALSE)>RAND(),"Y","N") -> N | BW6: 0 | BX6: 0 | BY6: =IF(BV6="N"," ",INDEX('Other cost'!$A$9:$A$13,RANDBETWEEN(1,5),1)) ->  | BZ6: =MIN($H6,IF(BV6="N",0,SUM(BX6,'Other cost'!$B$16,VLOOKUP(BY6,'Other cost'!$A$9:$B$13,2,FALSE),IF(BW6>=30,HLOOKUP(30,'Salary in Industry'!$N$1:$AQ$1001,$B6+1,FALSE),HLOOKUP(BW6,'Salary in Industry'!$N$1:$AQ$1001,$B6+1,FALSE)),IF(ISNA(VLOOKUP(BQ6,'Ransom Statistics'!$A$1:$D$18,4,FALSE)),'Ransom Statistics'!$D$18,VLOOKUP(BQ6,'Ransom Statistics'!$A$1:$D$18,4,FALSE))))) -> 0 | CA6: =INDEX([1]Variables!$A$2:$A$103,INT((RAND()*100)+1),1) -> Iran | CB6: =INDEX(Variables!$E$3:$E$5,RANDBETWEEN(1,3),1) -> Long (more than one month) | CC6: =INDEX([1]Variables!$G$3:$G$5,RANDBETWEEN(1,3),1) -> frequent (3 times to 12 times) | CD6: 6 | CE6: =IF(ISNA(VLOOKUP(CA6,Variables!$K$1:$K$36,1,FALSE)),SUM('Other cost'!$B$2,'Salary in Industry'!$AR5,IF(ISNA(VLOOKUP(Simulation!CA6,'Ransom Statistics'!$A$1:$D$18,4,FALSE)),'Ransom Statistics'!$D$18,VLOOKUP(Simulation!CA6,'Ransom Statistics'!$A$1:$D$18,4,FALSE)))*IF(ISNA(VLOOKUP(CA6,'Industry Type P'!$A$2:$S$103,2,FALSE)),'Kidnapping Statistics'!$K$3,VLOOKUP(CA6,'Industry Type P'!$A$1:$S$102,MATCH($C6,'Industry Type P'!$A$1:$S$1,0),FALSE))*VLOOKUP(CC6,'travel frequence'!$A$1:$D$4,MATCH(CB6,'travel frequence'!$A$1:$D$1,0),FALSE)*CD6*IF(ISNA(VLOOKUP(CD6,'travel frequence'!$A$7:$B$23,2,FALSE)),'travel frequence'!$B$23,VLOOKUP(CD6,'travel frequence'!$A$7:$B$23,2,FALSE)),0) -> 0 | CF6: =IF(VLOOKUP(CA6,'Industry Type P'!$A$1:$S$102,MATCH($C6,'Industry Type P'!$A$1:$S$1,0),FALSE)>RAND(),"Y","N") -> N | CG6: 0 | CH6: 0 | CI6: =IF(CF6="N"," ",INDEX('Other cost'!$A$9:$A$13,RANDBETWEEN(1,5),1)) ->  | CJ6: =MIN($H6,IF(CF6="N",0,SUM(CH6,'Other cost'!$B$16,VLOOKUP(CI6,'Other cost'!$A$9:$B$13,2,FALSE),IF(CG6>=30,HLOOKUP(30,'Salary in Industry'!$N$1:$AQ$1001,$B6+1,FALSE),HLOOKUP(CG6,'Salary in Industry'!$N$1:$AQ$1001,$B6+1,FALSE)),IF(ISNA(VLOOKUP(CA6,'Ransom Statistics'!$A$1:$D$18,4,FALSE)),'Ransom Statistics'!$D$18,VLOOKUP(CA6,'Ransom Statistics'!$A$1:$D$18,4,FALSE))))) -> 0 | CK6: =INDEX([1]Variables!$A$2:$A$103,INT((RAND()*100)+1),1) -> Poland | CL6: =INDEX(Variables!$E$3:$E$5,RANDBETWEEN(1,3),1) -> Medium (1 week to 1month) | CM6: =INDEX([1]Variables!$G$3:$G$5,RANDBETWEEN(1,3),1) -> very frequent ( more than 12 times a year) | CN6: 15 | CO6: =IF(ISNA(VLOOKUP(CK6,Variables!$K$1:$K$36,1,FALSE)),SUM('Other cost'!$B$2,'Salary in Industry'!$AR5,IF(ISNA(VLOOKUP(Simulation!CK6,'Ransom Statistics'!$A$1:$D$18,4,FALSE)),'Ransom Statistics'!$D$18,VLOOKUP(Simulation!CK6,'Ransom Statistics'!$A$1:$D$18,4,FALSE)))*IF(ISNA(VLOOKUP(CK6,'Industry Type P'!$A$2:$S$103,2,FALSE)),'Kidnapping Statistics'!$K$3,VLOOKUP(CK6,'Industry Type P'!$A$1:$S$102,MATCH($C6,'Industry Type P'!$A$1:$S$1,0),FALSE))*VLOOKUP(CM6,'travel frequence'!$A$1:$D$4,MATCH(CL6,'travel frequence'!$A$1:$D$1,0),FALSE)*CN6*IF(ISNA(VLOOKUP(CN6,'travel frequence'!$A$7:$B$23,2,FALSE)),'travel frequence'!$B$23,VLOOKUP(CN6,'travel frequence'!$A$7:$B$23,2,FALSE)),0) -> 4.844176816 | CP6: =IF(VLOOKUP(CK6,'Industry Type P'!$A$1:$S$102,MATCH($C6,'Industry Type P'!$A$1:$S$1,0),FALSE)>RAND(),"Y","N") -> N | CQ6: 0 | CR6: 0 | CS6: =IF(CP6="N"," ",INDEX('Other cost'!$A$9:$A$13,RANDBETWEEN(1,5),1)) ->  | CT6: =MIN($H6,IF(CP6="N",0,SUM(CR6,'Other cost'!$B$16,VLOOKUP(CS6,'Other cost'!$A$9:$B$13,2,FALSE),IF(CQ6>=30,HLOOKUP(30,'Salary in Industry'!$N$1:$AQ$1001,$B6+1,FALSE),HLOOKUP(CQ6,'Salary in Industry'!$N$1:$AQ$1001,$B6+1,FALSE)),IF(ISNA(VLOOKUP(CK6,'Ransom Statistics'!$A$1:$D$18,4,FALSE)),'Ransom Statistics'!$D$18,VLOOKUP(CK6,'Ransom Statistics'!$A$1:$D$18,4,FALSE))))) -> 0 | CU6: =INDEX([1]Variables!$A$2:$A$103,INT((RAND()*100)+1),1) -> Laos | CV6: =INDEX(Variables!$E$3:$E$5,RANDBETWEEN(1,3),1) -> Long (more than one month) | CW6: =INDEX([1]Variables!$G$3:$G$5,RANDBETWEEN(1,3),1) -> frequent (3 times to 12 times) | CX6: 15 | CY6: =IF(ISNA(VLOOKUP(CU6,Variables!$K$1:$K$36,1,FALSE)),SUM('Other cost'!$B$2,'Salary in Industry'!$AR5,IF(ISNA(VLOOKUP(Simulation!CU6,'Ransom Statistics'!$A$1:$D$18,4,FALSE)),'Ransom Statistics'!$D$18,VLOOKUP(Simulation!CU6,'Ransom Statistics'!$A$1:$D$18,4,FALSE)))*IF(ISNA(VLOOKUP(CU6,'Industry Type P'!$A$2:$S$103,2,FALSE)),'Kidnapping Statistics'!$K$3,VLOOKUP(CU6,'Industry Type P'!$A$1:$S$102,MATCH($C6,'Industry Type P'!$A$1:$S$1,0),FALSE))*VLOOKUP(CW6,'travel frequence'!$A$1:$D$4,MATCH(CV6,'travel frequence'!$A$1:$D$1,0),FALSE)*CX6*IF(ISNA(VLOOKUP(CX6,'travel frequence'!$A$7:$B$23,2,FALSE)),'travel frequence'!$B$23,VLOOKUP(CX6,'travel frequence'!$A$7:$B$23,2,FALSE)),0) -> 8.073628027 | CZ6: =IF(VLOOKUP(CU6,'Industry Type P'!$A$1:$S$102,MATCH($C6,'Industry Type P'!$A$1:$S$1,0),FALSE)>RAND(),"Y","N") -> N | DA6: 0 | DB6: 0 | DC6: =IF(CZ6="N"," ",INDEX('Other cost'!$A$9:$A$13,RANDBETWEEN(1,5),1)) ->  | DD6: =MIN($H6,IF(CZ6="N",0,SUM(DB6,'Other cost'!$B$16,VLOOKUP(DC6,'Other cost'!$A$9:$B$13,2,FALSE),IF(DA6>=30,HLOOKUP(30,'Salary in Industry'!$N$1:$AQ$1001,$B6+1,FALSE),HLOOKUP(DA6,'Salary in Industry'!$N$1:$AQ$1001,$B6+1,FALSE)),IF(ISNA(VLOOKUP(CU6,'Ransom Statistics'!$A$1:$D$18,4,FALSE)),'Ransom Statistics'!$D$18,VLOOKUP(CU6,'Ransom Statistics'!$A$1:$D$18,4,FALSE))))) -> 0 | DE6: 0 | DF6: =((IF(A6=0,0,IF(A6=1,M6,IF(A6=2,M6+W6,IF(A6=3,M6+W6+AG6,IF(A6=4,M6+W6+AG6+AQ6,IF(A6=5,M6+W6+AG6+AQ6+BA6,IF(A6=6,M6+W6+AG6+AQ6+BA6+BK6,IF(A6=7,M6+W6+AG6+AQ6+BA6+BK6+BU6,IF(A6=8,M6+W6+AG6+AQ6+BA6+BK6+BU6+CE6,IF(A6=9,M6+W6+AG6+AQ6+BA6+BK6+BU6+CE6+CO6,IF(A6=10,M6+W6+AG6+AQ6+BA6+BK6+BU6+CE6+CO6+CY6))))))))))))/(1+Variables!$G$12))*(1+Variables!$F$19) -> 67.01014494 | DJ6: Total Revenue | DK6: =SUM(DF3:DF1002) -> 736134.5144
A7: 9 | B7: 5 | C7: =INDEX([1]Variables!$C$2:$C$19,INT((RAND()*10)+1),1) -> Manufacturing | D7: 41 | E7: 373 | F7: 4338 | G7: 12402828 | H7: =Variables!$H$18 -> 1000000 | I7: =INDEX([1]Variables!$A$2:$A$103,INT((RAND()*100)+1),1) -> CAR | J7: =INDEX(Variables!$E$3:$E$5,RANDBETWEEN(1,3),1) -> Short (less a week) | K7: =INDEX([1]Variables!$G$3:$G$5,RANDBETWEEN(1,3),1) -> frequent (3 times to 12 times) | L7: 20 | M7: =IF(ISNA(VLOOKUP(I7,Variables!$K$1:$K$36,1,FALSE)),SUM('Other cost'!$B$2,'Salary in Industry'!$AR6,IF(ISNA(VLOOKUP(Simulation!I7,'Ransom Statistics'!$A$1:$D$18,4,FALSE)),'Ransom Statistics'!$D$18,VLOOKUP(Simulation!I7,'Ransom Statistics'!$A$1:$D$18,4,FALSE)))*IF(ISNA(VLOOKUP(I7,'Industry Type P'!$A$2:$S$103,2,FALSE)),'Kidnapping Statistics'!$K$3,VLOOKUP(I7,'Industry Type P'!$A$1:$S$102,MATCH($C7,'Industry Type P'!$A$1:$S$1,0),FALSE))*VLOOKUP(K7,'travel frequence'!$A$1:$D$4,MATCH(J7,'travel frequence'!$A$1:$D$1,0),FALSE)*L7*IF(ISNA(VLOOKUP(L7,'travel frequence'!$A$7:$B$23,2,FALSE)),'travel frequence'!$B$23,VLOOKUP(L7,'travel frequence'!$A$7:$B$23,2,FALSE)),0) -> 63788.16895 | N7: =IF(VLOOKUP(I7,'Industry Type P'!$A$1:$S$102,MATCH($C7,'Industry Type P'!$A$1:$S$1,0),FALSE)>RAND(),"Y","N") -> N | O7: 0 | P7: 0 | Q7: =IF(N7="N"," ",INDEX('Other cost'!$A$9:$A$13,RANDBETWEEN(1,5),1)) ->  | R7: =MIN($H7,IF(N7="N",0,SUM(P7,'Other cost'!$B$16,VLOOKUP(Q7,'Other cost'!$A$9:$B$13,2,FALSE),IF(O7>=30,HLOOKUP(30,'Salary in Industry'!$N$1:$AQ$1001,$B7+1,FALSE),HLOOKUP(O7,'Salary in Industry'!$N$1:$AQ$1001,$B7+1,FALSE)),IF(ISNA(VLOOKUP(I7,'Ransom Statistics'!$A$1:$D$18,4,FALSE)),'Ransom Statistics'!$D$18,VLOOKUP(I7,'Ransom Statistics'!$A$1:$D$18,4,FALSE))))) -> 0 | S7: =INDEX([1]Variables!$A$2:$A$103,INT((RAND()*100)+1),1) -> Rwanda | T7: =INDEX(Variables!$E$3:$E$5,RANDBETWEEN(1,3),1) -> Short (less a week) | U7: =INDEX([1]Variables!$G$3:$G$5,RANDBETWEEN(1,3),1) -> very frequent ( more than 12 times a year) | V7: 1 | W7: =IF(ISNA(VLOOKUP(S7,Variables!$K$1:$K$36,1,FALSE)),SUM('Other cost'!$B$2,'Salary in Industry'!$AR6,IF(ISNA(VLOOKUP(Simulation!S7,'Ransom Statistics'!$A$1:$D$18,4,FALSE)),'Ransom Statistics'!$D$18,VLOOKUP(Simulation!S7,'Ransom Statistics'!$A$1:$D$18,4,FALSE)))*IF(ISNA(VLOOKUP(S7,'Industry Type P'!$A$2:$S$103,2,FALSE)),'Kidnapping Statistics'!$K$3,VLOOKUP(S7,'Industry Type P'!$A$1:$S$102,MATCH($C7,'Industry Type P'!$A$1:$S$1,0),FALSE))*VLOOKUP(U7,'travel frequence'!$A$1:$D$4,MATCH(T7,'travel frequence'!$A$1:$D$1,0),FALSE)*V7*IF(ISNA(VLOOKUP(V7,'travel frequence'!$A$7:$B$23,2,FALSE)),'travel frequence'!$B$23,VLOOKUP(V7,'travel frequence'!$A$7:$B$23,2,FALSE)),0) -> 256.2917502 | X7: =IF(VLOOKUP(S7,'Industry Type P'!$A$1:$S$102,MATCH($C7,'Industry Type P'!$A$1:$S$1,0),FALSE)>RAND(),"Y","N") -> N | Y7: 0 | Z7: 0 | AA7: =IF(X7="N"," ",INDEX('Other cost'!$A$9:$A$13,RANDBETWEEN(1,5),1)) ->  | AB7: =MIN($H7,IF(X7="N",0,SUM(Z7,'Other cost'!$B$16,VLOOKUP(AA7,'Other cost'!$A$9:$B$13,2,FALSE),IF(Y7>=30,HLOOKUP(30,'Salary in Industry'!$N$1:$AQ$1001,$B7+1,FALSE),HLOOKUP(Y7,'Salary in Industry'!$N$1:$AQ$1001,$B7+1,FALSE)),IF(ISNA(VLOOKUP(S7,'Ransom Statistics'!$A$1:$D$18,4,FALSE)),'Ransom Statistics'!$D$18,VLOOKUP(S7,'Ransom Statistics'!$A$1:$D$18,4,FALSE))))) -> 0 | AC7: =INDEX([1]Variables!$A$2:$A$103,INT((RAND()*100)+1),1) -> Guinea | AD7: =INDEX(Variables!$E$3:$E$5,RANDBETWEEN(1,3),1) -> Medium (1 week to 1month) | AE7: =INDEX([1]Variables!$G$3:$G$5,RANDBETWEEN(1,3),1) -> frequent (3 times to 12 times) | AF7: 2 | AG7: =IF(ISNA(VLOOKUP(AC7,Variables!$K$1:$K$36,1,FALSE)),SUM('Other cost'!$B$2,'Salary in Industry'!$AR6,IF(ISNA(VLOOKUP(Simulation!AC7,'Ransom Statistics'!$A$1:$D$18,4,FALSE)),'Ransom Statistics'!$D$18,VLOOKUP(Simulation!AC7,'Ransom Statistics'!$A$1:$D$18,4,FALSE)))*IF(ISNA(VLOOKUP(AC7,'Industry Type P'!$A$2:$S$103,2,FALSE)),'Kidnapping Statistics'!$K$3,VLOOKUP(AC7,'Industry Type P'!$A$1:$S$102,MATCH($C7,'Industry Type P'!$A$1:$S$1,0),FALSE))*VLOOKUP(AE7,'travel frequence'!$A$1:$D$4,MATCH(AD7,'travel frequence'!$A$1:$D$1,0),FALSE)*AF7*IF(ISNA(VLOOKUP(AF7,'travel frequence'!$A$7:$B$23,2,FALSE)),'travel frequence'!$B$23,VLOOKUP(AF7,'travel frequence'!$A$7:$B$23,2,FALSE)),0) -> 1.541245389 | AH7: =IF(VLOOKUP(AC7,'Industry Type P'!$A$1:$S$102,MATCH($C7,'Industry Type P'!$A$1:$S$1,0),FALSE)>RAND(),"Y","N") -> N | AI7: 0 | AJ7: 0 | AK7: =IF(AH7="N"," ",INDEX('Other cost'!$A$9:$A$13,RANDBETWEEN(1,5),1)) ->  | AL7: =MIN($H7,IF(AH7="N",0,SUM(AJ7,'Other cost'!$B$16,VLOOKUP(AK7,'Other cost'!$A$9:$B$13,2,FALSE),IF(AI7>=30,HLOOKUP(30,'Salary in Industry'!$N$1:$AQ$1001,$B7+1,FALSE),HLOOKUP(AI7,'Salary in Industry'!$N$1:$AQ$1001,$B7+1,FALSE)),IF(ISNA(VLOOKUP(AC7,'Ransom Statistics'!$A$1:$D$18,4,FALSE)),'Ransom Statistics'!$D$18,VLOOKUP(AC7,'Ransom Statistics'!$A$1:$D$18,4,FALSE))))) -> 0 | AM7: =INDEX([1]Variables!$A$2:$A$103,INT((RAND()*100)+1),1) -> Angola | AN7: =INDEX(Variables!$E$3:$E$5,RANDBETWEEN(1,3),1) -> Long (more than one month) | AO7: =INDEX([1]Variables!$G$3:$G$5,RANDBETWEEN(1,3),1) -> frequent (3 times to 12 times) | AP7: 17 | AQ7: =IF(ISNA(VLOOKUP(AM7,Variables!$K$1:$K$36,1,FALSE)),SUM('Other cost'!$B$2,'Salary in Industry'!$AR6,IF(ISNA(VLOOKUP(Simulation!AM7,'Ransom Statistics'!$A$1:$D$18,4,FALSE)),'Ransom Statistics'!$D$18,VLOOKUP(Simulation!AM7,'Ransom Statistics'!$A$1:$D$18,4,FALSE)))*IF(ISNA(VLOOKUP(AM7,'Industry Type P'!$A$2:$S$103,2,FALSE)),'Kidnapping Statistics'!$K$3,VLOOKUP(AM7,'Industry Type P'!$A$1:$S$102,MATCH($C7,'Industry Type P'!$A$1:$S$1,0),FALSE))*VLOOKUP(AO7,'travel frequence'!$A$1:$D$4,MATCH(AN7,'travel frequence'!$A$1:$D$1,0),FALSE)*AP7*IF(ISNA(VLOOKUP(AP7,'travel frequence'!$A$7:$B$23,2,FALSE)),'travel frequence'!$B$23,VLOOKUP(AP7,'travel frequence'!$A$7:$B$23,2,FALSE)),0) -> 2744.884645 | AR7: =IF(VLOOKUP(AM7,'Industry Type P'!$A$1:$S$102,MATCH($C7,'Industry Type P'!$A$1:$S$1,0),FALSE)>RAND(),"Y","N") -> N | AS7: 0 | AT7: 0 | AU7: =IF(AR7="N"," ",INDEX('Other cost'!$A$9:$A$13,RANDBETWEEN(1,5),1)) ->  | AV7: =MIN($H7,IF(AR7="N",0,SUM(AT7,'Other cost'!$B$16,VLOOKUP(AU7,'Other cost'!$A$9:$B$13,2,FALSE),IF(AS7>=30,HLOOKUP(30,'Salary in Industry'!$N$1:$AQ$1001,$B7+1,FALSE),HLOOKUP(AS7,'Salary in Industry'!$N$1:$AQ$1001,$B7+1,FALSE)),IF(ISNA(VLOOKUP(AM7,'Ransom Statistics'!$A$1:$D$18,4,FALSE)),'Ransom Statistics'!$D$18,VLOOKUP(AM7,'Ransom Statistics'!$A$1:$D$18,4,FALSE))))) -> 0 | AW7: =INDEX([1]Variables!$A$2:$A$103,INT((RAND()*100)+1),1) -> Spain | AX7: =INDEX(Variables!$E$3:$E$5,RANDBETWEEN(1,3),1) -> Long (more than one month) | AY7: =INDEX([1]Variables!$G$3:$G$5,RANDBETWEEN(1,3),1) -> frequent (3 times to 12 times) | AZ7: 15 | BA7: =IF(ISNA(VLOOKUP(AW7,Variables!$K$1:$K$36,1,FALSE)),SUM('Other cost'!$B$2,'Salary in Industry'!$AR6,IF(ISNA(VLOOKUP(Simulation!AW7,'Ransom Statistics'!$A$1:$D$18,4,FALSE)),'Ransom Statistics'!$D$18,VLOOKUP(Simulation!AW7,'Ransom Statistics'!$A$1:$D$18,4,FALSE)))*IF(ISNA(VLOOKUP(AW7,'Industry Type P'!$A$2:$S$103,2,FALSE)),'Kidnapping Statistics'!$K$3,VLOOKUP(AW7,'Industry Type P'!$A$1:$S$102,MATCH($C7,'Industry Type P'!$A$1:$S$1,0),FALSE))*VLOOKUP(AY7,'travel frequence'!$A$1:$D$4,MATCH(AX7,'travel frequence'!$A$1:$D$1,0),FALSE)*AZ7*IF(ISNA(VLOOKUP(AZ7,'travel frequence'!$A$7:$B$23,2,FALSE)),'travel frequence'!$B$23,VLOOKUP(AZ7,'travel frequence'!$A$7:$B$23,2,FALSE)),0) -> 41.17326968 | BB7: =IF(VLOOKUP(AW7,'Industry Type P'!$A$1:$S$102,MATCH($C7,'Industry Type P'!$A$1:$S$1,0),FALSE)>RAND(),"Y","N") -> N | BC7: 0 | BD7: 0 | BE7: =IF(BB7="N"," ",INDEX('Other cost'!$A$9:$A$13,RANDBETWEEN(1,5),1)) ->  | BF7: =MIN($H7,IF(BB7="N",0,SUM(BD7,'Other cost'!$B$16,VLOOKUP(BE7,'Other cost'!$A$9:$B$13,2,FALSE),IF(BC7>=30,HLOOKUP(30,'Salary in Industry'!$N$1:$AQ$1001,$B7+1,FALSE),HLOOKUP(BC7,'Salary in Industry'!$N$1:$AQ$1001,$B7+1,FALSE)),IF(ISNA(VLOOKUP(AW7,'Ransom Statistics'!$A$1:$D$18,4,FALSE)),'Ransom Statistics'!$D$18,VLOOKUP(AW7,'Ransom Statistics'!$A$1:$D$18,4,FALSE))))) -> 0 | BG7: =INDEX([1]Variables!$A$2:$A$103,INT((RAND()*100)+1),1) -> Turkey | BH7: =INDEX(Variables!$E$3:$E$5,RANDBETWEEN(1,3),1) -> Long (more than one month) | BI7: =INDEX([1]Variables!$G$3:$G$5,RANDBETWEEN(1,3),1) -> very frequent ( more than 12 times a year) | BJ7: 5 | BK7: =IF(ISNA(VLOOKUP(BG7,Variables!$K$1:$K$36,1,FALSE)),SUM('Other cost'!$B$2,'Salary in Industry'!$AR6,IF(ISNA(VLOOKUP(Simulation!BG7,'Ransom Statistics'!$A$1:$D$18,4,FALSE)),'Ransom Statistics'!$D$18,VLOOKUP(Simulation!BG7,'Ransom Statistics'!$A$1:$D$18,4,FALSE)))*IF(ISNA(VLOOKUP(BG7,'Industry Type P'!$A$2:$S$103,2,FALSE)),'Kidnapping Statistics'!$K$3,VLOOKUP(BG7,'Industry Type P'!$A$1:$S$102,MATCH($C7,'Industry Type P'!$A$1:$S$1,0),FALSE))*VLOOKUP(BI7,'travel frequence'!$A$1:$D$4,MATCH(BH7,'travel frequence'!$A$1:$D$1,0),FALSE)*BJ7*IF(ISNA(VLOOKUP(BJ7,'travel frequence'!$A$7:$B$23,2,FALSE)),'travel frequence'!$B$23,VLOOKUP(BJ7,'travel frequence'!$A$7:$B$23,2,FALSE)),0) -> 557.8275375 | BL7: =IF(VLOOKUP(BG7,'Industry Type P'!$A$1:$S$102,MATCH($C7,'Industry Type P'!$A$1:$S$1,0),FALSE)>RAND(),"Y","N") -> N | BM7: 0 | BN7: 0 | BO7: =IF(BL7="N"," ",INDEX('Other cost'!$A$9:$A$13,RANDBETWEEN(1,5),1)) ->  | BP7: =MIN($H7,IF(BL7="N",0,SUM(BN7,'Other cost'!$B$16,VLOOKUP(BO7,'Other cost'!$A$9:$B$13,2,FALSE),IF(BM7>=30,HLOOKUP(30,'Salary in Industry'!$N$1:$AQ$1001,$B7+1,FALSE),HLOOKUP(BM7,'Salary in Industry'!$N$1:$AQ$1001,$B7+1,FALSE)),IF(ISNA(VLOOKUP(BG7,'Ransom Statistics'!$A$1:$D$18,4,FALSE)),'Ransom Statistics'!$D$18,VLOOKUP(BG7,'Ransom Statistics'!$A$1:$D$18,4,FALSE))))) -> 0 | BQ7: =INDEX([1]Variables!$A$2:$A$103,INT((RAND()*100)+1),1) -> Mexico | BR7: =INDEX(Variables!$E$3:$E$5,RANDBETWEEN(1,3),1) -> Short (less a week) | BS7: =INDEX([1]Variables!$G$3:$G$5,RANDBETWEEN(1,3),1) -> infrequent (less than 3 times) | BT7: 1 | BU7: =IF(ISNA(VLOOKUP(BQ7,Variables!$K$1:$K$36,1,FALSE)),SUM('Other cost'!$B$2,'Salary in Industry'!$AR6,IF(ISNA(VLOOKUP(Simulation!BQ7,'Ransom Statistics'!$A$1:$D$18,4,FALSE)),'Ransom Statistics'!$D$18,VLOOKUP(Simulation!BQ7,'Ransom Statistics'!$A$1:$D$18,4,FALSE)))*IF(ISNA(VLOOKUP(BQ7,'Industry Type P'!$A$2:$S$103,2,FALSE)),'Kidnapping Statistics'!$K$3,VLOOKUP(BQ7,'Industry Type P'!$A$1:$S$102,MATCH($C7,'Industry Type P'!$A$1:$S$1,0),FALSE))*VLOOKUP(BS7,'travel frequence'!$A$1:$D$4,MATCH(BR7,'travel frequence'!$A$1:$D$1,0),FALSE)*BT7*IF(ISNA(VLOOKUP(BT7,'travel frequence'!$A$7:$B$23,2,FALSE)),'travel frequence'!$B$23,VLOOKUP(BT7,'travel frequence'!$A$7:$B$23,2,FALSE)),0) -> 0 | BV7: =IF(VLOOKUP(BQ7,'Industry Type P'!$A$1:$S$102,MATCH($C7,'Industry Type P'!$A$1:$S$1,0),FALSE)>RAND(),"Y","N") -> N | BW7: 0 | BX7: 0 | BY7: =IF(BV7="N"," ",INDEX('Other cost'!$A$9:$A$13,RANDBETWEEN(1,5),1)) ->  | BZ7: =MIN($H7,IF(BV7="N",0,SUM(BX7,'Other cost'!$B$16,VLOOKUP(BY7,'Other cost'!$A$9:$B$13,2,FALSE),IF(BW7>=30,HLOOKUP(30,'Salary in Industry'!$N$1:$AQ$1001,$B7+1,FALSE),HLOOKUP(BW7,'Salary in Industry'!$N$1:$AQ$1001,$B7+1,FALSE)),IF(ISNA(VLOOKUP(BQ7,'Ransom Statistics'!$A$1:$D$18,4,FALSE)),'Ransom Statistics'!$D$18,VLOOKUP(BQ7,'Ransom Statistics'!$A$1:$D$18,4,FALSE))))) -> 0 | CA7: =INDEX([1]Variables!$A$2:$A$103,INT((RAND()*100)+1),1) -> Nepal | CB7: =INDEX(Variables!$E$3:$E$5,RANDBETWEEN(1,3),1) -> Medium (1 week to 1month) | CC7: =INDEX([1]Variables!$G$3:$G$5,RANDBETWEEN(1,3),1) -> very frequent ( more than 12 times a year) | CD7: 8 | CE7: =IF(ISNA(VLOOKUP(CA7,Variables!$K$1:$K$36,1,FALSE)),SUM('Other cost'!$B$2,'Salary in Industry'!$AR6,IF(ISNA(VLOOKUP(Simulation!CA7,'Ransom Statistics'!$A$1:$D$18,4,FALSE)),'Ransom Statistics'!$D$18,VLOOKUP(Simulation!CA7,'Ransom Statistics'!$A$1:$D$18,4,FALSE)))*IF(ISNA(VLOOKUP(CA7,'Industry Type P'!$A$2:$S$103,2,FALSE)),'Kidnapping Statistics'!$K$3,VLOOKUP(CA7,'Industry Type P'!$A$1:$S$102,MATCH($C7,'Industry Type P'!$A$1:$S$1,0),FALSE))*VLOOKUP(CC7,'travel frequence'!$A$1:$D$4,MATCH(CB7,'travel frequence'!$A$1:$D$1,0),FALSE)*CD7*IF(ISNA(VLOOKUP(CD7,'travel frequence'!$A$7:$B$23,2,FALSE)),'travel frequence'!$B$23,VLOOKUP(CD7,'travel frequence'!$A$7:$B$23,2,FALSE)),0) -> 2382.498196 | CF7: =IF(VLOOKUP(CA7,'Industry Type P'!$A$1:$S$102,MATCH($C7,'Industry Type P'!$A$1:$S$1,0),FALSE)>RAND(),"Y","N") -> N | CG7: 0 | CH7: 0 | CI7: =IF(CF7="N"," ",INDEX('Other cost'!$A$9:$A$13,RANDBETWEEN(1,5),1)) ->  | CJ7: =MIN($H7,IF(CF7="N",0,SUM(CH7,'Other cost'!$B$16,VLOOKUP(CI7,'Other cost'!$A$9:$B$13,2,FALSE),IF(CG7>=30,HLOOKUP(30,'Salary in Industry'!$N$1:$AQ$1001,$B7+1,FALSE),HLOOKUP(CG7,'Salary in Industry'!$N$1:$AQ$1001,$B7+1,FALSE)),IF(ISNA(VLOOKUP(CA7,'Ransom Statistics'!$A$1:$D$18,4,FALSE)),'Ransom Statistics'!$D$18,VLOOKUP(CA7,'Ransom Statistics'!$A$1:$D$18,4,FALSE))))) -> 0 | CK7: =INDEX([1]Variables!$A$2:$A$103,INT((RAND()*100)+1),1) -> Panama | CL7: =INDEX(Variables!$E$3:$E$5,RANDBETWEEN(1,3),1) -> Medium (1 week to 1month) | CM7: =INDEX([1]Variables!$G$3:$G$5,RANDBETWEEN(1,3),1) -> infrequent (less than 3 times) | CN7: 19 | CO7: =IF(ISNA(VLOOKUP(CK7,Variables!$K$1:$K$36,1,FALSE)),SUM('Other cost'!$B$2,'Salary in Industry'!$AR6,IF(ISNA(VLOOKUP(Simulation!CK7,'Ransom Statistics'!$A$1:$D$18,4,FALSE)),'Ransom Statistics'!$D$18,VLOOKUP(Simulation!CK7,'Ransom Statistics'!$A$1:$D$18,4,FALSE)))*IF(ISNA(VLOOKUP(CK7,'Industry Type P'!$A$2:$S$103,2,FALSE)),'Kidnapping Statistics'!$K$3,VLOOKUP(CK7,'Industry Type P'!$A$1:$S$102,MATCH($C7,'Industry Type P'!$A$1:$S$1,0),FALSE))*VLOOKUP(CM7,'travel frequence'!$A$1:$D$4,MATCH(CL7,'travel frequence'!$A$1:$D$1,0),FALSE)*CN7*IF(ISNA(VLOOKUP(CN7,'travel frequence'!$A$7:$B$23,2,FALSE)),'travel frequence'!$B$23,VLOOKUP(CN7,'travel frequence'!$A$7:$B$23,2,FALSE)),0) -> 42.76344349 | CP7: =IF(VLOOKUP(CK7,'Industry Type P'!$A$1:$S$102,MATCH($C7,'Industry Type P'!$A$1:$S$1,0),FALSE)>RAND(),"Y","N") -> N | CQ7: 0 | CR7: 0 | CS7: =IF(CP7="N"," ",INDEX('Other cost'!$A$9:$A$13,RANDBETWEEN(1,5),1)) ->  | CT7: =MIN($H7,IF(CP7="N",0,SUM(CR7,'Other cost'!$B$16,VLOOKUP(CS7,'Other cost'!$A$9:$B$13,2,FALSE),IF(CQ7>=30,HLOOKUP(30,'Salary in Industry'!$N$1:$AQ$1001,$B7+1,FALSE),HLOOKUP(CQ7,'Salary in Industry'!$N$1:$AQ$1001,$B7+1,FALSE)),IF(ISNA(VLOOKUP(CK7,'Ransom Statistics'!$A$1:$D$18,4,FALSE)),'Ransom Statistics'!$D$18,VLOOKUP(CK7,'Ransom Statistics'!$A$1:$D$18,4,FALSE))))) -> 0 | CU7: =INDEX([1]Variables!$A$2:$A$103,INT((RAND()*100)+1),1) -> Belarus | CV7: =INDEX(Variables!$E$3:$E$5,RANDBETWEEN(1,3),1) -> Long (more than one month) | CW7: =INDEX([1]Variables!$G$3:$G$5,RANDBETWEEN(1,3),1) -> frequent (3 times to 12 times) | CX7: 19 | CY7: =IF(ISNA(VLOOKUP(CU7,Variables!$K$1:$K$36,1,FALSE)),SUM('Other cost'!$B$2,'Salary in Industry'!$AR6,IF(ISNA(VLOOKUP(Simulation!CU7,'Ransom Statistics'!$A$1:$D$18,4,FALSE)),'Ransom Statistics'!$D$18,VLOOKUP(Simulation!CU7,'Ransom Statistics'!$A$1:$D$18,4,FALSE)))*IF(ISNA(VLOOKUP(CU7,'Industry Type P'!$A$2:$S$103,2,FALSE)),'Kidnapping Statistics'!$K$3,VLOOKUP(CU7,'Industry Type P'!$A$1:$S$102,MATCH($C7,'Industry Type P'!$A$1:$S$1,0),FALSE))*VLOOKUP(CW7,'travel frequence'!$A$1:$D$4,MATCH(CV7,'travel frequence'!$A$1:$D$1,0),FALSE)*CX7*IF(ISNA(VLOOKUP(CX7,'travel frequence'!$A$7:$B$23,2,FALSE)),'travel frequence'!$B$23,VLOOKUP(CX7,'travel frequence'!$A$7:$B$23,2,FALSE)),0) -> 24.542498 | CZ7: =IF(VLOOKUP(CU7,'Industry Type P'!$A$1:$S$102,MATCH($C7,'Industry Type P'!$A$1:$S$1,0),FALSE)>RAND(),"Y","N") -> N | DA7: 0 | DB7: 0 | DC7: =IF(CZ7="N"," ",INDEX('Other cost'!$A$9:$A$13,RANDBETWEEN(1,5),1)) ->  | DD7: =MIN($H7,IF(CZ7="N",0,SUM(DB7,'Other cost'!$B$16,VLOOKUP(DC7,'Other cost'!$A$9:$B$13,2,FALSE),IF(DA7>=30,HLOOKUP(30,'Salary in Industry'!$N$1:$AQ$1001,$B7+1,FALSE),HLOOKUP(DA7,'Salary in Industry'!$N$1:$AQ$1001,$B7+1,FALSE)),IF(ISNA(VLOOKUP(CU7,'Ransom Statistics'!$A$1:$D$18,4,FALSE)),'Ransom Statistics'!$D$18,VLOOKUP(CU7,'Ransom Statistics'!$A$1:$D$18,4,FALSE))))) -> 0 | DE7: 0 | DF7: =((IF(A7=0,0,IF(A7=1,M7,IF(A7=2,M7+W7,IF(A7=3,M7+W7+AG7,IF(A7=4,M7+W7+AG7+AQ7,IF(A7=5,M7+W7+AG7+AQ7+BA7,IF(A7=6,M7+W7+AG7+AQ7+BA7+BK7,IF(A7=7,M7+W7+AG7+AQ7+BA7+BK7+BU7,IF(A7=8,M7+W7+AG7+AQ7+BA7+BK7+BU7+CE7,IF(A7=9,M7+W7+AG7+AQ7+BA7+BK7+BU7+CE7+CO7,IF(A7=10,M7+W7+AG7+AQ7+BA7+BK7+BU7+CE7+CO7+CY7))))))))))))/(1+Variables!$G$12))*(1+Variables!$F$19) -> 83495.19247 | DJ7: Total Claims | DK7: =SUM(DE3:DE1002) -> 0
A8: 4 | B8: 6 | C8: =INDEX([1]Variables!$C$2:$C$19,INT((RAND()*10)+1),1) -> Retail Trade | D8: 20 | E8: 281 | F8: 1511 | G8: 41924352 | H8: =Variables!$H$18 -> 1000000 | I8: =INDEX([1]Variables!$A$2:$A$103,INT((RAND()*100)+1),1) -> Guatemala | J8: =INDEX(Variables!$E$3:$E$5,RANDBETWEEN(1,3),1) -> Short (less a week) | K8: =INDEX([1]Variables!$G$3:$G$5,RANDBETWEEN(1,3),1) -> very frequent ( more than 12 times a year) | L8: 10 | M8: =IF(ISNA(VLOOKUP(I8,Variables!$K$1:$K$36,1,FALSE)),SUM('Other cost'!$B$2,'Salary in Industry'!$AR7,IF(ISNA(VLOOKUP(Simulation!I8,'Ransom Statistics'!$A$1:$D$18,4,FALSE)),'Ransom Statistics'!$D$18,VLOOKUP(Simulation!I8,'Ransom Statistics'!$A$1:$D$18,4,FALSE)))*IF(ISNA(VLOOKUP(I8,'Industry Type P'!$A$2:$S$103,2,FALSE)),'Kidnapping Statistics'!$K$3,VLOOKUP(I8,'Industry Type P'!$A$1:$S$102,MATCH($C8,'Industry Type P'!$A$1:$S$1,0),FALSE))*VLOOKUP(K8,'travel frequence'!$A$1:$D$4,MATCH(J8,'travel frequence'!$A$1:$D$1,0),FALSE)*L8*IF(ISNA(VLOOKUP(L8,'travel frequence'!$A$7:$B$23,2,FALSE)),'travel frequence'!$B$23,VLOOKUP(L8,'travel frequence'!$A$7:$B$23,2,FALSE)),0) -> 1174.986559 | N8: =IF(VLOOKUP(I8,'Industry Type P'!$A$1:$S$102,MATCH($C8,'Industry Type P'!$A$1:$S$1,0),FALSE)>RAND(),"Y","N") -> N | O8: 0 | P8: 0 | Q8: =IF(N8="N"," ",INDEX('Other cost'!$A$9:$A$13,RANDBETWEEN(1,5),1)) ->  | R8: =MIN($H8,IF(N8="N",0,SUM(P8,'Other cost'!$B$16,VLOOKUP(Q8,'Other cost'!$A$9:$B$13,2,FALSE),IF(O8>=30,HLOOKUP(30,'Salary in Industry'!$N$1:$AQ$1001,$B8+1,FALSE),HLOOKUP(O8,'Salary in Industry'!$N$1:$AQ$1001,$B8+1,FALSE)),IF(ISNA(VLOOKUP(I8,'Ransom Statistics'!$A$1:$D$18,4,FALSE)),'Ransom Statistics'!$D$18,VLOOKUP(I8,'Ransom Statistics'!$A$1:$D$18,4,FALSE))))) -> 0 | S8: =INDEX([1]Variables!$A$2:$A$103,INT((RAND()*100)+1),1) -> India | T8: =INDEX(Variables!$E$3:$E$5,RANDBETWEEN(1,3),1) -> Long (more than one month) | U8: =INDEX([1]Variables!$G$3:$G$5,RANDBETWEEN(1,3),1) -> frequent (3 times to 12 times) | V8: 1 | W8: =IF(ISNA(VLOOKUP(S8,Variables!$K$1:$K$36,1,FALSE)),SUM('Other cost'!$B$2,'Salary in Industry'!$AR7,IF(ISNA(VLOOKUP(Simulation!S8,'Ransom Statistics'!$A$1:$D$18,4,FALSE)),'Ransom Statistics'!$D$18,VLOOKUP(Simulation!S8,'Ransom Statistics'!$A$1:$D$18,4,FALSE)))*IF(ISNA(VLOOKUP(S8,'Industry Type P'!$A$2:$S$103,2,FALSE)),'Kidnapping Statistics'!$K$3,VLOOKUP(S8,'Industry Type P'!$A$1:$S$102,MATCH($C8,'Industry Type P'!$A$1:$S$1,0),FALSE))*VLOOKUP(U8,'travel frequence'!$A$1:$D$4,MATCH(T8,'travel frequence'!$A$1:$D$1,0),FALSE)*V8*IF(ISNA(VLOOKUP(V8,'travel frequence'!$A$7:$B$23,2,FALSE)),'travel frequence'!$B$23,VLOOKUP(V8,'travel frequence'!$A$7:$B$23,2,FALSE)),0) -> 1708.809194 | X8: =IF(VLOOKUP(S8,'Industry Type P'!$A$1:$S$102,MATCH($C8,'Industry Type P'!$A$1:$S$1,0),FALSE)>RAND(),"Y","N") -> N | Y8: 0 | Z8: 0 | AA8: =IF(X8="N"," ",INDEX('Other cost'!$A$9:$A$13,RANDBETWEEN(1,5),1)) ->  | AB8: =MIN($H8,IF(X8="N",0,SUM(Z8,'Other cost'!$B$16,VLOOKUP(AA8,'Other cost'!$A$9:$B$13,2,FALSE),IF(Y8>=30,HLOOKUP(30,'Salary in Industry'!$N$1:$AQ$1001,$B8+1,FALSE),HLOOKUP(Y8,'Salary in Industry'!$N$1:$AQ$1001,$B8+1,FALSE)),IF(ISNA(VLOOKUP(S8,'Ransom Statistics'!$A$1:$D$18,4,FALSE)),'Ransom Statistics'!$D$18,VLOOKUP(S8,'Ransom Statistics'!$A$1:$D$18,4,FALSE))))) -> 0 | AC8: =INDEX([1]Variables!$A$2:$A$103,INT((RAND()*100)+1),1) -> Coted'lvoire | AD8: =INDEX(Variables!$E$3:$E$5,RANDBETWEEN(1,3),1) -> Long (more than one month) | AE8: =INDEX([1]Variables!$G$3:$G$5,RANDBETWEEN(1,3),1) -> very frequent ( more than 12 times a year) | AF8: 17 | AG8: =IF(ISNA(VLOOKUP(AC8,Variables!$K$1:$K$36,1,FALSE)),SUM('Other cost'!$B$2,'Salary in Industry'!$AR7,IF(ISNA(VLOOKUP(Simulation!AC8,'Ransom Statistics'!$A$1:$D$18,4,FALSE)),'Ransom Statistics'!$D$18,VLOOKUP(Simulation!AC8,'Ransom Statistics'!$A$1:$D$18,4,FALSE)))*IF(ISNA(VLOOKUP(AC8,'Industry Type P'!$A$2:$S$103,2,FALSE)),'Kidnapping Statistics'!$K$3,VLOOKUP(AC8,'Industry Type P'!$A$1:$S$102,MATCH($C8,'Industry Type P'!$A$1:$S$1,0),FALSE))*VLOOKUP(AE8,'travel frequence'!$A$1:$D$4,MATCH(AD8,'travel frequence'!$A$1:$D$1,0),FALSE)*AF8*IF(ISNA(VLOOKUP(AF8,'travel frequence'!$A$7:$B$23,2,FALSE)),'travel frequence'!$B$23,VLOOKUP(AF8,'travel frequence'!$A$7:$B$23,2,FALSE)),0) -> 2875.524376 | AH8: =IF(VLOOKUP(AC8,'Industry Type P'!$A$1:$S$102,MATCH($C8,'Industry Type P'!$A$1:$S$1,0),FALSE)>RAND(),"Y","N") -> N | AI8: 0 | AJ8: 0 | AK8: =IF(AH8="N"," ",INDEX('Other cost'!$A$9:$A$13,RANDBETWEEN(1,5),1)) ->  | AL8: =MIN($H8,IF(AH8="N",0,SUM(AJ8,'Other cost'!$B$16,VLOOKUP(AK8,'Other cost'!$A$9:$B$13,2,FALSE),IF(AI8>=30,HLOOKUP(30,'Salary in Industry'!$N$1:$AQ$1001,$B8+1,FALSE),HLOOKUP(AI8,'Salary in Industry'!$N$1:$AQ$1001,$B8+1,FALSE)),IF(ISNA(VLOOKUP(AC8,'Ransom Statistics'!$A$1:$D$18,4,FALSE)),'Ransom Statistics'!$D$18,VLOOKUP(AC8,'Ransom Statistics'!$A$1:$D$18,4,FALSE))))) -> 0 | AM8: =INDEX([1]Variables!$A$2:$A$103,INT((RAND()*100)+1),1) -> Equatorial | AN8: =INDEX(Variables!$E$3:$E$5,RANDBETWEEN(1,3),1) -> Long (more than one month) | AO8: =INDEX([1]Variables!$G$3:$G$5,RANDBETWEEN(1,3),1) -> very frequent ( more than 12 times a year) | AP8: 13 | AQ8: =IF(ISNA(VLOOKUP(AM8,Variables!$K$1:$K$36,1,FALSE)),SUM('Other cost'!$B$2,'Salary in Industry'!$AR7,IF(ISNA(VLOOKUP(Simulation!AM8,'Ransom Statistics'!$A$1:$D$18,4,FALSE)),'Ransom Statistics'!$D$18,VLOOKUP(Simulation!AM8,'Ransom Statistics'!$A$1:$D$18,4,FALSE)))*IF(ISNA(VLOOKUP(AM8,'Industry Type P'!$A$2:$S$103,2,FALSE)),'Kidnapping Statistics'!$K$3,VLOOKUP(AM8,'Industry Type P'!$A$1:$S$102,MATCH($C8,'Industry Type P'!$A$1:$S$1,0),FALSE))*VLOOKUP(AO8,'travel frequence'!$A$1:$D$4,MATCH(AN8,'travel frequence'!$A$1:$D$1,0),FALSE)*AP8*IF(ISNA(VLOOKUP(AP8,'travel frequence'!$A$7:$B$23,2,FALSE)),'travel frequence'!$B$23,VLOOKUP(AP8,'travel frequence'!$A$7:$B$23,2,FALSE)),0) -> 8.551396022 | AR8: =IF(VLOOKUP(AM8,'Industry Type P'!$A$1:$S$102,MATCH($C8,'Industry Type P'!$A$1:$S$1,0),FALSE)>RAND(),"Y","N") -> N | AS8: 0 | AT8: 0 | AU8: =IF(AR8="N"," ",INDEX('Other cost'!$A$9:$A$13,RANDBETWEEN(1,5),1)) ->  | AV8: =MIN($H8,IF(AR8="N",0,SUM(AT8,'Other cost'!$B$16,VLOOKUP(AU8,'Other cost'!$A$9:$B$13,2,FALSE),IF(AS8>=30,HLOOKUP(30,'Salary in Industry'!$N$1:$AQ$1001,$B8+1,FALSE),HLOOKUP(AS8,'Salary in Industry'!$N$1:$AQ$1001,$B8+1,FALSE)),IF(ISNA(VLOOKUP(AM8,'Ransom Statistics'!$A$1:$D$18,4,FALSE)),'Ransom Statistics'!$D$18,VLOOKUP(AM8,'Ransom Statistics'!$A$1:$D$18,4,FALSE))))) -> 0 | AW8: =INDEX([1]Variables!$A$2:$A$103,INT((RAND()*100)+1),1) -> Benin | AX8: =INDEX(Variables!$E$3:$E$5,RANDBETWEEN(1,3),1) -> Short (less a week) | AY8: =INDEX([1]Variables!$G$3:$G$5,RANDBETWEEN(1,3),1) -> frequent (3 times to 12 times) | AZ8: 3 | BA8: =IF(ISNA(VLOOKUP(AW8,Variables!$K$1:$K$36,1,FALSE)),SUM('Other cost'!$B$2,'Salary in Industry'!$AR7,IF(ISNA(VLOOKUP(Simulation!AW8,'Ransom Statistics'!$A$1:$D$18,4,FALSE)),'Ransom Statistics'!$D$18,VLOOKUP(Simulation!AW8,'Ransom Statistics'!$A$1:$D$18,4,FALSE)))*IF(ISNA(VLOOKUP(AW8,'Industry Type P'!$A$2:$S$103,2,FALSE)),'Kidnapping Statistics'!$K$3,VLOOKUP(AW8,'Industry Type P'!$A$1:$S$102,MATCH($C8,'Industry Type P'!$A$1:$S$1,0),FALSE))*VLOOKUP(AY8,'travel frequence'!$A$1:$D$4,MATCH(AX8,'travel frequence'!$A$1:$D$1,0),FALSE)*AZ8*IF(ISNA(VLOOKUP(AZ8,'travel frequence'!$A$7:$B$23,2,FALSE)),'travel frequence'!$B$23,VLOOKUP(AZ8,'travel frequence'!$A$7:$B$23,2,FALSE)),0) -> 660.5178745 | BB8: =IF(VLOOKUP(AW8,'Industry Type P'!$A$1:$S$102,MATCH($C8,'Industry Type P'!$A$1:$S$1,0),FALSE)>RAND(),"Y","N") -> N | BC8: 0 | BD8: 0 | BE8: =IF(BB8="N"," ",INDEX('Other cost'!$A$9:$A$13,RANDBETWEEN(1,5),1)) ->  | BF8: =MIN($H8,IF(BB8="N",0,SUM(BD8,'Other cost'!$B$16,VLOOKUP(BE8,'Other cost'!$A$9:$B$13,2,FALSE),IF(BC8>=30,HLOOKUP(30,'Salary in Industry'!$N$1:$AQ$1001,$B8+1,FALSE),HLOOKUP(BC8,'Salary in Industry'!$N$1:$AQ$1001,$B8+1,FALSE)),IF(ISNA(VLOOKUP(AW8,'Ransom Statistics'!$A$1:$D$18,4,FALSE)),'Ransom Statistics'!$D$18,VLOOKUP(AW8,'Ransom Statistics'!$A$1:$D$18,4,FALSE))))) -> 0 | BG8: =INDEX([1]Variables!$A$2:$A$103,INT((RAND()*100)+1),1) -> Greece | BH8: =INDEX(Variables!$E$3:$E$5,RANDBETWEEN(1,3),1) -> Short (less a week) | BI8: =INDEX([1]Variables!$G$3:$G$5,RANDBETWEEN(1,3),1) -> very frequent ( more than 12 times a year) | BJ8: 15 | BK8: =IF(ISNA(VLOOKUP(BG8,Variables!$K$1:$K$36,1,FALSE)),SUM('Other cost'!$B$2,'Salary in Industry'!$AR7,IF(ISNA(VLOOKUP(Simulation!BG8,'Ransom Statistics'!$A$1:$D$18,4,FALSE)),'Ransom Statistics'!$D$18,VLOOKUP(Simulation!BG8,'Ransom Statistics'!$A$1:$D$18,4,FALSE)))*IF(ISNA(VLOOKUP(BG8,'Industry Type P'!$A$2:$S$103,2,FALSE)),'Kidnapping Statistics'!$K$3,VLOOKUP(BG8,'Industry Type P'!$A$1:$S$102,MATCH($C8,'Industry Type P'!$A$1:$S$1,0),FALSE))*VLOOKUP(BI8,'travel frequence'!$A$1:$D$4,MATCH(BH8,'travel frequence'!$A$1:$D$1,0),FALSE)*BJ8*IF(ISNA(VLOOKUP(BJ8,'travel frequence'!$A$7:$B$23,2,FALSE)),'travel frequence'!$B$23,VLOOKUP(BJ8,'travel frequence'!$A$7:$B$23,2,FALSE)),0) -> 7.688567852 | BL8: =IF(VLOOKUP(BG8,'Industry Type P'!$A$1:$S$102,MATCH($C8,'Industry Type P'!$A$1:$S$1,0),FALSE)>RAND(),"Y","N") -> N | BM8: 0 | BN8: 0 | BO8: =IF(BL8="N"," ",INDEX('Other cost'!$A$9:$A$13,RANDBETWEEN(1,5),1)) ->  | BP8: =MIN($H8,IF(BL8="N",0,SUM(BN8,'Other cost'!$B$16,VLOOKUP(BO8,'Other cost'!$A$9:$B$13,2,FALSE),IF(BM8>=30,HLOOKUP(30,'Salary in Industry'!$N$1:$AQ$1001,$B8+1,FALSE),HLOOKUP(BM8,'Salary in Industry'!$N$1:$AQ$1001,$B8+1,FALSE)),IF(ISNA(VLOOKUP(BG8,'Ransom Statistics'!$A$1:$D$18,4,FALSE)),'Ransom Statistics'!$D$18,VLOOKUP(BG8,'Ransom Statistics'!$A$1:$D$18,4,FALSE))))) -> 0 | BQ8: =INDEX([1]Variables!$A$2:$A$103,INT((RAND()*100)+1),1) -> Tanzania | BR8: =INDEX(Variables!$E$3:$E$5,RANDBETWEEN(1,3),1) -> Short (less a week) | BS8: =INDEX([1]Variables!$G$3:$G$5,RANDBETWEEN(1,3),1) -> infrequent (less than 3 times) | BT8: 13 | BU8: =IF(ISNA(VLOOKUP(BQ8,Variables!$K$1:$K$36,1,FALSE)),SUM('Other cost'!$B$2,'Salary in Industry'!$AR7,IF(ISNA(VLOOKUP(Simulation!BQ8,'Ransom Statistics'!$A$1:$D$18,4,FALSE)),'Ransom Statistics'!$D$18,VLOOKUP(Simulation!BQ8,'Ransom Statistics'!$A$1:$D$18,4,FALSE)))*IF(ISNA(VLOOKUP(BQ8,'Industry Type P'!$A$2:$S$103,2,FALSE)),'Kidnapping Statistics'!$K$3,VLOOKUP(BQ8,'Industry Type P'!$A$1:$S$102,MATCH($C8,'Industry Type P'!$A$1:$S$1,0),FALSE))*VLOOKUP(BS8,'travel frequence'!$A$1:$D$4,MATCH(BR8,'travel frequence'!$A$1:$D$1,0),FALSE)*BT8*IF(ISNA(VLOOKUP(BT8,'travel frequence'!$A$7:$B$23,2,FALSE)),'travel frequence'!$B$23,VLOOKUP(BT8,'travel frequence'!$A$7:$B$23,2,FALSE)),0) -> 7.067269439 | BV8: =IF(VLOOKUP(BQ8,'Industry Type P'!$A$1:$S$102,MATCH($C8,'Industry Type P'!$A$1:$S$1,0),FALSE)>RAND(),"Y","N") -> N | BW8: 0 | BX8: 0 | BY8: =IF(BV8="N"," ",INDEX('Other cost'!$A$9:$A$13,RANDBETWEEN(1,5),1)) ->  | BZ8: =MIN($H8,IF(BV8="N",0,SUM(BX8,'Other cost'!$B$16,VLOOKUP(BY8,'Other cost'!$A$9:$B$13,2,FALSE),IF(BW8>=30,HLOOKUP(30,'Salary in Industry'!$N$1:$AQ$1001,$B8+1,FALSE),HLOOKUP(BW8,'Salary in Industry'!$N$1:$AQ$1001,$B8+1,FALSE)),IF(ISNA(VLOOKUP(BQ8,'Ransom Statistics'!$A$1:$D$18,4,FALSE)),'Ransom Statistics'!$D$18,VLOOKUP(BQ8,'Ransom Statistics'!$A$1:$D$18,4,FALSE))))) -> 0 | CA8: =INDEX([1]Variables!$A$2:$A$103,INT((RAND()*100)+1),1) -> Spain | CB8: =INDEX(Variables!$E$3:$E$5,RANDBETWEEN(1,3),1) -> Long (more than one month) | CC8: =INDEX([1]Variables!$G$3:$G$5,RANDBETWEEN(1,3),1) -> infrequent (less than 3 times) | CD8: 20 | CE8: =IF(ISNA(VLOOKUP(CA8,Variables!$K$1:$K$36,1,FALSE)),SUM('Other cost'!$B$2,'Salary in Industry'!$AR7,IF(ISNA(VLOOKUP(Simulation!CA8,'Ransom Statistics'!$A$1:$D$18,4,FALSE)),'Ransom Statistics'!$D$18,VLOOKUP(Simulation!CA8,'Ransom Statistics'!$A$1:$D$18,4,FALSE)))*IF(ISNA(VLOOKUP(CA8,'Industry Type P'!$A$2:$S$103,2,FALSE)),'Kidnapping Statistics'!$K$3,VLOOKUP(CA8,'Industry Type P'!$A$1:$S$102,MATCH($C8,'Industry Type P'!$A$1:$S$1,0),FALSE))*VLOOKUP(CC8,'travel frequence'!$A$1:$D$4,MATCH(CB8,'travel frequence'!$A$1:$D$1,0),FALSE)*CD8*IF(ISNA(VLOOKUP(CD8,'travel frequence'!$A$7:$B$23,2,FALSE)),'travel frequence'!$B$23,VLOOKUP(CD8,'travel frequence'!$A$7:$B$23,2,FALSE)),0) -> 52.28226139 | CF8: =IF(VLOOKUP(CA8,'Industry Type P'!$A$1:$S$102,MATCH($C8,'Industry Type P'!$A$1:$S$1,0),FALSE)>RAND(),"Y","N") -> N | CG8: 0 | CH8: 0 | CI8: =IF(CF8="N"," ",INDEX('Other cost'!$A$9:$A$13,RANDBETWEEN(1,5),1)) ->  | CJ8: =MIN($H8,IF(CF8="N",0,SUM(CH8,'Other cost'!$B$16,VLOOKUP(CI8,'Other cost'!$A$9:$B$13,2,FALSE),IF(CG8>=30,HLOOKUP(30,'Salary in Industry'!$N$1:$AQ$1001,$B8+1,FALSE),HLOOKUP(CG8,'Salary in Industry'!$N$1:$AQ$1001,$B8+1,FALSE)),IF(ISNA(VLOOKUP(CA8,'Ransom Statistics'!$A$1:$D$18,4,FALSE)),'Ransom Statistics'!$D$18,VLOOKUP(CA8,'Ransom Statistics'!$A$1:$D$18,4,FALSE))))) -> 0 | CK8: =INDEX([1]Variables!$A$2:$A$103,INT((RAND()*100)+1),1) -> EI Salvador | CL8: =INDEX(Variables!$E$3:$E$5,RANDBETWEEN(1,3),1) -> Long (more than one month) | CM8: =INDEX([1]Variables!$G$3:$G$5,RANDBETWEEN(1,3),1) -> frequent (3 times to 12 times) | CN8: 20 | CO8: =IF(ISNA(VLOOKUP(CK8,Variables!$K$1:$K$36,1,FALSE)),SUM('Other cost'!$B$2,'Salary in Industry'!$AR7,IF(ISNA(VLOOKUP(Simulation!CK8,'Ransom Statistics'!$A$1:$D$18,4,FALSE)),'Ransom Statistics'!$D$18,VLOOKUP(Simulation!CK8,'Ransom Statistics'!$A$1:$D$18,4,FALSE)))*IF(ISNA(VLOOKUP(CK8,'Industry Type P'!$A$2:$S$103,2,FALSE)),'Kidnapping Statistics'!$K$3,VLOOKUP(CK8,'Industry Type P'!$A$1:$S$102,MATCH($C8,'Industry Type P'!$A$1:$S$1,0),FALSE))*VLOOKUP(CM8,'travel frequence'!$A$1:$D$4,MATCH(CL8,'travel frequence'!$A$1:$D$1,0),FALSE)*CN8*IF(ISNA(VLOOKUP(CN8,'travel frequence'!$A$7:$B$23,2,FALSE)),'travel frequence'!$B$23,VLOOKUP(CN8,'travel frequence'!$A$7:$B$23,2,FALSE)),0) -> 74.87996516 | CP8: =IF(VLOOKUP(CK8,'Industry Type P'!$A$1:$S$102,MATCH($C8,'Industry Type P'!$A$1:$S$1,0),FALSE)>RAND(),"Y","N") -> N | CQ8: 0 | CR8: 0 | CS8: =IF(CP8="N"," ",INDEX('Other cost'!$A$9:$A$13,RANDBETWEEN(1,5),1)) ->  | CT8: =MIN($H8,IF(CP8="N",0,SUM(CR8,'Other cost'!$B$16,VLOOKUP(CS8,'Other cost'!$A$9:$B$13,2,FALSE),IF(CQ8>=30,HLOOKUP(30,'Salary in Industry'!$N$1:$AQ$1001,$B8+1,FALSE),HLOOKUP(CQ8,'Salary in Industry'!$N$1:$AQ$1001,$B8+1,FALSE)),IF(ISNA(VLOOKUP(CK8,'Ransom Statistics'!$A$1:$D$18,4,FALSE)),'Ransom Statistics'!$D$18,VLOOKUP(CK8,'Ransom Statistics'!$A$1:$D$18,4,FALSE))))) -> 0 | CU8: =INDEX([1]Variables!$A$2:$A$103,INT((RAND()*100)+1),1) -> Peru | CV8: =INDEX(Variables!$E$3:$E$5,RANDBETWEEN(1,3),1) -> Medium (1 week to 1month) | CW8: =INDEX([1]Variables!$G$3:$G$5,RANDBETWEEN(1,3),1) -> infrequent (less than 3 times) | CX8: 15 | CY8: =IF(ISNA(VLOOKUP(CU8,Variables!$K$1:$K$36,1,FALSE)),SUM('Other cost'!$B$2,'Salary in Industry'!$AR7,IF(ISNA(VLOOKUP(Simulation!CU8,'Ransom Statistics'!$A$1:$D$18,4,FALSE)),'Ransom Statistics'!$D$18,VLOOKUP(Simulation!CU8,'Ransom Statistics'!$A$1:$D$18,4,FALSE)))*IF(ISNA(VLOOKUP(CU8,'Industry Type P'!$A$2:$S$103,2,FALSE)),'Kidnapping Statistics'!$K$3,VLOOKUP(CU8,'Industry Type P'!$A$1:$S$102,MATCH($C8,'Industry Type P'!$A$1:$S$1,0),FALSE))*VLOOKUP(CW8,'travel frequence'!$A$1:$D$4,MATCH(CV8,'travel frequence'!$A$1:$D$1,0),FALSE)*CX8*IF(ISNA(VLOOKUP(CX8,'travel frequence'!$A$7:$B$23,2,FALSE)),'travel frequence'!$B$23,VLOOKUP(CX8,'travel frequence'!$A$7:$B$23,2,FALSE)),0) -> 30.09025873 | CZ8: =IF(VLOOKUP(CU8,'Industry Type P'!$A$1:$S$102,MATCH($C8,'Industry Type P'!$A$1:$S$1,0),FALSE)>RAND(),"Y","N") -> N | DA8: 0 | DB8: 0 | DC8: =IF(CZ8="N"," ",INDEX('Other cost'!$A$9:$A$13,RANDBETWEEN(1,5),1)) ->  | DD8: =MIN($H8,IF(CZ8="N",0,SUM(DB8,'Other cost'!$B$16,VLOOKUP(DC8,'Other cost'!$A$9:$B$13,2,FALSE),IF(DA8>=30,HLOOKUP(30,'Salary in Industry'!$N$1:$AQ$1001,$B8+1,FALSE),HLOOKUP(DA8,'Salary in Industry'!$N$1:$AQ$1001,$B8+1,FALSE)),IF(ISNA(VLOOKUP(CU8,'Ransom Statistics'!$A$1:$D$18,4,FALSE)),'Ransom Statistics'!$D$18,VLOOKUP(CU8,'Ransom Statistics'!$A$1:$D$18,4,FALSE))))) -> 0 | DE8: 0 | DF8: =((IF(A8=0,0,IF(A8=1,M8,IF(A8=2,M8+W8,IF(A8=3,M8+W8+AG8,IF(A8=4,M8+W8+AG8+AQ8,IF(A8=5,M8+W8+AG8+AQ8+BA8,IF(A8=6,M8+W8+AG8+AQ8+BA8+BK8,IF(A8=7,M8+W8+AG8+AQ8+BA8+BK8+BU8,IF(A8=8,M8+W8+AG8+AQ8+BA8+BK8+BU8+CE8,IF(A8=9,M8+W8+AG8+AQ8+BA8+BK8+BU8+CE8+CO8,IF(A8=10,M8+W8+AG8+AQ8+BA8+BK8+BU8+CE8+CO8+CY8))))))))))))/(1+Variables!$G$12))*(1+Variables!$F$19) -> 6898.066534 | DJ8: Annual Expenses | DK8: 735811.76
A9: 1 | B9: 7 | C9: =INDEX([1]Variables!$C$2:$C$19,INT((RAND()*10)+1),1) -> Construction | D9: 17 | E9: 263 | F9: 5665 | G9: 19546893 | H9: =Variables!$H$18 -> 1000000 | I9: =INDEX([1]Variables!$A$2:$A$103,INT((RAND()*100)+1),1) -> Saudi Abrabia | J9: =INDEX(Variables!$E$3:$E$5,RANDBETWEEN(1,3),1) -> Short (less a week) | K9: =INDEX([1]Variables!$G$3:$G$5,RANDBETWEEN(1,3),1) -> frequent (3 times to 12 times) | L9: 10 | M9: =IF(ISNA(VLOOKUP(I9,Variables!$K$1:$K$36,1,FALSE)),SUM('Other cost'!$B$2,'Salary in Industry'!$AR8,IF(ISNA(VLOOKUP(Simulation!I9,'Ransom Statistics'!$A$1:$D$18,4,FALSE)),'Ransom Statistics'!$D$18,VLOOKUP(Simulation!I9,'Ransom Statistics'!$A$1:$D$18,4,FALSE)))*IF(ISNA(VLOOKUP(I9,'Industry Type P'!$A$2:$S$103,2,FALSE)),'Kidnapping Statistics'!$K$3,VLOOKUP(I9,'Industry Type P'!$A$1:$S$102,MATCH($C9,'Industry Type P'!$A$1:$S$1,0),FALSE))*VLOOKUP(K9,'travel frequence'!$A$1:$D$4,MATCH(J9,'travel frequence'!$A$1:$D$1,0),FALSE)*L9*IF(ISNA(VLOOKUP(L9,'travel frequence'!$A$7:$B$23,2,FALSE)),'travel frequence'!$B$23,VLOOKUP(L9,'travel frequence'!$A$7:$B$23,2,FALSE)),0) -> 5.708388743 | N9: =IF(VLOOKUP(I9,'Industry Type P'!$A$1:$S$102,MATCH($C9,'Industry Type P'!$A$1:$S$1,0),FALSE)>RAND(),"Y","N") -> N | O9: 0 | P9: 0 | Q9: =IF(N9="N"," ",INDEX('Other cost'!$A$9:$A$13,RANDBETWEEN(1,5),1)) ->  | R9: =MIN($H9,IF(N9="N",0,SUM(P9,'Other cost'!$B$16,VLOOKUP(Q9,'Other cost'!$A$9:$B$13,2,FALSE),IF(O9>=30,HLOOKUP(30,'Salary in Industry'!$N$1:$AQ$1001,$B9+1,FALSE),HLOOKUP(O9,'Salary in Industry'!$N$1:$AQ$1001,$B9+1,FALSE)),IF(ISNA(VLOOKUP(I9,'Ransom Statistics'!$A$1:$D$18,4,FALSE)),'Ransom Statistics'!$D$18,VLOOKUP(I9,'Ransom Statistics'!$A$1:$D$18,4,FALSE))))) -> 0 | S9: =INDEX([1]Variables!$A$2:$A$103,INT((RAND()*100)+1),1) -> East Timor | T9: =INDEX(Variables!$E$3:$E$5,RANDBETWEEN(1,3),1) -> Short (less a week) | U9: =INDEX([1]Variables!$G$3:$G$5,RANDBETWEEN(1,3),1) -> frequent (3 times to 12 times) | V9: 11 | W9: =IF(ISNA(VLOOKUP(S9,Variables!$K$1:$K$36,1,FALSE)),SUM('Other cost'!$B$2,'Salary in Industry'!$AR8,IF(ISNA(VLOOKUP(Simulation!S9,'Ransom Statistics'!$A$1:$D$18,4,FALSE)),'Ransom Statistics'!$D$18,VLOOKUP(Simulation!S9,'Ransom Statistics'!$A$1:$D$18,4,FALSE)))*IF(ISNA(VLOOKUP(S9,'Industry Type P'!$A$2:$S$103,2,FALSE)),'Kidnapping Statistics'!$K$3,VLOOKUP(S9,'Industry Type P'!$A$1:$S$102,MATCH($C9,'Industry Type P'!$A$1:$S$1,0),FALSE))*VLOOKUP(U9,'travel frequence'!$A$1:$D$4,MATCH(T9,'travel frequence'!$A$1:$D$1,0),FALSE)*V9*IF(ISNA(VLOOKUP(V9,'travel frequence'!$A$7:$B$23,2,FALSE)),'travel frequence'!$B$23,VLOOKUP(V9,'travel frequence'!$A$7:$B$23,2,FALSE)),0) -> 6.279227618 | X9: =IF(VLOOKUP(S9,'Industry Type P'!$A$1:$S$102,MATCH($C9,'Industry Type P'!$A$1:$S$1,0),FALSE)>RAND(),"Y","N") -> N | Y9: 0 | Z9: 0 | AA9: =IF(X9="N"," ",INDEX('Other cost'!$A$9:$A$13,RANDBETWEEN(1,5),1)) ->  | AB9: =MIN($H9,IF(X9="N",0,SUM(Z9,'Other cost'!$B$16,VLOOKUP(AA9,'Other cost'!$A$9:$B$13,2,FALSE),IF(Y9>=30,HLOOKUP(30,'Salary in Industry'!$N$1:$AQ$1001,$B9+1,FALSE),HLOOKUP(Y9,'Salary in Industry'!$N$1:$AQ$1001,$B9+1,FALSE)),IF(ISNA(VLOOKUP(S9,'Ransom Statistics'!$A$1:$D$18,4,FALSE)),'Ransom Statistics'!$D$18,VLOOKUP(S9,'Ransom Statistics'!$A$1:$D$18,4,FALSE))))) -> 0 | AC9: =INDEX([1]Variables!$A$2:$A$103,INT((RAND()*100)+1),1) -> Sudan | AD9: =INDEX(Variables!$E$3:$E$5,RANDBETWEEN(1,3),1) -> Long (more than one month) | AE9: =INDEX([1]Variables!$G$3:$G$5,RANDBETWEEN(1,3),1) -> infrequent (less than 3 times) | AF9: 7 | AG9: =IF(ISNA(VLOOKUP(AC9,Variables!$K$1:$K$36,1,FALSE)),SUM('Other cost'!$B$2,'Salary in Industry'!$AR8,IF(ISNA(VLOOKUP(Simulation!AC9,'Ransom Statistics'!$A$1:$D$18,4,FALSE)),'Ransom Statistics'!$D$18,VLOOKUP(Simulation!AC9,'Ransom Statistics'!$A$1:$D$18,4,FALSE)))*IF(ISNA(VLOOKUP(AC9,'Industry Type P'!$A$2:$S$103,2,FALSE)),'Kidnapping Statistics'!$K$3,VLOOKUP(AC9,'Industry Type P'!$A$1:$S$102,MATCH($C9,'Industry Type P'!$A$1:$S$1,0),FALSE))*VLOOKUP(AE9,'travel frequence'!$A$1:$D$4,MATCH(AD9,'travel frequence'!$A$1:$D$1,0),FALSE)*AF9*IF(ISNA(VLOOKUP(AF9,'travel frequence'!$A$7:$B$23,2,FALSE)),'travel frequence'!$B$23,VLOOKUP(AF9,'travel frequence'!$A$7:$B$23,2,FALSE)),0) -> 0 | AH9: =IF(VLOOKUP(AC9,'Industry Type P'!$A$1:$S$102,MATCH($C9,'Industry Type P'!$A$1:$S$1,0),FALSE)>RAND(),"Y","N") -> N | AI9: 0 | AJ9: 0 | AK9: =IF(AH9="N"," ",INDEX('Other cost'!$A$9:$A$13,RANDBETWEEN(1,5),1)) ->  | AL9: =MIN($H9,IF(AH9="N",0,SUM(AJ9,'Other cost'!$B$16,VLOOKUP(AK9,'Other cost'!$A$9:$B$13,2,FALSE),IF(AI9>=30,HLOOKUP(30,'Salary in Industry'!$N$1:$AQ$1001,$B9+1,FALSE),HLOOKUP(AI9,'Salary in Industry'!$N$1:$AQ$1001,$B9+1,FALSE)),IF(ISNA(VLOOKUP(AC9,'Ransom Statistics'!$A$1:$D$18,4,FALSE)),'Ransom Statistics'!$D$18,VLOOKUP(AC9,'Ransom Statistics'!$A$1:$D$18,4,FALSE))))) -> 0 | AM9: =INDEX([1]Variables!$A$2:$A$103,INT((RAND()*100)+1),1) -> Niger | AN9: =INDEX(Variables!$E$3:$E$5,RANDBETWEEN(1,3),1) -> Long (more than one month) | AO9: =INDEX([1]Variables!$G$3:$G$5,RANDBETWEEN(1,3),1) -> very frequent ( more than 12 times a year) | AP9: 17 | AQ9: =IF(ISNA(VLOOKUP(AM9,Variables!$K$1:$K$36,1,FALSE)),SUM('Other cost'!$B$2,'Salary in Industry'!$AR8,IF(ISNA(VLOOKUP(Simulation!AM9,'Ransom Statistics'!$A$1:$D$18,4,FALSE)),'Ransom Statistics'!$D$18,VLOOKUP(Simulation!AM9,'Ransom Statistics'!$A$1:$D$18,4,FALSE)))*IF(ISNA(VLOOKUP(AM9,'Industry Type P'!$A$2:$S$103,2,FALSE)),'Kidnapping Statistics'!$K$3,VLOOKUP(AM9,'Industry Type P'!$A$1:$S$102,MATCH($C9,'Industry Type P'!$A$1:$S$1,0),FALSE))*VLOOKUP(AO9,'travel frequence'!$A$1:$D$4,MATCH(AN9,'travel frequence'!$A$1:$D$1,0),FALSE)*AP9*IF(ISNA(VLOOKUP(AP9,'travel frequence'!$A$7:$B$23,2,FALSE)),'travel frequence'!$B$23,VLOOKUP(AP9,'travel frequence'!$A$7:$B$23,2,FALSE)),0) -> 0 | AR9: =IF(VLOOKUP(AM9,'Industry Type P'!$A$1:$S$102,MATCH($C9,'Industry Type P'!$A$1:$S$1,0),FALSE)>RAND(),"Y","N") -> N | AS9: 0 | AT9: 0 | AU9: =IF(AR9="N"," ",INDEX('Other cost'!$A$9:$A$13,RANDBETWEEN(1,5),1)) ->  | AV9: =MIN($H9,IF(AR9="N",0,SUM(AT9,'Other cost'!$B$16,VLOOKUP(AU9,'Other cost'!$A$9:$B$13,2,FALSE),IF(AS9>=30,HLOOKUP(30,'Salary in Industry'!$N$1:$AQ$1001,$B9+1,FALSE),HLOOKUP(AS9,'Salary in Industry'!$N$1:$AQ$1001,$B9+1,FALSE)),IF(ISNA(VLOOKUP(AM9,'Ransom Statistics'!$A$1:$D$18,4,FALSE)),'Ransom Statistics'!$D$18,VLOOKUP(AM9,'Ransom Statistics'!$A$1:$D$18,4,FALSE))))) -> 0 | AW9: =INDEX([1]Variables!$A$2:$A$103,INT((RAND()*100)+1),1) -> Mauritania | AX9: =INDEX(Variables!$E$3:$E$5,RANDBETWEEN(1,3),1) -> Short (less a week) | AY9: =INDEX([1]Variables!$G$3:$G$5,RANDBETWEEN(1,3),1) -> very frequent ( more than 12 times a year) | AZ9: 12 | BA9: =IF(ISNA(VLOOKUP(AW9,Variables!$K$1:$K$36,1,FALSE)),SUM('Other cost'!$B$2,'Salary in Industry'!$AR8,IF(ISNA(VLOOKUP(Simulation!AW9,'Ransom Statistics'!$A$1:$D$18,4,FALSE)),'Ransom Statistics'!$D$18,VLOOKUP(Simulation!AW9,'Ransom Statistics'!$A$1:$D$18,4,FALSE)))*IF(ISNA(VLOOKUP(AW9,'Industry Type P'!$A$2:$S$103,2,FALSE)),'Kidnapping Statistics'!$K$3,VLOOKUP(AW9,'Industry Type P'!$A$1:$S$102,MATCH($C9,'Industry Type P'!$A$1:$S$1,0),FALSE))*VLOOKUP(AY9,'travel frequence'!$A$1:$D$4,MATCH(AX9,'travel frequence'!$A$1:$D$1,0),FALSE)*AZ9*IF(ISNA(VLOOKUP(AZ9,'travel frequence'!$A$7:$B$23,2,FALSE)),'travel frequence'!$B$23,VLOOKUP(AZ9,'travel frequence'!$A$7:$B$23,2,FALSE)),0) -> 0 | BB9: =IF(VLOOKUP(AW9,'Industry Type P'!$A$1:$S$102,MATCH($C9,'Industry Type P'!$A$1:$S$1,0),FALSE)>RAND(),"Y","N") -> N | BC9: 0 | BD9: 0 | BE9: =IF(BB9="N"," ",INDEX('Other cost'!$A$9:$A$13,RANDBETWEEN(1,5),1)) ->  | BF9: =MIN($H9,IF(BB9="N",0,SUM(BD9,'Other cost'!$B$16,VLOOKUP(BE9,'Other cost'!$A$9:$B$13,2,FALSE),IF(BC9>=30,HLOOKUP(30,'Salary in Industry'!$N$1:$AQ$1001,$B9+1,FALSE),HLOOKUP(BC9,'Salary in Industry'!$N$1:$AQ$1001,$B9+1,FALSE)),IF(ISNA(VLOOKUP(AW9,'Ransom Statistics'!$A$1:$D$18,4,FALSE)),'Ransom Statistics'!$D$18,VLOOKUP(AW9,'Ransom Statistics'!$A$1:$D$18,4,FALSE))))) -> 0 | BG9: =INDEX([1]Variables!$A$2:$A$103,INT((RAND()*100)+1),1) -> Romania | BH9: =INDEX(Variables!$E$3:$E$5,RANDBETWEEN(1,3),1) -> Long (more than one month) | BI9: =INDEX([1]Variables!$G$3:$G$5,RANDBETWEEN(1,3),1) -> very frequent ( more than 12 times a year) | BJ9: 12 | BK9: =IF(ISNA(VLOOKUP(BG9,Variables!$K$1:$K$36,1,FALSE)),SUM('Other cost'!$B$2,'Salary in Industry'!$AR8,IF(ISNA(VLOOKUP(Simulation!BG9,'Ransom Statistics'!$A$1:$D$18,4,FALSE)),'Ransom Statistics'!$D$18,VLOOKUP(Simulation!BG9,'Ransom Statistics'!$A$1:$D$18,4,FALSE)))*IF(ISNA(VLOOKUP(BG9,'Industry Type P'!$A$2:$S$103,2,FALSE)),'Kidnapping Statistics'!$K$3,VLOOKUP(BG9,'Industry Type P'!$A$1:$S$102,MATCH($C9,'Industry Type P'!$A$1:$S$1,0),FALSE))*VLOOKUP(BI9,'travel frequence'!$A$1:$D$4,MATCH(BH9,'travel frequence'!$A$1:$D$1,0),FALSE)*BJ9*IF(ISNA(VLOOKUP(BJ9,'travel frequence'!$A$7:$B$23,2,FALSE)),'travel frequence'!$B$23,VLOOKUP(BJ9,'travel frequence'!$A$7:$B$23,2,FALSE)),0) -> 105.7780744 | BL9: =IF(VLOOKUP(BG9,'Industry Type P'!$A$1:$S$102,MATCH($C9,'Industry Type P'!$A$1:$S$1,0),FALSE)>RAND(),"Y","N") -> N | BM9: 0 | BN9: 0 | BO9: =IF(BL9="N"," ",INDEX('Other cost'!$A$9:$A$13,RANDBETWEEN(1,5),1)) ->  | BP9: =MIN($H9,IF(BL9="N",0,SUM(BN9,'Other cost'!$B$16,VLOOKUP(BO9,'Other cost'!$A$9:$B$13,2,FALSE),IF(BM9>=30,HLOOKUP(30,'Salary in Industry'!$N$1:$AQ$1001,$B9+1,FALSE),HLOOKUP(BM9,'Salary in Industry'!$N$1:$AQ$1001,$B9+1,FALSE)),IF(ISNA(VLOOKUP(BG9,'Ransom Statistics'!$A$1:$D$18,4,FALSE)),'Ransom Statistics'!$D$18,VLOOKUP(BG9,'Ransom Statistics'!$A$1:$D$18,4,FALSE))))) -> 0 | BQ9: =INDEX([1]Variables!$A$2:$A$103,INT((RAND()*100)+1),1) -> Chile | BR9: =INDEX(Variables!$E$3:$E$5,RANDBETWEEN(1,3),1) -> Medium (1 week to 1month) | BS9: =INDEX([1]Variables!$G$3:$G$5,RANDBETWEEN(1,3),1) -> frequent (3 times to 12 times) | BT9: 1 | BU9: =IF(ISNA(VLOOKUP(BQ9,Variables!$K$1:$K$36,1,FALSE)),SUM('Other cost'!$B$2,'Salary in Industry'!$AR8,IF(ISNA(VLOOKUP(Simulation!BQ9,'Ransom Statistics'!$A$1:$D$18,4,FALSE)),'Ransom Statistics'!$D$18,VLOOKUP(Simulation!BQ9,'Ransom Statistics'!$A$1:$D$18,4,FALSE)))*IF(ISNA(VLOOKUP(BQ9,'Industry Type P'!$A$2:$S$103,2,FALSE)),'Kidnapping Statistics'!$K$3,VLOOKUP(BQ9,'Industry Type P'!$A$1:$S$102,MATCH($C9,'Industry Type P'!$A$1:$S$1,0),FALSE))*VLOOKUP(BS9,'travel frequence'!$A$1:$D$4,MATCH(BR9,'travel frequence'!$A$1:$D$1,0),FALSE)*BT9*IF(ISNA(VLOOKUP(BT9,'travel frequence'!$A$7:$B$23,2,FALSE)),'travel frequence'!$B$23,VLOOKUP(BT9,'travel frequence'!$A$7:$B$23,2,FALSE)),0) -> 45.53540261 | BV9: =IF(VLOOKUP(BQ9,'Industry Type P'!$A$1:$S$102,MATCH($C9,'Industry Type P'!$A$1:$S$1,0),FALSE)>RAND(),"Y","N") -> N | BW9: 0 | BX9: 0 | BY9: =IF(BV9="N"," ",INDEX('Other cost'!$A$9:$A$13,RANDBETWEEN(1,5),1)) ->  | BZ9: =MIN($H9,IF(BV9="N",0,SUM(BX9,'Other cost'!$B$16,VLOOKUP(BY9,'Other cost'!$A$9:$B$13,2,FALSE),IF(BW9>=30,HLOOKUP(30,'Salary in Industry'!$N$1:$AQ$1001,$B9+1,FALSE),HLOOKUP(BW9,'Salary in Industry'!$N$1:$AQ$1001,$B9+1,FALSE)),IF(ISNA(VLOOKUP(BQ9,'Ransom Statistics'!$A$1:$D$18,4,FALSE)),'Ransom Statistics'!$D$18,VLOOKUP(BQ9,'Ransom Statistics'!$A$1:$D$18,4,FALSE))))) -> 0 | CA9: =INDEX([1]Variables!$A$2:$A$103,INT((RAND()*100)+1),1) -> CAR | CB9: =INDEX(Variables!$E$3:$E$5,RANDBETWEEN(1,3),1) -> Long (more than one month) | CC9: =INDEX([1]Variables!$G$3:$G$5,RANDBETWEEN(1,3),1) -> very frequent ( more than 12 times a year) | CD9: 20 | CE9: =IF(ISNA(VLOOKUP(CA9,Variables!$K$1:$K$36,1,FALSE)),SUM('Other cost'!$B$2,'Salary in Industry'!$AR8,IF(ISNA(VLOOKUP(Simulation!CA9,'Ransom Statistics'!$A$1:$D$18,4,FALSE)),'Ransom Statistics'!$D$18,VLOOKUP(Simulation!CA9,'Ransom Statistics'!$A$1:$D$18,4,FALSE)))*IF(ISNA(VLOOKUP(CA9,'Industry Type P'!$A$2:$S$103,2,FALSE)),'Kidnapping Statistics'!$K$3,VLOOKUP(CA9,'Industry Type P'!$A$1:$S$102,MATCH($C9,'Industry Type P'!$A$1:$S$1,0),FALSE))*VLOOKUP(CC9,'travel frequence'!$A$1:$D$4,MATCH(CB9,'travel frequence'!$A$1:$D$1,0),FALSE)*CD9*IF(ISNA(VLOOKUP(CD9,'travel frequence'!$A$7:$B$23,2,FALSE)),'travel frequence'!$B$23,VLOOKUP(CD9,'travel frequence'!$A$7:$B$23,2,FALSE)),0) -> 73509.20434 | CF9: =IF(VLOOKUP(CA9,'Industry Type P'!$A$1:$S$102,MATCH($C9,'Industry Type P'!$A$1:$S$1,0),FALSE)>RAND(),"Y","N") -> N | CG9: 0 | CH9: 0 | CI9: =IF(CF9="N"," ",INDEX('Other cost'!$A$9:$A$13,RANDBETWEEN(1,5),1)) ->  | CJ9: =MIN($H9,IF(CF9="N",0,SUM(CH9,'Other cost'!$B$16,VLOOKUP(CI9,'Other cost'!$A$9:$B$13,2,FALSE),IF(CG9>=30,HLOOKUP(30,'Salary in Industry'!$N$1:$AQ$1001,$B9+1,FALSE),HLOOKUP(CG9,'Salary in Industry'!$N$1:$AQ$1001,$B9+1,FALSE)),IF(ISNA(VLOOKUP(CA9,'Ransom Statistics'!$A$1:$D$18,4,FALSE)),'Ransom Statistics'!$D$18,VLOOKUP(CA9,'Ransom Statistics'!$A$1:$D$18,4,FALSE))))) -> 0 | CK9: =INDEX([1]Variables!$A$2:$A$103,INT((RAND()*100)+1),1) -> Lebanon | CL9: =INDEX(Variables!$E$3:$E$5,RANDBETWEEN(1,3),1) -> Long (more than one month) | CM9: =INDEX([1]Variables!$G$3:$G$5,RANDBETWEEN(1,3),1) -> very frequent ( more than 12 times a year) | CN9: 3 | CO9: =IF(ISNA(VLOOKUP(CK9,Variables!$K$1:$K$36,1,FALSE)),SUM('Other cost'!$B$2,'Salary in Industry'!$AR8,IF(ISNA(VLOOKUP(Simulation!CK9,'Ransom Statistics'!$A$1:$D$18,4,FALSE)),'Ransom Statistics'!$D$18,VLOOKUP(Simulation!CK9,'Ransom Statistics'!$A$1:$D$18,4,FALSE)))*IF(ISNA(VLOOKUP(CK9,'Industry Type P'!$A$2:$S$103,2,FALSE)),'Kidnapping Statistics'!$K$3,VLOOKUP(CK9,'Industry Type P'!$A$1:$S$102,MATCH($C9,'Industry Type P'!$A$1:$S$1,0),FALSE))*VLOOKUP(CM9,'travel frequence'!$A$1:$D$4,MATCH(CL9,'travel frequence'!$A$1:$D$1,0),FALSE)*CN9*IF(ISNA(VLOOKUP(CN9,'travel frequence'!$A$7:$B$23,2,FALSE)),'travel frequence'!$B$23,VLOOKUP(CN9,'travel frequence'!$A$7:$B$23,2,FALSE)),0) -> 0 | CP9: =IF(VLOOKUP(CK9,'Industry Type P'!$A$1:$S$102,MATCH($C9,'Industry Type P'!$A$1:$S$1,0),FALSE)>RAND(),"Y","N") -> N | CQ9: 0 | CR9: 0 | CS9: =IF(CP9="N"," ",INDEX('Other cost'!$A$9:$A$13,RANDBETWEEN(1,5),1)) ->  | CT9: =MIN($H9,IF(CP9="N",0,SUM(CR9,'Other cost'!$B$16,VLOOKUP(CS9,'Other cost'!$A$9:$B$13,2,FALSE),IF(CQ9>=30,HLOOKUP(30,'Salary in Industry'!$N$1:$AQ$1001,$B9+1,FALSE),HLOOKUP(CQ9,'Salary in Industry'!$N$1:$AQ$1001,$B9+1,FALSE)),IF(ISNA(VLOOKUP(CK9,'Ransom Statistics'!$A$1:$D$18,4,FALSE)),'Ransom Statistics'!$D$18,VLOOKUP(CK9,'Ransom Statistics'!$A$1:$D$18,4,FALSE))))) -> 0 | CU9: =INDEX([1]Variables!$A$2:$A$103,INT((RAND()*100)+1),1) -> Sri Lanka | CV9: =INDEX(Variables!$E$3:$E$5,RANDBETWEEN(1,3),1) -> Medium (1 week to 1month) | CW9: =INDEX([1]Variables!$G$3:$G$5,RANDBETWEEN(1,3),1) -> infrequent (less than 3 times) | CX9: 15 | CY9: =IF(ISNA(VLOOKUP(CU9,Variables!$K$1:$K$36,1,FALSE)),SUM('Other cost'!$B$2,'Salary in Industry'!$AR8,IF(ISNA(VLOOKUP(Simulation!CU9,'Ransom Statistics'!$A$1:$D$18,4,FALSE)),'Ransom Statistics'!$D$18,VLOOKUP(Simulation!CU9,'Ransom Statistics'!$A$1:$D$18,4,FALSE)))*IF(ISNA(VLOOKUP(CU9,'Industry Type P'!$A$2:$S$103,2,FALSE)),'Kidnapping Statistics'!$K$3,VLOOKUP(CU9,'Industry Type P'!$A$1:$S$102,MATCH($C9,'Industry Type P'!$A$1:$S$1,0),FALSE))*VLOOKUP(CW9,'travel frequence'!$A$1:$D$4,MATCH(CV9,'travel frequence'!$A$1:$D$1,0),FALSE)*CX9*IF(ISNA(VLOOKUP(CX9,'travel frequence'!$A$7:$B$23,2,FALSE)),'travel frequence'!$B$23,VLOOKUP(CX9,'travel frequence'!$A$7:$B$23,2,FALSE)),0) -> 328.8031916 | CZ9: =IF(VLOOKUP(CU9,'Industry Type P'!$A$1:$S$102,MATCH($C9,'Industry Type P'!$A$1:$S$1,0),FALSE)>RAND(),"Y","N") -> N | DA9: 0 | DB9: 0 | DC9: =IF(CZ9="N"," ",INDEX('Other cost'!$A$9:$A$13,RANDBETWEEN(1,5),1)) ->  | DD9: =MIN($H9,IF(CZ9="N",0,SUM(DB9,'Other cost'!$B$16,VLOOKUP(DC9,'Other cost'!$A$9:$B$13,2,FALSE),IF(DA9>=30,HLOOKUP(30,'Salary in Industry'!$N$1:$AQ$1001,$B9+1,FALSE),HLOOKUP(DA9,'Salary in Industry'!$N$1:$AQ$1001,$B9+1,FALSE)),IF(ISNA(VLOOKUP(CU9,'Ransom Statistics'!$A$1:$D$18,4,FALSE)),'Ransom Statistics'!$D$18,VLOOKUP(CU9,'Ransom Statistics'!$A$1:$D$18,4,FALSE))))) -> 0 | DE9: 0 | DF9: =((IF(A9=0,0,IF(A9=1,M9,IF(A9=2,M9+W9,IF(A9=3,M9+W9+AG9,IF(A9=4,M9+W9+AG9+AQ9,IF(A9=5,M9+W9+AG9+AQ9+BA9,IF(A9=6,M9+W9+AG9+AQ9+BA9+BK9,IF(A9=7,M9+W9+AG9+AQ9+BA9+BK9+BU9,IF(A9=8,M9+W9+AG9+AQ9+BA9+BK9+BU9+CE9,IF(A9=9,M9+W9+AG9+AQ9+BA9+BK9+BU9+CE9+CO9,IF(A9=10,M9+W9+AG9+AQ9+BA9+BK9+BU9+CE9+CO9+CY9))))))))))))/(1+Variables!$G$12))*(1+Variables!$F$19) -> 6.826928301 | DJ9: Profit | DK9: =DK6-DK7-DK8 -> 322.7544132
A10: 5 | B10: 8 | C10: =INDEX([1]Variables!$C$2:$C$19,INT((RAND()*10)+1),1) -> Agriculture, Forestry, Fishing, and Hunting | D10: 38 | E10: 155 | F10: 6946 | G10: 48871660 | H10: =Variables!$H$18 -> 1000000 | I10: =INDEX([1]Variables!$A$2:$A$103,INT((RAND()*100)+1),1) -> Eritrea | J10: =INDEX(Variables!$E$3:$E$5,RANDBETWEEN(1,3),1) -> Short (less a week) | K10: =INDEX([1]Variables!$G$3:$G$5,RANDBETWEEN(1,3),1) -> frequent (3 times to 12 times) | L10: 19 | M10: =IF(ISNA(VLOOKUP(I10,Variables!$K$1:$K$36,1,FALSE)),SUM('Other cost'!$B$2,'Salary in Industry'!$AR9,IF(ISNA(VLOOKUP(Simulation!I10,'Ransom Statistics'!$A$1:$D$18,4,FALSE)),'Ransom Statistics'!$D$18,VLOOKUP(Simulation!I10,'Ransom Statistics'!$A$1:$D$18,4,FALSE)))*IF(ISNA(VLOOKUP(I10,'Industry Type P'!$A$2:$S$103,2,FALSE)),'Kidnapping Statistics'!$K$3,VLOOKUP(I10,'Industry Type P'!$A$1:$S$102,MATCH($C10,'Industry Type P'!$A$1:$S$1,0),FALSE))*VLOOKUP(K10,'travel frequence'!$A$1:$D$4,MATCH(J10,'travel frequence'!$A$1:$D$1,0),FALSE)*L10*IF(ISNA(VLOOKUP(L10,'travel frequence'!$A$7:$B$23,2,FALSE)),'travel frequence'!$B$23,VLOOKUP(L10,'travel frequence'!$A$7:$B$23,2,FALSE)),0) -> 0 | N10: =IF(VLOOKUP(I10,'Industry Type P'!$A$1:$S$102,MATCH($C10,'Industry Type P'!$A$1:$S$1,0),FALSE)>RAND(),"Y","N") -> N | O10: 0 | P10: 0 | Q10: =IF(N10="N"," ",INDEX('Other cost'!$A$9:$A$13,RANDBETWEEN(1,5),1)) ->  | R10: =MIN($H10,IF(N10="N",0,SUM(P10,'Other cost'!$B$16,VLOOKUP(Q10,'Other cost'!$A$9:$B$13,2,FALSE),IF(O10>=30,HLOOKUP(30,'Salary in Industry'!$N$1:$AQ$1001,$B10+1,FALSE),HLOOKUP(O10,'Salary in Industry'!$N$1:$AQ$1001,$B10+1,FALSE)),IF(ISNA(VLOOKUP(I10,'Ransom Statistics'!$A$1:$D$18,4,FALSE)),'Ransom Statistics'!$D$18,VLOOKUP(I10,'Ransom Statistics'!$A$1:$D$18,4,FALSE))))) -> 0 | S10: =INDEX([1]Variables!$A$2:$A$103,INT((RAND()*100)+1),1) -> Vietnam | T10: =INDEX(Variables!$E$3:$E$5,RANDBETWEEN(1,3),1) -> Short (less a week) | U10: =INDEX([1]Variables!$G$3:$G$5,RANDBETWEEN(1,3),1) -> very frequent ( more than 12 times a year) | V10: 19 | W10: =IF(ISNA(VLOOKUP(S10,Variables!$K$1:$K$36,1,FALSE)),SUM('Other cost'!$B$2,'Salary in Industry'!$AR9,IF(ISNA(VLOOKUP(Simulation!S10,'Ransom Statistics'!$A$1:$D$18,4,FALSE)),'Ransom Statistics'!$D$18,VLOOKUP(Simulation!S10,'Ransom Statistics'!$A$1:$D$18,4,FALSE)))*IF(ISNA(VLOOKUP(S10,'Industry Type P'!$A$2:$S$103,2,FALSE)),'Kidnapping Statistics'!$K$3,VLOOKUP(S10,'Industry Type P'!$A$1:$S$102,MATCH($C10,'Industry Type P'!$A$1:$S$1,0),FALSE))*VLOOKUP(U10,'travel frequence'!$A$1:$D$4,MATCH(T10,'travel frequence'!$A$1:$D$1,0),FALSE)*V10*IF(ISNA(VLOOKUP(V10,'travel frequence'!$A$7:$B$23,2,FALSE)),'travel frequence'!$B$23,VLOOKUP(V10,'travel frequence'!$A$7:$B$23,2,FALSE)),0) -> 2921.798374 | X10: =IF(VLOOKUP(S10,'Industry Type P'!$A$1:$S$102,MATCH($C10,'Industry Type P'!$A$1:$S$1,0),FALSE)>RAND(),"Y","N") -> N | Y10: 0 | Z10: 0 | AA10: =IF(X10="N"," ",INDEX('Other cost'!$A$9:$A$13,RANDBETWEEN(1,5),1)) ->  | AB10: =MIN($H10,IF(X10="N",0,SUM(Z10,'Other cost'!$B$16,VLOOKUP(AA10,'Other cost'!$A$9:$B$13,2,FALSE),IF(Y10>=30,HLOOKUP(30,'Salary in Industry'!$N$1:$AQ$1001,$B10+1,FALSE),HLOOKUP(Y10,'Salary in Industry'!$N$1:$AQ$1001,$B10+1,FALSE)),IF(ISNA(VLOOKUP(S10,'Ransom Statistics'!$A$1:$D$18,4,FALSE)),'Ransom Statistics'!$D$18,VLOOKUP(S10,'Ransom Statistics'!$A$1:$D$18,4,FALSE))))) -> 0 | AC10: =INDEX([1]Variables!$A$2:$A$103,INT((RAND()*100)+1),1) -> Honduras | AD10: =INDEX(Variables!$E$3:$E$5,RANDBETWEEN(1,3),1) -> Long (more than one month) | AE10: =INDEX([1]Variables!$G$3:$G$5,RANDBETWEEN(1,3),1) -> very frequent ( more than 12 times a year) | AF10: 18 | AG10: =IF(ISNA(VLOOKUP(AC10,Variables!$K$1:$K$36,1,FALSE)),SUM('Other cost'!$B$2,'Salary in Industry'!$AR9,IF(ISNA(VLOOKUP(Simulation!AC10,'Ransom Statistics'!$A$1:$D$18,4,FALSE)),'Ransom Statistics'!$D$18,VLOOKUP(Simulation!AC10,'Ransom Statistics'!$A$1:$D$18,4,FALSE)))*IF(ISNA(VLOOKUP(AC10,'Industry Type P'!$A$2:$S$103,2,FALSE)),'Kidnapping Statistics'!$K$3,VLOOKUP(AC10,'Industry Type P'!$A$1:$S$102,MATCH($C10,'Industry Type P'!$A$1:$S$1,0),FALSE))*VLOOKUP(AE10,'travel frequence'!$A$1:$D$4,MATCH(AD10,'travel frequence'!$A$1:$D$1,0),FALSE)*AF10*IF(ISNA(VLOOKUP(AF10,'travel frequence'!$A$7:$B$23,2,FALSE)),'travel frequence'!$B$23,VLOOKUP(AF10,'travel frequence'!$A$7:$B$23,2,FALSE)),0) -> 0 | AH10: =IF(VLOOKUP(AC10,'Industry Type P'!$A$1:$S$102,MATCH($C10,'Industry Type P'!$A$1:$S$1,0),FALSE)>RAND(),"Y","N") -> N | AI10: 0 | AJ10: 0 | AK10: =IF(AH10="N"," ",INDEX('Other cost'!$A$9:$A$13,RANDBETWEEN(1,5),1)) ->  | AL10: =MIN($H10,IF(AH10="N",0,SUM(AJ10,'Other cost'!$B$16,VLOOKUP(AK10,'Other cost'!$A$9:$B$13,2,FALSE),IF(AI10>=30,HLOOKUP(30,'Salary in Industry'!$N$1:$AQ$1001,$B10+1,FALSE),HLOOKUP(AI10,'Salary in Industry'!$N$1:$AQ$1001,$B10+1,FALSE)),IF(ISNA(VLOOKUP(AC10,'Ransom Statistics'!$A$1:$D$18,4,FALSE)),'Ransom Statistics'!$D$18,VLOOKUP(AC10,'Ransom Statistics'!$A$1:$D$18,4,FALSE))))) -> 0 | AM10: =INDEX([1]Variables!$A$2:$A$103,INT((RAND()*100)+1),1) -> Congo | AN10: =INDEX(Variables!$E$3:$E$5,RANDBETWEEN(1,3),1) -> Long (more than one month) | AO10: =INDEX([1]Variables!$G$3:$G$5,RANDBETWEEN(1,3),1) -> very frequent ( more than 12 times a year) | AP10: 7 | AQ10: =IF(ISNA(VLOOKUP(AM10,Variables!$K$1:$K$36,1,FALSE)),SUM('Other cost'!$B$2,'Salary in Industry'!$AR9,IF(ISNA(VLOOKUP(Simulation!AM10,'Ransom Statistics'!$A$1:$D$18,4,FALSE)),'Ransom Statistics'!$D$18,VLOOKUP(Simulation!AM10,'Ransom Statistics'!$A$1:$D$18,4,FALSE)))*IF(ISNA(VLOOKUP(AM10,'Industry Type P'!$A$2:$S$103,2,FALSE)),'Kidnapping Statistics'!$K$3,VLOOKUP(AM10,'Industry Type P'!$A$1:$S$102,MATCH($C10,'Industry Type P'!$A$1:$S$1,0),FALSE))*VLOOKUP(AO10,'travel frequence'!$A$1:$D$4,MATCH(AN10,'travel frequence'!$A$1:$D$1,0),FALSE)*AP10*IF(ISNA(VLOOKUP(AP10,'travel frequence'!$A$7:$B$23,2,FALSE)),'travel frequence'!$B$23,VLOOKUP(AP10,'travel frequence'!$A$7:$B$23,2,FALSE)),0) -> 5.26265438 | AR10: =IF(VLOOKUP(AM10,'Industry Type P'!$A$1:$S$102,MATCH($C10,'Industry Type P'!$A$1:$S$1,0),FALSE)>RAND(),"Y","N") -> N | AS10: 0 | AT10: 0 | AU10: =IF(AR10="N"," ",INDEX('Other cost'!$A$9:$A$13,RANDBETWEEN(1,5),1)) ->  | AV10: =MIN($H10,IF(AR10="N",0,SUM(AT10,'Other cost'!$B$16,VLOOKUP(AU10,'Other cost'!$A$9:$B$13,2,FALSE),IF(AS10>=30,HLOOKUP(30,'Salary in Industry'!$N$1:$AQ$1001,$B10+1,FALSE),HLOOKUP(AS10,'Salary in Industry'!$N$1:$AQ$1001,$B10+1,FALSE)),IF(ISNA(VLOOKUP(AM10,'Ransom Statistics'!$A$1:$D$18,4,FALSE)),'Ransom Statistics'!$D$18,VLOOKUP(AM10,'Ransom Statistics'!$A$1:$D$18,4,FALSE))))) -> 0 | AW10: =INDEX([1]Variables!$A$2:$A$103,INT((RAND()*100)+1),1) -> Bolivia | AX10: =INDEX(Variables!$E$3:$E$5,RANDBETWEEN(1,3),1) -> Long (more than one month) | AY10: =INDEX([1]Variables!$G$3:$G$5,RANDBETWEEN(1,3),1) -> infrequent (less than 3 times) | AZ10: 2 | BA10: =IF(ISNA(VLOOKUP(AW10,Variables!$K$1:$K$36,1,FALSE)),SUM('Other cost'!$B$2,'Salary in Industry'!$AR9,IF(ISNA(VLOOKUP(Simulation!AW10,'Ransom Statistics'!$A$1:$D$18,4,FALSE)),'Ransom Statistics'!$D$18,VLOOKUP(Simulation!AW10,'Ransom Statistics'!$A$1:$D$18,4,FALSE)))*IF(ISNA(VLOOKUP(AW10,'Industry Type P'!$A$2:$S$103,2,FALSE)),'Kidnapping Statistics'!$K$3,VLOOKUP(AW10,'Industry Type P'!$A$1:$S$102,MATCH($C10,'Industry Type P'!$A$1:$S$1,0),FALSE))*VLOOKUP(AY10,'travel frequence'!$A$1:$D$4,MATCH(AX10,'travel frequence'!$A$1:$D$1,0),FALSE)*AZ10*IF(ISNA(VLOOKUP(AZ10,'travel frequence'!$A$7:$B$23,2,FALSE)),'travel frequence'!$B$23,VLOOKUP(AZ10,'travel frequence'!$A$7:$B$23,2,FALSE)),0) -> 8.150279673 | BB10: =IF(VLOOKUP(AW10,'Industry Type P'!$A$1:$S$102,MATCH($C10,'Industry Type P'!$A$1:$S$1,0),FALSE)>RAND(),"Y","N") -> N | BC10: 0 | BD10: 0 | BE10: =IF(BB10="N"," ",INDEX('Other cost'!$A$9:$A$13,RANDBETWEEN(1,5),1)) ->  | BF10: =MIN($H10,IF(BB10="N",0,SUM(BD10,'Other cost'!$B$16,VLOOKUP(BE10,'Other cost'!$A$9:$B$13,2,FALSE),IF(BC10>=30,HLOOKUP(30,'Salary in Industry'!$N$1:$AQ$1001,$B10+1,FALSE),HLOOKUP(BC10,'Salary in Industry'!$N$1:$AQ$1001,$B10+1,FALSE)),IF(ISNA(VLOOKUP(AW10,'Ransom Statistics'!$A$1:$D$18,4,FALSE)),'Ransom Statistics'!$D$18,VLOOKUP(AW10,'Ransom Statistics'!$A$1:$D$18,4,FALSE))))) -> 0 | BG10: =INDEX([1]Variables!$A$2:$A$103,INT((RAND()*100)+1),1) -> Nbhutan | BH10: =INDEX(Variables!$E$3:$E$5,RANDBETWEEN(1,3),1) -> Short (less a week) | BI10: =INDEX([1]Variables!$G$3:$G$5,RANDBETWEEN(1,3),1) -> frequent (3 times to 12 times) | BJ10: 17 | BK10: =IF(ISNA(VLOOKUP(BG10,Variables!$K$1:$K$36,1,FALSE)),SUM('Other cost'!$B$2,'Salary in Industry'!$AR9,IF(ISNA(VLOOKUP(Simulation!BG10,'Ransom Statistics'!$A$1:$D$18,4,FALSE)),'Ransom Statistics'!$D$18,VLOOKUP(Simulation!BG10,'Ransom Statistics'!$A$1:$D$18,4,FALSE)))*IF(ISNA(VLOOKUP(BG10,'Industry Type P'!$A$2:$S$103,2,FALSE)),'Kidnapping Statistics'!$K$3,VLOOKUP(BG10,'Industry Type P'!$A$1:$S$102,MATCH($C10,'Industry Type P'!$A$1:$S$1,0),FALSE))*VLOOKUP(BI10,'travel frequence'!$A$1:$D$4,MATCH(BH10,'travel frequence'!$A$1:$D$1,0),FALSE)*BJ10*IF(ISNA(VLOOKUP(BJ10,'travel frequence'!$A$7:$B$23,2,FALSE)),'travel frequence'!$B$23,VLOOKUP(BJ10,'travel frequence'!$A$7:$B$23,2,FALSE)),0) -> 8.318038432 | BL10: =IF(VLOOKUP(BG10,'Industry Type P'!$A$1:$S$102,MATCH($C10,'Industry Type P'!$A$1:$S$1,0),FALSE)>RAND(),"Y","N") -> N | BM10: 0 | BN10: 0 | BO10: =IF(BL10="N"," ",INDEX('Other cost'!$A$9:$A$13,RANDBETWEEN(1,5),1)) ->  | BP10: =MIN($H10,IF(BL10="N",0,SUM(BN10,'Other cost'!$B$16,VLOOKUP(BO10,'Other cost'!$A$9:$B$13,2,FALSE),IF(BM10>=30,HLOOKUP(30,'Salary in Industry'!$N$1:$AQ$1001,$B10+1,FALSE),HLOOKUP(BM10,'Salary in Industry'!$N$1:$AQ$1001,$B10+1,FALSE)),IF(ISNA(VLOOKUP(BG10,'Ransom Statistics'!$A$1:$D$18,4,FALSE)),'Ransom Statistics'!$D$18,VLOOKUP(BG10,'Ransom Statistics'!$A$1:$D$18,4,FALSE))))) -> 0 | BQ10: =INDEX([1]Variables!$A$2:$A$103,INT((RAND()*100)+1),1) -> Bolivia | BR10: =INDEX(Variables!$E$3:$E$5,RANDBETWEEN(1,3),1) -> Long (more than one month) | BS10: =INDEX([1]Variables!$G$3:$G$5,RANDBETWEEN(1,3),1) -> very frequent ( more than 12 times a year) | BT10: 16 | BU10: =IF(ISNA(VLOOKUP(BQ10,Variables!$K$1:$K$36,1,FALSE)),SUM('Other cost'!$B$2,'Salary in Industry'!$AR9,IF(ISNA(VLOOKUP(Simulation!BQ10,'Ransom Statistics'!$A$1:$D$18,4,FALSE)),'Ransom Statistics'!$D$18,VLOOKUP(Simulation!BQ10,'Ransom Statistics'!$A$1:$D$18,4,FALSE)))*IF(ISNA(VLOOKUP(BQ10,'Industry Type P'!$A$2:$S$103,2,FALSE)),'Kidnapping Statistics'!$K$3,VLOOKUP(BQ10,'Industry Type P'!$A$1:$S$102,MATCH($C10,'Industry Type P'!$A$1:$S$1,0),FALSE))*VLOOKUP(BS10,'travel frequence'!$A$1:$D$4,MATCH(BR10,'travel frequence'!$A$1:$D$1,0),FALSE)*BT10*IF(ISNA(VLOOKUP(BT10,'travel frequence'!$A$7:$B$23,2,FALSE)),'travel frequence'!$B$23,VLOOKUP(BT10,'travel frequence'!$A$7:$B$23,2,FALSE)),0) -> 47.81497408 | BV10: =IF(VLOOKUP(BQ10,'Industry Type P'!$A$1:$S$102,MATCH($C10,'Industry Type P'!$A$1:$S$1,0),FALSE)>RAND(),"Y","N") -> N | BW10: 0 | BX10: 0 | BY10: =IF(BV10="N"," ",INDEX('Other cost'!$A$9:$A$13,RANDBETWEEN(1,5),1)) ->  | BZ10: =MIN($H10,IF(BV10="N",0,SUM(BX10,'Other cost'!$B$16,VLOOKUP(BY10,'Other cost'!$A$9:$B$13,2,FALSE),IF(BW10>=30,HLOOKUP(30,'Salary in Industry'!$N$1:$AQ$1001,$B10+1,FALSE),HLOOKUP(BW10,'Salary in Industry'!$N$1:$AQ$1001,$B10+1,FALSE)),IF(ISNA(VLOOKUP(BQ10,'Ransom Statistics'!$A$1:$D$18,4,FALSE)),'Ransom Statistics'!$D$18,VLOOKUP(BQ10,'Ransom Statistics'!$A$1:$D$18,4,FALSE))))) -> 0 | CA10: =INDEX([1]Variables!$A$2:$A$103,INT((RAND()*100)+1),1) -> Burkina | CB10: =INDEX(Variables!$E$3:$E$5,RANDBETWEEN(1,3),1) -> Long (more than one month) | CC10: =INDEX([1]Variables!$G$3:$G$5,RANDBETWEEN(1,3),1) -> frequent (3 times to 12 times) | CD10: 1 | CE10: =IF(ISNA(VLOOKUP(CA10,Variables!$K$1:$K$36,1,FALSE)),SUM('Other cost'!$B$2,'Salary in Industry'!$AR9,IF(ISNA(VLOOKUP(Simulation!CA10,'Ransom Statistics'!$A$1:$D$18,4,FALSE)),'Ransom Statistics'!$D$18,VLOOKUP(Simulation!CA10,'Ransom Statistics'!$A$1:$D$18,4,FALSE)))*IF(ISNA(VLOOKUP(CA10,'Industry Type P'!$A$2:$S$103,2,FALSE)),'Kidnapping Statistics'!$K$3,VLOOKUP(CA10,'Industry Type P'!$A$1:$S$102,MATCH($C10,'Industry Type P'!$A$1:$S$1,0),FALSE))*VLOOKUP(CC10,'travel frequence'!$A$1:$D$4,MATCH(CB10,'travel frequence'!$A$1:$D$1,0),FALSE)*CD10*IF(ISNA(VLOOKUP(CD10,'travel frequence'!$A$7:$B$23,2,FALSE)),'travel frequence'!$B$23,VLOOKUP(CD10,'travel frequence'!$A$7:$B$23,2,FALSE)),0) -> 0.8970433603 | CF10: =IF(VLOOKUP(CA10,'Industry Type P'!$A$1:$S$102,MATCH($C10,'Industry Type P'!$A$1:$S$1,0),FALSE)>RAND(),"Y","N") -> N | CG10: 0 | CH10: 0 | CI10: =IF(CF10="N"," ",INDEX('Other cost'!$A$9:$A$13,RANDBETWEEN(1,5),1)) ->  | CJ10: =MIN($H10,IF(CF10="N",0,SUM(CH10,'Other cost'!$B$16,VLOOKUP(CI10,'Other cost'!$A$9:$B$13,2,FALSE),IF(CG10>=30,HLOOKUP(30,'Salary in Industry'!$N$1:$AQ$1001,$B10+1,FALSE),HLOOKUP(CG10,'Salary in Industry'!$N$1:$AQ$1001,$B10+1,FALSE)),IF(ISNA(VLOOKUP(CA10,'Ransom Statistics'!$A$1:$D$18,4,FALSE)),'Ransom Statistics'!$D$18,VLOOKUP(CA10,'Ransom Statistics'!$A$1:$D$18,4,FALSE))))) -> 0 | CK10: =INDEX([1]Variables!$A$2:$A$103,INT((RAND()*100)+1),1) -> Ingushetia | CL10: =INDEX(Variables!$E$3:$E$5,RANDBETWEEN(1,3),1) -> Medium (1 week to 1month) | CM10: =INDEX([1]Variables!$G$3:$G$5,RANDBETWEEN(1,3),1) -> frequent (3 times to 12 times) | CN10: 19 | CO10: =IF(ISNA(VLOOKUP(CK10,Variables!$K$1:$K$36,1,FALSE)),SUM('Other cost'!$B$2,'Salary in Industry'!$AR9,IF(ISNA(VLOOKUP(Simulation!CK10,'Ransom Statistics'!$A$1:$D$18,4,FALSE)),'Ransom Statistics'!$D$18,VLOOKUP(Simulation!CK10,'Ransom Statistics'!$A$1:$D$18,4,FALSE)))*IF(ISNA(VLOOKUP(CK10,'Industry Type P'!$A$2:$S$103,2,FALSE)),'Kidnapping Statistics'!$K$3,VLOOKUP(CK10,'Industry Type P'!$A$1:$S$102,MATCH($C10,'Industry Type P'!$A$1:$S$1,0),FALSE))*VLOOKUP(CM10,'travel frequence'!$A$1:$D$4,MATCH(CL10,'travel frequence'!$A$1:$D$1,0),FALSE)*CN10*IF(ISNA(VLOOKUP(CN10,'travel frequence'!$A$7:$B$23,2,FALSE)),'travel frequence'!$B$23,VLOOKUP(CN10,'travel frequence'!$A$7:$B$23,2,FALSE)),0) -> 3904.585099 | CP10: =IF(VLOOKUP(CK10,'Industry Type P'!$A$1:$S$102,MATCH($C10,'Industry Type P'!$A$1:$S$1,0),FALSE)>RAND(),"Y","N") -> N | CQ10: 0 | CR10: 0 | CS10: =IF(CP10="N"," ",INDEX('Other cost'!$A$9:$A$13,RANDBETWEEN(1,5),1)) ->  | CT10: =MIN($H10,IF(CP10="N",0,SUM(CR10,'Other cost'!$B$16,VLOOKUP(CS10,'Other cost'!$A$9:$B$13,2,FALSE),IF(CQ10>=30,HLOOKUP(30,'Salary in Industry'!$N$1:$AQ$1001,$B10+1,FALSE),HLOOKUP(CQ10,'Salary in Industry'!$N$1:$AQ$1001,$B10+1,FALSE)),IF(ISNA(VLOOKUP(CK10,'Ransom Statistics'!$A$1:$D$18,4,FALSE)),'Ransom Statistics'!$D$18,VLOOKUP(CK10,'Ransom Statistics'!$A$1:$D$18,4,FALSE))))) -> 0 | CU10: =INDEX([1]Variables!$A$2:$A$103,INT((RAND()*100)+1),1) -> Poland | CV10: =INDEX(Variables!$E$3:$E$5,RANDBETWEEN(1,3),1) -> Long (more than one month) | CW10: =INDEX([1]Variables!$G$3:$G$5,RANDBETWEEN(1,3),1) -> frequent (3 times to 12 times) | CX10: 17 | CY10: =IF(ISNA(VLOOKUP(CU10,Variables!$K$1:$K$36,1,FALSE)),SUM('Other cost'!$B$2,'Salary in Industry'!$AR9,IF(ISNA(VLOOKUP(Simulation!CU10,'Ransom Statistics'!$A$1:$D$18,4,FALSE)),'Ransom Statistics'!$D$18,VLOOKUP(Simulation!CU10,'Ransom Statistics'!$A$1:$D$18,4,FALSE)))*IF(ISNA(VLOOKUP(CU10,'Industry Type P'!$A$2:$S$103,2,FALSE)),'Kidnapping Statistics'!$K$3,VLOOKUP(CU10,'Industry Type P'!$A$1:$S$102,MATCH($C10,'Industry Type P'!$A$1:$S$1,0),FALSE))*VLOOKUP(CW10,'travel frequence'!$A$1:$D$4,MATCH(CV10,'travel frequence'!$A$1:$D$1,0),FALSE)*CX10*IF(ISNA(VLOOKUP(CX10,'travel frequence'!$A$7:$B$23,2,FALSE)),'travel frequence'!$B$23,VLOOKUP(CX10,'travel frequence'!$A$7:$B$23,2,FALSE)),0) -> 5.489905365 | CZ10: =IF(VLOOKUP(CU10,'Industry Type P'!$A$1:$S$102,MATCH($C10,'Industry Type P'!$A$1:$S$1,0),FALSE)>RAND(),"Y","N") -> N | DA10: 0 | DB10: 0 | DC10: =IF(CZ10="N"," ",INDEX('Other cost'!$A$9:$A$13,RANDBETWEEN(1,5),1)) ->  | DD10: =MIN($H10,IF(CZ10="N",0,SUM(DB10,'Other cost'!$B$16,VLOOKUP(DC10,'Other cost'!$A$9:$B$13,2,FALSE),IF(DA10>=30,HLOOKUP(30,'Salary in Industry'!$N$1:$AQ$1001,$B10+1,FALSE),HLOOKUP(DA10,'Salary in Industry'!$N$1:$AQ$1001,$B10+1,FALSE)),IF(ISNA(VLOOKUP(CU10,'Ransom Statistics'!$A$1:$D$18,4,FALSE)),'Ransom Statistics'!$D$18,VLOOKUP(CU10,'Ransom Statistics'!$A$1:$D$18,4,FALSE))))) -> 0 | DE10: 0 | DF10: =((IF(A10=0,0,IF(A10=1,M10,IF(A10=2,M10+W10,IF(A10=3,M10+W10+AG10,IF(A10=4,M10+W10+AG10+AQ10,IF(A10=5,M10+W10+AG10+AQ10+BA10,IF(A10=6,M10+W10+AG10+AQ10+BA10+BK10,IF(A10=7,M10+W10+AG10+AQ10+BA10+BK10+BU10,IF(A10=8,M10+W10+AG10+AQ10+BA10+BK10+BU10+CE10,IF(A10=9,M10+W10+AG10+AQ10+BA10+BK10+BU10+CE10+CO10,IF(A10=10,M10+W10+AG10+AQ10+BA10+BK10+BU10+CE10+CO10+CY10))))))))))))/(1+Variables!$G$12))*(1+Variables!$F$19) -> 3510.356082
A11: 1 | B11: 9 | C11: =INDEX([1]Variables!$C$2:$C$19,INT((RAND()*10)+1),1) -> Finance and Insurance | D11: 13 | E11: 455 | F11: 12960 | G11: 26726596 | H11: =Variables!$H$18 -> 1000000 | I11: =INDEX([1]Variables!$A$2:$A$103,INT((RAND()*100)+1),1) -> Poland | J11: =INDEX(Variables!$E$3:$E$5,RANDBETWEEN(1,3),1) -> Medium (1 week to 1month) | K11: =INDEX([1]Variables!$G$3:$G$5,RANDBETWEEN(1,3),1) -> frequent (3 times to 12 times) | L11: 7 | M11: =IF(ISNA(VLOOKUP(I11,Variables!$K$1:$K$36,1,FALSE)),SUM('Other cost'!$B$2,'Salary in Industry'!$AR10,IF(ISNA(VLOOKUP(Simulation!I11,'Ransom Statistics'!$A$1:$D$18,4,FALSE)),'Ransom Statistics'!$D$18,VLOOKUP(Simulation!I11,'Ransom Statistics'!$A$1:$D$18,4,FALSE)))*IF(ISNA(VLOOKUP(I11,'Industry Type P'!$A$2:$S$103,2,FALSE)),'Kidnapping Statistics'!$K$3,VLOOKUP(I11,'Industry Type P'!$A$1:$S$102,MATCH($C11,'Industry Type P'!$A$1:$S$1,0),FALSE))*VLOOKUP(K11,'travel frequence'!$A$1:$D$4,MATCH(J11,'travel frequence'!$A$1:$D$1,0),FALSE)*L11*IF(ISNA(VLOOKUP(L11,'travel frequence'!$A$7:$B$23,2,FALSE)),'travel frequence'!$B$23,VLOOKUP(L11,'travel frequence'!$A$7:$B$23,2,FALSE)),0) -> 2.877210931 | N11: =IF(VLOOKUP(I11,'Industry Type P'!$A$1:$S$102,MATCH($C11,'Industry Type P'!$A$1:$S$1,0),FALSE)>RAND(),"Y","N") -> N | O11: 0 | P11: 0 | Q11: =IF(N11="N"," ",INDEX('Other cost'!$A$9:$A$13,RANDBETWEEN(1,5),1)) ->  | R11: =MIN($H11,IF(N11="N",0,SUM(P11,'Other cost'!$B$16,VLOOKUP(Q11,'Other cost'!$A$9:$B$13,2,FALSE),IF(O11>=30,HLOOKUP(30,'Salary in Industry'!$N$1:$AQ$1001,$B11+1,FALSE),HLOOKUP(O11,'Salary in Industry'!$N$1:$AQ$1001,$B11+1,FALSE)),IF(ISNA(VLOOKUP(I11,'Ransom Statistics'!$A$1:$D$18,4,FALSE)),'Ransom Statistics'!$D$18,VLOOKUP(I11,'Ransom Statistics'!$A$1:$D$18,4,FALSE))))) -> 0 | S11: =INDEX([1]Variables!$A$2:$A$103,INT((RAND()*100)+1),1) -> Georgia | T11: =INDEX(Variables!$E$3:$E$5,RANDBETWEEN(1,3),1) -> Medium (1 week to 1month) | U11: =INDEX([1]Variables!$G$3:$G$5,RANDBETWEEN(1,3),1) -> frequent (3 times to 12 times) | V11: 8 | W11: =IF(ISNA(VLOOKUP(S11,Variables!$K$1:$K$36,1,FALSE)),SUM('Other cost'!$B$2,'Salary in Industry'!$AR10,IF(ISNA(VLOOKUP(Simulation!S11,'Ransom Statistics'!$A$1:$D$18,4,FALSE)),'Ransom Statistics'!$D$18,VLOOKUP(Simulation!S11,'Ransom Statistics'!$A$1:$D$18,4,FALSE)))*IF(ISNA(VLOOKUP(S11,'Industry Type P'!$A$2:$S$103,2,FALSE)),'Kidnapping Statistics'!$K$3,VLOOKUP(S11,'Industry Type P'!$A$1:$S$102,MATCH($C11,'Industry Type P'!$A$1:$S$1,0),FALSE))*VLOOKUP(U11,'travel frequence'!$A$1:$D$4,MATCH(T11,'travel frequence'!$A$1:$D$1,0),FALSE)*V11*IF(ISNA(VLOOKUP(V11,'travel frequence'!$A$7:$B$23,2,FALSE)),'travel frequence'!$B$23,VLOOKUP(V11,'travel frequence'!$A$7:$B$23,2,FALSE)),0) -> 108.9149404 | X11: =IF(VLOOKUP(S11,'Industry Type P'!$A$1:$S$102,MATCH($C11,'Industry Type P'!$A$1:$S$1,0),FALSE)>RAND(),"Y","N") -> N | Y11: 0 | Z11: 0 | AA11: =IF(X11="N"," ",INDEX('Other cost'!$A$9:$A$13,RANDBETWEEN(1,5),1)) ->  | AB11: =MIN($H11,IF(X11="N",0,SUM(Z11,'Other cost'!$B$16,VLOOKUP(AA11,'Other cost'!$A$9:$B$13,2,FALSE),IF(Y11>=30,HLOOKUP(30,'Salary in Industry'!$N$1:$AQ$1001,$B11+1,FALSE),HLOOKUP(Y11,'Salary in Industry'!$N$1:$AQ$1001,$B11+1,FALSE)),IF(ISNA(VLOOKUP(S11,'Ransom Statistics'!$A$1:$D$18,4,FALSE)),'Ransom Statistics'!$D$18,VLOOKUP(S11,'Ransom Statistics'!$A$1:$D$18,4,FALSE))))) -> 0 | AC11: =INDEX([1]Variables!$A$2:$A$103,INT((RAND()*100)+1),1) -> East Timor | AD11: =INDEX(Variables!$E$3:$E$5,RANDBETWEEN(1,3),1) -> Short (less a week) | AE11: =INDEX([1]Variables!$G$3:$G$5,RANDBETWEEN(1,3),1) -> frequent (3 times to 12 times) | AF11: 18 | AG11: =IF(ISNA(VLOOKUP(AC11,Variables!$K$1:$K$36,1,FALSE)),SUM('Other cost'!$B$2,'Salary in Industry'!$AR10,IF(ISNA(VLOOKUP(Simulation!AC11,'Ransom Statistics'!$A$1:$D$18,4,FALSE)),'Ransom Statistics'!$D$18,VLOOKUP(Simulation!AC11,'Ransom Statistics'!$A$1:$D$18,4,FALSE)))*IF(ISNA(VLOOKUP(AC11,'Industry Type P'!$A$2:$S$103,2,FALSE)),'Kidnapping Statistics'!$K$3,VLOOKUP(AC11,'Industry Type P'!$A$1:$S$102,MATCH($C11,'Industry Type P'!$A$1:$S$1,0),FALSE))*VLOOKUP(AE11,'travel frequence'!$A$1:$D$4,MATCH(AD11,'travel frequence'!$A$1:$D$1,0),FALSE)*AF11*IF(ISNA(VLOOKUP(AF11,'travel frequence'!$A$7:$B$23,2,FALSE)),'travel frequence'!$B$23,VLOOKUP(AF11,'travel frequence'!$A$7:$B$23,2,FALSE)),0) -> 8.807788564 | AH11: =IF(VLOOKUP(AC11,'Industry Type P'!$A$1:$S$102,MATCH($C11,'Industry Type P'!$A$1:$S$1,0),FALSE)>RAND(),"Y","N") -> N | AI11: 0 | AJ11: 0 | AK11: =IF(AH11="N"," ",INDEX('Other cost'!$A$9:$A$13,RANDBETWEEN(1,5),1)) ->  | AL11: =MIN($H11,IF(AH11="N",0,SUM(AJ11,'Other cost'!$B$16,VLOOKUP(AK11,'Other cost'!$A$9:$B$13,2,FALSE),IF(AI11>=30,HLOOKUP(30,'Salary in Industry'!$N$1:$AQ$1001,$B11+1,FALSE),HLOOKUP(AI11,'Salary in Industry'!$N$1:$AQ$1001,$B11+1,FALSE)),IF(ISNA(VLOOKUP(AC11,'Ransom Statistics'!$A$1:$D$18,4,FALSE)),'Ransom Statistics'!$D$18,VLOOKUP(AC11,'Ransom Statistics'!$A$1:$D$18,4,FALSE))))) -> 0 | AM11: =INDEX([1]Variables!$A$2:$A$103,INT((RAND()*100)+1),1) -> Ecuador | AN11: =INDEX(Variables!$E$3:$E$5,RANDBETWEEN(1,3),1) -> Medium (1 week to 1month) | AO11: =INDEX([1]Variables!$G$3:$G$5,RANDBETWEEN(1,3),1) -> very frequent ( more than 12 times a year) | AP11: 4 | AQ11: =IF(ISNA(VLOOKUP(AM11,Variables!$K$1:$K$36,1,FALSE)),SUM('Other cost'!$B$2,'Salary in Industry'!$AR10,IF(ISNA(VLOOKUP(Simulation!AM11,'Ransom Statistics'!$A$1:$D$18,4,FALSE)),'Ransom Statistics'!$D$18,VLOOKUP(Simulation!AM11,'Ransom Statistics'!$A$1:$D$18,4,FALSE)))*IF(ISNA(VLOOKUP(AM11,'Industry Type P'!$A$2:$S$103,2,FALSE)),'Kidnapping Statistics'!$K$3,VLOOKUP(AM11,'Industry Type P'!$A$1:$S$102,MATCH($C11,'Industry Type P'!$A$1:$S$1,0),FALSE))*VLOOKUP(AO11,'travel frequence'!$A$1:$D$4,MATCH(AN11,'travel frequence'!$A$1:$D$1,0),FALSE)*AP11*IF(ISNA(VLOOKUP(AP11,'travel frequence'!$A$7:$B$23,2,FALSE)),'travel frequence'!$B$23,VLOOKUP(AP11,'travel frequence'!$A$7:$B$23,2,FALSE)),0) -> 116.262809 | AR11: =IF(VLOOKUP(AM11,'Industry Type P'!$A$1:$S$102,MATCH($C11,'Industry Type P'!$A$1:$S$1,0),FALSE)>RAND(),"Y","N") -> N | AS11: 0 | AT11: 0 | AU11: =IF(AR11="N"," ",INDEX('Other cost'!$A$9:$A$13,RANDBETWEEN(1,5),1)) ->  | AV11: =MIN($H11,IF(AR11="N",0,SUM(AT11,'Other cost'!$B$16,VLOOKUP(AU11,'Other cost'!$A$9:$B$13,2,FALSE),IF(AS11>=30,HLOOKUP(30,'Salary in Industry'!$N$1:$AQ$1001,$B11+1,FALSE),HLOOKUP(AS11,'Salary in Industry'!$N$1:$AQ$1001,$B11+1,FALSE)),IF(ISNA(VLOOKUP(AM11,'Ransom Statistics'!$A$1:$D$18,4,FALSE)),'Ransom Statistics'!$D$18,VLOOKUP(AM11,'Ransom Statistics'!$A$1:$D$18,4,FALSE))))) -> 0 | AW11: =INDEX([1]Variables!$A$2:$A$103,INT((RAND()*100)+1),1) -> Cameroon | AX11: =INDEX(Variables!$E$3:$E$5,RANDBETWEEN(1,3),1) -> Medium (1 week to 1month) | AY11: =INDEX([1]Variables!$G$3:$G$5,RANDBETWEEN(1,3),1) -> very frequent ( more than 12 times a year) | AZ11: 1 | BA11: =IF(ISNA(VLOOKUP(AW11,Variables!$K$1:$K$36,1,FALSE)),SUM('Other cost'!$B$2,'Salary in Industry'!$AR10,IF(ISNA(VLOOKUP(Simulation!AW11,'Ransom Statistics'!$A$1:$D$18,4,FALSE)),'Ransom Statistics'!$D$18,VLOOKUP(Simulation!AW11,'Ransom Statistics'!$A$1:$D$18,4,FALSE)))*IF(ISNA(VLOOKUP(AW11,'Industry Type P'!$A$2:$S$103,2,FALSE)),'Kidnapping Statistics'!$K$3,VLOOKUP(AW11,'Industry Type P'!$A$1:$S$102,MATCH($C11,'Industry Type P'!$A$1:$S$1,0),FALSE))*VLOOKUP(AY11,'travel frequence'!$A$1:$D$4,MATCH(AX11,'travel frequence'!$A$1:$D$1,0),FALSE)*AZ11*IF(ISNA(VLOOKUP(AZ11,'travel frequence'!$A$7:$B$23,2,FALSE)),'travel frequence'!$B$23,VLOOKUP(AZ11,'travel frequence'!$A$7:$B$23,2,FALSE)),0) -> 0 | BB11: =IF(VLOOKUP(AW11,'Industry Type P'!$A$1:$S$102,MATCH($C11,'Industry Type P'!$A$1:$S$1,0),FALSE)>RAND(),"Y","N") -> N | BC11: 0 | BD11: 0 | BE11: =IF(BB11="N"," ",INDEX('Other cost'!$A$9:$A$13,RANDBETWEEN(1,5),1)) ->  | BF11: =MIN($H11,IF(BB11="N",0,SUM(BD11,'Other cost'!$B$16,VLOOKUP(BE11,'Other cost'!$A$9:$B$13,2,FALSE),IF(BC11>=30,HLOOKUP(30,'Salary in Industry'!$N$1:$AQ$1001,$B11+1,FALSE),HLOOKUP(BC11,'Salary in Industry'!$N$1:$AQ$1001,$B11+1,FALSE)),IF(ISNA(VLOOKUP(AW11,'Ransom Statistics'!$A$1:$D$18,4,FALSE)),'Ransom Statistics'!$D$18,VLOOKUP(AW11,'Ransom Statistics'!$A$1:$D$18,4,FALSE))))) -> 0 | BG11: =INDEX([1]Variables!$A$2:$A$103,INT((RAND()*100)+1),1) -> Uzbekistan | BH11: =INDEX(Variables!$E$3:$E$5,RANDBETWEEN(1,3),1) -> Medium (1 week to 1month) | BI11: =INDEX([1]Variables!$G$3:$G$5,RANDBETWEEN(1,3),1) -> infrequent (less than 3 times) | BJ11: 2 | BK11: =IF(ISNA(VLOOKUP(BG11,Variables!$K$1:$K$36,1,FALSE)),SUM('Other cost'!$B$2,'Salary in Industry'!$AR10,IF(ISNA(VLOOKUP(Simulation!BG11,'Ransom Statistics'!$A$1:$D$18,4,FALSE)),'Ransom Statistics'!$D$18,VLOOKUP(Simulation!BG11,'Ransom Statistics'!$A$1:$D$18,4,FALSE)))*IF(ISNA(VLOOKUP(BG11,'Industry Type P'!$A$2:$S$103,2,FALSE)),'Kidnapping Statistics'!$K$3,VLOOKUP(BG11,'Industry Type P'!$A$1:$S$102,MATCH($C11,'Industry Type P'!$A$1:$S$1,0),FALSE))*VLOOKUP(BI11,'travel frequence'!$A$1:$D$4,MATCH(BH11,'travel frequence'!$A$1:$D$1,0),FALSE)*BJ11*IF(ISNA(VLOOKUP(BJ11,'travel frequence'!$A$7:$B$23,2,FALSE)),'travel frequence'!$B$23,VLOOKUP(BJ11,'travel frequence'!$A$7:$B$23,2,FALSE)),0) -> 440.3894282 | BL11: =IF(VLOOKUP(BG11,'Industry Type P'!$A$1:$S$102,MATCH($C11,'Industry Type P'!$A$1:$S$1,0),FALSE)>RAND(),"Y","N") -> N | BM11: 0 | BN11: 0 | BO11: =IF(BL11="N"," ",INDEX('Other cost'!$A$9:$A$13,RANDBETWEEN(1,5),1)) ->  | BP11: =MIN($H11,IF(BL11="N",0,SUM(BN11,'Other cost'!$B$16,VLOOKUP(BO11,'Other cost'!$A$9:$B$13,2,FALSE),IF(BM11>=30,HLOOKUP(30,'Salary in Industry'!$N$1:$AQ$1001,$B11+1,FALSE),HLOOKUP(BM11,'Salary in Industry'!$N$1:$AQ$1001,$B11+1,FALSE)),IF(ISNA(VLOOKUP(BG11,'Ransom Statistics'!$A$1:$D$18,4,FALSE)),'Ransom Statistics'!$D$18,VLOOKUP(BG11,'Ransom Statistics'!$A$1:$D$18,4,FALSE))))) -> 0 | BQ11: =INDEX([1]Variables!$A$2:$A$103,INT((RAND()*100)+1),1) -> Nicaragua | BR11: =INDEX(Variables!$E$3:$E$5,RANDBETWEEN(1,3),1) -> Short (less a week) | BS11: =INDEX([1]Variables!$G$3:$G$5,RANDBETWEEN(1,3),1) -> frequent (3 times to 12 times) | BT11: 14 | BU11: =IF(ISNA(VLOOKUP(BQ11,Variables!$K$1:$K$36,1,FALSE)),SUM('Other cost'!$B$2,'Salary in Industry'!$AR10,IF(ISNA(VLOOKUP(Simulation!BQ11,'Ransom Statistics'!$A$1:$D$18,4,FALSE)),'Ransom Statistics'!$D$18,VLOOKUP(Simulation!BQ11,'Ransom Statistics'!$A$1:$D$18,4,FALSE)))*IF(ISNA(VLOOKUP(BQ11,'Industry Type P'!$A$2:$S$103,2,FALSE)),'Kidnapping Statistics'!$K$3,VLOOKUP(BQ11,'Industry Type P'!$A$1:$S$102,MATCH($C11,'Industry Type P'!$A$1:$S$1,0),FALSE))*VLOOKUP(BS11,'travel frequence'!$A$1:$D$4,MATCH(BR11,'travel frequence'!$A$1:$D$1,0),FALSE)*BT11*IF(ISNA(VLOOKUP(BT11,'travel frequence'!$A$7:$B$23,2,FALSE)),'travel frequence'!$B$23,VLOOKUP(BT11,'travel frequence'!$A$7:$B$23,2,FALSE)),0) -> 8.791477845 | BV11: =IF(VLOOKUP(BQ11,'Industry Type P'!$A$1:$S$102,MATCH($C11,'Industry Type P'!$A$1:$S$1,0),FALSE)>RAND(),"Y","N") -> N | BW11: 0 | BX11: 0 | BY11: =IF(BV11="N"," ",INDEX('Other cost'!$A$9:$A$13,RANDBETWEEN(1,5),1)) ->  | BZ11: =MIN($H11,IF(BV11="N",0,SUM(BX11,'Other cost'!$B$16,VLOOKUP(BY11,'Other cost'!$A$9:$B$13,2,FALSE),IF(BW11>=30,HLOOKUP(30,'Salary in Industry'!$N$1:$AQ$1001,$B11+1,FALSE),HLOOKUP(BW11,'Salary in Industry'!$N$1:$AQ$1001,$B11+1,FALSE)),IF(ISNA(VLOOKUP(BQ11,'Ransom Statistics'!$A$1:$D$18,4,FALSE)),'Ransom Statistics'!$D$18,VLOOKUP(BQ11,'Ransom Statistics'!$A$1:$D$18,4,FALSE))))) -> 0 | CA11: =INDEX([1]Variables!$A$2:$A$103,INT((RAND()*100)+1),1) -> Mauritania | CB11: =INDEX(Variables!$E$3:$E$5,RANDBETWEEN(1,3),1) -> Long (more than one month) | CC11: =INDEX([1]Variables!$G$3:$G$5,RANDBETWEEN(1,3),1) -> frequent (3 times to 12 times) | CD11: 3 | CE11: =IF(ISNA(VLOOKUP(CA11,Variables!$K$1:$K$36,1,FALSE)),SUM('Other cost'!$B$2,'Salary in Industry'!$AR10,IF(ISNA(VLOOKUP(Simulation!CA11,'Ransom Statistics'!$A$1:$D$18,4,FALSE)),'Ransom Statistics'!$D$18,VLOOKUP(Simulation!CA11,'Ransom Statistics'!$A$1:$D$18,4,FALSE)))*IF(ISNA(VLOOKUP(CA11,'Industry Type P'!$A$2:$S$103,2,FALSE)),'Kidnapping Statistics'!$K$3,VLOOKUP(CA11,'Industry Type P'!$A$1:$S$102,MATCH($C11,'Industry Type P'!$A$1:$S$1,0),FALSE))*VLOOKUP(CC11,'travel frequence'!$A$1:$D$4,MATCH(CB11,'travel frequence'!$A$1:$D$1,0),FALSE)*CD11*IF(ISNA(VLOOKUP(CD11,'travel frequence'!$A$7:$B$23,2,FALSE)),'travel frequence'!$B$23,VLOOKUP(CD11,'travel frequence'!$A$7:$B$23,2,FALSE)),0) -> 0 | CF11: =IF(VLOOKUP(CA11,'Industry Type P'!$A$1:$S$102,MATCH($C11,'Industry Type P'!$A$1:$S$1,0),FALSE)>RAND(),"Y","N") -> N | CG11: 0 | CH11: 0 | CI11: =IF(CF11="N"," ",INDEX('Other cost'!$A$9:$A$13,RANDBETWEEN(1,5),1)) ->  | CJ11: =MIN($H11,IF(CF11="N",0,SUM(CH11,'Other cost'!$B$16,VLOOKUP(CI11,'Other cost'!$A$9:$B$13,2,FALSE),IF(CG11>=30,HLOOKUP(30,'Salary in Industry'!$N$1:$AQ$1001,$B11+1,FALSE),HLOOKUP(CG11,'Salary in Industry'!$N$1:$AQ$1001,$B11+1,FALSE)),IF(ISNA(VLOOKUP(CA11,'Ransom Statistics'!$A$1:$D$18,4,FALSE)),'Ransom Statistics'!$D$18,VLOOKUP(CA11,'Ransom Statistics'!$A$1:$D$18,4,FALSE))))) -> 0 | CK11: =INDEX([1]Variables!$A$2:$A$103,INT((RAND()*100)+1),1) -> Ecuador | CL11: =INDEX(Variables!$E$3:$E$5,RANDBETWEEN(1,3),1) -> Short (less a week) | CM11: =INDEX([1]Variables!$G$3:$G$5,RANDBETWEEN(1,3),1) -> very frequent ( more than 12 times a year) | CN11: 16 | CO11: =IF(ISNA(VLOOKUP(CK11,Variables!$K$1:$K$36,1,FALSE)),SUM('Other cost'!$B$2,'Salary in Industry'!$AR10,IF(ISNA(VLOOKUP(Simulation!CK11,'Ransom Statistics'!$A$1:$D$18,4,FALSE)),'Ransom Statistics'!$D$18,VLOOKUP(Simulation!CK11,'Ransom Statistics'!$A$1:$D$18,4,FALSE)))*IF(ISNA(VLOOKUP(CK11,'Industry Type P'!$A$2:$S$103,2,FALSE)),'Kidnapping Statistics'!$K$3,VLOOKUP(CK11,'Industry Type P'!$A$1:$S$102,MATCH($C11,'Industry Type P'!$A$1:$S$1,0),FALSE))*VLOOKUP(CM11,'travel frequence'!$A$1:$D$4,MATCH(CL11,'travel frequence'!$A$1:$D$1,0),FALSE)*CN11*IF(ISNA(VLOOKUP(CN11,'travel frequence'!$A$7:$B$23,2,FALSE)),'travel frequence'!$B$23,VLOOKUP(CN11,'travel frequence'!$A$7:$B$23,2,FALSE)),0) -> 295.2706262 | CP11: =IF(VLOOKUP(CK11,'Industry Type P'!$A$1:$S$102,MATCH($C11,'Industry Type P'!$A$1:$S$1,0),FALSE)>RAND(),"Y","N") -> N | CQ11: 0 | CR11: 0 | CS11: =IF(CP11="N"," ",INDEX('Other cost'!$A$9:$A$13,RANDBETWEEN(1,5),1)) ->  | CT11: =MIN($H11,IF(CP11="N",0,SUM(CR11,'Other cost'!$B$16,VLOOKUP(CS11,'Other cost'!$A$9:$B$13,2,FALSE),IF(CQ11>=30,HLOOKUP(30,'Salary in Industry'!$N$1:$AQ$1001,$B11+1,FALSE),HLOOKUP(CQ11,'Salary in Industry'!$N$1:$AQ$1001,$B11+1,FALSE)),IF(ISNA(VLOOKUP(CK11,'Ransom Statistics'!$A$1:$D$18,4,FALSE)),'Ransom Statistics'!$D$18,VLOOKUP(CK11,'Ransom Statistics'!$A$1:$D$18,4,FALSE))))) -> 0 | CU11: =INDEX([1]Variables!$A$2:$A$103,INT((RAND()*100)+1),1) -> China | CV11: =INDEX(Variables!$E$3:$E$5,RANDBETWEEN(1,3),1) -> Short (less a week) | CW11: =INDEX([1]Variables!$G$3:$G$5,RANDBETWEEN(1,3),1) -> very frequent ( more than 12 times a year) | CX11: 7 | CY11: =IF(ISNA(VLOOKUP(CU11,Variables!$K$1:$K$36,1,FALSE)),SUM('Other cost'!$B$2,'Salary in Industry'!$AR10,IF(ISNA(VLOOKUP(Simulation!CU11,'Ransom Statistics'!$A$1:$D$18,4,FALSE)),'Ransom Statistics'!$D$18,VLOOKUP(Simulation!CU11,'Ransom Statistics'!$A$1:$D$18,4,FALSE)))*IF(ISNA(VLOOKUP(CU11,'Industry Type P'!$A$2:$S$103,2,FALSE)),'Kidnapping Statistics'!$K$3,VLOOKUP(CU11,'Industry Type P'!$A$1:$S$102,MATCH($C11,'Industry Type P'!$A$1:$S$1,0),FALSE))*VLOOKUP(CW11,'travel frequence'!$A$1:$D$4,MATCH(CV11,'travel frequence'!$A$1:$D$1,0),FALSE)*CX11*IF(ISNA(VLOOKUP(CX11,'travel frequence'!$A$7:$B$23,2,FALSE)),'travel frequence'!$B$23,VLOOKUP(CX11,'travel frequence'!$A$7:$B$23,2,FALSE)),0) -> 1435.343322 | CZ11: =IF(VLOOKUP(CU11,'Industry Type P'!$A$1:$S$102,MATCH($C11,'Industry Type P'!$A$1:$S$1,0),FALSE)>RAND(),"Y","N") -> N | DA11: 0 | DB11: 0 | DC11: =IF(CZ11="N"," ",INDEX('Other cost'!$A$9:$A$13,RANDBETWEEN(1,5),1)) ->  | DD11: =MIN($H11,IF(CZ11="N",0,SUM(DB11,'Other cost'!$B$16,VLOOKUP(DC11,'Other cost'!$A$9:$B$13,2,FALSE),IF(DA11>=30,HLOOKUP(30,'Salary in Industry'!$N$1:$AQ$1001,$B11+1,FALSE),HLOOKUP(DA11,'Salary in Industry'!$N$1:$AQ$1001,$B11+1,FALSE)),IF(ISNA(VLOOKUP(CU11,'Ransom Statistics'!$A$1:$D$18,4,FALSE)),'Ransom Statistics'!$D$18,VLOOKUP(CU11,'Ransom Statistics'!$A$1:$D$18,4,FALSE))))) -> 0 | DE11: 0 | DF11: =((IF(A11=0,0,IF(A11=1,M11,IF(A11=2,M11+W11,IF(A11=3,M11+W11+AG11,IF(A11=4,M11+W11+AG11+AQ11,IF(A11=5,M11+W11+AG11+AQ11+BA11,IF(A11=6,M11+W11+AG11+AQ11+BA11+BK11,IF(A11=7,M11+W11+AG11+AQ11+BA11+BK11+BU11,IF(A11=8,M11+W11+AG11+AQ11+BA11+BK11+BU11+CE11,IF(A11=9,M11+W11+AG11+AQ11+BA11+BK11+BU11+CE11+CO11,IF(A11=10,M11+W11+AG11+AQ11+BA11+BK11+BU11+CE11+CO11+CY11))))))))))))/(1+Variables!$G$12))*(1+Variables!$F$19) -> 3.440990727
A12: 6 | B12: 10 | C12: =INDEX([1]Variables!$C$2:$C$19,INT((RAND()*10)+1),1) -> Utilities | D12: 14 | E12: 33 | F12: 6081 | G12: 39372395 | H12: =Variables!$H$18 -> 1000000 | I12: =INDEX([1]Variables!$A$2:$A$103,INT((RAND()*100)+1),1) -> Maili | J12: =INDEX(Variables!$E$3:$E$5,RANDBETWEEN(1,3),1) -> Medium (1 week to 1month) | K12: =INDEX([1]Variables!$G$3:$G$5,RANDBETWEEN(1,3),1) -> very frequent ( more than 12 times a year) | L12: 20 | M12: =IF(ISNA(VLOOKUP(I12,Variables!$K$1:$K$36,1,FALSE)),SUM('Other cost'!$B$2,'Salary in Industry'!$AR11,IF(ISNA(VLOOKUP(Simulation!I12,'Ransom Statistics'!$A$1:$D$18,4,FALSE)),'Ransom Statistics'!$D$18,VLOOKUP(Simulation!I12,'Ransom Statistics'!$A$1:$D$18,4,FALSE)))*IF(ISNA(VLOOKUP(I12,'Industry Type P'!$A$2:$S$103,2,FALSE)),'Kidnapping Statistics'!$K$3,VLOOKUP(I12,'Industry Type P'!$A$1:$S$102,MATCH($C12,'Industry Type P'!$A$1:$S$1,0),FALSE))*VLOOKUP(K12,'travel frequence'!$A$1:$D$4,MATCH(J12,'travel frequence'!$A$1:$D$1,0),FALSE)*L12*IF(ISNA(VLOOKUP(L12,'travel frequence'!$A$7:$B$23,2,FALSE)),'travel frequence'!$B$23,VLOOKUP(L12,'travel frequence'!$A$7:$B$23,2,FALSE)),0) -> 4521.069138 | N12: =IF(VLOOKUP(I12,'Industry Type P'!$A$1:$S$102,MATCH($C12,'Industry Type P'!$A$1:$S$1,0),FALSE)>RAND(),"Y","N") -> N | O12: 0 | P12: 0 | Q12: =IF(N12="N"," ",INDEX('Other cost'!$A$9:$A$13,RANDBETWEEN(1,5),1)) ->  | R12: =MIN($H12,IF(N12="N",0,SUM(P12,'Other cost'!$B$16,VLOOKUP(Q12,'Other cost'!$A$9:$B$13,2,FALSE),IF(O12>=30,HLOOKUP(30,'Salary in Industry'!$N$1:$AQ$1001,$B12+1,FALSE),HLOOKUP(O12,'Salary in Industry'!$N$1:$AQ$1001,$B12+1,FALSE)),IF(ISNA(VLOOKUP(I12,'Ransom Statistics'!$A$1:$D$18,4,FALSE)),'Ransom Statistics'!$D$18,VLOOKUP(I12,'Ransom Statistics'!$A$1:$D$18,4,FALSE))))) -> 0 | S12: =INDEX([1]Variables!$A$2:$A$103,INT((RAND()*100)+1),1) -> Chechnya | T12: =INDEX(Variables!$E$3:$E$5,RANDBETWEEN(1,3),1) -> Medium (1 week to 1month) | U12: =INDEX([1]Variables!$G$3:$G$5,RANDBETWEEN(1,3),1) -> infrequent (less than 3 times) | V12: 6 | W12: =IF(ISNA(VLOOKUP(S12,Variables!$K$1:$K$36,1,FALSE)),SUM('Other cost'!$B$2,'Salary in Industry'!$AR11,IF(ISNA(VLOOKUP(Simulation!S12,'Ransom Statistics'!$A$1:$D$18,4,FALSE)),'Ransom Statistics'!$D$18,VLOOKUP(Simulation!S12,'Ransom Statistics'!$A$1:$D$18,4,FALSE)))*IF(ISNA(VLOOKUP(S12,'Industry Type P'!$A$2:$S$103,2,FALSE)),'Kidnapping Statistics'!$K$3,VLOOKUP(S12,'Industry Type P'!$A$1:$S$102,MATCH($C12,'Industry Type P'!$A$1:$S$1,0),FALSE))*VLOOKUP(U12,'travel frequence'!$A$1:$D$4,MATCH(T12,'travel frequence'!$A$1:$D$1,0),FALSE)*V12*IF(ISNA(VLOOKUP(V12,'travel frequence'!$A$7:$B$23,2,FALSE)),'travel frequence'!$B$23,VLOOKUP(V12,'travel frequence'!$A$7:$B$23,2,FALSE)),0) -> 1644.025141 | X12: =IF(VLOOKUP(S12,'Industry Type P'!$A$1:$S$102,MATCH($C12,'Industry Type P'!$A$1:$S$1,0),FALSE)>RAND(),"Y","N") -> N | Y12: 0 | Z12: 0 | AA12: =IF(X12="N"," ",INDEX('Other cost'!$A$9:$A$13,RANDBETWEEN(1,5),1)) ->  | AB12: =MIN($H12,IF(X12="N",0,SUM(Z12,'Other cost'!$B$16,VLOOKUP(AA12,'Other cost'!$A$9:$B$13,2,FALSE),IF(Y12>=30,HLOOKUP(30,'Salary in Industry'!$N$1:$AQ$1001,$B12+1,FALSE),HLOOKUP(Y12,'Salary in Industry'!$N$1:$AQ$1001,$B12+1,FALSE)),IF(ISNA(VLOOKUP(S12,'Ransom Statistics'!$A$1:$D$18,4,FALSE)),'Ransom Statistics'!$D$18,VLOOKUP(S12,'Ransom Statistics'!$A$1:$D$18,4,FALSE))))) -> 0 | AC12: =INDEX([1]Variables!$A$2:$A$103,INT((RAND()*100)+1),1) -> Kenya | AD12: =INDEX(Variables!$E$3:$E$5,RANDBETWEEN(1,3),1) -> Long (more than one month) | AE12: =INDEX([1]Variables!$G$3:$G$5,RANDBETWEEN(1,3),1) -> very frequent ( more than 12 times a year) | AF12: 11 | AG12: =IF(ISNA(VLOOKUP(AC12,Variables!$K$1:$K$36,1,FALSE)),SUM('Other cost'!$B$2,'Salary in Industry'!$AR11,IF(ISNA(VLOOKUP(Simulation!AC12,'Ransom Statistics'!$A$1:$D$18,4,FALSE)),'Ransom Statistics'!$D$18,VLOOKUP(Simulation!AC12,'Ransom Statistics'!$A$1:$D$18,4,FALSE)))*IF(ISNA(VLOOKUP(AC12,'Industry Type P'!$A$2:$S$103,2,FALSE)),'Kidnapping Statistics'!$K$3,VLOOKUP(AC12,'Industry Type P'!$A$1:$S$102,MATCH($C12,'Industry Type P'!$A$1:$S$1,0),FALSE))*VLOOKUP(AE12,'travel frequence'!$A$1:$D$4,MATCH(AD12,'travel frequence'!$A$1:$D$1,0),FALSE)*AF12*IF(ISNA(VLOOKUP(AF12,'travel frequence'!$A$7:$B$23,2,FALSE)),'travel frequence'!$B$23,VLOOKUP(AF12,'travel frequence'!$A$7:$B$23,2,FALSE)),0) -> 0 | AH12: =IF(VLOOKUP(AC12,'Industry Type P'!$A$1:$S$102,MATCH($C12,'Industry Type P'!$A$1:$S$1,0),FALSE)>RAND(),"Y","N") -> N | AI12: 0 | AJ12: 0 | AK12: =IF(AH12="N"," ",INDEX('Other cost'!$A$9:$A$13,RANDBETWEEN(1,5),1)) ->  | AL12: =MIN($H12,IF(AH12="N",0,SUM(AJ12,'Other cost'!$B$16,VLOOKUP(AK12,'Other cost'!$A$9:$B$13,2,FALSE),IF(AI12>=30,HLOOKUP(30,'Salary in Industry'!$N$1:$AQ$1001,$B12+1,FALSE),HLOOKUP(AI12,'Salary in Industry'!$N$1:$AQ$1001,$B12+1,FALSE)),IF(ISNA(VLOOKUP(AC12,'Ransom Statistics'!$A$1:$D$18,4,FALSE)),'Ransom Statistics'!$D$18,VLOOKUP(AC12,'Ransom Statistics'!$A$1:$D$18,4,FALSE))))) -> 0 | AM12: =INDEX([1]Variables!$A$2:$A$103,INT((RAND()*100)+1),1) -> Togo | AN12: =INDEX(Variables!$E$3:$E$5,RANDBETWEEN(1,3),1) -> Medium (1 week to 1month) | AO12: =INDEX([1]Variables!$G$3:$G$5,RANDBETWEEN(1,3),1) -> very frequent ( more than 12 times a year) | AP12: 17 | AQ12: =IF(ISNA(VLOOKUP(AM12,Variables!$K$1:$K$36,1,FALSE)),SUM('Other cost'!$B$2,'Salary in Industry'!$AR11,IF(ISNA(VLOOKUP(Simulation!AM12,'Ransom Statistics'!$A$1:$D$18,4,FALSE)),'Ransom Statistics'!$D$18,VLOOKUP(Simulation!AM12,'Ransom Statistics'!$A$1:$D$18,4,FALSE)))*IF(ISNA(VLOOKUP(AM12,'Industry Type P'!$A$2:$S$103,2,FALSE)),'Kidnapping Statistics'!$K$3,VLOOKUP(AM12,'Industry Type P'!$A$1:$S$102,MATCH($C12,'Industry Type P'!$A$1:$S$1,0),FALSE))*VLOOKUP(AO12,'travel frequence'!$A$1:$D$4,MATCH(AN12,'travel frequence'!$A$1:$D$1,0),FALSE)*AP12*IF(ISNA(VLOOKUP(AP12,'travel frequence'!$A$7:$B$23,2,FALSE)),'travel frequence'!$B$23,VLOOKUP(AP12,'travel frequence'!$A$7:$B$23,2,FALSE)),0) -> 6034.96311 | AR12: =IF(VLOOKUP(AM12,'Industry Type P'!$A$1:$S$102,MATCH($C12,'Industry Type P'!$A$1:$S$1,0),FALSE)>RAND(),"Y","N") -> N | AS12: 0 | AT12: 0 | AU12: =IF(AR12="N"," ",INDEX('Other cost'!$A$9:$A$13,RANDBETWEEN(1,5),1)) ->  | AV12: =MIN($H12,IF(AR12="N",0,SUM(AT12,'Other cost'!$B$16,VLOOKUP(AU12,'Other cost'!$A$9:$B$13,2,FALSE),IF(AS12>=30,HLOOKUP(30,'Salary in Industry'!$N$1:$AQ$1001,$B12+1,FALSE),HLOOKUP(AS12,'Salary in Industry'!$N$1:$AQ$1001,$B12+1,FALSE)),IF(ISNA(VLOOKUP(AM12,'Ransom Statistics'!$A$1:$D$18,4,FALSE)),'Ransom Statistics'!$D$18,VLOOKUP(AM12,'Ransom Statistics'!$A$1:$D$18,4,FALSE))))) -> 0 | AW12: =INDEX([1]Variables!$A$2:$A$103,INT((RAND()*100)+1),1) -> Coted'lvoire | AX12: =INDEX(Variables!$E$3:$E$5,RANDBETWEEN(1,3),1) -> Short (less a week) | AY12: =INDEX([1]Variables!$G$3:$G$5,RANDBETWEEN(1,3),1) -> very frequent ( more than 12 times a year) | AZ12: 10 | BA12: =IF(ISNA(VLOOKUP(AW12,Variables!$K$1:$K$36,1,FALSE)),SUM('Other cost'!$B$2,'Salary in Industry'!$AR11,IF(ISNA(VLOOKUP(Simulation!AW12,'Ransom Statistics'!$A$1:$D$18,4,FALSE)),'Ransom Statistics'!$D$18,VLOOKUP(Simulation!AW12,'Ransom Statistics'!$A$1:$D$18,4,FALSE)))*IF(ISNA(VLOOKUP(AW12,'Industry Type P'!$A$2:$S$103,2,FALSE)),'Kidnapping Statistics'!$K$3,VLOOKUP(AW12,'Industry Type P'!$A$1:$S$102,MATCH($C12,'Industry Type P'!$A$1:$S$1,0),FALSE))*VLOOKUP(AY12,'travel frequence'!$A$1:$D$4,MATCH(AX12,'travel frequence'!$A$1:$D$1,0),FALSE)*AZ12*IF(ISNA(VLOOKUP(AZ12,'travel frequence'!$A$7:$B$23,2,FALSE)),'travel frequence'!$B$23,VLOOKUP(AZ12,'travel frequence'!$A$7:$B$23,2,FALSE)),0) -> 1794.075055 | BB12: =IF(VLOOKUP(AW12,'Industry Type P'!$A$1:$S$102,MATCH($C12,'Industry Type P'!$A$1:$S$1,0),FALSE)>RAND(),"Y","N") -> N | BC12: 0 | BD12: 0 | BE12: =IF(BB12="N"," ",INDEX('Other cost'!$A$9:$A$13,RANDBETWEEN(1,5),1)) ->  | BF12: =MIN($H12,IF(BB12="N",0,SUM(BD12,'Other cost'!$B$16,VLOOKUP(BE12,'Other cost'!$A$9:$B$13,2,FALSE),IF(BC12>=30,HLOOKUP(30,'Salary in Industry'!$N$1:$AQ$1001,$B12+1,FALSE),HLOOKUP(BC12,'Salary in Industry'!$N$1:$AQ$1001,$B12+1,FALSE)),IF(ISNA(VLOOKUP(AW12,'Ransom Statistics'!$A$1:$D$18,4,FALSE)),'Ransom Statistics'!$D$18,VLOOKUP(AW12,'Ransom Statistics'!$A$1:$D$18,4,FALSE))))) -> 0 | BG12: =INDEX([1]Variables!$A$2:$A$103,INT((RAND()*100)+1),1) -> Tanzania | BH12: =INDEX(Variables!$E$3:$E$5,RANDBETWEEN(1,3),1) -> Medium (1 week to 1month) | BI12: =INDEX([1]Variables!$G$3:$G$5,RANDBETWEEN(1,3),1) -> infrequent (less than 3 times) | BJ12: 4 | BK12: =IF(ISNA(VLOOKUP(BG12,Variables!$K$1:$K$36,1,FALSE)),SUM('Other cost'!$B$2,'Salary in Industry'!$AR11,IF(ISNA(VLOOKUP(Simulation!BG12,'Ransom Statistics'!$A$1:$D$18,4,FALSE)),'Ransom Statistics'!$D$18,VLOOKUP(Simulation!BG12,'Ransom Statistics'!$A$1:$D$18,4,FALSE)))*IF(ISNA(VLOOKUP(BG12,'Industry Type P'!$A$2:$S$103,2,FALSE)),'Kidnapping Statistics'!$K$3,VLOOKUP(BG12,'Industry Type P'!$A$1:$S$102,MATCH($C12,'Industry Type P'!$A$1:$S$1,0),FALSE))*VLOOKUP(BI12,'travel frequence'!$A$1:$D$4,MATCH(BH12,'travel frequence'!$A$1:$D$1,0),FALSE)*BJ12*IF(ISNA(VLOOKUP(BJ12,'travel frequence'!$A$7:$B$23,2,FALSE)),'travel frequence'!$B$23,VLOOKUP(BJ12,'travel frequence'!$A$7:$B$23,2,FALSE)),0) -> 2.935759181 | BL12: =IF(VLOOKUP(BG12,'Industry Type P'!$A$1:$S$102,MATCH($C12,'Industry Type P'!$A$1:$S$1,0),FALSE)>RAND(),"Y","N") -> N | BM12: 0 | BN12: 0 | BO12: =IF(BL12="N"," ",INDEX('Other cost'!$A$9:$A$13,RANDBETWEEN(1,5),1)) ->  | BP12: =MIN($H12,IF(BL12="N",0,SUM(BN12,'Other cost'!$B$16,VLOOKUP(BO12,'Other cost'!$A$9:$B$13,2,FALSE),IF(BM12>=30,HLOOKUP(30,'Salary in Industry'!$N$1:$AQ$1001,$B12+1,FALSE),HLOOKUP(BM12,'Salary in Industry'!$N$1:$AQ$1001,$B12+1,FALSE)),IF(ISNA(VLOOKUP(BG12,'Ransom Statistics'!$A$1:$D$18,4,FALSE)),'Ransom Statistics'!$D$18,VLOOKUP(BG12,'Ransom Statistics'!$A$1:$D$18,4,FALSE))))) -> 0 | BQ12: =INDEX([1]Variables!$A$2:$A$103,INT((RAND()*100)+1),1) -> Sierra Leone | BR12: =INDEX(Variables!$E$3:$E$5,RANDBETWEEN(1,3),1) -> Medium (1 week to 1month) | BS12: =INDEX([1]Variables!$G$3:$G$5,RANDBETWEEN(1,3),1) -> very frequent ( more than 12 times a year) | BT12: 15 | BU12: =IF(ISNA(VLOOKUP(BQ12,Variables!$K$1:$K$36,1,FALSE)),SUM('Other cost'!$B$2,'Salary in Industry'!$AR11,IF(ISNA(VLOOKUP(Simulation!BQ12,'Ransom Statistics'!$A$1:$D$18,4,FALSE)),'Ransom Statistics'!$D$18,VLOOKUP(Simulation!BQ12,'Ransom Statistics'!$A$1:$D$18,4,FALSE)))*IF(ISNA(VLOOKUP(BQ12,'Industry Type P'!$A$2:$S$103,2,FALSE)),'Kidnapping Statistics'!$K$3,VLOOKUP(BQ12,'Industry Type P'!$A$1:$S$102,MATCH($C12,'Industry Type P'!$A$1:$S$1,0),FALSE))*VLOOKUP(BS12,'travel frequence'!$A$1:$D$4,MATCH(BR12,'travel frequence'!$A$1:$D$1,0),FALSE)*BT12*IF(ISNA(VLOOKUP(BT12,'travel frequence'!$A$7:$B$23,2,FALSE)),'travel frequence'!$B$23,VLOOKUP(BT12,'travel frequence'!$A$7:$B$23,2,FALSE)),0) -> 0 | BV12: =IF(VLOOKUP(BQ12,'Industry Type P'!$A$1:$S$102,MATCH($C12,'Industry Type P'!$A$1:$S$1,0),FALSE)>RAND(),"Y","N") -> N | BW12: 0 | BX12: 0 | BY12: =IF(BV12="N"," ",INDEX('Other cost'!$A$9:$A$13,RANDBETWEEN(1,5),1)) ->  | BZ12: =MIN($H12,IF(BV12="N",0,SUM(BX12,'Other cost'!$B$16,VLOOKUP(BY12,'Other cost'!$A$9:$B$13,2,FALSE),IF(BW12>=30,HLOOKUP(30,'Salary in Industry'!$N$1:$AQ$1001,$B12+1,FALSE),HLOOKUP(BW12,'Salary in Industry'!$N$1:$AQ$1001,$B12+1,FALSE)),IF(ISNA(VLOOKUP(BQ12,'Ransom Statistics'!$A$1:$D$18,4,FALSE)),'Ransom Statistics'!$D$18,VLOOKUP(BQ12,'Ransom Statistics'!$A$1:$D$18,4,FALSE))))) -> 0 | CA12: =INDEX([1]Variables!$A$2:$A$103,INT((RAND()*100)+1),1) -> Vietnam | CB12: =INDEX(Variables!$E$3:$E$5,RANDBETWEEN(1,3),1) -> Long (more than one month) | CC12: =INDEX([1]Variables!$G$3:$G$5,RANDBETWEEN(1,3),1) -> frequent (3 times to 12 times) | CD12: 20 | CE12: =IF(ISNA(VLOOKUP(CA12,Variables!$K$1:$K$36,1,FALSE)),SUM('Other cost'!$B$2,'Salary in Industry'!$AR11,IF(ISNA(VLOOKUP(Simulation!CA12,'Ransom Statistics'!$A$1:$D$18,4,FALSE)),'Ransom Statistics'!$D$18,VLOOKUP(Simulation!CA12,'Ransom Statistics'!$A$1:$D$18,4,FALSE)))*IF(ISNA(VLOOKUP(CA12,'Industry Type P'!$A$2:$S$103,2,FALSE)),'Kidnapping Statistics'!$K$3,VLOOKUP(CA12,'Industry Type P'!$A$1:$S$102,MATCH($C12,'Industry Type P'!$A$1:$S$1,0),FALSE))*VLOOKUP(CC12,'travel frequence'!$A$1:$D$4,MATCH(CB12,'travel frequence'!$A$1:$D$1,0),FALSE)*CD12*IF(ISNA(VLOOKUP(CD12,'travel frequence'!$A$7:$B$23,2,FALSE)),'travel frequence'!$B$23,VLOOKUP(CD12,'travel frequence'!$A$7:$B$23,2,FALSE)),0) -> 3229.335099 | CF12: =IF(VLOOKUP(CA12,'Industry Type P'!$A$1:$S$102,MATCH($C12,'Industry Type P'!$A$1:$S$1,0),FALSE)>RAND(),"Y","N") -> N | CG12: 0 | CH12: 0 | CI12: =IF(CF12="N"," ",INDEX('Other cost'!$A$9:$A$13,RANDBETWEEN(1,5),1)) ->  | CJ12: =MIN($H12,IF(CF12="N",0,SUM(CH12,'Other cost'!$B$16,VLOOKUP(CI12,'Other cost'!$A$9:$B$13,2,FALSE),IF(CG12>=30,HLOOKUP(30,'Salary in Industry'!$N$1:$AQ$1001,$B12+1,FALSE),HLOOKUP(CG12,'Salary in Industry'!$N$1:$AQ$1001,$B12+1,FALSE)),IF(ISNA(VLOOKUP(CA12,'Ransom Statistics'!$A$1:$D$18,4,FALSE)),'Ransom Statistics'!$D$18,VLOOKUP(CA12,'Ransom Statistics'!$A$1:$D$18,4,FALSE))))) -> 0 | CK12: =INDEX([1]Variables!$A$2:$A$103,INT((RAND()*100)+1),1) -> Sri Lanka | CL12: =INDEX(Variables!$E$3:$E$5,RANDBETWEEN(1,3),1) -> Medium (1 week to 1month) | CM12: =INDEX([1]Variables!$G$3:$G$5,RANDBETWEEN(1,3),1) -> infrequent (less than 3 times) | CN12: 20 | CO12: =IF(ISNA(VLOOKUP(CK12,Variables!$K$1:$K$36,1,FALSE)),SUM('Other cost'!$B$2,'Salary in Industry'!$AR11,IF(ISNA(VLOOKUP(Simulation!CK12,'Ransom Statistics'!$A$1:$D$18,4,FALSE)),'Ransom Statistics'!$D$18,VLOOKUP(Simulation!CK12,'Ransom Statistics'!$A$1:$D$18,4,FALSE)))*IF(ISNA(VLOOKUP(CK12,'Industry Type P'!$A$2:$S$103,2,FALSE)),'Kidnapping Statistics'!$K$3,VLOOKUP(CK12,'Industry Type P'!$A$1:$S$102,MATCH($C12,'Industry Type P'!$A$1:$S$1,0),FALSE))*VLOOKUP(CM12,'travel frequence'!$A$1:$D$4,MATCH(CL12,'travel frequence'!$A$1:$D$1,0),FALSE)*CN12*IF(ISNA(VLOOKUP(CN12,'travel frequence'!$A$7:$B$23,2,FALSE)),'travel frequence'!$B$23,VLOOKUP(CN12,'travel frequence'!$A$7:$B$23,2,FALSE)),0) -> 438.4067043 | CP12: =IF(VLOOKUP(CK12,'Industry Type P'!$A$1:$S$102,MATCH($C12,'Industry Type P'!$A$1:$S$1,0),FALSE)>RAND(),"Y","N") -> N | CQ12: 0 | CR12: 0 | CS12: =IF(CP12="N"," ",INDEX('Other cost'!$A$9:$A$13,RANDBETWEEN(1,5),1)) ->  | CT12: =MIN($H12,IF(CP12="N",0,SUM(CR12,'Other cost'!$B$16,VLOOKUP(CS12,'Other cost'!$A$9:$B$13,2,FALSE),IF(CQ12>=30,HLOOKUP(30,'Salary in Industry'!$N$1:$AQ$1001,$B12+1,FALSE),HLOOKUP(CQ12,'Salary in Industry'!$N$1:$AQ$1001,$B12+1,FALSE)),IF(ISNA(VLOOKUP(CK12,'Ransom Statistics'!$A$1:$D$18,4,FALSE)),'Ransom Statistics'!$D$18,VLOOKUP(CK12,'Ransom Statistics'!$A$1:$D$18,4,FALSE))))) -> 0 | CU12: =INDEX([1]Variables!$A$2:$A$103,INT((RAND()*100)+1),1) -> Cameroon | CV12: =INDEX(Variables!$E$3:$E$5,RANDBETWEEN(1,3),1) -> Short (less a week) | CW12: =INDEX([1]Variables!$G$3:$G$5,RANDBETWEEN(1,3),1) -> very frequent ( more than 12 times a year) | CX12: 20 | CY12: =IF(ISNA(VLOOKUP(CU12,Variables!$K$1:$K$36,1,FALSE)),SUM('Other cost'!$B$2,'Salary in Industry'!$AR11,IF(ISNA(VLOOKUP(Simulation!CU12,'Ransom Statistics'!$A$1:$D$18,4,FALSE)),'Ransom Statistics'!$D$18,VLOOKUP(Simulation!CU12,'Ransom Statistics'!$A$1:$D$18,4,FALSE)))*IF(ISNA(VLOOKUP(CU12,'Industry Type P'!$A$2:$S$103,2,FALSE)),'Kidnapping Statistics'!$K$3,VLOOKUP(CU12,'Industry Type P'!$A$1:$S$102,MATCH($C12,'Industry Type P'!$A$1:$S$1,0),FALSE))*VLOOKUP(CW12,'travel frequence'!$A$1:$D$4,MATCH(CV12,'travel frequence'!$A$1:$D$1,0),FALSE)*CX12*IF(ISNA(VLOOKUP(CX12,'travel frequence'!$A$7:$B$23,2,FALSE)),'travel frequence'!$B$23,VLOOKUP(CX12,'travel frequence'!$A$7:$B$23,2,FALSE)),0) -> 0 | CZ12: =IF(VLOOKUP(CU12,'Industry Type P'!$A$1:$S$102,MATCH($C12,'Industry Type P'!$A$1:$S$1,0),FALSE)>RAND(),"Y","N") -> N | DA12: 0 | DB12: 0 | DC12: =IF(CZ12="N"," ",INDEX('Other cost'!$A$9:$A$13,RANDBETWEEN(1,5),1)) ->  | DD12: =MIN($H12,IF(CZ12="N",0,SUM(DB12,'Other cost'!$B$16,VLOOKUP(DC12,'Other cost'!$A$9:$B$13,2,FALSE),IF(DA12>=30,HLOOKUP(30,'Salary in Industry'!$N$1:$AQ$1001,$B12+1,FALSE),HLOOKUP(DA12,'Salary in Industry'!$N$1:$AQ$1001,$B12+1,FALSE)),IF(ISNA(VLOOKUP(CU12,'Ransom Statistics'!$A$1:$D$18,4,FALSE)),'Ransom Statistics'!$D$18,VLOOKUP(CU12,'Ransom Statistics'!$A$1:$D$18,4,FALSE))))) -> 0 | DE12: 0 | DF12: =((IF(A12=0,0,IF(A12=1,M12,IF(A12=2,M12+W12,IF(A12=3,M12+W12+AG12,IF(A12=4,M12+W12+AG12+AQ12,IF(A12=5,M12+W12+AG12+AQ12+BA12,IF(A12=6,M12+W12+AG12+AQ12+BA12+BK12,IF(A12=7,M12+W12+AG12+AQ12+BA12+BK12+BU12,IF(A12=8,M12+W12+AG12+AQ12+BA12+BK12+BU12+CE12,IF(A12=9,M12+W12+AG12+AQ12+BA12+BK12+BU12+CE12+CO12,IF(A12=10,M12+W12+AG12+AQ12+BA12+BK12+BU12+CE12+CO12+CY12))))))))))))/(1+Variables!$G$12))*(1+Variables!$F$19) -> 16739.7466 | DJ12: Number of claims | DK12: =COUNTIF(DE3:DE1002,">0") -> 0
A13: 6 | B13: 11 | C13: =INDEX([1]Variables!$C$2:$C$19,INT((RAND()*10)+1),1) -> Utilities | D13: 15 | E13: 477 | F13: 18787 | G13: 1532158 | H13: =Variables!$H$18 -> 1000000 | I13: =INDEX([1]Variables!$A$2:$A$103,INT((RAND()*100)+1),1) -> Chile | J13: =INDEX(Variables!$E$3:$E$5,RANDBETWEEN(1,3),1) -> Short (less a week) | K13: =INDEX([1]Variables!$G$3:$G$5,RANDBETWEEN(1,3),1) -> frequent (3 times to 12 times) | L13: 15 | M13: =IF(ISNA(VLOOKUP(I13,Variables!$K$1:$K$36,1,FALSE)),SUM('Other cost'!$B$2,'Salary in Industry'!$AR12,IF(ISNA(VLOOKUP(Simulation!I13,'Ransom Statistics'!$A$1:$D$18,4,FALSE)),'Ransom Statistics'!$D$18,VLOOKUP(Simulation!I13,'Ransom Statistics'!$A$1:$D$18,4,FALSE)))*IF(ISNA(VLOOKUP(I13,'Industry Type P'!$A$2:$S$103,2,FALSE)),'Kidnapping Statistics'!$K$3,VLOOKUP(I13,'Industry Type P'!$A$1:$S$102,MATCH($C13,'Industry Type P'!$A$1:$S$1,0),FALSE))*VLOOKUP(K13,'travel frequence'!$A$1:$D$4,MATCH(J13,'travel frequence'!$A$1:$D$1,0),FALSE)*L13*IF(ISNA(VLOOKUP(L13,'travel frequence'!$A$7:$B$23,2,FALSE)),'travel frequence'!$B$23,VLOOKUP(L13,'travel frequence'!$A$7:$B$23,2,FALSE)),0) -> 390.3485039 | N13: =IF(VLOOKUP(I13,'Industry Type P'!$A$1:$S$102,MATCH($C13,'Industry Type P'!$A$1:$S$1,0),FALSE)>RAND(),"Y","N") -> N | O13: 0 | P13: 0 | Q13: =IF(N13="N"," ",INDEX('Other cost'!$A$9:$A$13,RANDBETWEEN(1,5),1)) ->  | R13: =MIN($H13,IF(N13="N",0,SUM(P13,'Other cost'!$B$16,VLOOKUP(Q13,'Other cost'!$A$9:$B$13,2,FALSE),IF(O13>=30,HLOOKUP(30,'Salary in Industry'!$N$1:$AQ$1001,$B13+1,FALSE),HLOOKUP(O13,'Salary in Industry'!$N$1:$AQ$1001,$B13+1,FALSE)),IF(ISNA(VLOOKUP(I13,'Ransom Statistics'!$A$1:$D$18,4,FALSE)),'Ransom Statistics'!$D$18,VLOOKUP(I13,'Ransom Statistics'!$A$1:$D$18,4,FALSE))))) -> 0 | S13: =INDEX([1]Variables!$A$2:$A$103,INT((RAND()*100)+1),1) -> Paraguay | T13: =INDEX(Variables!$E$3:$E$5,RANDBETWEEN(1,3),1) -> Medium (1 week to 1month) | U13: =INDEX([1]Variables!$G$3:$G$5,RANDBETWEEN(1,3),1) -> infrequent (less than 3 times) | V13: 14 | W13: =IF(ISNA(VLOOKUP(S13,Variables!$K$1:$K$36,1,FALSE)),SUM('Other cost'!$B$2,'Salary in Industry'!$AR12,IF(ISNA(VLOOKUP(Simulation!S13,'Ransom Statistics'!$A$1:$D$18,4,FALSE)),'Ransom Statistics'!$D$18,VLOOKUP(Simulation!S13,'Ransom Statistics'!$A$1:$D$18,4,FALSE)))*IF(ISNA(VLOOKUP(S13,'Industry Type P'!$A$2:$S$103,2,FALSE)),'Kidnapping Statistics'!$K$3,VLOOKUP(S13,'Industry Type P'!$A$1:$S$102,MATCH($C13,'Industry Type P'!$A$1:$S$1,0),FALSE))*VLOOKUP(U13,'travel frequence'!$A$1:$D$4,MATCH(T13,'travel frequence'!$A$1:$D$1,0),FALSE)*V13*IF(ISNA(VLOOKUP(V13,'travel frequence'!$A$7:$B$23,2,FALSE)),'travel frequence'!$B$23,VLOOKUP(V13,'travel frequence'!$A$7:$B$23,2,FALSE)),0) -> 69.02130166 | X13: =IF(VLOOKUP(S13,'Industry Type P'!$A$1:$S$102,MATCH($C13,'Industry Type P'!$A$1:$S$1,0),FALSE)>RAND(),"Y","N") -> N | Y13: 0 | Z13: 0 | AA13: =IF(X13="N"," ",INDEX('Other cost'!$A$9:$A$13,RANDBETWEEN(1,5),1)) ->  | AB13: =MIN($H13,IF(X13="N",0,SUM(Z13,'Other cost'!$B$16,VLOOKUP(AA13,'Other cost'!$A$9:$B$13,2,FALSE),IF(Y13>=30,HLOOKUP(30,'Salary in Industry'!$N$1:$AQ$1001,$B13+1,FALSE),HLOOKUP(Y13,'Salary in Industry'!$N$1:$AQ$1001,$B13+1,FALSE)),IF(ISNA(VLOOKUP(S13,'Ransom Statistics'!$A$1:$D$18,4,FALSE)),'Ransom Statistics'!$D$18,VLOOKUP(S13,'Ransom Statistics'!$A$1:$D$18,4,FALSE))))) -> 0 | AC13: =INDEX([1]Variables!$A$2:$A$103,INT((RAND()*100)+1),1) -> Somalia | AD13: =INDEX(Variables!$E$3:$E$5,RANDBETWEEN(1,3),1) -> Medium (1 week to 1month) | AE13: =INDEX([1]Variables!$G$3:$G$5,RANDBETWEEN(1,3),1) -> infrequent (less than 3 times) | AF13: 13 | AG13: =IF(ISNA(VLOOKUP(AC13,Variables!$K$1:$K$36,1,FALSE)),SUM('Other cost'!$B$2,'Salary in Industry'!$AR12,IF(ISNA(VLOOKUP(Simulation!AC13,'Ransom Statistics'!$A$1:$D$18,4,FALSE)),'Ransom Statistics'!$D$18,VLOOKUP(Simulation!AC13,'Ransom Statistics'!$A$1:$D$18,4,FALSE)))*IF(ISNA(VLOOKUP(AC13,'Industry Type P'!$A$2:$S$103,2,FALSE)),'Kidnapping Statistics'!$K$3,VLOOKUP(AC13,'Industry Type P'!$A$1:$S$102,MATCH($C13,'Industry Type P'!$A$1:$S$1,0),FALSE))*VLOOKUP(AE13,'travel frequence'!$A$1:$D$4,MATCH(AD13,'travel frequence'!$A$1:$D$1,0),FALSE)*AF13*IF(ISNA(VLOOKUP(AF13,'travel frequence'!$A$7:$B$23,2,FALSE)),'travel frequence'!$B$23,VLOOKUP(AF13,'travel frequence'!$A$7:$B$23,2,FALSE)),0) -> 3117.140025 | AH13: =IF(VLOOKUP(AC13,'Industry Type P'!$A$1:$S$102,MATCH($C13,'Industry Type P'!$A$1:$S$1,0),FALSE)>RAND(),"Y","N") -> N | AI13: 0 | AJ13: 0 | AK13: =IF(AH13="N"," ",INDEX('Other cost'!$A$9:$A$13,RANDBETWEEN(1,5),1)) ->  | AL13: =MIN($H13,IF(AH13="N",0,SUM(AJ13,'Other cost'!$B$16,VLOOKUP(AK13,'Other cost'!$A$9:$B$13,2,FALSE),IF(AI13>=30,HLOOKUP(30,'Salary in Industry'!$N$1:$AQ$1001,$B13+1,FALSE),HLOOKUP(AI13,'Salary in Industry'!$N$1:$AQ$1001,$B13+1,FALSE)),IF(ISNA(VLOOKUP(AC13,'Ransom Statistics'!$A$1:$D$18,4,FALSE)),'Ransom Statistics'!$D$18,VLOOKUP(AC13,'Ransom Statistics'!$A$1:$D$18,4,FALSE))))) -> 0 | AM13: =INDEX([1]Variables!$A$2:$A$103,INT((RAND()*100)+1),1) -> Philippines | AN13: =INDEX(Variables!$E$3:$E$5,RANDBETWEEN(1,3),1) -> Long (more than one month) | AO13: =INDEX([1]Variables!$G$3:$G$5,RANDBETWEEN(1,3),1) -> infrequent (less than 3 times) | AP13: 15 | AQ13: =IF(ISNA(VLOOKUP(AM13,Variables!$K$1:$K$36,1,FALSE)),SUM('Other cost'!$B$2,'Salary in Industry'!$AR12,IF(ISNA(VLOOKUP(Simulation!AM13,'Ransom Statistics'!$A$1:$D$18,4,FALSE)),'Ransom Statistics'!$D$18,VLOOKUP(Simulation!AM13,'Ransom Statistics'!$A$1:$D$18,4,FALSE)))*IF(ISNA(VLOOKUP(AM13,'Industry Type P'!$A$2:$S$103,2,FALSE)),'Kidnapping Statistics'!$K$3,VLOOKUP(AM13,'Industry Type P'!$A$1:$S$102,MATCH($C13,'Industry Type P'!$A$1:$S$1,0),FALSE))*VLOOKUP(AO13,'travel frequence'!$A$1:$D$4,MATCH(AN13,'travel frequence'!$A$1:$D$1,0),FALSE)*AP13*IF(ISNA(VLOOKUP(AP13,'travel frequence'!$A$7:$B$23,2,FALSE)),'travel frequence'!$B$23,VLOOKUP(AP13,'travel frequence'!$A$7:$B$23,2,FALSE)),0) -> 2170.796059 | AR13: =IF(VLOOKUP(AM13,'Industry Type P'!$A$1:$S$102,MATCH($C13,'Industry Type P'!$A$1:$S$1,0),FALSE)>RAND(),"Y","N") -> N | AS13: 0 | AT13: 0 | AU13: =IF(AR13="N"," ",INDEX('Other cost'!$A$9:$A$13,RANDBETWEEN(1,5),1)) ->  | AV13: =MIN($H13,IF(AR13="N",0,SUM(AT13,'Other cost'!$B$16,VLOOKUP(AU13,'Other cost'!$A$9:$B$13,2,FALSE),IF(AS13>=30,HLOOKUP(30,'Salary in Industry'!$N$1:$AQ$1001,$B13+1,FALSE),HLOOKUP(AS13,'Salary in Industry'!$N$1:$AQ$1001,$B13+1,FALSE)),IF(ISNA(VLOOKUP(AM13,'Ransom Statistics'!$A$1:$D$18,4,FALSE)),'Ransom Statistics'!$D$18,VLOOKUP(AM13,'Ransom Statistics'!$A$1:$D$18,4,FALSE))))) -> 0 | AW13: =INDEX([1]Variables!$A$2:$A$103,INT((RAND()*100)+1),1) -> Malaysia | AX13: =INDEX(Variables!$E$3:$E$5,RANDBETWEEN(1,3),1) -> Long (more than one month) | AY13: =INDEX([1]Variables!$G$3:$G$5,RANDBETWEEN(1,3),1) -> very frequent ( more than 12 times a year) | AZ13: 2 | BA13: =IF(ISNA(VLOOKUP(AW13,Variables!$K$1:$K$36,1,FALSE)),SUM('Other cost'!$B$2,'Salary in Industry'!$AR12,IF(ISNA(VLOOKUP(Simulation!AW13,'Ransom Statistics'!$A$1:$D$18,4,FALSE)),'Ransom Statistics'!$D$18,VLOOKUP(Simulation!AW13,'Ransom Statistics'!$A$1:$D$18,4,FALSE)))*IF(ISNA(VLOOKUP(AW13,'Industry Type P'!$A$2:$S$103,2,FALSE)),'Kidnapping Statistics'!$K$3,VLOOKUP(AW13,'Industry Type P'!$A$1:$S$102,MATCH($C13,'Industry Type P'!$A$1:$S$1,0),FALSE))*VLOOKUP(AY13,'travel frequence'!$A$1:$D$4,MATCH(AX13,'travel frequence'!$A$1:$D$1,0),FALSE)*AZ13*IF(ISNA(VLOOKUP(AZ13,'travel frequence'!$A$7:$B$23,2,FALSE)),'travel frequence'!$B$23,VLOOKUP(AZ13,'travel frequence'!$A$7:$B$23,2,FALSE)),0) -> 619.0557609 | BB13: =IF(VLOOKUP(AW13,'Industry Type P'!$A$1:$S$102,MATCH($C13,'Industry Type P'!$A$1:$S$1,0),FALSE)>RAND(),"Y","N") -> N | BC13: 0 | BD13: 0 | BE13: =IF(BB13="N"," ",INDEX('Other cost'!$A$9:$A$13,RANDBETWEEN(1,5),1)) ->  | BF13: =MIN($H13,IF(BB13="N",0,SUM(BD13,'Other cost'!$B$16,VLOOKUP(BE13,'Other cost'!$A$9:$B$13,2,FALSE),IF(BC13>=30,HLOOKUP(30,'Salary in Industry'!$N$1:$AQ$1001,$B13+1,FALSE),HLOOKUP(BC13,'Salary in Industry'!$N$1:$AQ$1001,$B13+1,FALSE)),IF(ISNA(VLOOKUP(AW13,'Ransom Statistics'!$A$1:$D$18,4,FALSE)),'Ransom Statistics'!$D$18,VLOOKUP(AW13,'Ransom Statistics'!$A$1:$D$18,4,FALSE))))) -> 0 | BG13: =INDEX([1]Variables!$A$2:$A$103,INT((RAND()*100)+1),1) -> Kuwait | BH13: =INDEX(Variables!$E$3:$E$5,RANDBETWEEN(1,3),1) -> Short (less a week) | BI13: =INDEX([1]Variables!$G$3:$G$5,RANDBETWEEN(1,3),1) -> infrequent (less than 3 times) | BJ13: 1 | BK13: =IF(ISNA(VLOOKUP(BG13,Variables!$K$1:$K$36,1,FALSE)),SUM('Other cost'!$B$2,'Salary in Industry'!$AR12,IF(ISNA(VLOOKUP(Simulation!BG13,'Ransom Statistics'!$A$1:$D$18,4,FALSE)),'Ransom Statistics'!$D$18,VLOOKUP(Simulation!BG13,'Ransom Statistics'!$A$1:$D$18,4,FALSE)))*IF(ISNA(VLOOKUP(BG13,'Industry Type P'!$A$2:$S$103,2,FALSE)),'Kidnapping Statistics'!$K$3,VLOOKUP(BG13,'Industry Type P'!$A$1:$S$102,MATCH($C13,'Industry Type P'!$A$1:$S$1,0),FALSE))*VLOOKUP(BI13,'travel frequence'!$A$1:$D$4,MATCH(BH13,'travel frequence'!$A$1:$D$1,0),FALSE)*BJ13*IF(ISNA(VLOOKUP(BJ13,'travel frequence'!$A$7:$B$23,2,FALSE)),'travel frequence'!$B$23,VLOOKUP(BJ13,'travel frequence'!$A$7:$B$23,2,FALSE)),0) -> 89.48058382 | BL13: =IF(VLOOKUP(BG13,'Industry Type P'!$A$1:$S$102,MATCH($C13,'Industry Type P'!$A$1:$S$1,0),FALSE)>RAND(),"Y","N") -> N | BM13: 0 | BN13: 0 | BO13: =IF(BL13="N"," ",INDEX('Other cost'!$A$9:$A$13,RANDBETWEEN(1,5),1)) ->  | BP13: =MIN($H13,IF(BL13="N",0,SUM(BN13,'Other cost'!$B$16,VLOOKUP(BO13,'Other cost'!$A$9:$B$13,2,FALSE),IF(BM13>=30,HLOOKUP(30,'Salary in Industry'!$N$1:$AQ$1001,$B13+1,FALSE),HLOOKUP(BM13,'Salary in Industry'!$N$1:$AQ$1001,$B13+1,FALSE)),IF(ISNA(VLOOKUP(BG13,'Ransom Statistics'!$A$1:$D$18,4,FALSE)),'Ransom Statistics'!$D$18,VLOOKUP(BG13,'Ransom Statistics'!$A$1:$D$18,4,FALSE))))) -> 0 | BQ13: =INDEX([1]Variables!$A$2:$A$103,INT((RAND()*100)+1),1) -> Cameroon | BR13: =INDEX(Variables!$E$3:$E$5,RANDBETWEEN(1,3),1) -> Medium (1 week to 1month) | BS13: =INDEX([1]Variables!$G$3:$G$5,RANDBETWEEN(1,3),1) -> frequent (3 times to 12 times) | BT13: 5 | BU13: =IF(ISNA(VLOOKUP(BQ13,Variables!$K$1:$K$36,1,FALSE)),SUM('Other cost'!$B$2,'Salary in Industry'!$AR12,IF(ISNA(VLOOKUP(Simulation!BQ13,'Ransom Statistics'!$A$1:$D$18,4,FALSE)),'Ransom Statistics'!$D$18,VLOOKUP(Simulation!BQ13,'Ransom Statistics'!$A$1:$D$18,4,FALSE)))*IF(ISNA(VLOOKUP(BQ13,'Industry Type P'!$A$2:$S$103,2,FALSE)),'Kidnapping Statistics'!$K$3,VLOOKUP(BQ13,'Industry Type P'!$A$1:$S$102,MATCH($C13,'Industry Type P'!$A$1:$S$1,0),FALSE))*VLOOKUP(BS13,'travel frequence'!$A$1:$D$4,MATCH(BR13,'travel frequence'!$A$1:$D$1,0),FALSE)*BT13*IF(ISNA(VLOOKUP(BT13,'travel frequence'!$A$7:$B$23,2,FALSE)),'travel frequence'!$B$23,VLOOKUP(BT13,'travel frequence'!$A$7:$B$23,2,FALSE)),0) -> 0 | BV13: =IF(VLOOKUP(BQ13,'Industry Type P'!$A$1:$S$102,MATCH($C13,'Industry Type P'!$A$1:$S$1,0),FALSE)>RAND(),"Y","N") -> N | BW13: 0 | BX13: 0 | BY13: =IF(BV13="N"," ",INDEX('Other cost'!$A$9:$A$13,RANDBETWEEN(1,5),1)) ->  | BZ13: =MIN($H13,IF(BV13="N",0,SUM(BX13,'Other cost'!$B$16,VLOOKUP(BY13,'Other cost'!$A$9:$B$13,2,FALSE),IF(BW13>=30,HLOOKUP(30,'Salary in Industry'!$N$1:$AQ$1001,$B13+1,FALSE),HLOOKUP(BW13,'Salary in Industry'!$N$1:$AQ$1001,$B13+1,FALSE)),IF(ISNA(VLOOKUP(BQ13,'Ransom Statistics'!$A$1:$D$18,4,FALSE)),'Ransom Statistics'!$D$18,VLOOKUP(BQ13,'Ransom Statistics'!$A$1:$D$18,4,FALSE))))) -> 0 | CA13: =INDEX([1]Variables!$A$2:$A$103,INT((RAND()*100)+1),1) -> Nangladesh | CB13: =INDEX(Variables!$E$3:$E$5,RANDBETWEEN(1,3),1) -> Short (less a week) | CC13: =INDEX([1]Variables!$G$3:$G$5,RANDBETWEEN(1,3),1) -> very frequent ( more than 12 times a year) | CD13: 14 | CE13: =IF(ISNA(VLOOKUP(CA13,Variables!$K$1:$K$36,1,FALSE)),SUM('Other cost'!$B$2,'Salary in Industry'!$AR12,IF(ISNA(VLOOKUP(Simulation!CA13,'Ransom Statistics'!$A$1:$D$18,4,FALSE)),'Ransom Statistics'!$D$18,VLOOKUP(Simulation!CA13,'Ransom Statistics'!$A$1:$D$18,4,FALSE)))*IF(ISNA(VLOOKUP(CA13,'Industry Type P'!$A$2:$S$103,2,FALSE)),'Kidnapping Statistics'!$K$3,VLOOKUP(CA13,'Industry Type P'!$A$1:$S$102,MATCH($C13,'Industry Type P'!$A$1:$S$1,0),FALSE))*VLOOKUP(CC13,'travel frequence'!$A$1:$D$4,MATCH(CB13,'travel frequence'!$A$1:$D$1,0),FALSE)*CD13*IF(ISNA(VLOOKUP(CD13,'travel frequence'!$A$7:$B$23,2,FALSE)),'travel frequence'!$B$23,VLOOKUP(CD13,'travel frequence'!$A$7:$B$23,2,FALSE)),0) -> 24042.06212 | CF13: =IF(VLOOKUP(CA13,'Industry Type P'!$A$1:$S$102,MATCH($C13,'Industry Type P'!$A$1:$S$1,0),FALSE)>RAND(),"Y","N") -> N | CG13: 0 | CH13: 0 | CI13: =IF(CF13="N"," ",INDEX('Other cost'!$A$9:$A$13,RANDBETWEEN(1,5),1)) ->  | CJ13: =MIN($H13,IF(CF13="N",0,SUM(CH13,'Other cost'!$B$16,VLOOKUP(CI13,'Other cost'!$A$9:$B$13,2,FALSE),IF(CG13>=30,HLOOKUP(30,'Salary in Industry'!$N$1:$AQ$1001,$B13+1,FALSE),HLOOKUP(CG13,'Salary in Industry'!$N$1:$AQ$1001,$B13+1,FALSE)),IF(ISNA(VLOOKUP(CA13,'Ransom Statistics'!$A$1:$D$18,4,FALSE)),'Ransom Statistics'!$D$18,VLOOKUP(CA13,'Ransom Statistics'!$A$1:$D$18,4,FALSE))))) -> 0 | CK13: =INDEX([1]Variables!$A$2:$A$103,INT((RAND()*100)+1),1) -> Spain | CL13: =INDEX(Variables!$E$3:$E$5,RANDBETWEEN(1,3),1) -> Long (more than one month) | CM13: =INDEX([1]Variables!$G$3:$G$5,RANDBETWEEN(1,3),1) -> infrequent (less than 3 times) | CN13: 5 | CO13: =IF(ISNA(VLOOKUP(CK13,Variables!$K$1:$K$36,1,FALSE)),SUM('Other cost'!$B$2,'Salary in Industry'!$AR12,IF(ISNA(VLOOKUP(Simulation!CK13,'Ransom Statistics'!$A$1:$D$18,4,FALSE)),'Ransom Statistics'!$D$18,VLOOKUP(Simulation!CK13,'Ransom Statistics'!$A$1:$D$18,4,FALSE)))*IF(ISNA(VLOOKUP(CK13,'Industry Type P'!$A$2:$S$103,2,FALSE)),'Kidnapping Statistics'!$K$3,VLOOKUP(CK13,'Industry Type P'!$A$1:$S$102,MATCH($C13,'Industry Type P'!$A$1:$S$1,0),FALSE))*VLOOKUP(CM13,'travel frequence'!$A$1:$D$4,MATCH(CL13,'travel frequence'!$A$1:$D$1,0),FALSE)*CN13*IF(ISNA(VLOOKUP(CN13,'travel frequence'!$A$7:$B$23,2,FALSE)),'travel frequence'!$B$23,VLOOKUP(CN13,'travel frequence'!$A$7:$B$23,2,FALSE)),0) -> 17.43007206 | CP13: =IF(VLOOKUP(CK13,'Industry Type P'!$A$1:$S$102,MATCH($C13,'Industry Type P'!$A$1:$S$1,0),FALSE)>RAND(),"Y","N") -> N | CQ13: 0 | CR13: 0 | CS13: =IF(CP13="N"," ",INDEX('Other cost'!$A$9:$A$13,RANDBETWEEN(1,5),1)) ->  | CT13: =MIN($H13,IF(CP13="N",0,SUM(CR13,'Other cost'!$B$16,VLOOKUP(CS13,'Other cost'!$A$9:$B$13,2,FALSE),IF(CQ13>=30,HLOOKUP(30,'Salary in Industry'!$N$1:$AQ$1001,$B13+1,FALSE),HLOOKUP(CQ13,'Salary in Industry'!$N$1:$AQ$1001,$B13+1,FALSE)),IF(ISNA(VLOOKUP(CK13,'Ransom Statistics'!$A$1:$D$18,4,FALSE)),'Ransom Statistics'!$D$18,VLOOKUP(CK13,'Ransom Statistics'!$A$1:$D$18,4,FALSE))))) -> 0 | CU13: =INDEX([1]Variables!$A$2:$A$103,INT((RAND()*100)+1),1) -> Burundi | CV13: =INDEX(Variables!$E$3:$E$5,RANDBETWEEN(1,3),1) -> Medium (1 week to 1month) | CW13: =INDEX([1]Variables!$G$3:$G$5,RANDBETWEEN(1,3),1) -> infrequent (less than 3 times) | CX13: 12 | CY13: =IF(ISNA(VLOOKUP(CU13,Variables!$K$1:$K$36,1,FALSE)),SUM('Other cost'!$B$2,'Salary in Industry'!$AR12,IF(ISNA(VLOOKUP(Simulation!CU13,'Ransom Statistics'!$A$1:$D$18,4,FALSE)),'Ransom Statistics'!$D$18,VLOOKUP(Simulation!CU13,'Ransom Statistics'!$A$1:$D$18,4,FALSE)))*IF(ISNA(VLOOKUP(CU13,'Industry Type P'!$A$2:$S$103,2,FALSE)),'Kidnapping Statistics'!$K$3,VLOOKUP(CU13,'Industry Type P'!$A$1:$S$102,MATCH($C13,'Industry Type P'!$A$1:$S$1,0),FALSE))*VLOOKUP(CW13,'travel frequence'!$A$1:$D$4,MATCH(CV13,'travel frequence'!$A$1:$D$1,0),FALSE)*CX13*IF(ISNA(VLOOKUP(CX13,'travel frequence'!$A$7:$B$23,2,FALSE)),'travel frequence'!$B$23,VLOOKUP(CX13,'travel frequence'!$A$7:$B$23,2,FALSE)),0) -> 2055.25716 | CZ13: =IF(VLOOKUP(CU13,'Industry Type P'!$A$1:$S$102,MATCH($C13,'Industry Type P'!$A$1:$S$1,0),FALSE)>RAND(),"Y","N") -> N | DA13: 0 | DB13: 0 | DC13: =IF(CZ13="N"," ",INDEX('Other cost'!$A$9:$A$13,RANDBETWEEN(1,5),1)) ->  | DD13: =MIN($H13,IF(CZ13="N",0,SUM(DB13,'Other cost'!$B$16,VLOOKUP(DC13,'Other cost'!$A$9:$B$13,2,FALSE),IF(DA13>=30,HLOOKUP(30,'Salary in Industry'!$N$1:$AQ$1001,$B13+1,FALSE),HLOOKUP(DA13,'Salary in Industry'!$N$1:$AQ$1001,$B13+1,FALSE)),IF(ISNA(VLOOKUP(CU13,'Ransom Statistics'!$A$1:$D$18,4,FALSE)),'Ransom Statistics'!$D$18,VLOOKUP(CU13,'Ransom Statistics'!$A$1:$D$18,4,FALSE))))) -> 0 | DE13: 0 | DF13: =((IF(A13=0,0,IF(A13=1,M13,IF(A13=2,M13+W13,IF(A13=3,M13+W13+AG13,IF(A13=4,M13+W13+AG13+AQ13,IF(A13=5,M13+W13+AG13+AQ13+BA13,IF(A13=6,M13+W13+AG13+AQ13+BA13+BK13,IF(A13=7,M13+W13+AG13+AQ13+BA13+BK13+BU13,IF(A13=8,M13+W13+AG13+AQ13+BA13+BK13+BU13+CE13,IF(A13=9,M13+W13+AG13+AQ13+BA13+BK13+BU13+CE13+CO13,IF(A13=10,M13+W13+AG13+AQ13+BA13+BK13+BU13+CE13+CO13+CY13))))))))))))/(1+Variables!$G$12))*(1+Variables!$F$19) -> 7720.842788
A14: 1 | B14: 12 | C14: =INDEX([1]Variables!$C$2:$C$19,INT((RAND()*10)+1),1) -> Manufacturing | D14: 9 | E14: 469 | F14: 11466 | G14: 49787079 | H14: =Variables!$H$18 -> 1000000 | I14: =INDEX([1]Variables!$A$2:$A$103,INT((RAND()*100)+1),1) -> Algeria | J14: =INDEX(Variables!$E$3:$E$5,RANDBETWEEN(1,3),1) -> Medium (1 week to 1month) | K14: =INDEX([1]Variables!$G$3:$G$5,RANDBETWEEN(1,3),1) -> very frequent ( more than 12 times a year) | L14: 18 | M14: =IF(ISNA(VLOOKUP(I14,Variables!$K$1:$K$36,1,FALSE)),SUM('Other cost'!$B$2,'Salary in Industry'!$AR13,IF(ISNA(VLOOKUP(Simulation!I14,'Ransom Statistics'!$A$1:$D$18,4,FALSE)),'Ransom Statistics'!$D$18,VLOOKUP(Simulation!I14,'Ransom Statistics'!$A$1:$D$18,4,FALSE)))*IF(ISNA(VLOOKUP(I14,'Industry Type P'!$A$2:$S$103,2,FALSE)),'Kidnapping Statistics'!$K$3,VLOOKUP(I14,'Industry Type P'!$A$1:$S$102,MATCH($C14,'Industry Type P'!$A$1:$S$1,0),FALSE))*VLOOKUP(K14,'travel frequence'!$A$1:$D$4,MATCH(J14,'travel frequence'!$A$1:$D$1,0),FALSE)*L14*IF(ISNA(VLOOKUP(L14,'travel frequence'!$A$7:$B$23,2,FALSE)),'travel frequence'!$B$23,VLOOKUP(L14,'travel frequence'!$A$7:$B$23,2,FALSE)),0) -> 0 | N14: =IF(VLOOKUP(I14,'Industry Type P'!$A$1:$S$102,MATCH($C14,'Industry Type P'!$A$1:$S$1,0),FALSE)>RAND(),"Y","N") -> N | O14: 0 | P14: 0 | Q14: =IF(N14="N"," ",INDEX('Other cost'!$A$9:$A$13,RANDBETWEEN(1,5),1)) ->  | R14: =MIN($H14,IF(N14="N",0,SUM(P14,'Other cost'!$B$16,VLOOKUP(Q14,'Other cost'!$A$9:$B$13,2,FALSE),IF(O14>=30,HLOOKUP(30,'Salary in Industry'!$N$1:$AQ$1001,$B14+1,FALSE),HLOOKUP(O14,'Salary in Industry'!$N$1:$AQ$1001,$B14+1,FALSE)),IF(ISNA(VLOOKUP(I14,'Ransom Statistics'!$A$1:$D$18,4,FALSE)),'Ransom Statistics'!$D$18,VLOOKUP(I14,'Ransom Statistics'!$A$1:$D$18,4,FALSE))))) -> 0 | S14: =INDEX([1]Variables!$A$2:$A$103,INT((RAND()*100)+1),1) -> Greece | T14: =INDEX(Variables!$E$3:$E$5,RANDBETWEEN(1,3),1) -> Short (less a week) | U14: =INDEX([1]Variables!$G$3:$G$5,RANDBETWEEN(1,3),1) -> infrequent (less than 3 times) | V14: 18 | W14: =IF(ISNA(VLOOKUP(S14,Variables!$K$1:$K$36,1,FALSE)),SUM('Other cost'!$B$2,'Salary in Industry'!$AR13,IF(ISNA(VLOOKUP(Simulation!S14,'Ransom Statistics'!$A$1:$D$18,4,FALSE)),'Ransom Statistics'!$D$18,VLOOKUP(Simulation!S14,'Ransom Statistics'!$A$1:$D$18,4,FALSE)))*IF(ISNA(VLOOKUP(S14,'Industry Type P'!$A$2:$S$103,2,FALSE)),'Kidnapping Statistics'!$K$3,VLOOKUP(S14,'Industry Type P'!$A$1:$S$102,MATCH($C14,'Industry Type P'!$A$1:$S$1,0),FALSE))*VLOOKUP(U14,'travel frequence'!$A$1:$D$4,MATCH(T14,'travel frequence'!$A$1:$D$1,0),FALSE)*V14*IF(ISNA(VLOOKUP(V14,'travel frequence'!$A$7:$B$23,2,FALSE)),'travel frequence'!$B$23,VLOOKUP(V14,'travel frequence'!$A$7:$B$23,2,FALSE)),0) -> 8.388257697 | X14: =IF(VLOOKUP(S14,'Industry Type P'!$A$1:$S$102,MATCH($C14,'Industry Type P'!$A$1:$S$1,0),FALSE)>RAND(),"Y","N") -> N | Y14: 0 | Z14: 0 | AA14: =IF(X14="N"," ",INDEX('Other cost'!$A$9:$A$13,RANDBETWEEN(1,5),1)) ->  | AB14: =MIN($H14,IF(X14="N",0,SUM(Z14,'Other cost'!$B$16,VLOOKUP(AA14,'Other cost'!$A$9:$B$13,2,FALSE),IF(Y14>=30,HLOOKUP(30,'Salary in Industry'!$N$1:$AQ$1001,$B14+1,FALSE),HLOOKUP(Y14,'Salary in Industry'!$N$1:$AQ$1001,$B14+1,FALSE)),IF(ISNA(VLOOKUP(S14,'Ransom Statistics'!$A$1:$D$18,4,FALSE)),'Ransom Statistics'!$D$18,VLOOKUP(S14,'Ransom Statistics'!$A$1:$D$18,4,FALSE))))) -> 0 | AC14: =INDEX([1]Variables!$A$2:$A$103,INT((RAND()*100)+1),1) -> Poland | AD14: =INDEX(Variables!$E$3:$E$5,RANDBETWEEN(1,3),1) -> Medium (1 week to 1month) | AE14: =INDEX([1]Variables!$G$3:$G$5,RANDBETWEEN(1,3),1) -> infrequent (less than 3 times) | AF14: 18 | AG14: =IF(ISNA(VLOOKUP(AC14,Variables!$K$1:$K$36,1,FALSE)),SUM('Other cost'!$B$2,'Salary in Industry'!$AR13,IF(ISNA(VLOOKUP(Simulation!AC14,'Ransom Statistics'!$A$1:$D$18,4,FALSE)),'Ransom Statistics'!$D$18,VLOOKUP(Simulation!AC14,'Ransom Statistics'!$A$1:$D$18,4,FALSE)))*IF(ISNA(VLOOKUP(AC14,'Industry Type P'!$A$2:$S$103,2,FALSE)),'Kidnapping Statistics'!$K$3,VLOOKUP(AC14,'Industry Type P'!$A$1:$S$102,MATCH($C14,'Industry Type P'!$A$1:$S$1,0),FALSE))*VLOOKUP(AE14,'travel frequence'!$A$1:$D$4,MATCH(AD14,'travel frequence'!$A$1:$D$1,0),FALSE)*AF14*IF(ISNA(VLOOKUP(AF14,'travel frequence'!$A$7:$B$23,2,FALSE)),'travel frequence'!$B$23,VLOOKUP(AF14,'travel frequence'!$A$7:$B$23,2,FALSE)),0) -> 5.284602349 | AH14: =IF(VLOOKUP(AC14,'Industry Type P'!$A$1:$S$102,MATCH($C14,'Industry Type P'!$A$1:$S$1,0),FALSE)>RAND(),"Y","N") -> N | AI14: 0 | AJ14: 0 | AK14: =IF(AH14="N"," ",INDEX('Other cost'!$A$9:$A$13,RANDBETWEEN(1,5),1)) ->  | AL14: =MIN($H14,IF(AH14="N",0,SUM(AJ14,'Other cost'!$B$16,VLOOKUP(AK14,'Other cost'!$A$9:$B$13,2,FALSE),IF(AI14>=30,HLOOKUP(30,'Salary in Industry'!$N$1:$AQ$1001,$B14+1,FALSE),HLOOKUP(AI14,'Salary in Industry'!$N$1:$AQ$1001,$B14+1,FALSE)),IF(ISNA(VLOOKUP(AC14,'Ransom Statistics'!$A$1:$D$18,4,FALSE)),'Ransom Statistics'!$D$18,VLOOKUP(AC14,'Ransom Statistics'!$A$1:$D$18,4,FALSE))))) -> 0 | AM14: =INDEX([1]Variables!$A$2:$A$103,INT((RAND()*100)+1),1) -> Chad | AN14: =INDEX(Variables!$E$3:$E$5,RANDBETWEEN(1,3),1) -> Long (more than one month) | AO14: =INDEX([1]Variables!$G$3:$G$5,RANDBETWEEN(1,3),1) -> frequent (3 times to 12 times) | AP14: 16 | AQ14: =IF(ISNA(VLOOKUP(AM14,Variables!$K$1:$K$36,1,FALSE)),SUM('Other cost'!$B$2,'Salary in Industry'!$AR13,IF(ISNA(VLOOKUP(Simulation!AM14,'Ransom Statistics'!$A$1:$D$18,4,FALSE)),'Ransom Statistics'!$D$18,VLOOKUP(Simulation!AM14,'Ransom Statistics'!$A$1:$D$18,4,FALSE)))*IF(ISNA(VLOOKUP(AM14,'Industry Type P'!$A$2:$S$103,2,FALSE)),'Kidnapping Statistics'!$K$3,VLOOKUP(AM14,'Industry Type P'!$A$1:$S$102,MATCH($C14,'Industry Type P'!$A$1:$S$1,0),FALSE))*VLOOKUP(AO14,'travel frequence'!$A$1:$D$4,MATCH(AN14,'travel frequence'!$A$1:$D$1,0),FALSE)*AP14*IF(ISNA(VLOOKUP(AP14,'travel frequence'!$A$7:$B$23,2,FALSE)),'travel frequence'!$B$23,VLOOKUP(AP14,'travel frequence'!$A$7:$B$23,2,FALSE)),0) -> 0 | AR14: =IF(VLOOKUP(AM14,'Industry Type P'!$A$1:$S$102,MATCH($C14,'Industry Type P'!$A$1:$S$1,0),FALSE)>RAND(),"Y","N") -> N | AS14: 0 | AT14: 0 | AU14: =IF(AR14="N"," ",INDEX('Other cost'!$A$9:$A$13,RANDBETWEEN(1,5),1)) ->  | AV14: =MIN($H14,IF(AR14="N",0,SUM(AT14,'Other cost'!$B$16,VLOOKUP(AU14,'Other cost'!$A$9:$B$13,2,FALSE),IF(AS14>=30,HLOOKUP(30,'Salary in Industry'!$N$1:$AQ$1001,$B14+1,FALSE),HLOOKUP(AS14,'Salary in Industry'!$N$1:$AQ$1001,$B14+1,FALSE)),IF(ISNA(VLOOKUP(AM14,'Ransom Statistics'!$A$1:$D$18,4,FALSE)),'Ransom Statistics'!$D$18,VLOOKUP(AM14,'Ransom Statistics'!$A$1:$D$18,4,FALSE))))) -> 0 | AW14: =INDEX([1]Variables!$A$2:$A$103,INT((RAND()*100)+1),1) -> the Balkans | AX14: =INDEX(Variables!$E$3:$E$5,RANDBETWEEN(1,3),1) -> Long (more than one month) | AY14: =INDEX([1]Variables!$G$3:$G$5,RANDBETWEEN(1,3),1) -> infrequent (less than 3 times) | AZ14: 8 | BA14: =IF(ISNA(VLOOKUP(AW14,Variables!$K$1:$K$36,1,FALSE)),SUM('Other cost'!$B$2,'Salary in Industry'!$AR13,IF(ISNA(VLOOKUP(Simulation!AW14,'Ransom Statistics'!$A$1:$D$18,4,FALSE)),'Ransom Statistics'!$D$18,VLOOKUP(Simulation!AW14,'Ransom Statistics'!$A$1:$D$18,4,FALSE)))*IF(ISNA(VLOOKUP(AW14,'Industry Type P'!$A$2:$S$103,2,FALSE)),'Kidnapping Statistics'!$K$3,VLOOKUP(AW14,'Industry Type P'!$A$1:$S$102,MATCH($C14,'Industry Type P'!$A$1:$S$1,0),FALSE))*VLOOKUP(AY14,'travel frequence'!$A$1:$D$4,MATCH(AX14,'travel frequence'!$A$1:$D$1,0),FALSE)*AZ14*IF(ISNA(VLOOKUP(AZ14,'travel frequence'!$A$7:$B$23,2,FALSE)),'travel frequence'!$B$23,VLOOKUP(AZ14,'travel frequence'!$A$7:$B$23,2,FALSE)),0) -> 5.467901314 | BB14: =IF(VLOOKUP(AW14,'Industry Type P'!$A$1:$S$102,MATCH($C14,'Industry Type P'!$A$1:$S$1,0),FALSE)>RAND(),"Y","N") -> N | BC14: 0 | BD14: 0 | BE14: =IF(BB14="N"," ",INDEX('Other cost'!$A$9:$A$13,RANDBETWEEN(1,5),1)) ->  | BF14: =MIN($H14,IF(BB14="N",0,SUM(BD14,'Other cost'!$B$16,VLOOKUP(BE14,'Other cost'!$A$9:$B$13,2,FALSE),IF(BC14>=30,HLOOKUP(30,'Salary in Industry'!$N$1:$AQ$1001,$B14+1,FALSE),HLOOKUP(BC14,'Salary in Industry'!$N$1:$AQ$1001,$B14+1,FALSE)),IF(ISNA(VLOOKUP(AW14,'Ransom Statistics'!$A$1:$D$18,4,FALSE)),'Ransom Statistics'!$D$18,VLOOKUP(AW14,'Ransom Statistics'!$A$1:$D$18,4,FALSE))))) -> 0 | BG14: =INDEX([1]Variables!$A$2:$A$103,INT((RAND()*100)+1),1) -> Chile | BH14: =INDEX(Variables!$E$3:$E$5,RANDBETWEEN(1,3),1) -> Short (less a week) | BI14: =INDEX([1]Variables!$G$3:$G$5,RANDBETWEEN(1,3),1) -> very frequent ( more than 12 times a year) | BJ14: 1 | BK14: =IF(ISNA(VLOOKUP(BG14,Variables!$K$1:$K$36,1,FALSE)),SUM('Other cost'!$B$2,'Salary in Industry'!$AR13,IF(ISNA(VLOOKUP(Simulation!BG14,'Ransom Statistics'!$A$1:$D$18,4,FALSE)),'Ransom Statistics'!$D$18,VLOOKUP(Simulation!BG14,'Ransom Statistics'!$A$1:$D$18,4,FALSE)))*IF(ISNA(VLOOKUP(BG14,'Industry Type P'!$A$2:$S$103,2,FALSE)),'Kidnapping Statistics'!$K$3,VLOOKUP(BG14,'Industry Type P'!$A$1:$S$102,MATCH($C14,'Industry Type P'!$A$1:$S$1,0),FALSE))*VLOOKUP(BI14,'travel frequence'!$A$1:$D$4,MATCH(BH14,'travel frequence'!$A$1:$D$1,0),FALSE)*BJ14*IF(ISNA(VLOOKUP(BJ14,'travel frequence'!$A$7:$B$23,2,FALSE)),'travel frequence'!$B$23,VLOOKUP(BJ14,'travel frequence'!$A$7:$B$23,2,FALSE)),0) -> 45.434429 | BL14: =IF(VLOOKUP(BG14,'Industry Type P'!$A$1:$S$102,MATCH($C14,'Industry Type P'!$A$1:$S$1,0),FALSE)>RAND(),"Y","N") -> N | BM14: 0 | BN14: 0 | BO14: =IF(BL14="N"," ",INDEX('Other cost'!$A$9:$A$13,RANDBETWEEN(1,5),1)) ->  | BP14: =MIN($H14,IF(BL14="N",0,SUM(BN14,'Other cost'!$B$16,VLOOKUP(BO14,'Other cost'!$A$9:$B$13,2,FALSE),IF(BM14>=30,HLOOKUP(30,'Salary in Industry'!$N$1:$AQ$1001,$B14+1,FALSE),HLOOKUP(BM14,'Salary in Industry'!$N$1:$AQ$1001,$B14+1,FALSE)),IF(ISNA(VLOOKUP(BG14,'Ransom Statistics'!$A$1:$D$18,4,FALSE)),'Ransom Statistics'!$D$18,VLOOKUP(BG14,'Ransom Statistics'!$A$1:$D$18,4,FALSE))))) -> 0 | BQ14: =INDEX([1]Variables!$A$2:$A$103,INT((RAND()*100)+1),1) -> Gaza Strip | BR14: =INDEX(Variables!$E$3:$E$5,RANDBETWEEN(1,3),1) -> Medium (1 week to 1month) | BS14: =INDEX([1]Variables!$G$3:$G$5,RANDBETWEEN(1,3),1) -> frequent (3 times to 12 times) | BT14: 11 | BU14: =IF(ISNA(VLOOKUP(BQ14,Variables!$K$1:$K$36,1,FALSE)),SUM('Other cost'!$B$2,'Salary in Industry'!$AR13,IF(ISNA(VLOOKUP(Simulation!BQ14,'Ransom Statistics'!$A$1:$D$18,4,FALSE)),'Ransom Statistics'!$D$18,VLOOKUP(Simulation!BQ14,'Ransom Statistics'!$A$1:$D$18,4,FALSE)))*IF(ISNA(VLOOKUP(BQ14,'Industry Type P'!$A$2:$S$103,2,FALSE)),'Kidnapping Statistics'!$K$3,VLOOKUP(BQ14,'Industry Type P'!$A$1:$S$102,MATCH($C14,'Industry Type P'!$A$1:$S$1,0),FALSE))*VLOOKUP(BS14,'travel frequence'!$A$1:$D$4,MATCH(BR14,'travel frequence'!$A$1:$D$1,0),FALSE)*BT14*IF(ISNA(VLOOKUP(BT14,'travel frequence'!$A$7:$B$23,2,FALSE)),'travel frequence'!$B$23,VLOOKUP(BT14,'travel frequence'!$A$7:$B$23,2,FALSE)),0) -> 1978.056018 | BV14: =IF(VLOOKUP(BQ14,'Industry Type P'!$A$1:$S$102,MATCH($C14,'Industry Type P'!$A$1:$S$1,0),FALSE)>RAND(),"Y","N") -> N | BW14: 0 | BX14: 0 | BY14: =IF(BV14="N"," ",INDEX('Other cost'!$A$9:$A$13,RANDBETWEEN(1,5),1)) ->  | BZ14: =MIN($H14,IF(BV14="N",0,SUM(BX14,'Other cost'!$B$16,VLOOKUP(BY14,'Other cost'!$A$9:$B$13,2,FALSE),IF(BW14>=30,HLOOKUP(30,'Salary in Industry'!$N$1:$AQ$1001,$B14+1,FALSE),HLOOKUP(BW14,'Salary in Industry'!$N$1:$AQ$1001,$B14+1,FALSE)),IF(ISNA(VLOOKUP(BQ14,'Ransom Statistics'!$A$1:$D$18,4,FALSE)),'Ransom Statistics'!$D$18,VLOOKUP(BQ14,'Ransom Statistics'!$A$1:$D$18,4,FALSE))))) -> 0 | CA14: =INDEX([1]Variables!$A$2:$A$103,INT((RAND()*100)+1),1) -> Djibouti | CB14: =INDEX(Variables!$E$3:$E$5,RANDBETWEEN(1,3),1) -> Medium (1 week to 1month) | CC14: =INDEX([1]Variables!$G$3:$G$5,RANDBETWEEN(1,3),1) -> very frequent ( more than 12 times a year) | CD14: 6 | CE14: =IF(ISNA(VLOOKUP(CA14,Variables!$K$1:$K$36,1,FALSE)),SUM('Other cost'!$B$2,'Salary in Industry'!$AR13,IF(ISNA(VLOOKUP(Simulation!CA14,'Ransom Statistics'!$A$1:$D$18,4,FALSE)),'Ransom Statistics'!$D$18,VLOOKUP(Simulation!CA14,'Ransom Statistics'!$A$1:$D$18,4,FALSE)))*IF(ISNA(VLOOKUP(CA14,'Industry Type P'!$A$2:$S$103,2,FALSE)),'Kidnapping Statistics'!$K$3,VLOOKUP(CA14,'Industry Type P'!$A$1:$S$102,MATCH($C14,'Industry Type P'!$A$1:$S$1,0),FALSE))*VLOOKUP(CC14,'travel frequence'!$A$1:$D$4,MATCH(CB14,'travel frequence'!$A$1:$D$1,0),FALSE)*CD14*IF(ISNA(VLOOKUP(CD14,'travel frequence'!$A$7:$B$23,2,FALSE)),'travel frequence'!$B$23,VLOOKUP(CD14,'travel frequence'!$A$7:$B$23,2,FALSE)),0) -> 0 | CF14: =IF(VLOOKUP(CA14,'Industry Type P'!$A$1:$S$102,MATCH($C14,'Industry Type P'!$A$1:$S$1,0),FALSE)>RAND(),"Y","N") -> N | CG14: 0 | CH14: 0 | CI14: =IF(CF14="N"," ",INDEX('Other cost'!$A$9:$A$13,RANDBETWEEN(1,5),1)) ->  | CJ14: =MIN($H14,IF(CF14="N",0,SUM(CH14,'Other cost'!$B$16,VLOOKUP(CI14,'Other cost'!$A$9:$B$13,2,FALSE),IF(CG14>=30,HLOOKUP(30,'Salary in Industry'!$N$1:$AQ$1001,$B14+1,FALSE),HLOOKUP(CG14,'Salary in Industry'!$N$1:$AQ$1001,$B14+1,FALSE)),IF(ISNA(VLOOKUP(CA14,'Ransom Statistics'!$A$1:$D$18,4,FALSE)),'Ransom Statistics'!$D$18,VLOOKUP(CA14,'Ransom Statistics'!$A$1:$D$18,4,FALSE))))) -> 0 | CK14: =INDEX([1]Variables!$A$2:$A$103,INT((RAND()*100)+1),1) -> North Korea | CL14: =INDEX(Variables!$E$3:$E$5,RANDBETWEEN(1,3),1) -> Long (more than one month) | CM14: =INDEX([1]Variables!$G$3:$G$5,RANDBETWEEN(1,3),1) -> very frequent ( more than 12 times a year) | CN14: 11 | CO14: =IF(ISNA(VLOOKUP(CK14,Variables!$K$1:$K$36,1,FALSE)),SUM('Other cost'!$B$2,'Salary in Industry'!$AR13,IF(ISNA(VLOOKUP(Simulation!CK14,'Ransom Statistics'!$A$1:$D$18,4,FALSE)),'Ransom Statistics'!$D$18,VLOOKUP(Simulation!CK14,'Ransom Statistics'!$A$1:$D$18,4,FALSE)))*IF(ISNA(VLOOKUP(CK14,'Industry Type P'!$A$2:$S$103,2,FALSE)),'Kidnapping Statistics'!$K$3,VLOOKUP(CK14,'Industry Type P'!$A$1:$S$102,MATCH($C14,'Industry Type P'!$A$1:$S$1,0),FALSE))*VLOOKUP(CM14,'travel frequence'!$A$1:$D$4,MATCH(CL14,'travel frequence'!$A$1:$D$1,0),FALSE)*CN14*IF(ISNA(VLOOKUP(CN14,'travel frequence'!$A$7:$B$23,2,FALSE)),'travel frequence'!$B$23,VLOOKUP(CN14,'travel frequence'!$A$7:$B$23,2,FALSE)),0) -> 0 | CP14: =IF(VLOOKUP(CK14,'Industry Type P'!$A$1:$S$102,MATCH($C14,'Industry Type P'!$A$1:$S$1,0),FALSE)>RAND(),"Y","N") -> N | CQ14: 0 | CR14: 0 | CS14: =IF(CP14="N"," ",INDEX('Other cost'!$A$9:$A$13,RANDBETWEEN(1,5),1)) ->  | CT14: =MIN($H14,IF(CP14="N",0,SUM(CR14,'Other cost'!$B$16,VLOOKUP(CS14,'Other cost'!$A$9:$B$13,2,FALSE),IF(CQ14>=30,HLOOKUP(30,'Salary in Industry'!$N$1:$AQ$1001,$B14+1,FALSE),HLOOKUP(CQ14,'Salary in Industry'!$N$1:$AQ$1001,$B14+1,FALSE)),IF(ISNA(VLOOKUP(CK14,'Ransom Statistics'!$A$1:$D$18,4,FALSE)),'Ransom Statistics'!$D$18,VLOOKUP(CK14,'Ransom Statistics'!$A$1:$D$18,4,FALSE))))) -> 0 | CU14: =INDEX([1]Variables!$A$2:$A$103,INT((RAND()*100)+1),1) -> Burkina | CV14: =INDEX(Variables!$E$3:$E$5,RANDBETWEEN(1,3),1) -> Short (less a week) | CW14: =INDEX([1]Variables!$G$3:$G$5,RANDBETWEEN(1,3),1) -> very frequent ( more than 12 times a year) | CX14: 20 | CY14: =IF(ISNA(VLOOKUP(CU14,Variables!$K$1:$K$36,1,FALSE)),SUM('Other cost'!$B$2,'Salary in Industry'!$AR13,IF(ISNA(VLOOKUP(Simulation!CU14,'Ransom Statistics'!$A$1:$D$18,4,FALSE)),'Ransom Statistics'!$D$18,VLOOKUP(Simulation!CU14,'Ransom Statistics'!$A$1:$D$18,4,FALSE)))*IF(ISNA(VLOOKUP(CU14,'Industry Type P'!$A$2:$S$103,2,FALSE)),'Kidnapping Statistics'!$K$3,VLOOKUP(CU14,'Industry Type P'!$A$1:$S$102,MATCH($C14,'Industry Type P'!$A$1:$S$1,0),FALSE))*VLOOKUP(CW14,'travel frequence'!$A$1:$D$4,MATCH(CV14,'travel frequence'!$A$1:$D$1,0),FALSE)*CX14*IF(ISNA(VLOOKUP(CX14,'travel frequence'!$A$7:$B$23,2,FALSE)),'travel frequence'!$B$23,VLOOKUP(CX14,'travel frequence'!$A$7:$B$23,2,FALSE)),0) -> 10.25231496 | CZ14: =IF(VLOOKUP(CU14,'Industry Type P'!$A$1:$S$102,MATCH($C14,'Industry Type P'!$A$1:$S$1,0),FALSE)>RAND(),"Y","N") -> N | DA14: 0 | DB14: 0 | DC14: =IF(CZ14="N"," ",INDEX('Other cost'!$A$9:$A$13,RANDBETWEEN(1,5),1)) ->  | DD14: =MIN($H14,IF(CZ14="N",0,SUM(DB14,'Other cost'!$B$16,VLOOKUP(DC14,'Other cost'!$A$9:$B$13,2,FALSE),IF(DA14>=30,HLOOKUP(30,'Salary in Industry'!$N$1:$AQ$1001,$B14+1,FALSE),HLOOKUP(DA14,'Salary in Industry'!$N$1:$AQ$1001,$B14+1,FALSE)),IF(ISNA(VLOOKUP(CU14,'Ransom Statistics'!$A$1:$D$18,4,FALSE)),'Ransom Statistics'!$D$18,VLOOKUP(CU14,'Ransom Statistics'!$A$1:$D$18,4,FALSE))))) -> 0 | DE14: 0 | DF14: =((IF(A14=0,0,IF(A14=1,M14,IF(A14=2,M14+W14,IF(A14=3,M14+W14+AG14,IF(A14=4,M14+W14+AG14+AQ14,IF(A14=5,M14+W14+AG14+AQ14+BA14,IF(A14=6,M14+W14+AG14+AQ14+BA14+BK14,IF(A14=7,M14+W14+AG14+AQ14+BA14+BK14+BU14,IF(A14=8,M14+W14+AG14+AQ14+BA14+BK14+BU14+CE14,IF(A14=9,M14+W14+AG14+AQ14+BA14+BK14+BU14+CE14+CO14,IF(A14=10,M14+W14+AG14+AQ14+BA14+BK14+BU14+CE14+CO14+CY14))))))))))))/(1+Variables!$G$12))*(1+Variables!$F$19) -> 0
A15: 0 | B15: 13 | C15: =INDEX([1]Variables!$C$2:$C$19,INT((RAND()*10)+1),1) -> Construction | D15: 31 | E15: 228 | F15: 15492 | G15: 24045407 | H15: =Variables!$H$18 -> 1000000 | I15: =INDEX([1]Variables!$A$2:$A$103,INT((RAND()*100)+1),1) -> Panama | J15: =INDEX(Variables!$E$3:$E$5,RANDBETWEEN(1,3),1) -> Long (more than one month) | K15: =INDEX([1]Variables!$G$3:$G$5,RANDBETWEEN(1,3),1) -> frequent (3 times to 12 times) | L15: 11 | M15: =IF(ISNA(VLOOKUP(I15,Variables!$K$1:$K$36,1,FALSE)),SUM('Other cost'!$B$2,'Salary in Industry'!$AR14,IF(ISNA(VLOOKUP(Simulation!I15,'Ransom Statistics'!$A$1:$D$18,4,FALSE)),'Ransom Statistics'!$D$18,VLOOKUP(Simulation!I15,'Ransom Statistics'!$A$1:$D$18,4,FALSE)))*IF(ISNA(VLOOKUP(I15,'Industry Type P'!$A$2:$S$103,2,FALSE)),'Kidnapping Statistics'!$K$3,VLOOKUP(I15,'Industry Type P'!$A$1:$S$102,MATCH($C15,'Industry Type P'!$A$1:$S$1,0),FALSE))*VLOOKUP(K15,'travel frequence'!$A$1:$D$4,MATCH(J15,'travel frequence'!$A$1:$D$1,0),FALSE)*L15*IF(ISNA(VLOOKUP(L15,'travel frequence'!$A$7:$B$23,2,FALSE)),'travel frequence'!$B$23,VLOOKUP(L15,'travel frequence'!$A$7:$B$23,2,FALSE)),0) -> 31.77568464 | N15: =IF(VLOOKUP(I15,'Industry Type P'!$A$1:$S$102,MATCH($C15,'Industry Type P'!$A$1:$S$1,0),FALSE)>RAND(),"Y","N") -> N | O15: 0 | P15: 0 | Q15: =IF(N15="N"," ",INDEX('Other cost'!$A$9:$A$13,RANDBETWEEN(1,5),1)) ->  | R15: =MIN($H15,IF(N15="N",0,SUM(P15,'Other cost'!$B$16,VLOOKUP(Q15,'Other cost'!$A$9:$B$13,2,FALSE),IF(O15>=30,HLOOKUP(30,'Salary in Industry'!$N$1:$AQ$1001,$B15+1,FALSE),HLOOKUP(O15,'Salary in Industry'!$N$1:$AQ$1001,$B15+1,FALSE)),IF(ISNA(VLOOKUP(I15,'Ransom Statistics'!$A$1:$D$18,4,FALSE)),'Ransom Statistics'!$D$18,VLOOKUP(I15,'Ransom Statistics'!$A$1:$D$18,4,FALSE))))) -> 0 | S15: =INDEX([1]Variables!$A$2:$A$103,INT((RAND()*100)+1),1) -> Congo | T15: =INDEX(Variables!$E$3:$E$5,RANDBETWEEN(1,3),1) -> Medium (1 week to 1month) | U15: =INDEX([1]Variables!$G$3:$G$5,RANDBETWEEN(1,3),1) -> very frequent ( more than 12 times a year) | V15: 9 | W15: =IF(ISNA(VLOOKUP(S15,Variables!$K$1:$K$36,1,FALSE)),SUM('Other cost'!$B$2,'Salary in Industry'!$AR14,IF(ISNA(VLOOKUP(Simulation!S15,'Ransom Statistics'!$A$1:$D$18,4,FALSE)),'Ransom Statistics'!$D$18,VLOOKUP(Simulation!S15,'Ransom Statistics'!$A$1:$D$18,4,FALSE)))*IF(ISNA(VLOOKUP(S15,'Industry Type P'!$A$2:$S$103,2,FALSE)),'Kidnapping Statistics'!$K$3,VLOOKUP(S15,'Industry Type P'!$A$1:$S$102,MATCH($C15,'Industry Type P'!$A$1:$S$1,0),FALSE))*VLOOKUP(U15,'travel frequence'!$A$1:$D$4,MATCH(T15,'travel frequence'!$A$1:$D$1,0),FALSE)*V15*IF(ISNA(VLOOKUP(V15,'travel frequence'!$A$7:$B$23,2,FALSE)),'travel frequence'!$B$23,VLOOKUP(V15,'travel frequence'!$A$7:$B$23,2,FALSE)),0) -> 6.459201847 | X15: =IF(VLOOKUP(S15,'Industry Type P'!$A$1:$S$102,MATCH($C15,'Industry Type P'!$A$1:$S$1,0),FALSE)>RAND(),"Y","N") -> N | Y15: 0 | Z15: 0 | AA15: =IF(X15="N"," ",INDEX('Other cost'!$A$9:$A$13,RANDBETWEEN(1,5),1)) ->  | AB15: =MIN($H15,IF(X15="N",0,SUM(Z15,'Other cost'!$B$16,VLOOKUP(AA15,'Other cost'!$A$9:$B$13,2,FALSE),IF(Y15>=30,HLOOKUP(30,'Salary in Industry'!$N$1:$AQ$1001,$B15+1,FALSE),HLOOKUP(Y15,'Salary in Industry'!$N$1:$AQ$1001,$B15+1,FALSE)),IF(ISNA(VLOOKUP(S15,'Ransom Statistics'!$A$1:$D$18,4,FALSE)),'Ransom Statistics'!$D$18,VLOOKUP(S15,'Ransom Statistics'!$A$1:$D$18,4,FALSE))))) -> 0 | AC15: =INDEX([1]Variables!$A$2:$A$103,INT((RAND()*100)+1),1) -> Ethiopia | AD15: =INDEX(Variables!$E$3:$E$5,RANDBETWEEN(1,3),1) -> Long (more than one month) | AE15: =INDEX([1]Variables!$G$3:$G$5,RANDBETWEEN(1,3),1) -> infrequent (less than 3 times) | AF15: 12 | AG15: =IF(ISNA(VLOOKUP(AC15,Variables!$K$1:$K$36,1,FALSE)),SUM('Other cost'!$B$2,'Salary in Industry'!$AR14,IF(ISNA(VLOOKUP(Simulation!AC15,'Ransom Statistics'!$A$1:$D$18,4,FALSE)),'Ransom Statistics'!$D$18,VLOOKUP(Simulation!AC15,'Ransom Statistics'!$A$1:$D$18,4,FALSE)))*IF(ISNA(VLOOKUP(AC15,'Industry Type P'!$A$2:$S$103,2,FALSE)),'Kidnapping Statistics'!$K$3,VLOOKUP(AC15,'Industry Type P'!$A$1:$S$102,MATCH($C15,'Industry Type P'!$A$1:$S$1,0),FALSE))*VLOOKUP(AE15,'travel frequence'!$A$1:$D$4,MATCH(AD15,'travel frequence'!$A$1:$D$1,0),FALSE)*AF15*IF(ISNA(VLOOKUP(AF15,'travel frequence'!$A$7:$B$23,2,FALSE)),'travel frequence'!$B$23,VLOOKUP(AF15,'travel frequence'!$A$7:$B$23,2,FALSE)),0) -> 2153.067282 | AH15: =IF(VLOOKUP(AC15,'Industry Type P'!$A$1:$S$102,MATCH($C15,'Industry Type P'!$A$1:$S$1,0),FALSE)>RAND(),"Y","N") -> N | AI15: 0 | AJ15: 0 | AK15: =IF(AH15="N"," ",INDEX('Other cost'!$A$9:$A$13,RANDBETWEEN(1,5),1)) ->  | AL15: =MIN($H15,IF(AH15="N",0,SUM(AJ15,'Other cost'!$B$16,VLOOKUP(AK15,'Other cost'!$A$9:$B$13,2,FALSE),IF(AI15>=30,HLOOKUP(30,'Salary in Industry'!$N$1:$AQ$1001,$B15+1,FALSE),HLOOKUP(AI15,'Salary in Industry'!$N$1:$AQ$1001,$B15+1,FALSE)),IF(ISNA(VLOOKUP(AC15,'Ransom Statistics'!$A$1:$D$18,4,FALSE)),'Ransom Statistics'!$D$18,VLOOKUP(AC15,'Ransom Statistics'!$A$1:$D$18,4,FALSE))))) -> 0 | AM15: =INDEX([1]Variables!$A$2:$A$103,INT((RAND()*100)+1),1) -> Greece | AN15: =INDEX(Variables!$E$3:$E$5,RANDBETWEEN(1,3),1) -> Medium (1 week to 1month) | AO15: =INDEX([1]Variables!$G$3:$G$5,RANDBETWEEN(1,3),1) -> very frequent ( more than 12 times a year) | AP15: 7 | AQ15: =IF(ISNA(VLOOKUP(AM15,Variables!$K$1:$K$36,1,FALSE)),SUM('Other cost'!$B$2,'Salary in Industry'!$AR14,IF(ISNA(VLOOKUP(Simulation!AM15,'Ransom Statistics'!$A$1:$D$18,4,FALSE)),'Ransom Statistics'!$D$18,VLOOKUP(Simulation!AM15,'Ransom Statistics'!$A$1:$D$18,4,FALSE)))*IF(ISNA(VLOOKUP(AM15,'Industry Type P'!$A$2:$S$103,2,FALSE)),'Kidnapping Statistics'!$K$3,VLOOKUP(AM15,'Industry Type P'!$A$1:$S$102,MATCH($C15,'Industry Type P'!$A$1:$S$1,0),FALSE))*VLOOKUP(AO15,'travel frequence'!$A$1:$D$4,MATCH(AN15,'travel frequence'!$A$1:$D$1,0),FALSE)*AP15*IF(ISNA(VLOOKUP(AP15,'travel frequence'!$A$7:$B$23,2,FALSE)),'travel frequence'!$B$23,VLOOKUP(AP15,'travel frequence'!$A$7:$B$23,2,FALSE)),0) -> 5.023823659 | AR15: =IF(VLOOKUP(AM15,'Industry Type P'!$A$1:$S$102,MATCH($C15,'Industry Type P'!$A$1:$S$1,0),FALSE)>RAND(),"Y","N") -> N | AS15: 0 | AT15: 0 | AU15: =IF(AR15="N"," ",INDEX('Other cost'!$A$9:$A$13,RANDBETWEEN(1,5),1)) ->  | AV15: =MIN($H15,IF(AR15="N",0,SUM(AT15,'Other cost'!$B$16,VLOOKUP(AU15,'Other cost'!$A$9:$B$13,2,FALSE),IF(AS15>=30,HLOOKUP(30,'Salary in Industry'!$N$1:$AQ$1001,$B15+1,FALSE),HLOOKUP(AS15,'Salary in Industry'!$N$1:$AQ$1001,$B15+1,FALSE)),IF(ISNA(VLOOKUP(AM15,'Ransom Statistics'!$A$1:$D$18,4,FALSE)),'Ransom Statistics'!$D$18,VLOOKUP(AM15,'Ransom Statistics'!$A$1:$D$18,4,FALSE))))) -> 0 | AW15: =INDEX([1]Variables!$A$2:$A$103,INT((RAND()*100)+1),1) -> North Korea | AX15: =INDEX(Variables!$E$3:$E$5,RANDBETWEEN(1,3),1) -> Long (more than one month) | AY15: =INDEX([1]Variables!$G$3:$G$5,RANDBETWEEN(1,3),1) -> infrequent (less than 3 times) | AZ15: 18 | BA15: =IF(ISNA(VLOOKUP(AW15,Variables!$K$1:$K$36,1,FALSE)),SUM('Other cost'!$B$2,'Salary in Industry'!$AR14,IF(ISNA(VLOOKUP(Simulation!AW15,'Ransom Statistics'!$A$1:$D$18,4,FALSE)),'Ransom Statistics'!$D$18,VLOOKUP(Simulation!AW15,'Ransom Statistics'!$A$1:$D$18,4,FALSE)))*IF(ISNA(VLOOKUP(AW15,'Industry Type P'!$A$2:$S$103,2,FALSE)),'Kidnapping Statistics'!$K$3,VLOOKUP(AW15,'Industry Type P'!$A$1:$S$102,MATCH($C15,'Industry Type P'!$A$1:$S$1,0),FALSE))*VLOOKUP(AY15,'travel frequence'!$A$1:$D$4,MATCH(AX15,'travel frequence'!$A$1:$D$1,0),FALSE)*AZ15*IF(ISNA(VLOOKUP(AZ15,'travel frequence'!$A$7:$B$23,2,FALSE)),'travel frequence'!$B$23,VLOOKUP(AZ15,'travel frequence'!$A$7:$B$23,2,FALSE)),0) -> 0 | BB15: =IF(VLOOKUP(AW15,'Industry Type P'!$A$1:$S$102,MATCH($C15,'Industry Type P'!$A$1:$S$1,0),FALSE)>RAND(),"Y","N") -> N | BC15: 0 | BD15: 0 | BE15: =IF(BB15="N"," ",INDEX('Other cost'!$A$9:$A$13,RANDBETWEEN(1,5),1)) ->  | BF15: =MIN($H15,IF(BB15="N",0,SUM(BD15,'Other cost'!$B$16,VLOOKUP(BE15,'Other cost'!$A$9:$B$13,2,FALSE),IF(BC15>=30,HLOOKUP(30,'Salary in Industry'!$N$1:$AQ$1001,$B15+1,FALSE),HLOOKUP(BC15,'Salary in Industry'!$N$1:$AQ$1001,$B15+1,FALSE)),IF(ISNA(VLOOKUP(AW15,'Ransom Statistics'!$A$1:$D$18,4,FALSE)),'Ransom Statistics'!$D$18,VLOOKUP(AW15,'Ransom Statistics'!$A$1:$D$18,4,FALSE))))) -> 0 | BG15: =INDEX([1]Variables!$A$2:$A$103,INT((RAND()*100)+1),1) -> Kazakhstan | BH15: =INDEX(Variables!$E$3:$E$5,RANDBETWEEN(1,3),1) -> Short (less a week) | BI15: =INDEX([1]Variables!$G$3:$G$5,RANDBETWEEN(1,3),1) -> very frequent ( more than 12 times a year) | BJ15: 12 | BK15: =IF(ISNA(VLOOKUP(BG15,Variables!$K$1:$K$36,1,FALSE)),SUM('Other cost'!$B$2,'Salary in Industry'!$AR14,IF(ISNA(VLOOKUP(Simulation!BG15,'Ransom Statistics'!$A$1:$D$18,4,FALSE)),'Ransom Statistics'!$D$18,VLOOKUP(Simulation!BG15,'Ransom Statistics'!$A$1:$D$18,4,FALSE)))*IF(ISNA(VLOOKUP(BG15,'Industry Type P'!$A$2:$S$103,2,FALSE)),'Kidnapping Statistics'!$K$3,VLOOKUP(BG15,'Industry Type P'!$A$1:$S$102,MATCH($C15,'Industry Type P'!$A$1:$S$1,0),FALSE))*VLOOKUP(BI15,'travel frequence'!$A$1:$D$4,MATCH(BH15,'travel frequence'!$A$1:$D$1,0),FALSE)*BJ15*IF(ISNA(VLOOKUP(BJ15,'travel frequence'!$A$7:$B$23,2,FALSE)),'travel frequence'!$B$23,VLOOKUP(BJ15,'travel frequence'!$A$7:$B$23,2,FALSE)),0) -> 39.47290017 | BL15: =IF(VLOOKUP(BG15,'Industry Type P'!$A$1:$S$102,MATCH($C15,'Industry Type P'!$A$1:$S$1,0),FALSE)>RAND(),"Y","N") -> N | BM15: 0 | BN15: 0 | BO15: =IF(BL15="N"," ",INDEX('Other cost'!$A$9:$A$13,RANDBETWEEN(1,5),1)) ->  | BP15: =MIN($H15,IF(BL15="N",0,SUM(BN15,'Other cost'!$B$16,VLOOKUP(BO15,'Other cost'!$A$9:$B$13,2,FALSE),IF(BM15>=30,HLOOKUP(30,'Salary in Industry'!$N$1:$AQ$1001,$B15+1,FALSE),HLOOKUP(BM15,'Salary in Industry'!$N$1:$AQ$1001,$B15+1,FALSE)),IF(ISNA(VLOOKUP(BG15,'Ransom Statistics'!$A$1:$D$18,4,FALSE)),'Ransom Statistics'!$D$18,VLOOKUP(BG15,'Ransom Statistics'!$A$1:$D$18,4,FALSE))))) -> 0 | BQ15: =INDEX([1]Variables!$A$2:$A$103,INT((RAND()*100)+1),1) -> French Guiana | BR15: =INDEX(Variables!$E$3:$E$5,RANDBETWEEN(1,3),1) -> Medium (1 week to 1month) | BS15: =INDEX([1]Variables!$G$3:$G$5,RANDBETWEEN(1,3),1) -> very frequent ( more than 12 times a year) | BT15: 2 | BU15: =IF(ISNA(VLOOKUP(BQ15,Variables!$K$1:$K$36,1,FALSE)),SUM('Other cost'!$B$2,'Salary in Industry'!$AR14,IF(ISNA(VLOOKUP(Simulation!BQ15,'Ransom Statistics'!$A$1:$D$18,4,FALSE)),'Ransom Statistics'!$D$18,VLOOKUP(Simulation!BQ15,'Ransom Statistics'!$A$1:$D$18,4,FALSE)))*IF(ISNA(VLOOKUP(BQ15,'Industry Type P'!$A$2:$S$103,2,FALSE)),'Kidnapping Statistics'!$K$3,VLOOKUP(BQ15,'Industry Type P'!$A$1:$S$102,MATCH($C15,'Industry Type P'!$A$1:$S$1,0),FALSE))*VLOOKUP(BS15,'travel frequence'!$A$1:$D$4,MATCH(BR15,'travel frequence'!$A$1:$D$1,0),FALSE)*BT15*IF(ISNA(VLOOKUP(BT15,'travel frequence'!$A$7:$B$23,2,FALSE)),'travel frequence'!$B$23,VLOOKUP(BT15,'travel frequence'!$A$7:$B$23,2,FALSE)),0) -> 1.614800462 | BV15: =IF(VLOOKUP(BQ15,'Industry Type P'!$A$1:$S$102,MATCH($C15,'Industry Type P'!$A$1:$S$1,0),FALSE)>RAND(),"Y","N") -> N | BW15: 0 | BX15: 0 | BY15: =IF(BV15="N"," ",INDEX('Other cost'!$A$9:$A$13,RANDBETWEEN(1,5),1)) ->  | BZ15: =MIN($H15,IF(BV15="N",0,SUM(BX15,'Other cost'!$B$16,VLOOKUP(BY15,'Other cost'!$A$9:$B$13,2,FALSE),IF(BW15>=30,HLOOKUP(30,'Salary in Industry'!$N$1:$AQ$1001,$B15+1,FALSE),HLOOKUP(BW15,'Salary in Industry'!$N$1:$AQ$1001,$B15+1,FALSE)),IF(ISNA(VLOOKUP(BQ15,'Ransom Statistics'!$A$1:$D$18,4,FALSE)),'Ransom Statistics'!$D$18,VLOOKUP(BQ15,'Ransom Statistics'!$A$1:$D$18,4,FALSE))))) -> 0 | CA15: =INDEX([1]Variables!$A$2:$A$103,INT((RAND()*100)+1),1) -> Nangladesh | CB15: =INDEX(Variables!$E$3:$E$5,RANDBETWEEN(1,3),1) -> Medium (1 week to 1month) | CC15: =INDEX([1]Variables!$G$3:$G$5,RANDBETWEEN(1,3),1) -> frequent (3 times to 12 times) | CD15: 7 | CE15: =IF(ISNA(VLOOKUP(CA15,Variables!$K$1:$K$36,1,FALSE)),SUM('Other cost'!$B$2,'Salary in Industry'!$AR14,IF(ISNA(VLOOKUP(Simulation!CA15,'Ransom Statistics'!$A$1:$D$18,4,FALSE)),'Ransom Statistics'!$D$18,VLOOKUP(Simulation!CA15,'Ransom Statistics'!$A$1:$D$18,4,FALSE)))*IF(ISNA(VLOOKUP(CA15,'Industry Type P'!$A$2:$S$103,2,FALSE)),'Kidnapping Statistics'!$K$3,VLOOKUP(CA15,'Industry Type P'!$A$1:$S$102,MATCH($C15,'Industry Type P'!$A$1:$S$1,0),FALSE))*VLOOKUP(CC15,'travel frequence'!$A$1:$D$4,MATCH(CB15,'travel frequence'!$A$1:$D$1,0),FALSE)*CD15*IF(ISNA(VLOOKUP(CD15,'travel frequence'!$A$7:$B$23,2,FALSE)),'travel frequence'!$B$23,VLOOKUP(CD15,'travel frequence'!$A$7:$B$23,2,FALSE)),0) -> 13769.16565 | CF15: =IF(VLOOKUP(CA15,'Industry Type P'!$A$1:$S$102,MATCH($C15,'Industry Type P'!$A$1:$S$1,0),FALSE)>RAND(),"Y","N") -> N | CG15: 0 | CH15: 0 | CI15: =IF(CF15="N"," ",INDEX('Other cost'!$A$9:$A$13,RANDBETWEEN(1,5),1)) ->  | CJ15: =MIN($H15,IF(CF15="N",0,SUM(CH15,'Other cost'!$B$16,VLOOKUP(CI15,'Other cost'!$A$9:$B$13,2,FALSE),IF(CG15>=30,HLOOKUP(30,'Salary in Industry'!$N$1:$AQ$1001,$B15+1,FALSE),HLOOKUP(CG15,'Salary in Industry'!$N$1:$AQ$1001,$B15+1,FALSE)),IF(ISNA(VLOOKUP(CA15,'Ransom Statistics'!$A$1:$D$18,4,FALSE)),'Ransom Statistics'!$D$18,VLOOKUP(CA15,'Ransom Statistics'!$A$1:$D$18,4,FALSE))))) -> 0 | CK15: =INDEX([1]Variables!$A$2:$A$103,INT((RAND()*100)+1),1) -> Ukraine | CL15: =INDEX(Variables!$E$3:$E$5,RANDBETWEEN(1,3),1) -> Long (more than one month) | CM15: =INDEX([1]Variables!$G$3:$G$5,RANDBETWEEN(1,3),1) -> infrequent (less than 3 times) | CN15: 19 | CO15: =IF(ISNA(VLOOKUP(CK15,Variables!$K$1:$K$36,1,FALSE)),SUM('Other cost'!$B$2,'Salary in Industry'!$AR14,IF(ISNA(VLOOKUP(Simulation!CK15,'Ransom Statistics'!$A$1:$D$18,4,FALSE)),'Ransom Statistics'!$D$18,VLOOKUP(Simulation!CK15,'Ransom Statistics'!$A$1:$D$18,4,FALSE)))*IF(ISNA(VLOOKUP(CK15,'Industry Type P'!$A$2:$S$103,2,FALSE)),'Kidnapping Statistics'!$K$3,VLOOKUP(CK15,'Industry Type P'!$A$1:$S$102,MATCH($C15,'Industry Type P'!$A$1:$S$1,0),FALSE))*VLOOKUP(CM15,'travel frequence'!$A$1:$D$4,MATCH(CL15,'travel frequence'!$A$1:$D$1,0),FALSE)*CN15*IF(ISNA(VLOOKUP(CN15,'travel frequence'!$A$7:$B$23,2,FALSE)),'travel frequence'!$B$23,VLOOKUP(CN15,'travel frequence'!$A$7:$B$23,2,FALSE)),0) -> 0 | CP15: =IF(VLOOKUP(CK15,'Industry Type P'!$A$1:$S$102,MATCH($C15,'Industry Type P'!$A$1:$S$1,0),FALSE)>RAND(),"Y","N") -> N | CQ15: 0 | CR15: 0 | CS15: =IF(CP15="N"," ",INDEX('Other cost'!$A$9:$A$13,RANDBETWEEN(1,5),1)) ->  | CT15: =MIN($H15,IF(CP15="N",0,SUM(CR15,'Other cost'!$B$16,VLOOKUP(CS15,'Other cost'!$A$9:$B$13,2,FALSE),IF(CQ15>=30,HLOOKUP(30,'Salary in Industry'!$N$1:$AQ$1001,$B15+1,FALSE),HLOOKUP(CQ15,'Salary in Industry'!$N$1:$AQ$1001,$B15+1,FALSE)),IF(ISNA(VLOOKUP(CK15,'Ransom Statistics'!$A$1:$D$18,4,FALSE)),'Ransom Statistics'!$D$18,VLOOKUP(CK15,'Ransom Statistics'!$A$1:$D$18,4,FALSE))))) -> 0 | CU15: =INDEX([1]Variables!$A$2:$A$103,INT((RAND()*100)+1),1) -> DRC | CV15: =INDEX(Variables!$E$3:$E$5,RANDBETWEEN(1,3),1) -> Long (more than one month) | CW15: =INDEX([1]Variables!$G$3:$G$5,RANDBETWEEN(1,3),1) -> very frequent ( more than 12 times a year) | CX15: 20 | CY15: =IF(ISNA(VLOOKUP(CU15,Variables!$K$1:$K$36,1,FALSE)),SUM('Other cost'!$B$2,'Salary in Industry'!$AR14,IF(ISNA(VLOOKUP(Simulation!CU15,'Ransom Statistics'!$A$1:$D$18,4,FALSE)),'Ransom Statistics'!$D$18,VLOOKUP(Simulation!CU15,'Ransom Statistics'!$A$1:$D$18,4,FALSE)))*IF(ISNA(VLOOKUP(CU15,'Industry Type P'!$A$2:$S$103,2,FALSE)),'Kidnapping Statistics'!$K$3,VLOOKUP(CU15,'Industry Type P'!$A$1:$S$102,MATCH($C15,'Industry Type P'!$A$1:$S$1,0),FALSE))*VLOOKUP(CW15,'travel frequence'!$A$1:$D$4,MATCH(CV15,'travel frequence'!$A$1:$D$1,0),FALSE)*CX15*IF(ISNA(VLOOKUP(CX15,'travel frequence'!$A$7:$B$23,2,FALSE)),'travel frequence'!$B$23,VLOOKUP(CX15,'travel frequence'!$A$7:$B$23,2,FALSE)),0) -> 0 | CZ15: =IF(VLOOKUP(CU15,'Industry Type P'!$A$1:$S$102,MATCH($C15,'Industry Type P'!$A$1:$S$1,0),FALSE)>RAND(),"Y","N") -> N | DA15: 0 | DB15: 0 | DC15: =IF(CZ15="N"," ",INDEX('Other cost'!$A$9:$A$13,RANDBETWEEN(1,5),1)) ->  | DD15: =MIN($H15,IF(CZ15="N",0,SUM(DB15,'Other cost'!$B$16,VLOOKUP(DC15,'Other cost'!$A$9:$B$13,2,FALSE),IF(DA15>=30,HLOOKUP(30,'Salary in Industry'!$N$1:$AQ$1001,$B15+1,FALSE),HLOOKUP(DA15,'Salary in Industry'!$N$1:$AQ$1001,$B15+1,FALSE)),IF(ISNA(VLOOKUP(CU15,'Ransom Statistics'!$A$1:$D$18,4,FALSE)),'Ransom Statistics'!$D$18,VLOOKUP(CU15,'Ransom Statistics'!$A$1:$D$18,4,FALSE))))) -> 0 | DE15: 0 | DF15: =((IF(A15=0,0,IF(A15=1,M15,IF(A15=2,M15+W15,IF(A15=3,M15+W15+AG15,IF(A15=4,M15+W15+AG15+AQ15,IF(A15=5,M15+W15+AG15+AQ15+BA15,IF(A15=6,M15+W15+AG15+AQ15+BA15+BK15,IF(A15=7,M15+W15+AG15+AQ15+BA15+BK15+BU15,IF(A15=8,M15+W15+AG15+AQ15+BA15+BK15+BU15+CE15,IF(A15=9,M15+W15+AG15+AQ15+BA15+BK15+BU15+CE15+CO15,IF(A15=10,M15+W15+AG15+AQ15+BA15+BK15+BU15+CE15+CO15+CY15))))))))))))/(1+Variables!$G$12))*(1+Variables!$F$19) -> 0
A16: 6 | B16: 14 | C16: =INDEX([1]Variables!$C$2:$C$19,INT((RAND()*10)+1),1) -> Agriculture, Forestry, Fishing, and Hunting | D16: 45 | E16: 463 | F16: 6789 | G16: 8409515 | H16: =Variables!$H$18 -> 1000000 | I16: =INDEX([1]Variables!$A$2:$A$103,INT((RAND()*100)+1),1) -> Kazakhstan | J16: =INDEX(Variables!$E$3:$E$5,RANDBETWEEN(1,3),1) -> Long (more than one month) | K16: =INDEX([1]Variables!$G$3:$G$5,RANDBETWEEN(1,3),1) -> infrequent (less than 3 times) | L16: 14 | M16: =IF(ISNA(VLOOKUP(I16,Variables!$K$1:$K$36,1,FALSE)),SUM('Other cost'!$B$2,'Salary in Industry'!$AR15,IF(ISNA(VLOOKUP(Simulation!I16,'Ransom Statistics'!$A$1:$D$18,4,FALSE)),'Ransom Statistics'!$D$18,VLOOKUP(Simulation!I16,'Ransom Statistics'!$A$1:$D$18,4,FALSE)))*IF(ISNA(VLOOKUP(I16,'Industry Type P'!$A$2:$S$103,2,FALSE)),'Kidnapping Statistics'!$K$3,VLOOKUP(I16,'Industry Type P'!$A$1:$S$102,MATCH($C16,'Industry Type P'!$A$1:$S$1,0),FALSE))*VLOOKUP(K16,'travel frequence'!$A$1:$D$4,MATCH(J16,'travel frequence'!$A$1:$D$1,0),FALSE)*L16*IF(ISNA(VLOOKUP(L16,'travel frequence'!$A$7:$B$23,2,FALSE)),'travel frequence'!$B$23,VLOOKUP(L16,'travel frequence'!$A$7:$B$23,2,FALSE)),0) -> 46.04805464 | N16: =IF(VLOOKUP(I16,'Industry Type P'!$A$1:$S$102,MATCH($C16,'Industry Type P'!$A$1:$S$1,0),FALSE)>RAND(),"Y","N") -> N | O16: 0 | P16: 0 | Q16: =IF(N16="N"," ",INDEX('Other cost'!$A$9:$A$13,RANDBETWEEN(1,5),1)) ->  | R16: =MIN($H16,IF(N16="N",0,SUM(P16,'Other cost'!$B$16,VLOOKUP(Q16,'Other cost'!$A$9:$B$13,2,FALSE),IF(O16>=30,HLOOKUP(30,'Salary in Industry'!$N$1:$AQ$1001,$B16+1,FALSE),HLOOKUP(O16,'Salary in Industry'!$N$1:$AQ$1001,$B16+1,FALSE)),IF(ISNA(VLOOKUP(I16,'Ransom Statistics'!$A$1:$D$18,4,FALSE)),'Ransom Statistics'!$D$18,VLOOKUP(I16,'Ransom Statistics'!$A$1:$D$18,4,FALSE))))) -> 0 | S16: =INDEX([1]Variables!$A$2:$A$103,INT((RAND()*100)+1),1) -> Rwanda | T16: =INDEX(Variables!$E$3:$E$5,RANDBETWEEN(1,3),1) -> Short (less a week) | U16: =INDEX([1]Variables!$G$3:$G$5,RANDBETWEEN(1,3),1) -> infrequent (less than 3 times) | V16: 12 | W16: =IF(ISNA(VLOOKUP(S16,Variables!$K$1:$K$36,1,FALSE)),SUM('Other cost'!$B$2,'Salary in Industry'!$AR15,IF(ISNA(VLOOKUP(Simulation!S16,'Ransom Statistics'!$A$1:$D$18,4,FALSE)),'Ransom Statistics'!$D$18,VLOOKUP(Simulation!S16,'Ransom Statistics'!$A$1:$D$18,4,FALSE)))*IF(ISNA(VLOOKUP(S16,'Industry Type P'!$A$2:$S$103,2,FALSE)),'Kidnapping Statistics'!$K$3,VLOOKUP(S16,'Industry Type P'!$A$1:$S$102,MATCH($C16,'Industry Type P'!$A$1:$S$1,0),FALSE))*VLOOKUP(U16,'travel frequence'!$A$1:$D$4,MATCH(T16,'travel frequence'!$A$1:$D$1,0),FALSE)*V16*IF(ISNA(VLOOKUP(V16,'travel frequence'!$A$7:$B$23,2,FALSE)),'travel frequence'!$B$23,VLOOKUP(V16,'travel frequence'!$A$7:$B$23,2,FALSE)),0) -> 1957.178237 | X16: =IF(VLOOKUP(S16,'Industry Type P'!$A$1:$S$102,MATCH($C16,'Industry Type P'!$A$1:$S$1,0),FALSE)>RAND(),"Y","N") -> N | Y16: 0 | Z16: 0 | AA16: =IF(X16="N"," ",INDEX('Other cost'!$A$9:$A$13,RANDBETWEEN(1,5),1)) ->  | AB16: =MIN($H16,IF(X16="N",0,SUM(Z16,'Other cost'!$B$16,VLOOKUP(AA16,'Other cost'!$A$9:$B$13,2,FALSE),IF(Y16>=30,HLOOKUP(30,'Salary in Industry'!$N$1:$AQ$1001,$B16+1,FALSE),HLOOKUP(Y16,'Salary in Industry'!$N$1:$AQ$1001,$B16+1,FALSE)),IF(ISNA(VLOOKUP(S16,'Ransom Statistics'!$A$1:$D$18,4,FALSE)),'Ransom Statistics'!$D$18,VLOOKUP(S16,'Ransom Statistics'!$A$1:$D$18,4,FALSE))))) -> 0 | AC16: =INDEX([1]Variables!$A$2:$A$103,INT((RAND()*100)+1),1) -> Panama | AD16: =INDEX(Variables!$E$3:$E$5,RANDBETWEEN(1,3),1) -> Short (less a week) | AE16: =INDEX([1]Variables!$G$3:$G$5,RANDBETWEEN(1,3),1) -> frequent (3 times to 12 times) | AF16: 14 | AG16: =IF(ISNA(VLOOKUP(AC16,Variables!$K$1:$K$36,1,FALSE)),SUM('Other cost'!$B$2,'Salary in Industry'!$AR15,IF(ISNA(VLOOKUP(Simulation!AC16,'Ransom Statistics'!$A$1:$D$18,4,FALSE)),'Ransom Statistics'!$D$18,VLOOKUP(Simulation!AC16,'Ransom Statistics'!$A$1:$D$18,4,FALSE)))*IF(ISNA(VLOOKUP(AC16,'Industry Type P'!$A$2:$S$103,2,FALSE)),'Kidnapping Statistics'!$K$3,VLOOKUP(AC16,'Industry Type P'!$A$1:$S$102,MATCH($C16,'Industry Type P'!$A$1:$S$1,0),FALSE))*VLOOKUP(AE16,'travel frequence'!$A$1:$D$4,MATCH(AD16,'travel frequence'!$A$1:$D$1,0),FALSE)*AF16*IF(ISNA(VLOOKUP(AF16,'travel frequence'!$A$7:$B$23,2,FALSE)),'travel frequence'!$B$23,VLOOKUP(AF16,'travel frequence'!$A$7:$B$23,2,FALSE)),0) -> 36.76233123 | AH16: =IF(VLOOKUP(AC16,'Industry Type P'!$A$1:$S$102,MATCH($C16,'Industry Type P'!$A$1:$S$1,0),FALSE)>RAND(),"Y","N") -> N | AI16: 0 | AJ16: 0 | AK16: =IF(AH16="N"," ",INDEX('Other cost'!$A$9:$A$13,RANDBETWEEN(1,5),1)) ->  | AL16: =MIN($H16,IF(AH16="N",0,SUM(AJ16,'Other cost'!$B$16,VLOOKUP(AK16,'Other cost'!$A$9:$B$13,2,FALSE),IF(AI16>=30,HLOOKUP(30,'Salary in Industry'!$N$1:$AQ$1001,$B16+1,FALSE),HLOOKUP(AI16,'Salary in Industry'!$N$1:$AQ$1001,$B16+1,FALSE)),IF(ISNA(VLOOKUP(AC16,'Ransom Statistics'!$A$1:$D$18,4,FALSE)),'Ransom Statistics'!$D$18,VLOOKUP(AC16,'Ransom Statistics'!$A$1:$D$18,4,FALSE))))) -> 0 | AM16: =INDEX([1]Variables!$A$2:$A$103,INT((RAND()*100)+1),1) -> Kashmir | AN16: =INDEX(Variables!$E$3:$E$5,RANDBETWEEN(1,3),1) -> Medium (1 week to 1month) | AO16: =INDEX([1]Variables!$G$3:$G$5,RANDBETWEEN(1,3),1) -> frequent (3 times to 12 times) | AP16: 3 | AQ16: =IF(ISNA(VLOOKUP(AM16,Variables!$K$1:$K$36,1,FALSE)),SUM('Other cost'!$B$2,'Salary in Industry'!$AR15,IF(ISNA(VLOOKUP(Simulation!AM16,'Ransom Statistics'!$A$1:$D$18,4,FALSE)),'Ransom Statistics'!$D$18,VLOOKUP(Simulation!AM16,'Ransom Statistics'!$A$1:$D$18,4,FALSE)))*IF(ISNA(VLOOKUP(AM16,'Industry Type P'!$A$2:$S$103,2,FALSE)),'Kidnapping Statistics'!$K$3,VLOOKUP(AM16,'Industry Type P'!$A$1:$S$102,MATCH($C16,'Industry Type P'!$A$1:$S$1,0),FALSE))*VLOOKUP(AO16,'travel frequence'!$A$1:$D$4,MATCH(AN16,'travel frequence'!$A$1:$D$1,0),FALSE)*AP16*IF(ISNA(VLOOKUP(AP16,'travel frequence'!$A$7:$B$23,2,FALSE)),'travel frequence'!$B$23,VLOOKUP(AP16,'travel frequence'!$A$7:$B$23,2,FALSE)),0) -> 924.7667172 | AR16: =IF(VLOOKUP(AM16,'Industry Type P'!$A$1:$S$102,MATCH($C16,'Industry Type P'!$A$1:$S$1,0),FALSE)>RAND(),"Y","N") -> N | AS16: 0 | AT16: 0 | AU16: =IF(AR16="N"," ",INDEX('Other cost'!$A$9:$A$13,RANDBETWEEN(1,5),1)) ->  | AV16: =MIN($H16,IF(AR16="N",0,SUM(AT16,'Other cost'!$B$16,VLOOKUP(AU16,'Other cost'!$A$9:$B$13,2,FALSE),IF(AS16>=30,HLOOKUP(30,'Salary in Industry'!$N$1:$AQ$1001,$B16+1,FALSE),HLOOKUP(AS16,'Salary in Industry'!$N$1:$AQ$1001,$B16+1,FALSE)),IF(ISNA(VLOOKUP(AM16,'Ransom Statistics'!$A$1:$D$18,4,FALSE)),'Ransom Statistics'!$D$18,VLOOKUP(AM16,'Ransom Statistics'!$A$1:$D$18,4,FALSE))))) -> 0 | AW16: =INDEX([1]Variables!$A$2:$A$103,INT((RAND()*100)+1),1) -> Maili | AX16: =INDEX(Variables!$E$3:$E$5,RANDBETWEEN(1,3),1) -> Medium (1 week to 1month) | AY16: =INDEX([1]Variables!$G$3:$G$5,RANDBETWEEN(1,3),1) -> frequent (3 times to 12 times) | AZ16: 9 | BA16: =IF(ISNA(VLOOKUP(AW16,Variables!$K$1:$K$36,1,FALSE)),SUM('Other cost'!$B$2,'Salary in Industry'!$AR15,IF(ISNA(VLOOKUP(Simulation!AW16,'Ransom Statistics'!$A$1:$D$18,4,FALSE)),'Ransom Statistics'!$D$18,VLOOKUP(Simulation!AW16,'Ransom Statistics'!$A$1:$D$18,4,FALSE)))*IF(ISNA(VLOOKUP(AW16,'Industry Type P'!$A$2:$S$103,2,FALSE)),'Kidnapping Statistics'!$K$3,VLOOKUP(AW16,'Industry Type P'!$A$1:$S$102,MATCH($C16,'Industry Type P'!$A$1:$S$1,0),FALSE))*VLOOKUP(AY16,'travel frequence'!$A$1:$D$4,MATCH(AX16,'travel frequence'!$A$1:$D$1,0),FALSE)*AZ16*IF(ISNA(VLOOKUP(AZ16,'travel frequence'!$A$7:$B$23,2,FALSE)),'travel frequence'!$B$23,VLOOKUP(AZ16,'travel frequence'!$A$7:$B$23,2,FALSE)),0) -> 2466.044579 | BB16: =IF(VLOOKUP(AW16,'Industry Type P'!$A$1:$S$102,MATCH($C16,'Industry Type P'!$A$1:$S$1,0),FALSE)>RAND(),"Y","N") -> N | BC16: 0 | BD16: 0 | BE16: =IF(BB16="N"," ",INDEX('Other cost'!$A$9:$A$13,RANDBETWEEN(1,5),1)) ->  | BF16: =MIN($H16,IF(BB16="N",0,SUM(BD16,'Other cost'!$B$16,VLOOKUP(BE16,'Other cost'!$A$9:$B$13,2,FALSE),IF(BC16>=30,HLOOKUP(30,'Salary in Industry'!$N$1:$AQ$1001,$B16+1,FALSE),HLOOKUP(BC16,'Salary in Industry'!$N$1:$AQ$1001,$B16+1,FALSE)),IF(ISNA(VLOOKUP(AW16,'Ransom Statistics'!$A$1:$D$18,4,FALSE)),'Ransom Statistics'!$D$18,VLOOKUP(AW16,'Ransom Statistics'!$A$1:$D$18,4,FALSE))))) -> 0 | BG16: =INDEX([1]Variables!$A$2:$A$103,INT((RAND()*100)+1),1) -> Pakistan | BH16: =INDEX(Variables!$E$3:$E$5,RANDBETWEEN(1,3),1) -> Long (more than one month) | BI16: =INDEX([1]Variables!$G$3:$G$5,RANDBETWEEN(1,3),1) -> infrequent (less than 3 times) | BJ16: 15 | BK16: =IF(ISNA(VLOOKUP(BG16,Variables!$K$1:$K$36,1,FALSE)),SUM('Other cost'!$B$2,'Salary in Industry'!$AR15,IF(ISNA(VLOOKUP(Simulation!BG16,'Ransom Statistics'!$A$1:$D$18,4,FALSE)),'Ransom Statistics'!$D$18,VLOOKUP(Simulation!BG16,'Ransom Statistics'!$A$1:$D$18,4,FALSE)))*IF(ISNA(VLOOKUP(BG16,'Industry Type P'!$A$2:$S$103,2,FALSE)),'Kidnapping Statistics'!$K$3,VLOOKUP(BG16,'Industry Type P'!$A$1:$S$102,MATCH($C16,'Industry Type P'!$A$1:$S$1,0),FALSE))*VLOOKUP(BI16,'travel frequence'!$A$1:$D$4,MATCH(BH16,'travel frequence'!$A$1:$D$1,0),FALSE)*BJ16*IF(ISNA(VLOOKUP(BJ16,'travel frequence'!$A$7:$B$23,2,FALSE)),'travel frequence'!$B$23,VLOOKUP(BJ16,'travel frequence'!$A$7:$B$23,2,FALSE)),0) -> 0 | BL16: =IF(VLOOKUP(BG16,'Industry Type P'!$A$1:$S$102,MATCH($C16,'Industry Type P'!$A$1:$S$1,0),FALSE)>RAND(),"Y","N") -> N | BM16: 0 | BN16: 0 | BO16: =IF(BL16="N"," ",INDEX('Other cost'!$A$9:$A$13,RANDBETWEEN(1,5),1)) ->  | BP16: =MIN($H16,IF(BL16="N",0,SUM(BN16,'Other cost'!$B$16,VLOOKUP(BO16,'Other cost'!$A$9:$B$13,2,FALSE),IF(BM16>=30,HLOOKUP(30,'Salary in Industry'!$N$1:$AQ$1001,$B16+1,FALSE),HLOOKUP(BM16,'Salary in Industry'!$N$1:$AQ$1001,$B16+1,FALSE)),IF(ISNA(VLOOKUP(BG16,'Ransom Statistics'!$A$1:$D$18,4,FALSE)),'Ransom Statistics'!$D$18,VLOOKUP(BG16,'Ransom Statistics'!$A$1:$D$18,4,FALSE))))) -> 0 | BQ16: =INDEX([1]Variables!$A$2:$A$103,INT((RAND()*100)+1),1) -> Pakistan | BR16: =INDEX(Variables!$E$3:$E$5,RANDBETWEEN(1,3),1) -> Short (less a week) | BS16: =INDEX([1]Variables!$G$3:$G$5,RANDBETWEEN(1,3),1) -> infrequent (less than 3 times) | BT16: 11 | BU16: =IF(ISNA(VLOOKUP(BQ16,Variables!$K$1:$K$36,1,FALSE)),SUM('Other cost'!$B$2,'Salary in Industry'!$AR15,IF(ISNA(VLOOKUP(Simulation!BQ16,'Ransom Statistics'!$A$1:$D$18,4,FALSE)),'Ransom Statistics'!$D$18,VLOOKUP(Simulation!BQ16,'Ransom Statistics'!$A$1:$D$18,4,FALSE)))*IF(ISNA(VLOOKUP(BQ16,'Industry Type P'!$A$2:$S$103,2,FALSE)),'Kidnapping Statistics'!$K$3,VLOOKUP(BQ16,'Industry Type P'!$A$1:$S$102,MATCH($C16,'Industry Type P'!$A$1:$S$1,0),FALSE))*VLOOKUP(BS16,'travel frequence'!$A$1:$D$4,MATCH(BR16,'travel frequence'!$A$1:$D$1,0),FALSE)*BT16*IF(ISNA(VLOOKUP(BT16,'travel frequence'!$A$7:$B$23,2,FALSE)),'travel frequence'!$B$23,VLOOKUP(BT16,'travel frequence'!$A$7:$B$23,2,FALSE)),0) -> 0 | BV16: =IF(VLOOKUP(BQ16,'Industry Type P'!$A$1:$S$102,MATCH($C16,'Industry Type P'!$A$1:$S$1,0),FALSE)>RAND(),"Y","N") -> N | BW16: 0 | BX16: 0 | BY16: =IF(BV16="N"," ",INDEX('Other cost'!$A$9:$A$13,RANDBETWEEN(1,5),1)) ->  | BZ16: =MIN($H16,IF(BV16="N",0,SUM(BX16,'Other cost'!$B$16,VLOOKUP(BY16,'Other cost'!$A$9:$B$13,2,FALSE),IF(BW16>=30,HLOOKUP(30,'Salary in Industry'!$N$1:$AQ$1001,$B16+1,FALSE),HLOOKUP(BW16,'Salary in Industry'!$N$1:$AQ$1001,$B16+1,FALSE)),IF(ISNA(VLOOKUP(BQ16,'Ransom Statistics'!$A$1:$D$18,4,FALSE)),'Ransom Statistics'!$D$18,VLOOKUP(BQ16,'Ransom Statistics'!$A$1:$D$18,4,FALSE))))) -> 0 | CA16: =INDEX([1]Variables!$A$2:$A$103,INT((RAND()*100)+1),1) -> Panama | CB16: =INDEX(Variables!$E$3:$E$5,RANDBETWEEN(1,3),1) -> Medium (1 week to 1month) | CC16: =INDEX([1]Variables!$G$3:$G$5,RANDBETWEEN(1,3),1) -> frequent (3 times to 12 times) | CD16: 18 | CE16: =IF(ISNA(VLOOKUP(CA16,Variables!$K$1:$K$36,1,FALSE)),SUM('Other cost'!$B$2,'Salary in Industry'!$AR15,IF(ISNA(VLOOKUP(Simulation!CA16,'Ransom Statistics'!$A$1:$D$18,4,FALSE)),'Ransom Statistics'!$D$18,VLOOKUP(Simulation!CA16,'Ransom Statistics'!$A$1:$D$18,4,FALSE)))*IF(ISNA(VLOOKUP(CA16,'Industry Type P'!$A$2:$S$103,2,FALSE)),'Kidnapping Statistics'!$K$3,VLOOKUP(CA16,'Industry Type P'!$A$1:$S$102,MATCH($C16,'Industry Type P'!$A$1:$S$1,0),FALSE))*VLOOKUP(CC16,'travel frequence'!$A$1:$D$4,MATCH(CB16,'travel frequence'!$A$1:$D$1,0),FALSE)*CD16*IF(ISNA(VLOOKUP(CD16,'travel frequence'!$A$7:$B$23,2,FALSE)),'travel frequence'!$B$23,VLOOKUP(CD16,'travel frequence'!$A$7:$B$23,2,FALSE)),0) -> 42.53926899 | CF16: =IF(VLOOKUP(CA16,'Industry Type P'!$A$1:$S$102,MATCH($C16,'Industry Type P'!$A$1:$S$1,0),FALSE)>RAND(),"Y","N") -> N | CG16: 0 | CH16: 0 | CI16: =IF(CF16="N"," ",INDEX('Other cost'!$A$9:$A$13,RANDBETWEEN(1,5),1)) ->  | CJ16: =MIN($H16,IF(CF16="N",0,SUM(CH16,'Other cost'!$B$16,VLOOKUP(CI16,'Other cost'!$A$9:$B$13,2,FALSE),IF(CG16>=30,HLOOKUP(30,'Salary in Industry'!$N$1:$AQ$1001,$B16+1,FALSE),HLOOKUP(CG16,'Salary in Industry'!$N$1:$AQ$1001,$B16+1,FALSE)),IF(ISNA(VLOOKUP(CA16,'Ransom Statistics'!$A$1:$D$18,4,FALSE)),'Ransom Statistics'!$D$18,VLOOKUP(CA16,'Ransom Statistics'!$A$1:$D$18,4,FALSE))))) -> 0 | CK16: =INDEX([1]Variables!$A$2:$A$103,INT((RAND()*100)+1),1) -> EI Salvador | CL16: =INDEX(Variables!$E$3:$E$5,RANDBETWEEN(1,3),1) -> Short (less a week) | CM16: =INDEX([1]Variables!$G$3:$G$5,RANDBETWEEN(1,3),1) -> very frequent ( more than 12 times a year) | CN16: 11 | CO16: =IF(ISNA(VLOOKUP(CK16,Variables!$K$1:$K$36,1,FALSE)),SUM('Other cost'!$B$2,'Salary in Industry'!$AR15,IF(ISNA(VLOOKUP(Simulation!CK16,'Ransom Statistics'!$A$1:$D$18,4,FALSE)),'Ransom Statistics'!$D$18,VLOOKUP(Simulation!CK16,'Ransom Statistics'!$A$1:$D$18,4,FALSE)))*IF(ISNA(VLOOKUP(CK16,'Industry Type P'!$A$2:$S$103,2,FALSE)),'Kidnapping Statistics'!$K$3,VLOOKUP(CK16,'Industry Type P'!$A$1:$S$102,MATCH($C16,'Industry Type P'!$A$1:$S$1,0),FALSE))*VLOOKUP(CM16,'travel frequence'!$A$1:$D$4,MATCH(CL16,'travel frequence'!$A$1:$D$1,0),FALSE)*CN16*IF(ISNA(VLOOKUP(CN16,'travel frequence'!$A$7:$B$23,2,FALSE)),'travel frequence'!$B$23,VLOOKUP(CN16,'travel frequence'!$A$7:$B$23,2,FALSE)),0) -> 45.76204188 | CP16: =IF(VLOOKUP(CK16,'Industry Type P'!$A$1:$S$102,MATCH($C16,'Industry Type P'!$A$1:$S$1,0),FALSE)>RAND(),"Y","N") -> N | CQ16: 0 | CR16: 0 | CS16: =IF(CP16="N"," ",INDEX('Other cost'!$A$9:$A$13,RANDBETWEEN(1,5),1)) ->  | CT16: =MIN($H16,IF(CP16="N",0,SUM(CR16,'Other cost'!$B$16,VLOOKUP(CS16,'Other cost'!$A$9:$B$13,2,FALSE),IF(CQ16>=30,HLOOKUP(30,'Salary in Industry'!$N$1:$AQ$1001,$B16+1,FALSE),HLOOKUP(CQ16,'Salary in Industry'!$N$1:$AQ$1001,$B16+1,FALSE)),IF(ISNA(VLOOKUP(CK16,'Ransom Statistics'!$A$1:$D$18,4,FALSE)),'Ransom Statistics'!$D$18,VLOOKUP(CK16,'Ransom Statistics'!$A$1:$D$18,4,FALSE))))) -> 0 | CU16: =INDEX([1]Variables!$A$2:$A$103,INT((RAND()*100)+1),1) -> Kyrgyzstan | CV16: =INDEX(Variables!$E$3:$E$5,RANDBETWEEN(1,3),1) -> Medium (1 week to 1month) | CW16: =INDEX([1]Variables!$G$3:$G$5,RANDBETWEEN(1,3),1) -> infrequent (less than 3 times) | CX16: 16 | CY16: =IF(ISNA(VLOOKUP(CU16,Variables!$K$1:$K$36,1,FALSE)),SUM('Other cost'!$B$2,'Salary in Industry'!$AR15,IF(ISNA(VLOOKUP(Simulation!CU16,'Ransom Statistics'!$A$1:$D$18,4,FALSE)),'Ransom Statistics'!$D$18,VLOOKUP(Simulation!CU16,'Ransom Statistics'!$A$1:$D$18,4,FALSE)))*IF(ISNA(VLOOKUP(CU16,'Industry Type P'!$A$2:$S$103,2,FALSE)),'Kidnapping Statistics'!$K$3,VLOOKUP(CU16,'Industry Type P'!$A$1:$S$102,MATCH($C16,'Industry Type P'!$A$1:$S$1,0),FALSE))*VLOOKUP(CW16,'travel frequence'!$A$1:$D$4,MATCH(CV16,'travel frequence'!$A$1:$D$1,0),FALSE)*CX16*IF(ISNA(VLOOKUP(CX16,'travel frequence'!$A$7:$B$23,2,FALSE)),'travel frequence'!$B$23,VLOOKUP(CX16,'travel frequence'!$A$7:$B$23,2,FALSE)),0) -> 38395.18404 | CZ16: =IF(VLOOKUP(CU16,'Industry Type P'!$A$1:$S$102,MATCH($C16,'Industry Type P'!$A$1:$S$1,0),FALSE)>RAND(),"Y","N") -> N | DA16: 0 | DB16: 0 | DC16: =IF(CZ16="N"," ",INDEX('Other cost'!$A$9:$A$13,RANDBETWEEN(1,5),1)) ->  | DD16: =MIN($H16,IF(CZ16="N",0,SUM(DB16,'Other cost'!$B$16,VLOOKUP(DC16,'Other cost'!$A$9:$B$13,2,FALSE),IF(DA16>=30,HLOOKUP(30,'Salary in Industry'!$N$1:$AQ$1001,$B16+1,FALSE),HLOOKUP(DA16,'Salary in Industry'!$N$1:$AQ$1001,$B16+1,FALSE)),IF(ISNA(VLOOKUP(CU16,'Ransom Statistics'!$A$1:$D$18,4,FALSE)),'Ransom Statistics'!$D$18,VLOOKUP(CU16,'Ransom Statistics'!$A$1:$D$18,4,FALSE))))) -> 0 | DE16: 0 | DF16: =((IF(A16=0,0,IF(A16=1,M16,IF(A16=2,M16+W16,IF(A16=3,M16+W16+AG16,IF(A16=4,M16+W16+AG16+AQ16,IF(A16=5,M16+W16+AG16+AQ16+BA16,IF(A16=6,M16+W16+AG16+AQ16+BA16+BK16,IF(A16=7,M16+W16+AG16+AQ16+BA16+BK16+BU16,IF(A16=8,M16+W16+AG16+AQ16+BA16+BK16+BU16+CE16,IF(A16=9,M16+W16+AG16+AQ16+BA16+BK16+BU16+CE16+CO16,IF(A16=10,M16+W16+AG16+AQ16+BA16+BK16+BU16+CE16+CO16+CY16))))))))))))/(1+Variables!$G$12))*(1+Variables!$F$19) -> 6494.946882
A17: 9 | B17: 15 | C17: =INDEX([1]Variables!$C$2:$C$19,INT((RAND()*10)+1),1) -> Construction | D17: 39 | E17: 370 | F17: 11333 | G17: 27165517 | H17: =Variables!$H$18 -> 1000000 | I17: =INDEX([1]Variables!$A$2:$A$103,INT((RAND()*100)+1),1) -> DRC | J17: =INDEX(Variables!$E$3:$E$5,RANDBETWEEN(1,3),1) -> Short (less a week) | K17: =INDEX([1]Variables!$G$3:$G$5,RANDBETWEEN(1,3),1) -> very frequent ( more than 12 times a year) | L17: 14 | M17: =IF(ISNA(VLOOKUP(I17,Variables!$K$1:$K$36,1,FALSE)),SUM('Other cost'!$B$2,'Salary in Industry'!$AR16,IF(ISNA(VLOOKUP(Simulation!I17,'Ransom Statistics'!$A$1:$D$18,4,FALSE)),'Ransom Statistics'!$D$18,VLOOKUP(Simulation!I17,'Ransom Statistics'!$A$1:$D$18,4,FALSE)))*IF(ISNA(VLOOKUP(I17,'Industry Type P'!$A$2:$S$103,2,FALSE)),'Kidnapping Statistics'!$K$3,VLOOKUP(I17,'Industry Type P'!$A$1:$S$102,MATCH($C17,'Industry Type P'!$A$1:$S$1,0),FALSE))*VLOOKUP(K17,'travel frequence'!$A$1:$D$4,MATCH(J17,'travel frequence'!$A$1:$D$1,0),FALSE)*L17*IF(ISNA(VLOOKUP(L17,'travel frequence'!$A$7:$B$23,2,FALSE)),'travel frequence'!$B$23,VLOOKUP(L17,'travel frequence'!$A$7:$B$23,2,FALSE)),0) -> 0 | N17: =IF(VLOOKUP(I17,'Industry Type P'!$A$1:$S$102,MATCH($C17,'Industry Type P'!$A$1:$S$1,0),FALSE)>RAND(),"Y","N") -> N | O17: 0 | P17: 0 | Q17: =IF(N17="N"," ",INDEX('Other cost'!$A$9:$A$13,RANDBETWEEN(1,5),1)) ->  | R17: =MIN($H17,IF(N17="N",0,SUM(P17,'Other cost'!$B$16,VLOOKUP(Q17,'Other cost'!$A$9:$B$13,2,FALSE),IF(O17>=30,HLOOKUP(30,'Salary in Industry'!$N$1:$AQ$1001,$B17+1,FALSE),HLOOKUP(O17,'Salary in Industry'!$N$1:$AQ$1001,$B17+1,FALSE)),IF(ISNA(VLOOKUP(I17,'Ransom Statistics'!$A$1:$D$18,4,FALSE)),'Ransom Statistics'!$D$18,VLOOKUP(I17,'Ransom Statistics'!$A$1:$D$18,4,FALSE))))) -> 0 | S17: =INDEX([1]Variables!$A$2:$A$103,INT((RAND()*100)+1),1) -> Maili | T17: =INDEX(Variables!$E$3:$E$5,RANDBETWEEN(1,3),1) -> Long (more than one month) | U17: =INDEX([1]Variables!$G$3:$G$5,RANDBETWEEN(1,3),1) -> infrequent (less than 3 times) | V17: 6 | W17: =IF(ISNA(VLOOKUP(S17,Variables!$K$1:$K$36,1,FALSE)),SUM('Other cost'!$B$2,'Salary in Industry'!$AR16,IF(ISNA(VLOOKUP(Simulation!S17,'Ransom Statistics'!$A$1:$D$18,4,FALSE)),'Ransom Statistics'!$D$18,VLOOKUP(Simulation!S17,'Ransom Statistics'!$A$1:$D$18,4,FALSE)))*IF(ISNA(VLOOKUP(S17,'Industry Type P'!$A$2:$S$103,2,FALSE)),'Kidnapping Statistics'!$K$3,VLOOKUP(S17,'Industry Type P'!$A$1:$S$102,MATCH($C17,'Industry Type P'!$A$1:$S$1,0),FALSE))*VLOOKUP(U17,'travel frequence'!$A$1:$D$4,MATCH(T17,'travel frequence'!$A$1:$D$1,0),FALSE)*V17*IF(ISNA(VLOOKUP(V17,'travel frequence'!$A$7:$B$23,2,FALSE)),'travel frequence'!$B$23,VLOOKUP(V17,'travel frequence'!$A$7:$B$23,2,FALSE)),0) -> 1640.369286 | X17: =IF(VLOOKUP(S17,'Industry Type P'!$A$1:$S$102,MATCH($C17,'Industry Type P'!$A$1:$S$1,0),FALSE)>RAND(),"Y","N") -> N | Y17: 0 | Z17: 0 | AA17: =IF(X17="N"," ",INDEX('Other cost'!$A$9:$A$13,RANDBETWEEN(1,5),1)) ->  | AB17: =MIN($H17,IF(X17="N",0,SUM(Z17,'Other cost'!$B$16,VLOOKUP(AA17,'Other cost'!$A$9:$B$13,2,FALSE),IF(Y17>=30,HLOOKUP(30,'Salary in Industry'!$N$1:$AQ$1001,$B17+1,FALSE),HLOOKUP(Y17,'Salary in Industry'!$N$1:$AQ$1001,$B17+1,FALSE)),IF(ISNA(VLOOKUP(S17,'Ransom Statistics'!$A$1:$D$18,4,FALSE)),'Ransom Statistics'!$D$18,VLOOKUP(S17,'Ransom Statistics'!$A$1:$D$18,4,FALSE))))) -> 0 | AC17: =INDEX([1]Variables!$A$2:$A$103,INT((RAND()*100)+1),1) -> Haiti | AD17: =INDEX(Variables!$E$3:$E$5,RANDBETWEEN(1,3),1) -> Medium (1 week to 1month) | AE17: =INDEX([1]Variables!$G$3:$G$5,RANDBETWEEN(1,3),1) -> infrequent (less than 3 times) | AF17: 20 | AG17: =IF(ISNA(VLOOKUP(AC17,Variables!$K$1:$K$36,1,FALSE)),SUM('Other cost'!$B$2,'Salary in Industry'!$AR16,IF(ISNA(VLOOKUP(Simulation!AC17,'Ransom Statistics'!$A$1:$D$18,4,FALSE)),'Ransom Statistics'!$D$18,VLOOKUP(Simulation!AC17,'Ransom Statistics'!$A$1:$D$18,4,FALSE)))*IF(ISNA(VLOOKUP(AC17,'Industry Type P'!$A$2:$S$103,2,FALSE)),'Kidnapping Statistics'!$K$3,VLOOKUP(AC17,'Industry Type P'!$A$1:$S$102,MATCH($C17,'Industry Type P'!$A$1:$S$1,0),FALSE))*VLOOKUP(AE17,'travel frequence'!$A$1:$D$4,MATCH(AD17,'travel frequence'!$A$1:$D$1,0),FALSE)*AF17*IF(ISNA(VLOOKUP(AF17,'travel frequence'!$A$7:$B$23,2,FALSE)),'travel frequence'!$B$23,VLOOKUP(AF17,'travel frequence'!$A$7:$B$23,2,FALSE)),0) -> 0 | AH17: =IF(VLOOKUP(AC17,'Industry Type P'!$A$1:$S$102,MATCH($C17,'Industry Type P'!$A$1:$S$1,0),FALSE)>RAND(),"Y","N") -> N | AI17: 0 | AJ17: 0 | AK17: =IF(AH17="N"," ",INDEX('Other cost'!$A$9:$A$13,RANDBETWEEN(1,5),1)) ->  | AL17: =MIN($H17,IF(AH17="N",0,SUM(AJ17,'Other cost'!$B$16,VLOOKUP(AK17,'Other cost'!$A$9:$B$13,2,FALSE),IF(AI17>=30,HLOOKUP(30,'Salary in Industry'!$N$1:$AQ$1001,$B17+1,FALSE),HLOOKUP(AI17,'Salary in Industry'!$N$1:$AQ$1001,$B17+1,FALSE)),IF(ISNA(VLOOKUP(AC17,'Ransom Statistics'!$A$1:$D$18,4,FALSE)),'Ransom Statistics'!$D$18,VLOOKUP(AC17,'Ransom Statistics'!$A$1:$D$18,4,FALSE))))) -> 0 | AM17: =INDEX([1]Variables!$A$2:$A$103,INT((RAND()*100)+1),1) -> Ukraine | AN17: =INDEX(Variables!$E$3:$E$5,RANDBETWEEN(1,3),1) -> Short (less a week) | AO17: =INDEX([1]Variables!$G$3:$G$5,RANDBETWEEN(1,3),1) -> frequent (3 times to 12 times) | AP17: 11 | AQ17: =IF(ISNA(VLOOKUP(AM17,Variables!$K$1:$K$36,1,FALSE)),SUM('Other cost'!$B$2,'Salary in Industry'!$AR16,IF(ISNA(VLOOKUP(Simulation!AM17,'Ransom Statistics'!$A$1:$D$18,4,FALSE)),'Ransom Statistics'!$D$18,VLOOKUP(Simulation!AM17,'Ransom Statistics'!$A$1:$D$18,4,FALSE)))*IF(ISNA(VLOOKUP(AM17,'Industry Type P'!$A$2:$S$103,2,FALSE)),'Kidnapping Statistics'!$K$3,VLOOKUP(AM17,'Industry Type P'!$A$1:$S$102,MATCH($C17,'Industry Type P'!$A$1:$S$1,0),FALSE))*VLOOKUP(AO17,'travel frequence'!$A$1:$D$4,MATCH(AN17,'travel frequence'!$A$1:$D$1,0),FALSE)*AP17*IF(ISNA(VLOOKUP(AP17,'travel frequence'!$A$7:$B$23,2,FALSE)),'travel frequence'!$B$23,VLOOKUP(AP17,'travel frequence'!$A$7:$B$23,2,FALSE)),0) -> 0 | AR17: =IF(VLOOKUP(AM17,'Industry Type P'!$A$1:$S$102,MATCH($C17,'Industry Type P'!$A$1:$S$1,0),FALSE)>RAND(),"Y","N") -> N | AS17: 0 | AT17: 0 | AU17: =IF(AR17="N"," ",INDEX('Other cost'!$A$9:$A$13,RANDBETWEEN(1,5),1)) ->  | AV17: =MIN($H17,IF(AR17="N",0,SUM(AT17,'Other cost'!$B$16,VLOOKUP(AU17,'Other cost'!$A$9:$B$13,2,FALSE),IF(AS17>=30,HLOOKUP(30,'Salary in Industry'!$N$1:$AQ$1001,$B17+1,FALSE),HLOOKUP(AS17,'Salary in Industry'!$N$1:$AQ$1001,$B17+1,FALSE)),IF(ISNA(VLOOKUP(AM17,'Ransom Statistics'!$A$1:$D$18,4,FALSE)),'Ransom Statistics'!$D$18,VLOOKUP(AM17,'Ransom Statistics'!$A$1:$D$18,4,FALSE))))) -> 0 | AW17: =INDEX([1]Variables!$A$2:$A$103,INT((RAND()*100)+1),1) -> Togo | AX17: =INDEX(Variables!$E$3:$E$5,RANDBETWEEN(1,3),1) -> Long (more than one month) | AY17: =INDEX([1]Variables!$G$3:$G$5,RANDBETWEEN(1,3),1) -> frequent (3 times to 12 times) | AZ17: 2 | BA17: =IF(ISNA(VLOOKUP(AW17,Variables!$K$1:$K$36,1,FALSE)),SUM('Other cost'!$B$2,'Salary in Industry'!$AR16,IF(ISNA(VLOOKUP(Simulation!AW17,'Ransom Statistics'!$A$1:$D$18,4,FALSE)),'Ransom Statistics'!$D$18,VLOOKUP(Simulation!AW17,'Ransom Statistics'!$A$1:$D$18,4,FALSE)))*IF(ISNA(VLOOKUP(AW17,'Industry Type P'!$A$2:$S$103,2,FALSE)),'Kidnapping Statistics'!$K$3,VLOOKUP(AW17,'Industry Type P'!$A$1:$S$102,MATCH($C17,'Industry Type P'!$A$1:$S$1,0),FALSE))*VLOOKUP(AY17,'travel frequence'!$A$1:$D$4,MATCH(AX17,'travel frequence'!$A$1:$D$1,0),FALSE)*AZ17*IF(ISNA(VLOOKUP(AZ17,'travel frequence'!$A$7:$B$23,2,FALSE)),'travel frequence'!$B$23,VLOOKUP(AZ17,'travel frequence'!$A$7:$B$23,2,FALSE)),0) -> 1065.040298 | BB17: =IF(VLOOKUP(AW17,'Industry Type P'!$A$1:$S$102,MATCH($C17,'Industry Type P'!$A$1:$S$1,0),FALSE)>RAND(),"Y","N") -> N | BC17: 0 | BD17: 0 | BE17: =IF(BB17="N"," ",INDEX('Other cost'!$A$9:$A$13,RANDBETWEEN(1,5),1)) ->  | BF17: =MIN($H17,IF(BB17="N",0,SUM(BD17,'Other cost'!$B$16,VLOOKUP(BE17,'Other cost'!$A$9:$B$13,2,FALSE),IF(BC17>=30,HLOOKUP(30,'Salary in Industry'!$N$1:$AQ$1001,$B17+1,FALSE),HLOOKUP(BC17,'Salary in Industry'!$N$1:$AQ$1001,$B17+1,FALSE)),IF(ISNA(VLOOKUP(AW17,'Ransom Statistics'!$A$1:$D$18,4,FALSE)),'Ransom Statistics'!$D$18,VLOOKUP(AW17,'Ransom Statistics'!$A$1:$D$18,4,FALSE))))) -> 0 | BG17: =INDEX([1]Variables!$A$2:$A$103,INT((RAND()*100)+1),1) -> Faso | BH17: =INDEX(Variables!$E$3:$E$5,RANDBETWEEN(1,3),1) -> Short (less a week) | BI17: =INDEX([1]Variables!$G$3:$G$5,RANDBETWEEN(1,3),1) -> infrequent (less than 3 times) | BJ17: 3 | BK17: =IF(ISNA(VLOOKUP(BG17,Variables!$K$1:$K$36,1,FALSE)),SUM('Other cost'!$B$2,'Salary in Industry'!$AR16,IF(ISNA(VLOOKUP(Simulation!BG17,'Ransom Statistics'!$A$1:$D$18,4,FALSE)),'Ransom Statistics'!$D$18,VLOOKUP(Simulation!BG17,'Ransom Statistics'!$A$1:$D$18,4,FALSE)))*IF(ISNA(VLOOKUP(BG17,'Industry Type P'!$A$2:$S$103,2,FALSE)),'Kidnapping Statistics'!$K$3,VLOOKUP(BG17,'Industry Type P'!$A$1:$S$102,MATCH($C17,'Industry Type P'!$A$1:$S$1,0),FALSE))*VLOOKUP(BI17,'travel frequence'!$A$1:$D$4,MATCH(BH17,'travel frequence'!$A$1:$D$1,0),FALSE)*BJ17*IF(ISNA(VLOOKUP(BJ17,'travel frequence'!$A$7:$B$23,2,FALSE)),'travel frequence'!$B$23,VLOOKUP(BJ17,'travel frequence'!$A$7:$B$23,2,FALSE)),0) -> 2.097063008 | BL17: =IF(VLOOKUP(BG17,'Industry Type P'!$A$1:$S$102,MATCH($C17,'Industry Type P'!$A$1:$S$1,0),FALSE)>RAND(),"Y","N") -> N | BM17: 0 | BN17: 0 | BO17: =IF(BL17="N"," ",INDEX('Other cost'!$A$9:$A$13,RANDBETWEEN(1,5),1)) ->  | BP17: =MIN($H17,IF(BL17="N",0,SUM(BN17,'Other cost'!$B$16,VLOOKUP(BO17,'Other cost'!$A$9:$B$13,2,FALSE),IF(BM17>=30,HLOOKUP(30,'Salary in Industry'!$N$1:$AQ$1001,$B17+1,FALSE),HLOOKUP(BM17,'Salary in Industry'!$N$1:$AQ$1001,$B17+1,FALSE)),IF(ISNA(VLOOKUP(BG17,'Ransom Statistics'!$A$1:$D$18,4,FALSE)),'Ransom Statistics'!$D$18,VLOOKUP(BG17,'Ransom Statistics'!$A$1:$D$18,4,FALSE))))) -> 0 | BQ17: =INDEX([1]Variables!$A$2:$A$103,INT((RAND()*100)+1),1) -> Greece | BR17: =INDEX(Variables!$E$3:$E$5,RANDBETWEEN(1,3),1) -> Medium (1 week to 1month) | BS17: =INDEX([1]Variables!$G$3:$G$5,RANDBETWEEN(1,3),1) -> infrequent (less than 3 times) | BT17: 9 | BU17: =IF(ISNA(VLOOKUP(BQ17,Variables!$K$1:$K$36,1,FALSE)),SUM('Other cost'!$B$2,'Salary in Industry'!$AR16,IF(ISNA(VLOOKUP(Simulation!BQ17,'Ransom Statistics'!$A$1:$D$18,4,FALSE)),'Ransom Statistics'!$D$18,VLOOKUP(Simulation!BQ17,'Ransom Statistics'!$A$1:$D$18,4,FALSE)))*IF(ISNA(VLOOKUP(BQ17,'Industry Type P'!$A$2:$S$103,2,FALSE)),'Kidnapping Statistics'!$K$3,VLOOKUP(BQ17,'Industry Type P'!$A$1:$S$102,MATCH($C17,'Industry Type P'!$A$1:$S$1,0),FALSE))*VLOOKUP(BS17,'travel frequence'!$A$1:$D$4,MATCH(BR17,'travel frequence'!$A$1:$D$1,0),FALSE)*BT17*IF(ISNA(VLOOKUP(BT17,'travel frequence'!$A$7:$B$23,2,FALSE)),'travel frequence'!$B$23,VLOOKUP(BT17,'travel frequence'!$A$7:$B$23,2,FALSE)),0) -> 5.871776423 | BV17: =IF(VLOOKUP(BQ17,'Industry Type P'!$A$1:$S$102,MATCH($C17,'Industry Type P'!$A$1:$S$1,0),FALSE)>RAND(),"Y","N") -> N | BW17: 0 | BX17: 0 | BY17: =IF(BV17="N"," ",INDEX('Other cost'!$A$9:$A$13,RANDBETWEEN(1,5),1)) ->  | BZ17: =MIN($H17,IF(BV17="N",0,SUM(BX17,'Other cost'!$B$16,VLOOKUP(BY17,'Other cost'!$A$9:$B$13,2,FALSE),IF(BW17>=30,HLOOKUP(30,'Salary in Industry'!$N$1:$AQ$1001,$B17+1,FALSE),HLOOKUP(BW17,'Salary in Industry'!$N$1:$AQ$1001,$B17+1,FALSE)),IF(ISNA(VLOOKUP(BQ17,'Ransom Statistics'!$A$1:$D$18,4,FALSE)),'Ransom Statistics'!$D$18,VLOOKUP(BQ17,'Ransom Statistics'!$A$1:$D$18,4,FALSE))))) -> 0 | CA17: =INDEX([1]Variables!$A$2:$A$103,INT((RAND()*100)+1),1) -> Bolivia | CB17: =INDEX(Variables!$E$3:$E$5,RANDBETWEEN(1,3),1) -> Medium (1 week to 1month) | CC17: =INDEX([1]Variables!$G$3:$G$5,RANDBETWEEN(1,3),1) -> frequent (3 times to 12 times) | CD17: 3 | CE17: =IF(ISNA(VLOOKUP(CA17,Variables!$K$1:$K$36,1,FALSE)),SUM('Other cost'!$B$2,'Salary in Industry'!$AR16,IF(ISNA(VLOOKUP(Simulation!CA17,'Ransom Statistics'!$A$1:$D$18,4,FALSE)),'Ransom Statistics'!$D$18,VLOOKUP(Simulation!CA17,'Ransom Statistics'!$A$1:$D$18,4,FALSE)))*IF(ISNA(VLOOKUP(CA17,'Industry Type P'!$A$2:$S$103,2,FALSE)),'Kidnapping Statistics'!$K$3,VLOOKUP(CA17,'Industry Type P'!$A$1:$S$102,MATCH($C17,'Industry Type P'!$A$1:$S$1,0),FALSE))*VLOOKUP(CC17,'travel frequence'!$A$1:$D$4,MATCH(CB17,'travel frequence'!$A$1:$D$1,0),FALSE)*CD17*IF(ISNA(VLOOKUP(CD17,'travel frequence'!$A$7:$B$23,2,FALSE)),'travel frequence'!$B$23,VLOOKUP(CD17,'travel frequence'!$A$7:$B$23,2,FALSE)),0) -> 12.25366342 | CF17: =IF(VLOOKUP(CA17,'Industry Type P'!$A$1:$S$102,MATCH($C17,'Industry Type P'!$A$1:$S$1,0),FALSE)>RAND(),"Y","N") -> N | CG17: 0 | CH17: 0 | CI17: =IF(CF17="N"," ",INDEX('Other cost'!$A$9:$A$13,RANDBETWEEN(1,5),1)) ->  | CJ17: =MIN($H17,IF(CF17="N",0,SUM(CH17,'Other cost'!$B$16,VLOOKUP(CI17,'Other cost'!$A$9:$B$13,2,FALSE),IF(CG17>=30,HLOOKUP(30,'Salary in Industry'!$N$1:$AQ$1001,$B17+1,FALSE),HLOOKUP(CG17,'Salary in Industry'!$N$1:$AQ$1001,$B17+1,FALSE)),IF(ISNA(VLOOKUP(CA17,'Ransom Statistics'!$A$1:$D$18,4,FALSE)),'Ransom Statistics'!$D$18,VLOOKUP(CA17,'Ransom Statistics'!$A$1:$D$18,4,FALSE))))) -> 0 | CK17: =INDEX([1]Variables!$A$2:$A$103,INT((RAND()*100)+1),1) -> Equatorial | CL17: =INDEX(Variables!$E$3:$E$5,RANDBETWEEN(1,3),1) -> Medium (1 week to 1month) | CM17: =INDEX([1]Variables!$G$3:$G$5,RANDBETWEEN(1,3),1) -> very frequent ( more than 12 times a year) | CN17: 12 | CO17: =IF(ISNA(VLOOKUP(CK17,Variables!$K$1:$K$36,1,FALSE)),SUM('Other cost'!$B$2,'Salary in Industry'!$AR16,IF(ISNA(VLOOKUP(Simulation!CK17,'Ransom Statistics'!$A$1:$D$18,4,FALSE)),'Ransom Statistics'!$D$18,VLOOKUP(Simulation!CK17,'Ransom Statistics'!$A$1:$D$18,4,FALSE)))*IF(ISNA(VLOOKUP(CK17,'Industry Type P'!$A$2:$S$103,2,FALSE)),'Kidnapping Statistics'!$K$3,VLOOKUP(CK17,'Industry Type P'!$A$1:$S$102,MATCH($C17,'Industry Type P'!$A$1:$S$1,0),FALSE))*VLOOKUP(CM17,'travel frequence'!$A$1:$D$4,MATCH(CL17,'travel frequence'!$A$1:$D$1,0),FALSE)*CN17*IF(ISNA(VLOOKUP(CN17,'travel frequence'!$A$7:$B$23,2,FALSE)),'travel frequence'!$B$23,VLOOKUP(CN17,'travel frequence'!$A$7:$B$23,2,FALSE)),0) -> 7.53544641 | CP17: =IF(VLOOKUP(CK17,'Industry Type P'!$A$1:$S$102,MATCH($C17,'Industry Type P'!$A$1:$S$1,0),FALSE)>RAND(),"Y","N") -> N | CQ17: 0 | CR17: 0 | CS17: =IF(CP17="N"," ",INDEX('Other cost'!$A$9:$A$13,RANDBETWEEN(1,5),1)) ->  | CT17: =MIN($H17,IF(CP17="N",0,SUM(CR17,'Other cost'!$B$16,VLOOKUP(CS17,'Other cost'!$A$9:$B$13,2,FALSE),IF(CQ17>=30,HLOOKUP(30,'Salary in Industry'!$N$1:$AQ$1001,$B17+1,FALSE),HLOOKUP(CQ17,'Salary in Industry'!$N$1:$AQ$1001,$B17+1,FALSE)),IF(ISNA(VLOOKUP(CK17,'Ransom Statistics'!$A$1:$D$18,4,FALSE)),'Ransom Statistics'!$D$18,VLOOKUP(CK17,'Ransom Statistics'!$A$1:$D$18,4,FALSE))))) -> 0 | CU17: =INDEX([1]Variables!$A$2:$A$103,INT((RAND()*100)+1),1) -> Guinea | CV17: =INDEX(Variables!$E$3:$E$5,RANDBETWEEN(1,3),1) -> Short (less a week) | CW17: =INDEX([1]Variables!$G$3:$G$5,RANDBETWEEN(1,3),1) -> infrequent (less than 3 times) | CX17: 6 | CY17: =IF(ISNA(VLOOKUP(CU17,Variables!$K$1:$K$36,1,FALSE)),SUM('Other cost'!$B$2,'Salary in Industry'!$AR16,IF(ISNA(VLOOKUP(Simulation!CU17,'Ransom Statistics'!$A$1:$D$18,4,FALSE)),'Ransom Statistics'!$D$18,VLOOKUP(Simulation!CU17,'Ransom Statistics'!$A$1:$D$18,4,FALSE)))*IF(ISNA(VLOOKUP(CU17,'Industry Type P'!$A$2:$S$103,2,FALSE)),'Kidnapping Statistics'!$K$3,VLOOKUP(CU17,'Industry Type P'!$A$1:$S$102,MATCH($C17,'Industry Type P'!$A$1:$S$1,0),FALSE))*VLOOKUP(CW17,'travel frequence'!$A$1:$D$4,MATCH(CV17,'travel frequence'!$A$1:$D$1,0),FALSE)*CX17*IF(ISNA(VLOOKUP(CX17,'travel frequence'!$A$7:$B$23,2,FALSE)),'travel frequence'!$B$23,VLOOKUP(CX17,'travel frequence'!$A$7:$B$23,2,FALSE)),0) -> 3.728112015 | CZ17: =IF(VLOOKUP(CU17,'Industry Type P'!$A$1:$S$102,MATCH($C17,'Industry Type P'!$A$1:$S$1,0),FALSE)>RAND(),"Y","N") -> N | DA17: 0 | DB17: 0 | DC17: =IF(CZ17="N"," ",INDEX('Other cost'!$A$9:$A$13,RANDBETWEEN(1,5),1)) ->  | DD17: =MIN($H17,IF(CZ17="N",0,SUM(DB17,'Other cost'!$B$16,VLOOKUP(DC17,'Other cost'!$A$9:$B$13,2,FALSE),IF(DA17>=30,HLOOKUP(30,'Salary in Industry'!$N$1:$AQ$1001,$B17+1,FALSE),HLOOKUP(DA17,'Salary in Industry'!$N$1:$AQ$1001,$B17+1,FALSE)),IF(ISNA(VLOOKUP(CU17,'Ransom Statistics'!$A$1:$D$18,4,FALSE)),'Ransom Statistics'!$D$18,VLOOKUP(CU17,'Ransom Statistics'!$A$1:$D$18,4,FALSE))))) -> 0 | DE17: 0 | DF17: =((IF(A17=0,0,IF(A17=1,M17,IF(A17=2,M17+W17,IF(A17=3,M17+W17+AG17,IF(A17=4,M17+W17+AG17+AQ17,IF(A17=5,M17+W17+AG17+AQ17+BA17,IF(A17=6,M17+W17+AG17+AQ17+BA17+BK17,IF(A17=7,M17+W17+AG17+AQ17+BA17+BK17+BU17,IF(A17=8,M17+W17+AG17+AQ17+BA17+BK17+BU17+CE17,IF(A17=9,M17+W17+AG17+AQ17+BA17+BK17+BU17+CE17+CO17,IF(A17=10,M17+W17+AG17+AQ17+BA17+BK17+BU17+CE17+CO17+CY17))))))))))))/(1+Variables!$G$12))*(1+Variables!$F$19) -> 3268.722511
A18: 9 | B18: 16 | C18: =INDEX([1]Variables!$C$2:$C$19,INT((RAND()*10)+1),1) -> Information | D18: 46 | E18: 462 | F18: 11515 | G18: 10902820 | H18: =Variables!$H$18 -> 1000000 | I18: =INDEX([1]Variables!$A$2:$A$103,INT((RAND()*100)+1),1) -> Burkina | J18: =INDEX(Variables!$E$3:$E$5,RANDBETWEEN(1,3),1) -> Short (less a week) | K18: =INDEX([1]Variables!$G$3:$G$5,RANDBETWEEN(1,3),1) -> frequent (3 times to 12 times) | L18: 20 | M18: =IF(ISNA(VLOOKUP(I18,Variables!$K$1:$K$36,1,FALSE)),SUM('Other cost'!$B$2,'Salary in Industry'!$AR17,IF(ISNA(VLOOKUP(Simulation!I18,'Ransom Statistics'!$A$1:$D$18,4,FALSE)),'Ransom Statistics'!$D$18,VLOOKUP(Simulation!I18,'Ransom Statistics'!$A$1:$D$18,4,FALSE)))*IF(ISNA(VLOOKUP(I18,'Industry Type P'!$A$2:$S$103,2,FALSE)),'Kidnapping Statistics'!$K$3,VLOOKUP(I18,'Industry Type P'!$A$1:$S$102,MATCH($C18,'Industry Type P'!$A$1:$S$1,0),FALSE))*VLOOKUP(K18,'travel frequence'!$A$1:$D$4,MATCH(J18,'travel frequence'!$A$1:$D$1,0),FALSE)*L18*IF(ISNA(VLOOKUP(L18,'travel frequence'!$A$7:$B$23,2,FALSE)),'travel frequence'!$B$23,VLOOKUP(L18,'travel frequence'!$A$7:$B$23,2,FALSE)),0) -> 9.78630247 | N18: =IF(VLOOKUP(I18,'Industry Type P'!$A$1:$S$102,MATCH($C18,'Industry Type P'!$A$1:$S$1,0),FALSE)>RAND(),"Y","N") -> N | O18: 0 | P18: 0 | Q18: =IF(N18="N"," ",INDEX('Other cost'!$A$9:$A$13,RANDBETWEEN(1,5),1)) ->  | R18: =MIN($H18,IF(N18="N",0,SUM(P18,'Other cost'!$B$16,VLOOKUP(Q18,'Other cost'!$A$9:$B$13,2,FALSE),IF(O18>=30,HLOOKUP(30,'Salary in Industry'!$N$1:$AQ$1001,$B18+1,FALSE),HLOOKUP(O18,'Salary in Industry'!$N$1:$AQ$1001,$B18+1,FALSE)),IF(ISNA(VLOOKUP(I18,'Ransom Statistics'!$A$1:$D$18,4,FALSE)),'Ransom Statistics'!$D$18,VLOOKUP(I18,'Ransom Statistics'!$A$1:$D$18,4,FALSE))))) -> 0 | S18: =INDEX([1]Variables!$A$2:$A$103,INT((RAND()*100)+1),1) -> Kazakhstan | T18: =INDEX(Variables!$E$3:$E$5,RANDBETWEEN(1,3),1) -> Short (less a week) | U18: =INDEX([1]Variables!$G$3:$G$5,RANDBETWEEN(1,3),1) -> infrequent (less than 3 times) | V18: 7 | W18: =IF(ISNA(VLOOKUP(S18,Variables!$K$1:$K$36,1,FALSE)),SUM('Other cost'!$B$2,'Salary in Industry'!$AR17,IF(ISNA(VLOOKUP(Simulation!S18,'Ransom Statistics'!$A$1:$D$18,4,FALSE)),'Ransom Statistics'!$D$18,VLOOKUP(Simulation!S18,'Ransom Statistics'!$A$1:$D$18,4,FALSE)))*IF(ISNA(VLOOKUP(S18,'Industry Type P'!$A$2:$S$103,2,FALSE)),'Kidnapping Statistics'!$K$3,VLOOKUP(S18,'Industry Type P'!$A$1:$S$102,MATCH($C18,'Industry Type P'!$A$1:$S$1,0),FALSE))*VLOOKUP(U18,'travel frequence'!$A$1:$D$4,MATCH(T18,'travel frequence'!$A$1:$D$1,0),FALSE)*V18*IF(ISNA(VLOOKUP(V18,'travel frequence'!$A$7:$B$23,2,FALSE)),'travel frequence'!$B$23,VLOOKUP(V18,'travel frequence'!$A$7:$B$23,2,FALSE)),0) -> 23.9220727 | X18: =IF(VLOOKUP(S18,'Industry Type P'!$A$1:$S$102,MATCH($C18,'Industry Type P'!$A$1:$S$1,0),FALSE)>RAND(),"Y","N") -> N | Y18: 0 | Z18: 0 | AA18: =IF(X18="N"," ",INDEX('Other cost'!$A$9:$A$13,RANDBETWEEN(1,5),1)) ->  | AB18: =MIN($H18,IF(X18="N",0,SUM(Z18,'Other cost'!$B$16,VLOOKUP(AA18,'Other cost'!$A$9:$B$13,2,FALSE),IF(Y18>=30,HLOOKUP(30,'Salary in Industry'!$N$1:$AQ$1001,$B18+1,FALSE),HLOOKUP(Y18,'Salary in Industry'!$N$1:$AQ$1001,$B18+1,FALSE)),IF(ISNA(VLOOKUP(S18,'Ransom Statistics'!$A$1:$D$18,4,FALSE)),'Ransom Statistics'!$D$18,VLOOKUP(S18,'Ransom Statistics'!$A$1:$D$18,4,FALSE))))) -> 0 | AC18: =INDEX([1]Variables!$A$2:$A$103,INT((RAND()*100)+1),1) -> Panama | AD18: =INDEX(Variables!$E$3:$E$5,RANDBETWEEN(1,3),1) -> Long (more than one month) | AE18: =INDEX([1]Variables!$G$3:$G$5,RANDBETWEEN(1,3),1) -> frequent (3 times to 12 times) | AF18: 18 | AG18: =IF(ISNA(VLOOKUP(AC18,Variables!$K$1:$K$36,1,FALSE)),SUM('Other cost'!$B$2,'Salary in Industry'!$AR17,IF(ISNA(VLOOKUP(Simulation!AC18,'Ransom Statistics'!$A$1:$D$18,4,FALSE)),'Ransom Statistics'!$D$18,VLOOKUP(Simulation!AC18,'Ransom Statistics'!$A$1:$D$18,4,FALSE)))*IF(ISNA(VLOOKUP(AC18,'Industry Type P'!$A$2:$S$103,2,FALSE)),'Kidnapping Statistics'!$K$3,VLOOKUP(AC18,'Industry Type P'!$A$1:$S$102,MATCH($C18,'Industry Type P'!$A$1:$S$1,0),FALSE))*VLOOKUP(AE18,'travel frequence'!$A$1:$D$4,MATCH(AD18,'travel frequence'!$A$1:$D$1,0),FALSE)*AF18*IF(ISNA(VLOOKUP(AF18,'travel frequence'!$A$7:$B$23,2,FALSE)),'travel frequence'!$B$23,VLOOKUP(AF18,'travel frequence'!$A$7:$B$23,2,FALSE)),0) -> 44.56682145 | AH18: =IF(VLOOKUP(AC18,'Industry Type P'!$A$1:$S$102,MATCH($C18,'Industry Type P'!$A$1:$S$1,0),FALSE)>RAND(),"Y","N") -> N | AI18: 0 | AJ18: 0 | AK18: =IF(AH18="N"," ",INDEX('Other cost'!$A$9:$A$13,RANDBETWEEN(1,5),1)) ->  | AL18: =MIN($H18,IF(AH18="N",0,SUM(AJ18,'Other cost'!$B$16,VLOOKUP(AK18,'Other cost'!$A$9:$B$13,2,FALSE),IF(AI18>=30,HLOOKUP(30,'Salary in Industry'!$N$1:$AQ$1001,$B18+1,FALSE),HLOOKUP(AI18,'Salary in Industry'!$N$1:$AQ$1001,$B18+1,FALSE)),IF(ISNA(VLOOKUP(AC18,'Ransom Statistics'!$A$1:$D$18,4,FALSE)),'Ransom Statistics'!$D$18,VLOOKUP(AC18,'Ransom Statistics'!$A$1:$D$18,4,FALSE))))) -> 0 | AM18: =INDEX([1]Variables!$A$2:$A$103,INT((RAND()*100)+1),1) -> Sudan | AN18: =INDEX(Variables!$E$3:$E$5,RANDBETWEEN(1,3),1) -> Short (less a week) | AO18: =INDEX([1]Variables!$G$3:$G$5,RANDBETWEEN(1,3),1) -> infrequent (less than 3 times) | AP18: 14 | AQ18: =IF(ISNA(VLOOKUP(AM18,Variables!$K$1:$K$36,1,FALSE)),SUM('Other cost'!$B$2,'Salary in Industry'!$AR17,IF(ISNA(VLOOKUP(Simulation!AM18,'Ransom Statistics'!$A$1:$D$18,4,FALSE)),'Ransom Statistics'!$D$18,VLOOKUP(Simulation!AM18,'Ransom Statistics'!$A$1:$D$18,4,FALSE)))*IF(ISNA(VLOOKUP(AM18,'Industry Type P'!$A$2:$S$103,2,FALSE)),'Kidnapping Statistics'!$K$3,VLOOKUP(AM18,'Industry Type P'!$A$1:$S$102,MATCH($C18,'Industry Type P'!$A$1:$S$1,0),FALSE))*VLOOKUP(AO18,'travel frequence'!$A$1:$D$4,MATCH(AN18,'travel frequence'!$A$1:$D$1,0),FALSE)*AP18*IF(ISNA(VLOOKUP(AP18,'travel frequence'!$A$7:$B$23,2,FALSE)),'travel frequence'!$B$23,VLOOKUP(AP18,'travel frequence'!$A$7:$B$23,2,FALSE)),0) -> 0 | AR18: =IF(VLOOKUP(AM18,'Industry Type P'!$A$1:$S$102,MATCH($C18,'Industry Type P'!$A$1:$S$1,0),FALSE)>RAND(),"Y","N") -> N | AS18: 0 | AT18: 0 | AU18: =IF(AR18="N"," ",INDEX('Other cost'!$A$9:$A$13,RANDBETWEEN(1,5),1)) ->  | AV18: =MIN($H18,IF(AR18="N",0,SUM(AT18,'Other cost'!$B$16,VLOOKUP(AU18,'Other cost'!$A$9:$B$13,2,FALSE),IF(AS18>=30,HLOOKUP(30,'Salary in Industry'!$N$1:$AQ$1001,$B18+1,FALSE),HLOOKUP(AS18,'Salary in Industry'!$N$1:$AQ$1001,$B18+1,FALSE)),IF(ISNA(VLOOKUP(AM18,'Ransom Statistics'!$A$1:$D$18,4,FALSE)),'Ransom Statistics'!$D$18,VLOOKUP(AM18,'Ransom Statistics'!$A$1:$D$18,4,FALSE))))) -> 0 | AW18: =INDEX([1]Variables!$A$2:$A$103,INT((RAND()*100)+1),1) -> Belarus | AX18: =INDEX(Variables!$E$3:$E$5,RANDBETWEEN(1,3),1) -> Long (more than one month) | AY18: =INDEX([1]Variables!$G$3:$G$5,RANDBETWEEN(1,3),1) -> very frequent ( more than 12 times a year) | AZ18: 14 | BA18: =IF(ISNA(VLOOKUP(AW18,Variables!$K$1:$K$36,1,FALSE)),SUM('Other cost'!$B$2,'Salary in Industry'!$AR17,IF(ISNA(VLOOKUP(Simulation!AW18,'Ransom Statistics'!$A$1:$D$18,4,FALSE)),'Ransom Statistics'!$D$18,VLOOKUP(Simulation!AW18,'Ransom Statistics'!$A$1:$D$18,4,FALSE)))*IF(ISNA(VLOOKUP(AW18,'Industry Type P'!$A$2:$S$103,2,FALSE)),'Kidnapping Statistics'!$K$3,VLOOKUP(AW18,'Industry Type P'!$A$1:$S$102,MATCH($C18,'Industry Type P'!$A$1:$S$1,0),FALSE))*VLOOKUP(AY18,'travel frequence'!$A$1:$D$4,MATCH(AX18,'travel frequence'!$A$1:$D$1,0),FALSE)*AZ18*IF(ISNA(VLOOKUP(AZ18,'travel frequence'!$A$7:$B$23,2,FALSE)),'travel frequence'!$B$23,VLOOKUP(AZ18,'travel frequence'!$A$7:$B$23,2,FALSE)),0) -> 22.10399518 | BB18: =IF(VLOOKUP(AW18,'Industry Type P'!$A$1:$S$102,MATCH($C18,'Industry Type P'!$A$1:$S$1,0),FALSE)>RAND(),"Y","N") -> N | BC18: 0 | BD18: 0 | BE18: =IF(BB18="N"," ",INDEX('Other cost'!$A$9:$A$13,RANDBETWEEN(1,5),1)) ->  | BF18: =MIN($H18,IF(BB18="N",0,SUM(BD18,'Other cost'!$B$16,VLOOKUP(BE18,'Other cost'!$A$9:$B$13,2,FALSE),IF(BC18>=30,HLOOKUP(30,'Salary in Industry'!$N$1:$AQ$1001,$B18+1,FALSE),HLOOKUP(BC18,'Salary in Industry'!$N$1:$AQ$1001,$B18+1,FALSE)),IF(ISNA(VLOOKUP(AW18,'Ransom Statistics'!$A$1:$D$18,4,FALSE)),'Ransom Statistics'!$D$18,VLOOKUP(AW18,'Ransom Statistics'!$A$1:$D$18,4,FALSE))))) -> 0 | BG18: =INDEX([1]Variables!$A$2:$A$103,INT((RAND()*100)+1),1) -> Brazil | BH18: =INDEX(Variables!$E$3:$E$5,RANDBETWEEN(1,3),1) -> Short (less a week) | BI18: =INDEX([1]Variables!$G$3:$G$5,RANDBETWEEN(1,3),1) -> frequent (3 times to 12 times) | BJ18: 3 | BK18: =IF(ISNA(VLOOKUP(BG18,Variables!$K$1:$K$36,1,FALSE)),SUM('Other cost'!$B$2,'Salary in Industry'!$AR17,IF(ISNA(VLOOKUP(Simulation!BG18,'Ransom Statistics'!$A$1:$D$18,4,FALSE)),'Ransom Statistics'!$D$18,VLOOKUP(Simulation!BG18,'Ransom Statistics'!$A$1:$D$18,4,FALSE)))*IF(ISNA(VLOOKUP(BG18,'Industry Type P'!$A$2:$S$103,2,FALSE)),'Kidnapping Statistics'!$K$3,VLOOKUP(BG18,'Industry Type P'!$A$1:$S$102,MATCH($C18,'Industry Type P'!$A$1:$S$1,0),FALSE))*VLOOKUP(BI18,'travel frequence'!$A$1:$D$4,MATCH(BH18,'travel frequence'!$A$1:$D$1,0),FALSE)*BJ18*IF(ISNA(VLOOKUP(BJ18,'travel frequence'!$A$7:$B$23,2,FALSE)),'travel frequence'!$B$23,VLOOKUP(BJ18,'travel frequence'!$A$7:$B$23,2,FALSE)),0) -> 337.7496577 | BL18: =IF(VLOOKUP(BG18,'Industry Type P'!$A$1:$S$102,MATCH($C18,'Industry Type P'!$A$1:$S$1,0),FALSE)>RAND(),"Y","N") -> N | BM18: 0 | BN18: 0 | BO18: =IF(BL18="N"," ",INDEX('Other cost'!$A$9:$A$13,RANDBETWEEN(1,5),1)) ->  | BP18: =MIN($H18,IF(BL18="N",0,SUM(BN18,'Other cost'!$B$16,VLOOKUP(BO18,'Other cost'!$A$9:$B$13,2,FALSE),IF(BM18>=30,HLOOKUP(30,'Salary in Industry'!$N$1:$AQ$1001,$B18+1,FALSE),HLOOKUP(BM18,'Salary in Industry'!$N$1:$AQ$1001,$B18+1,FALSE)),IF(ISNA(VLOOKUP(BG18,'Ransom Statistics'!$A$1:$D$18,4,FALSE)),'Ransom Statistics'!$D$18,VLOOKUP(BG18,'Ransom Statistics'!$A$1:$D$18,4,FALSE))))) -> 0 | BQ18: =INDEX([1]Variables!$A$2:$A$103,INT((RAND()*100)+1),1) -> Peru | BR18: =INDEX(Variables!$E$3:$E$5,RANDBETWEEN(1,3),1) -> Medium (1 week to 1month) | BS18: =INDEX([1]Variables!$G$3:$G$5,RANDBETWEEN(1,3),1) -> very frequent ( more than 12 times a year) | BT18: 14 | BU18: =IF(ISNA(VLOOKUP(BQ18,Variables!$K$1:$K$36,1,FALSE)),SUM('Other cost'!$B$2,'Salary in Industry'!$AR17,IF(ISNA(VLOOKUP(Simulation!BQ18,'Ransom Statistics'!$A$1:$D$18,4,FALSE)),'Ransom Statistics'!$D$18,VLOOKUP(Simulation!BQ18,'Ransom Statistics'!$A$1:$D$18,4,FALSE)))*IF(ISNA(VLOOKUP(BQ18,'Industry Type P'!$A$2:$S$103,2,FALSE)),'Kidnapping Statistics'!$K$3,VLOOKUP(BQ18,'Industry Type P'!$A$1:$S$102,MATCH($C18,'Industry Type P'!$A$1:$S$1,0),FALSE))*VLOOKUP(BS18,'travel frequence'!$A$1:$D$4,MATCH(BR18,'travel frequence'!$A$1:$D$1,0),FALSE)*BT18*IF(ISNA(VLOOKUP(BT18,'travel frequence'!$A$7:$B$23,2,FALSE)),'travel frequence'!$B$23,VLOOKUP(BT18,'travel frequence'!$A$7:$B$23,2,FALSE)),0) -> 36.04458305 | BV18: =IF(VLOOKUP(BQ18,'Industry Type P'!$A$1:$S$102,MATCH($C18,'Industry Type P'!$A$1:$S$1,0),FALSE)>RAND(),"Y","N") -> N | BW18: 0 | BX18: 0 | BY18: =IF(BV18="N"," ",INDEX('Other cost'!$A$9:$A$13,RANDBETWEEN(1,5),1)) ->  | BZ18: =MIN($H18,IF(BV18="N",0,SUM(BX18,'Other cost'!$B$16,VLOOKUP(BY18,'Other cost'!$A$9:$B$13,2,FALSE),IF(BW18>=30,HLOOKUP(30,'Salary in Industry'!$N$1:$AQ$1001,$B18+1,FALSE),HLOOKUP(BW18,'Salary in Industry'!$N$1:$AQ$1001,$B18+1,FALSE)),IF(ISNA(VLOOKUP(BQ18,'Ransom Statistics'!$A$1:$D$18,4,FALSE)),'Ransom Statistics'!$D$18,VLOOKUP(BQ18,'Ransom Statistics'!$A$1:$D$18,4,FALSE))))) -> 0 | CA18: =INDEX([1]Variables!$A$2:$A$103,INT((RAND()*100)+1),1) -> Northern Ireland | CB18: =INDEX(Variables!$E$3:$E$5,RANDBETWEEN(1,3),1) -> Short (less a week) | CC18: =INDEX([1]Variables!$G$3:$G$5,RANDBETWEEN(1,3),1) -> infrequent (less than 3 times) | CD18: 17 | CE18: =IF(ISNA(VLOOKUP(CA18,Variables!$K$1:$K$36,1,FALSE)),SUM('Other cost'!$B$2,'Salary in Industry'!$AR17,IF(ISNA(VLOOKUP(Simulation!CA18,'Ransom Statistics'!$A$1:$D$18,4,FALSE)),'Ransom Statistics'!$D$18,VLOOKUP(Simulation!CA18,'Ransom Statistics'!$A$1:$D$18,4,FALSE)))*IF(ISNA(VLOOKUP(CA18,'Industry Type P'!$A$2:$S$103,2,FALSE)),'Kidnapping Statistics'!$K$3,VLOOKUP(CA18,'Industry Type P'!$A$1:$S$102,MATCH($C18,'Industry Type P'!$A$1:$S$1,0),FALSE))*VLOOKUP(CC18,'travel frequence'!$A$1:$D$4,MATCH(CB18,'travel frequence'!$A$1:$D$1,0),FALSE)*CD18*IF(ISNA(VLOOKUP(CD18,'travel frequence'!$A$7:$B$23,2,FALSE)),'travel frequence'!$B$23,VLOOKUP(CD18,'travel frequence'!$A$7:$B$23,2,FALSE)),0) -> 245.5895906 | CF18: =IF(VLOOKUP(CA18,'Industry Type P'!$A$1:$S$102,MATCH($C18,'Industry Type P'!$A$1:$S$1,0),FALSE)>RAND(),"Y","N") -> N | CG18: 0 | CH18: 0 | CI18: =IF(CF18="N"," ",INDEX('Other cost'!$A$9:$A$13,RANDBETWEEN(1,5),1)) ->  | CJ18: =MIN($H18,IF(CF18="N",0,SUM(CH18,'Other cost'!$B$16,VLOOKUP(CI18,'Other cost'!$A$9:$B$13,2,FALSE),IF(CG18>=30,HLOOKUP(30,'Salary in Industry'!$N$1:$AQ$1001,$B18+1,FALSE),HLOOKUP(CG18,'Salary in Industry'!$N$1:$AQ$1001,$B18+1,FALSE)),IF(ISNA(VLOOKUP(CA18,'Ransom Statistics'!$A$1:$D$18,4,FALSE)),'Ransom Statistics'!$D$18,VLOOKUP(CA18,'Ransom Statistics'!$A$1:$D$18,4,FALSE))))) -> 0 | CK18: =INDEX([1]Variables!$A$2:$A$103,INT((RAND()*100)+1),1) -> Georgia | CL18: =INDEX(Variables!$E$3:$E$5,RANDBETWEEN(1,3),1) -> Medium (1 week to 1month) | CM18: =INDEX([1]Variables!$G$3:$G$5,RANDBETWEEN(1,3),1) -> very frequent ( more than 12 times a year) | CN18: 15 | CO18: =IF(ISNA(VLOOKUP(CK18,Variables!$K$1:$K$36,1,FALSE)),SUM('Other cost'!$B$2,'Salary in Industry'!$AR17,IF(ISNA(VLOOKUP(Simulation!CK18,'Ransom Statistics'!$A$1:$D$18,4,FALSE)),'Ransom Statistics'!$D$18,VLOOKUP(Simulation!CK18,'Ransom Statistics'!$A$1:$D$18,4,FALSE)))*IF(ISNA(VLOOKUP(CK18,'Industry Type P'!$A$2:$S$103,2,FALSE)),'Kidnapping Statistics'!$K$3,VLOOKUP(CK18,'Industry Type P'!$A$1:$S$102,MATCH($C18,'Industry Type P'!$A$1:$S$1,0),FALSE))*VLOOKUP(CM18,'travel frequence'!$A$1:$D$4,MATCH(CL18,'travel frequence'!$A$1:$D$1,0),FALSE)*CN18*IF(ISNA(VLOOKUP(CN18,'travel frequence'!$A$7:$B$23,2,FALSE)),'travel frequence'!$B$23,VLOOKUP(CN18,'travel frequence'!$A$7:$B$23,2,FALSE)),0) -> 160.4529267 | CP18: =IF(VLOOKUP(CK18,'Industry Type P'!$A$1:$S$102,MATCH($C18,'Industry Type P'!$A$1:$S$1,0),FALSE)>RAND(),"Y","N") -> N | CQ18: 0 | CR18: 0 | CS18: =IF(CP18="N"," ",INDEX('Other cost'!$A$9:$A$13,RANDBETWEEN(1,5),1)) ->  | CT18: =MIN($H18,IF(CP18="N",0,SUM(CR18,'Other cost'!$B$16,VLOOKUP(CS18,'Other cost'!$A$9:$B$13,2,FALSE),IF(CQ18>=30,HLOOKUP(30,'Salary in Industry'!$N$1:$AQ$1001,$B18+1,FALSE),HLOOKUP(CQ18,'Salary in Industry'!$N$1:$AQ$1001,$B18+1,FALSE)),IF(ISNA(VLOOKUP(CK18,'Ransom Statistics'!$A$1:$D$18,4,FALSE)),'Ransom Statistics'!$D$18,VLOOKUP(CK18,'Ransom Statistics'!$A$1:$D$18,4,FALSE))))) -> 0 | CU18: =INDEX([1]Variables!$A$2:$A$103,INT((RAND()*100)+1),1) -> Djibouti | CV18: =INDEX(Variables!$E$3:$E$5,RANDBETWEEN(1,3),1) -> Long (more than one month) | CW18: =INDEX([1]Variables!$G$3:$G$5,RANDBETWEEN(1,3),1) -> frequent (3 times to 12 times) | CX18: 9 | CY18: =IF(ISNA(VLOOKUP(CU18,Variables!$K$1:$K$36,1,FALSE)),SUM('Other cost'!$B$2,'Salary in Industry'!$AR17,IF(ISNA(VLOOKUP(Simulation!CU18,'Ransom Statistics'!$A$1:$D$18,4,FALSE)),'Ransom Statistics'!$D$18,VLOOKUP(Simulation!CU18,'Ransom Statistics'!$A$1:$D$18,4,FALSE)))*IF(ISNA(VLOOKUP(CU18,'Industry Type P'!$A$2:$S$103,2,FALSE)),'Kidnapping Statistics'!$K$3,VLOOKUP(CU18,'Industry Type P'!$A$1:$S$102,MATCH($C18,'Industry Type P'!$A$1:$S$1,0),FALSE))*VLOOKUP(CW18,'travel frequence'!$A$1:$D$4,MATCH(CV18,'travel frequence'!$A$1:$D$1,0),FALSE)*CX18*IF(ISNA(VLOOKUP(CX18,'travel frequence'!$A$7:$B$23,2,FALSE)),'travel frequence'!$B$23,VLOOKUP(CX18,'travel frequence'!$A$7:$B$23,2,FALSE)),0) -> 0 | CZ18: =IF(VLOOKUP(CU18,'Industry Type P'!$A$1:$S$102,MATCH($C18,'Industry Type P'!$A$1:$S$1,0),FALSE)>RAND(),"Y","N") -> N | DA18: 0 | DB18: 0 | DC18: =IF(CZ18="N"," ",INDEX('Other cost'!$A$9:$A$13,RANDBETWEEN(1,5),1)) ->  | DD18: =MIN($H18,IF(CZ18="N",0,SUM(DB18,'Other cost'!$B$16,VLOOKUP(DC18,'Other cost'!$A$9:$B$13,2,FALSE),IF(DA18>=30,HLOOKUP(30,'Salary in Industry'!$N$1:$AQ$1001,$B18+1,FALSE),HLOOKUP(DA18,'Salary in Industry'!$N$1:$AQ$1001,$B18+1,FALSE)),IF(ISNA(VLOOKUP(CU18,'Ransom Statistics'!$A$1:$D$18,4,FALSE)),'Ransom Statistics'!$D$18,VLOOKUP(CU18,'Ransom Statistics'!$A$1:$D$18,4,FALSE))))) -> 0 | DE18: 0 | DF18: =((IF(A18=0,0,IF(A18=1,M18,IF(A18=2,M18+W18,IF(A18=3,M18+W18+AG18,IF(A18=4,M18+W18+AG18+AQ18,IF(A18=5,M18+W18+AG18+AQ18+BA18,IF(A18=6,M18+W18+AG18+AQ18+BA18+BK18,IF(A18=7,M18+W18+AG18+AQ18+BA18+BK18+BU18,IF(A18=8,M18+W18+AG18+AQ18+BA18+BK18+BU18+CE18,IF(A18=9,M18+W18+AG18+AQ18+BA18+BK18+BU18+CE18+CO18,IF(A18=10,M18+W18+AG18+AQ18+BA18+BK18+BU18+CE18+CO18+CY18))))))))))))/(1+Variables!$G$12))*(1+Variables!$F$19) -> 1052.691302
A19: 9 | B19: 17 | C19: =INDEX([1]Variables!$C$2:$C$19,INT((RAND()*10)+1),1) -> Construction | D19: 30 | E19: 419 | F19: 423 | G19: 49237761 | H19: =Variables!$H$18 -> 1000000 | I19: =INDEX([1]Variables!$A$2:$A$103,INT((RAND()*100)+1),1) -> Sri Lanka | J19: =INDEX(Variables!$E$3:$E$5,RANDBETWEEN(1,3),1) -> Medium (1 week to 1month) | K19: =INDEX([1]Variables!$G$3:$G$5,RANDBETWEEN(1,3),1) -> frequent (3 times to 12 times) | L19: 4 | M19: =IF(ISNA(VLOOKUP(I19,Variables!$K$1:$K$36,1,FALSE)),SUM('Other cost'!$B$2,'Salary in Industry'!$AR18,IF(ISNA(VLOOKUP(Simulation!I19,'Ransom Statistics'!$A$1:$D$18,4,FALSE)),'Ransom Statistics'!$D$18,VLOOKUP(Simulation!I19,'Ransom Statistics'!$A$1:$D$18,4,FALSE)))*IF(ISNA(VLOOKUP(I19,'Industry Type P'!$A$2:$S$103,2,FALSE)),'Kidnapping Statistics'!$K$3,VLOOKUP(I19,'Industry Type P'!$A$1:$S$102,MATCH($C19,'Industry Type P'!$A$1:$S$1,0),FALSE))*VLOOKUP(K19,'travel frequence'!$A$1:$D$4,MATCH(J19,'travel frequence'!$A$1:$D$1,0),FALSE)*L19*IF(ISNA(VLOOKUP(L19,'travel frequence'!$A$7:$B$23,2,FALSE)),'travel frequence'!$B$23,VLOOKUP(L19,'travel frequence'!$A$7:$B$23,2,FALSE)),0) -> 138.0911636 | N19: =IF(VLOOKUP(I19,'Industry Type P'!$A$1:$S$102,MATCH($C19,'Industry Type P'!$A$1:$S$1,0),FALSE)>RAND(),"Y","N") -> N | O19: 0 | P19: 0 | Q19: =IF(N19="N"," ",INDEX('Other cost'!$A$9:$A$13,RANDBETWEEN(1,5),1)) ->  | R19: =MIN($H19,IF(N19="N",0,SUM(P19,'Other cost'!$B$16,VLOOKUP(Q19,'Other cost'!$A$9:$B$13,2,FALSE),IF(O19>=30,HLOOKUP(30,'Salary in Industry'!$N$1:$AQ$1001,$B19+1,FALSE),HLOOKUP(O19,'Salary in Industry'!$N$1:$AQ$1001,$B19+1,FALSE)),IF(ISNA(VLOOKUP(I19,'Ransom Statistics'!$A$1:$D$18,4,FALSE)),'Ransom Statistics'!$D$18,VLOOKUP(I19,'Ransom Statistics'!$A$1:$D$18,4,FALSE))))) -> 0 | S19: =INDEX([1]Variables!$A$2:$A$103,INT((RAND()*100)+1),1) -> Italy | T19: =INDEX(Variables!$E$3:$E$5,RANDBETWEEN(1,3),1) -> Medium (1 week to 1month) | U19: =INDEX([1]Variables!$G$3:$G$5,RANDBETWEEN(1,3),1) -> very frequent ( more than 12 times a year) | V19: 18 | W19: =IF(ISNA(VLOOKUP(S19,Variables!$K$1:$K$36,1,FALSE)),SUM('Other cost'!$B$2,'Salary in Industry'!$AR18,IF(ISNA(VLOOKUP(Simulation!S19,'Ransom Statistics'!$A$1:$D$18,4,FALSE)),'Ransom Statistics'!$D$18,VLOOKUP(Simulation!S19,'Ransom Statistics'!$A$1:$D$18,4,FALSE)))*IF(ISNA(VLOOKUP(S19,'Industry Type P'!$A$2:$S$103,2,FALSE)),'Kidnapping Statistics'!$K$3,VLOOKUP(S19,'Industry Type P'!$A$1:$S$102,MATCH($C19,'Industry Type P'!$A$1:$S$1,0),FALSE))*VLOOKUP(U19,'travel frequence'!$A$1:$D$4,MATCH(T19,'travel frequence'!$A$1:$D$1,0),FALSE)*V19*IF(ISNA(VLOOKUP(V19,'travel frequence'!$A$7:$B$23,2,FALSE)),'travel frequence'!$B$23,VLOOKUP(V19,'travel frequence'!$A$7:$B$23,2,FALSE)),0) -> 45.53133392 | X19: =IF(VLOOKUP(S19,'Industry Type P'!$A$1:$S$102,MATCH($C19,'Industry Type P'!$A$1:$S$1,0),FALSE)>RAND(),"Y","N") -> N | Y19: 0 | Z19: 0 | AA19: =IF(X19="N"," ",INDEX('Other cost'!$A$9:$A$13,RANDBETWEEN(1,5),1)) ->  | AB19: =MIN($H19,IF(X19="N",0,SUM(Z19,'Other cost'!$B$16,VLOOKUP(AA19,'Other cost'!$A$9:$B$13,2,FALSE),IF(Y19>=30,HLOOKUP(30,'Salary in Industry'!$N$1:$AQ$1001,$B19+1,FALSE),HLOOKUP(Y19,'Salary in Industry'!$N$1:$AQ$1001,$B19+1,FALSE)),IF(ISNA(VLOOKUP(S19,'Ransom Statistics'!$A$1:$D$18,4,FALSE)),'Ransom Statistics'!$D$18,VLOOKUP(S19,'Ransom Statistics'!$A$1:$D$18,4,FALSE))))) -> 0 | AC19: =INDEX([1]Variables!$A$2:$A$103,INT((RAND()*100)+1),1) -> Kashmir | AD19: =INDEX(Variables!$E$3:$E$5,RANDBETWEEN(1,3),1) -> Long (more than one month) | AE19: =INDEX([1]Variables!$G$3:$G$5,RANDBETWEEN(1,3),1) -> infrequent (less than 3 times) | AF19: 11 | AG19: =IF(ISNA(VLOOKUP(AC19,Variables!$K$1:$K$36,1,FALSE)),SUM('Other cost'!$B$2,'Salary in Industry'!$AR18,IF(ISNA(VLOOKUP(Simulation!AC19,'Ransom Statistics'!$A$1:$D$18,4,FALSE)),'Ransom Statistics'!$D$18,VLOOKUP(Simulation!AC19,'Ransom Statistics'!$A$1:$D$18,4,FALSE)))*IF(ISNA(VLOOKUP(AC19,'Industry Type P'!$A$2:$S$103,2,FALSE)),'Kidnapping Statistics'!$K$3,VLOOKUP(AC19,'Industry Type P'!$A$1:$S$102,MATCH($C19,'Industry Type P'!$A$1:$S$1,0),FALSE))*VLOOKUP(AE19,'travel frequence'!$A$1:$D$4,MATCH(AD19,'travel frequence'!$A$1:$D$1,0),FALSE)*AF19*IF(ISNA(VLOOKUP(AF19,'travel frequence'!$A$7:$B$23,2,FALSE)),'travel frequence'!$B$23,VLOOKUP(AF19,'travel frequence'!$A$7:$B$23,2,FALSE)),0) -> 2631.177689 | AH19: =IF(VLOOKUP(AC19,'Industry Type P'!$A$1:$S$102,MATCH($C19,'Industry Type P'!$A$1:$S$1,0),FALSE)>RAND(),"Y","N") -> N | AI19: 0 | AJ19: 0 | AK19: =IF(AH19="N"," ",INDEX('Other cost'!$A$9:$A$13,RANDBETWEEN(1,5),1)) ->  | AL19: =MIN($H19,IF(AH19="N",0,SUM(AJ19,'Other cost'!$B$16,VLOOKUP(AK19,'Other cost'!$A$9:$B$13,2,FALSE),IF(AI19>=30,HLOOKUP(30,'Salary in Industry'!$N$1:$AQ$1001,$B19+1,FALSE),HLOOKUP(AI19,'Salary in Industry'!$N$1:$AQ$1001,$B19+1,FALSE)),IF(ISNA(VLOOKUP(AC19,'Ransom Statistics'!$A$1:$D$18,4,FALSE)),'Ransom Statistics'!$D$18,VLOOKUP(AC19,'Ransom Statistics'!$A$1:$D$18,4,FALSE))))) -> 0 | AM19: =INDEX([1]Variables!$A$2:$A$103,INT((RAND()*100)+1),1) -> Burundi | AN19: =INDEX(Variables!$E$3:$E$5,RANDBETWEEN(1,3),1) -> Medium (1 week to 1month) | AO19: =INDEX([1]Variables!$G$3:$G$5,RANDBETWEEN(1,3),1) -> very frequent ( more than 12 times a year) | AP19: 20 | AQ19: =IF(ISNA(VLOOKUP(AM19,Variables!$K$1:$K$36,1,FALSE)),SUM('Other cost'!$B$2,'Salary in Industry'!$AR18,IF(ISNA(VLOOKUP(Simulation!AM19,'Ransom Statistics'!$A$1:$D$18,4,FALSE)),'Ransom Statistics'!$D$18,VLOOKUP(Simulation!AM19,'Ransom Statistics'!$A$1:$D$18,4,FALSE)))*IF(ISNA(VLOOKUP(AM19,'Industry Type P'!$A$2:$S$103,2,FALSE)),'Kidnapping Statistics'!$K$3,VLOOKUP(AM19,'Industry Type P'!$A$1:$S$102,MATCH($C19,'Industry Type P'!$A$1:$S$1,0),FALSE))*VLOOKUP(AO19,'travel frequence'!$A$1:$D$4,MATCH(AN19,'travel frequence'!$A$1:$D$1,0),FALSE)*AP19*IF(ISNA(VLOOKUP(AP19,'travel frequence'!$A$7:$B$23,2,FALSE)),'travel frequence'!$B$23,VLOOKUP(AP19,'travel frequence'!$A$7:$B$23,2,FALSE)),0) -> 3229.172619 | AR19: =IF(VLOOKUP(AM19,'Industry Type P'!$A$1:$S$102,MATCH($C19,'Industry Type P'!$A$1:$S$1,0),FALSE)>RAND(),"Y","N") -> N | AS19: 0 | AT19: 0 | AU19: =IF(AR19="N"," ",INDEX('Other cost'!$A$9:$A$13,RANDBETWEEN(1,5),1)) ->  | AV19: =MIN($H19,IF(AR19="N",0,SUM(AT19,'Other cost'!$B$16,VLOOKUP(AU19,'Other cost'!$A$9:$B$13,2,FALSE),IF(AS19>=30,HLOOKUP(30,'Salary in Industry'!$N$1:$AQ$1001,$B19+1,FALSE),HLOOKUP(AS19,'Salary in Industry'!$N$1:$AQ$1001,$B19+1,FALSE)),IF(ISNA(VLOOKUP(AM19,'Ransom Statistics'!$A$1:$D$18,4,FALSE)),'Ransom Statistics'!$D$18,VLOOKUP(AM19,'Ransom Statistics'!$A$1:$D$18,4,FALSE))))) -> 0 | AW19: =INDEX([1]Variables!$A$2:$A$103,INT((RAND()*100)+1),1) -> Uganda | AX19: =INDEX(Variables!$E$3:$E$5,RANDBETWEEN(1,3),1) -> Short (less a week) | AY19: =INDEX([1]Variables!$G$3:$G$5,RANDBETWEEN(1,3),1) -> frequent (3 times to 12 times) | AZ19: 17 | BA19: =IF(ISNA(VLOOKUP(AW19,Variables!$K$1:$K$36,1,FALSE)),SUM('Other cost'!$B$2,'Salary in Industry'!$AR18,IF(ISNA(VLOOKUP(Simulation!AW19,'Ransom Statistics'!$A$1:$D$18,4,FALSE)),'Ransom Statistics'!$D$18,VLOOKUP(Simulation!AW19,'Ransom Statistics'!$A$1:$D$18,4,FALSE)))*IF(ISNA(VLOOKUP(AW19,'Industry Type P'!$A$2:$S$103,2,FALSE)),'Kidnapping Statistics'!$K$3,VLOOKUP(AW19,'Industry Type P'!$A$1:$S$102,MATCH($C19,'Industry Type P'!$A$1:$S$1,0),FALSE))*VLOOKUP(AY19,'travel frequence'!$A$1:$D$4,MATCH(AX19,'travel frequence'!$A$1:$D$1,0),FALSE)*AZ19*IF(ISNA(VLOOKUP(AZ19,'travel frequence'!$A$7:$B$23,2,FALSE)),'travel frequence'!$B$23,VLOOKUP(AZ19,'travel frequence'!$A$7:$B$23,2,FALSE)),0) -> 571.502938 | BB19: =IF(VLOOKUP(AW19,'Industry Type P'!$A$1:$S$102,MATCH($C19,'Industry Type P'!$A$1:$S$1,0),FALSE)>RAND(),"Y","N") -> N | BC19: 0 | BD19: 0 | BE19: =IF(BB19="N"," ",INDEX('Other cost'!$A$9:$A$13,RANDBETWEEN(1,5),1)) ->  | BF19: =MIN($H19,IF(BB19="N",0,SUM(BD19,'Other cost'!$B$16,VLOOKUP(BE19,'Other cost'!$A$9:$B$13,2,FALSE),IF(BC19>=30,HLOOKUP(30,'Salary in Industry'!$N$1:$AQ$1001,$B19+1,FALSE),HLOOKUP(BC19,'Salary in Industry'!$N$1:$AQ$1001,$B19+1,FALSE)),IF(ISNA(VLOOKUP(AW19,'Ransom Statistics'!$A$1:$D$18,4,FALSE)),'Ransom Statistics'!$D$18,VLOOKUP(AW19,'Ransom Statistics'!$A$1:$D$18,4,FALSE))))) -> 0 | BG19: =INDEX([1]Variables!$A$2:$A$103,INT((RAND()*100)+1),1) -> CAR | BH19: =INDEX(Variables!$E$3:$E$5,RANDBETWEEN(1,3),1) -> Medium (1 week to 1month) | BI19: =INDEX([1]Variables!$G$3:$G$5,RANDBETWEEN(1,3),1) -> frequent (3 times to 12 times) | BJ19: 16 | BK19: =IF(ISNA(VLOOKUP(BG19,Variables!$K$1:$K$36,1,FALSE)),SUM('Other cost'!$B$2,'Salary in Industry'!$AR18,IF(ISNA(VLOOKUP(Simulation!BG19,'Ransom Statistics'!$A$1:$D$18,4,FALSE)),'Ransom Statistics'!$D$18,VLOOKUP(Simulation!BG19,'Ransom Statistics'!$A$1:$D$18,4,FALSE)))*IF(ISNA(VLOOKUP(BG19,'Industry Type P'!$A$2:$S$103,2,FALSE)),'Kidnapping Statistics'!$K$3,VLOOKUP(BG19,'Industry Type P'!$A$1:$S$102,MATCH($C19,'Industry Type P'!$A$1:$S$1,0),FALSE))*VLOOKUP(BI19,'travel frequence'!$A$1:$D$4,MATCH(BH19,'travel frequence'!$A$1:$D$1,0),FALSE)*BJ19*IF(ISNA(VLOOKUP(BJ19,'travel frequence'!$A$7:$B$23,2,FALSE)),'travel frequence'!$B$23,VLOOKUP(BJ19,'travel frequence'!$A$7:$B$23,2,FALSE)),0) -> 53580.34567 | BL19: =IF(VLOOKUP(BG19,'Industry Type P'!$A$1:$S$102,MATCH($C19,'Industry Type P'!$A$1:$S$1,0),FALSE)>RAND(),"Y","N") -> N | BM19: 0 | BN19: 0 | BO19: =IF(BL19="N"," ",INDEX('Other cost'!$A$9:$A$13,RANDBETWEEN(1,5),1)) ->  | BP19: =MIN($H19,IF(BL19="N",0,SUM(BN19,'Other cost'!$B$16,VLOOKUP(BO19,'Other cost'!$A$9:$B$13,2,FALSE),IF(BM19>=30,HLOOKUP(30,'Salary in Industry'!$N$1:$AQ$1001,$B19+1,FALSE),HLOOKUP(BM19,'Salary in Industry'!$N$1:$AQ$1001,$B19+1,FALSE)),IF(ISNA(VLOOKUP(BG19,'Ransom Statistics'!$A$1:$D$18,4,FALSE)),'Ransom Statistics'!$D$18,VLOOKUP(BG19,'Ransom Statistics'!$A$1:$D$18,4,FALSE))))) -> 0 | BQ19: =INDEX([1]Variables!$A$2:$A$103,INT((RAND()*100)+1),1) -> Iraq | BR19: =INDEX(Variables!$E$3:$E$5,RANDBETWEEN(1,3),1) -> Medium (1 week to 1month) | BS19: =INDEX([1]Variables!$G$3:$G$5,RANDBETWEEN(1,3),1) -> very frequent ( more than 12 times a year) | BT19: 17 | BU19: =IF(ISNA(VLOOKUP(BQ19,Variables!$K$1:$K$36,1,FALSE)),SUM('Other cost'!$B$2,'Salary in Industry'!$AR18,IF(ISNA(VLOOKUP(Simulation!BQ19,'Ransom Statistics'!$A$1:$D$18,4,FALSE)),'Ransom Statistics'!$D$18,VLOOKUP(Simulation!BQ19,'Ransom Statistics'!$A$1:$D$18,4,FALSE)))*IF(ISNA(VLOOKUP(BQ19,'Industry Type P'!$A$2:$S$103,2,FALSE)),'Kidnapping Statistics'!$K$3,VLOOKUP(BQ19,'Industry Type P'!$A$1:$S$102,MATCH($C19,'Industry Type P'!$A$1:$S$1,0),FALSE))*VLOOKUP(BS19,'travel frequence'!$A$1:$D$4,MATCH(BR19,'travel frequence'!$A$1:$D$1,0),FALSE)*BT19*IF(ISNA(VLOOKUP(BT19,'travel frequence'!$A$7:$B$23,2,FALSE)),'travel frequence'!$B$23,VLOOKUP(BT19,'travel frequence'!$A$7:$B$23,2,FALSE)),0) -> 0 | BV19: =IF(VLOOKUP(BQ19,'Industry Type P'!$A$1:$S$102,MATCH($C19,'Industry Type P'!$A$1:$S$1,0),FALSE)>RAND(),"Y","N") -> N | BW19: 0 | BX19: 0 | BY19: =IF(BV19="N"," ",INDEX('Other cost'!$A$9:$A$13,RANDBETWEEN(1,5),1)) ->  | BZ19: =MIN($H19,IF(BV19="N",0,SUM(BX19,'Other cost'!$B$16,VLOOKUP(BY19,'Other cost'!$A$9:$B$13,2,FALSE),IF(BW19>=30,HLOOKUP(30,'Salary in Industry'!$N$1:$AQ$1001,$B19+1,FALSE),HLOOKUP(BW19,'Salary in Industry'!$N$1:$AQ$1001,$B19+1,FALSE)),IF(ISNA(VLOOKUP(BQ19,'Ransom Statistics'!$A$1:$D$18,4,FALSE)),'Ransom Statistics'!$D$18,VLOOKUP(BQ19,'Ransom Statistics'!$A$1:$D$18,4,FALSE))))) -> 0 | CA19: =INDEX([1]Variables!$A$2:$A$103,INT((RAND()*100)+1),1) -> Angola | CB19: =INDEX(Variables!$E$3:$E$5,RANDBETWEEN(1,3),1) -> Long (more than one month) | CC19: =INDEX([1]Variables!$G$3:$G$5,RANDBETWEEN(1,3),1) -> very frequent ( more than 12 times a year) | CD19: 10 | CE19: =IF(ISNA(VLOOKUP(CA19,Variables!$K$1:$K$36,1,FALSE)),SUM('Other cost'!$B$2,'Salary in Industry'!$AR18,IF(ISNA(VLOOKUP(Simulation!CA19,'Ransom Statistics'!$A$1:$D$18,4,FALSE)),'Ransom Statistics'!$D$18,VLOOKUP(Simulation!CA19,'Ransom Statistics'!$A$1:$D$18,4,FALSE)))*IF(ISNA(VLOOKUP(CA19,'Industry Type P'!$A$2:$S$103,2,FALSE)),'Kidnapping Statistics'!$K$3,VLOOKUP(CA19,'Industry Type P'!$A$1:$S$102,MATCH($C19,'Industry Type P'!$A$1:$S$1,0),FALSE))*VLOOKUP(CC19,'travel frequence'!$A$1:$D$4,MATCH(CB19,'travel frequence'!$A$1:$D$1,0),FALSE)*CD19*IF(ISNA(VLOOKUP(CD19,'travel frequence'!$A$7:$B$23,2,FALSE)),'travel frequence'!$B$23,VLOOKUP(CD19,'travel frequence'!$A$7:$B$23,2,FALSE)),0) -> 1973.383267 | CF19: =IF(VLOOKUP(CA19,'Industry Type P'!$A$1:$S$102,MATCH($C19,'Industry Type P'!$A$1:$S$1,0),FALSE)>RAND(),"Y","N") -> N | CG19: 0 | CH19: 0 | CI19: =IF(CF19="N"," ",INDEX('Other cost'!$A$9:$A$13,RANDBETWEEN(1,5),1)) ->  | CJ19: =MIN($H19,IF(CF19="N",0,SUM(CH19,'Other cost'!$B$16,VLOOKUP(CI19,'Other cost'!$A$9:$B$13,2,FALSE),IF(CG19>=30,HLOOKUP(30,'Salary in Industry'!$N$1:$AQ$1001,$B19+1,FALSE),HLOOKUP(CG19,'Salary in Industry'!$N$1:$AQ$1001,$B19+1,FALSE)),IF(ISNA(VLOOKUP(CA19,'Ransom Statistics'!$A$1:$D$18,4,FALSE)),'Ransom Statistics'!$D$18,VLOOKUP(CA19,'Ransom Statistics'!$A$1:$D$18,4,FALSE))))) -> 0 | CK19: =INDEX([1]Variables!$A$2:$A$103,INT((RAND()*100)+1),1) -> Eritrea | CL19: =INDEX(Variables!$E$3:$E$5,RANDBETWEEN(1,3),1) -> Short (less a week) | CM19: =INDEX([1]Variables!$G$3:$G$5,RANDBETWEEN(1,3),1) -> very frequent ( more than 12 times a year) | CN19: 10 | CO19: =IF(ISNA(VLOOKUP(CK19,Variables!$K$1:$K$36,1,FALSE)),SUM('Other cost'!$B$2,'Salary in Industry'!$AR18,IF(ISNA(VLOOKUP(Simulation!CK19,'Ransom Statistics'!$A$1:$D$18,4,FALSE)),'Ransom Statistics'!$D$18,VLOOKUP(Simulation!CK19,'Ransom Statistics'!$A$1:$D$18,4,FALSE)))*IF(ISNA(VLOOKUP(CK19,'Industry Type P'!$A$2:$S$103,2,FALSE)),'Kidnapping Statistics'!$K$3,VLOOKUP(CK19,'Industry Type P'!$A$1:$S$102,MATCH($C19,'Industry Type P'!$A$1:$S$1,0),FALSE))*VLOOKUP(CM19,'travel frequence'!$A$1:$D$4,MATCH(CL19,'travel frequence'!$A$1:$D$1,0),FALSE)*CN19*IF(ISNA(VLOOKUP(CN19,'travel frequence'!$A$7:$B$23,2,FALSE)),'travel frequence'!$B$23,VLOOKUP(CN19,'travel frequence'!$A$7:$B$23,2,FALSE)),0) -> 0 | CP19: =IF(VLOOKUP(CK19,'Industry Type P'!$A$1:$S$102,MATCH($C19,'Industry Type P'!$A$1:$S$1,0),FALSE)>RAND(),"Y","N") -> N | CQ19: 0 | CR19: 0 | CS19: =IF(CP19="N"," ",INDEX('Other cost'!$A$9:$A$13,RANDBETWEEN(1,5),1)) ->  | CT19: =MIN($H19,IF(CP19="N",0,SUM(CR19,'Other cost'!$B$16,VLOOKUP(CS19,'Other cost'!$A$9:$B$13,2,FALSE),IF(CQ19>=30,HLOOKUP(30,'Salary in Industry'!$N$1:$AQ$1001,$B19+1,FALSE),HLOOKUP(CQ19,'Salary in Industry'!$N$1:$AQ$1001,$B19+1,FALSE)),IF(ISNA(VLOOKUP(CK19,'Ransom Statistics'!$A$1:$D$18,4,FALSE)),'Ransom Statistics'!$D$18,VLOOKUP(CK19,'Ransom Statistics'!$A$1:$D$18,4,FALSE))))) -> 0 | CU19: =INDEX([1]Variables!$A$2:$A$103,INT((RAND()*100)+1),1) -> Liberia | CV19: =INDEX(Variables!$E$3:$E$5,RANDBETWEEN(1,3),1) -> Short (less a week) | CW19: =INDEX([1]Variables!$G$3:$G$5,RANDBETWEEN(1,3),1) -> very frequent ( more than 12 times a year) | CX19: 1 | CY19: =IF(ISNA(VLOOKUP(CU19,Variables!$K$1:$K$36,1,FALSE)),SUM('Other cost'!$B$2,'Salary in Industry'!$AR18,IF(ISNA(VLOOKUP(Simulation!CU19,'Ransom Statistics'!$A$1:$D$18,4,FALSE)),'Ransom Statistics'!$D$18,VLOOKUP(Simulation!CU19,'Ransom Statistics'!$A$1:$D$18,4,FALSE)))*IF(ISNA(VLOOKUP(CU19,'Industry Type P'!$A$2:$S$103,2,FALSE)),'Kidnapping Statistics'!$K$3,VLOOKUP(CU19,'Industry Type P'!$A$1:$S$102,MATCH($C19,'Industry Type P'!$A$1:$S$1,0),FALSE))*VLOOKUP(CW19,'travel frequence'!$A$1:$D$4,MATCH(CV19,'travel frequence'!$A$1:$D$1,0),FALSE)*CX19*IF(ISNA(VLOOKUP(CX19,'travel frequence'!$A$7:$B$23,2,FALSE)),'travel frequence'!$B$23,VLOOKUP(CX19,'travel frequence'!$A$7:$B$23,2,FALSE)),0) -> 0 | CZ19: =IF(VLOOKUP(CU19,'Industry Type P'!$A$1:$S$102,MATCH($C19,'Industry Type P'!$A$1:$S$1,0),FALSE)>RAND(),"Y","N") -> N | DA19: 0 | DB19: 0 | DC19: =IF(CZ19="N"," ",INDEX('Other cost'!$A$9:$A$13,RANDBETWEEN(1,5),1)) ->  | DD19: =MIN($H19,IF(CZ19="N",0,SUM(DB19,'Other cost'!$B$16,VLOOKUP(DC19,'Other cost'!$A$9:$B$13,2,FALSE),IF(DA19>=30,HLOOKUP(30,'Salary in Industry'!$N$1:$AQ$1001,$B19+1,FALSE),HLOOKUP(DA19,'Salary in Industry'!$N$1:$AQ$1001,$B19+1,FALSE)),IF(ISNA(VLOOKUP(CU19,'Ransom Statistics'!$A$1:$D$18,4,FALSE)),'Ransom Statistics'!$D$18,VLOOKUP(CU19,'Ransom Statistics'!$A$1:$D$18,4,FALSE))))) -> 0 | DE19: 0 | DF19: =((IF(A19=0,0,IF(A19=1,M19,IF(A19=2,M19+W19,IF(A19=3,M19+W19+AG19,IF(A19=4,M19+W19+AG19+AQ19,IF(A19=5,M19+W19+AG19+AQ19+BA19,IF(A19=6,M19+W19+AG19+AQ19+BA19+BK19,IF(A19=7,M19+W19+AG19+AQ19+BA19+BK19+BU19,IF(A19=8,M19+W19+AG19+AQ19+BA19+BK19+BU19+CE19,IF(A19=9,M19+W19+AG19+AQ19+BA19+BK19+BU19+CE19+CO19,IF(A19=10,M19+W19+AG19+AQ19+BA19+BK19+BU19+CE19+CO19+CY19))))))))))))/(1+Variables!$G$12))*(1+Variables!$F$19) -> 74351.05106
A20: 1 | B20: 18 | C20: =INDEX([1]Variables!$C$2:$C$19,INT((RAND()*10)+1),1) -> Information | D20: 15 | E20: 165 | F20: 7741 | G20: 19202284 | H20: =Variables!$H$18 -> 1000000 | I20: =INDEX([1]Variables!$A$2:$A$103,INT((RAND()*100)+1),1) -> Poland | J20: =INDEX(Variables!$E$3:$E$5,RANDBETWEEN(1,3),1) -> Medium (1 week to 1month) | K20: =INDEX([1]Variables!$G$3:$G$5,RANDBETWEEN(1,3),1) -> infrequent (less than 3 times) | L20: 6 | M20: =IF(ISNA(VLOOKUP(I20,Variables!$K$1:$K$36,1,FALSE)),SUM('Other cost'!$B$2,'Salary in Industry'!$AR19,IF(ISNA(VLOOKUP(Simulation!I20,'Ransom Statistics'!$A$1:$D$18,4,FALSE)),'Ransom Statistics'!$D$18,VLOOKUP(Simulation!I20,'Ransom Statistics'!$A$1:$D$18,4,FALSE)))*IF(ISNA(VLOOKUP(I20,'Industry Type P'!$A$2:$S$103,2,FALSE)),'Kidnapping Statistics'!$K$3,VLOOKUP(I20,'Industry Type P'!$A$1:$S$102,MATCH($C20,'Industry Type P'!$A$1:$S$1,0),FALSE))*VLOOKUP(K20,'travel frequence'!$A$1:$D$4,MATCH(J20,'travel frequence'!$A$1:$D$1,0),FALSE)*L20*IF(ISNA(VLOOKUP(L20,'travel frequence'!$A$7:$B$23,2,FALSE)),'travel frequence'!$B$23,VLOOKUP(L20,'travel frequence'!$A$7:$B$23,2,FALSE)),0) -> 2.348639558 | N20: =IF(VLOOKUP(I20,'Industry Type P'!$A$1:$S$102,MATCH($C20,'Industry Type P'!$A$1:$S$1,0),FALSE)>RAND(),"Y","N") -> N | O20: 0 | P20: 0 | Q20: =IF(N20="N"," ",INDEX('Other cost'!$A$9:$A$13,RANDBETWEEN(1,5),1)) ->  | R20: =MIN($H20,IF(N20="N",0,SUM(P20,'Other cost'!$B$16,VLOOKUP(Q20,'Other cost'!$A$9:$B$13,2,FALSE),IF(O20>=30,HLOOKUP(30,'Salary in Industry'!$N$1:$AQ$1001,$B20+1,FALSE),HLOOKUP(O20,'Salary in Industry'!$N$1:$AQ$1001,$B20+1,FALSE)),IF(ISNA(VLOOKUP(I20,'Ransom Statistics'!$A$1:$D$18,4,FALSE)),'Ransom Statistics'!$D$18,VLOOKUP(I20,'Ransom Statistics'!$A$1:$D$18,4,FALSE))))) -> 0 | S20: =INDEX([1]Variables!$A$2:$A$103,INT((RAND()*100)+1),1) -> Poland | T20: =INDEX(Variables!$E$3:$E$5,RANDBETWEEN(1,3),1) -> Medium (1 week to 1month) | U20: =INDEX([1]Variables!$G$3:$G$5,RANDBETWEEN(1,3),1) -> very frequent ( more than 12 times a year) | V20: 15 | W20: =IF(ISNA(VLOOKUP(S20,Variables!$K$1:$K$36,1,FALSE)),SUM('Other cost'!$B$2,'Salary in Industry'!$AR19,IF(ISNA(VLOOKUP(Simulation!S20,'Ransom Statistics'!$A$1:$D$18,4,FALSE)),'Ransom Statistics'!$D$18,VLOOKUP(Simulation!S20,'Ransom Statistics'!$A$1:$D$18,4,FALSE)))*IF(ISNA(VLOOKUP(S20,'Industry Type P'!$A$2:$S$103,2,FALSE)),'Kidnapping Statistics'!$K$3,VLOOKUP(S20,'Industry Type P'!$A$1:$S$102,MATCH($C20,'Industry Type P'!$A$1:$S$1,0),FALSE))*VLOOKUP(U20,'travel frequence'!$A$1:$D$4,MATCH(T20,'travel frequence'!$A$1:$D$1,0),FALSE)*V20*IF(ISNA(VLOOKUP(V20,'travel frequence'!$A$7:$B$23,2,FALSE)),'travel frequence'!$B$23,VLOOKUP(V20,'travel frequence'!$A$7:$B$23,2,FALSE)),0) -> 4.844069089 | X20: =IF(VLOOKUP(S20,'Industry Type P'!$A$1:$S$102,MATCH($C20,'Industry Type P'!$A$1:$S$1,0),FALSE)>RAND(),"Y","N") -> N | Y20: 0 | Z20: 0 | AA20: =IF(X20="N"," ",INDEX('Other cost'!$A$9:$A$13,RANDBETWEEN(1,5),1)) ->  | AB20: =MIN($H20,IF(X20="N",0,SUM(Z20,'Other cost'!$B$16,VLOOKUP(AA20,'Other cost'!$A$9:$B$13,2,FALSE),IF(Y20>=30,HLOOKUP(30,'Salary in Industry'!$N$1:$AQ$1001,$B20+1,FALSE),HLOOKUP(Y20,'Salary in Industry'!$N$1:$AQ$1001,$B20+1,FALSE)),IF(ISNA(VLOOKUP(S20,'Ransom Statistics'!$A$1:$D$18,4,FALSE)),'Ransom Statistics'!$D$18,VLOOKUP(S20,'Ransom Statistics'!$A$1:$D$18,4,FALSE))))) -> 0 | AC20: =INDEX([1]Variables!$A$2:$A$103,INT((RAND()*100)+1),1) -> Turkmenistan | AD20: =INDEX(Variables!$E$3:$E$5,RANDBETWEEN(1,3),1) -> Medium (1 week to 1month) | AE20: =INDEX([1]Variables!$G$3:$G$5,RANDBETWEEN(1,3),1) -> very frequent ( more than 12 times a year) | AF20: 1 | AG20: =IF(ISNA(VLOOKUP(AC20,Variables!$K$1:$K$36,1,FALSE)),SUM('Other cost'!$B$2,'Salary in Industry'!$AR19,IF(ISNA(VLOOKUP(Simulation!AC20,'Ransom Statistics'!$A$1:$D$18,4,FALSE)),'Ransom Statistics'!$D$18,VLOOKUP(Simulation!AC20,'Ransom Statistics'!$A$1:$D$18,4,FALSE)))*IF(ISNA(VLOOKUP(AC20,'Industry Type P'!$A$2:$S$103,2,FALSE)),'Kidnapping Statistics'!$K$3,VLOOKUP(AC20,'Industry Type P'!$A$1:$S$102,MATCH($C20,'Industry Type P'!$A$1:$S$1,0),FALSE))*VLOOKUP(AE20,'travel frequence'!$A$1:$D$4,MATCH(AD20,'travel frequence'!$A$1:$D$1,0),FALSE)*AF20*IF(ISNA(VLOOKUP(AF20,'travel frequence'!$A$7:$B$23,2,FALSE)),'travel frequence'!$B$23,VLOOKUP(AF20,'travel frequence'!$A$7:$B$23,2,FALSE)),0) -> 23.86152551 | AH20: =IF(VLOOKUP(AC20,'Industry Type P'!$A$1:$S$102,MATCH($C20,'Industry Type P'!$A$1:$S$1,0),FALSE)>RAND(),"Y","N") -> N | AI20: 0 | AJ20: 0 | AK20: =IF(AH20="N"," ",INDEX('Other cost'!$A$9:$A$13,RANDBETWEEN(1,5),1)) ->  | AL20: =MIN($H20,IF(AH20="N",0,SUM(AJ20,'Other cost'!$B$16,VLOOKUP(AK20,'Other cost'!$A$9:$B$13,2,FALSE),IF(AI20>=30,HLOOKUP(30,'Salary in Industry'!$N$1:$AQ$1001,$B20+1,FALSE),HLOOKUP(AI20,'Salary in Industry'!$N$1:$AQ$1001,$B20+1,FALSE)),IF(ISNA(VLOOKUP(AC20,'Ransom Statistics'!$A$1:$D$18,4,FALSE)),'Ransom Statistics'!$D$18,VLOOKUP(AC20,'Ransom Statistics'!$A$1:$D$18,4,FALSE))))) -> 0 | AM20: =INDEX([1]Variables!$A$2:$A$103,INT((RAND()*100)+1),1) -> Georgia | AN20: =INDEX(Variables!$E$3:$E$5,RANDBETWEEN(1,3),1) -> Long (more than one month) | AO20: =INDEX([1]Variables!$G$3:$G$5,RANDBETWEEN(1,3),1) -> infrequent (less than 3 times) | AP20: 8 | AQ20: =IF(ISNA(VLOOKUP(AM20,Variables!$K$1:$K$36,1,FALSE)),SUM('Other cost'!$B$2,'Salary in Industry'!$AR19,IF(ISNA(VLOOKUP(Simulation!AM20,'Ransom Statistics'!$A$1:$D$18,4,FALSE)),'Ransom Statistics'!$D$18,VLOOKUP(Simulation!AM20,'Ransom Statistics'!$A$1:$D$18,4,FALSE)))*IF(ISNA(VLOOKUP(AM20,'Industry Type P'!$A$2:$S$103,2,FALSE)),'Kidnapping Statistics'!$K$3,VLOOKUP(AM20,'Industry Type P'!$A$1:$S$102,MATCH($C20,'Industry Type P'!$A$1:$S$1,0),FALSE))*VLOOKUP(AO20,'travel frequence'!$A$1:$D$4,MATCH(AN20,'travel frequence'!$A$1:$D$1,0),FALSE)*AP20*IF(ISNA(VLOOKUP(AP20,'travel frequence'!$A$7:$B$23,2,FALSE)),'travel frequence'!$B$23,VLOOKUP(AP20,'travel frequence'!$A$7:$B$23,2,FALSE)),0) -> 108.6631533 | AR20: =IF(VLOOKUP(AM20,'Industry Type P'!$A$1:$S$102,MATCH($C20,'Industry Type P'!$A$1:$S$1,0),FALSE)>RAND(),"Y","N") -> N | AS20: 0 | AT20: 0 | AU20: =IF(AR20="N"," ",INDEX('Other cost'!$A$9:$A$13,RANDBETWEEN(1,5),1)) ->  | AV20: =MIN($H20,IF(AR20="N",0,SUM(AT20,'Other cost'!$B$16,VLOOKUP(AU20,'Other cost'!$A$9:$B$13,2,FALSE),IF(AS20>=30,HLOOKUP(30,'Salary in Industry'!$N$1:$AQ$1001,$B20+1,FALSE),HLOOKUP(AS20,'Salary in Industry'!$N$1:$AQ$1001,$B20+1,FALSE)),IF(ISNA(VLOOKUP(AM20,'Ransom Statistics'!$A$1:$D$18,4,FALSE)),'Ransom Statistics'!$D$18,VLOOKUP(AM20,'Ransom Statistics'!$A$1:$D$18,4,FALSE))))) -> 0 | AW20: =INDEX([1]Variables!$A$2:$A$103,INT((RAND()*100)+1),1) -> Ingushetia | AX20: =INDEX(Variables!$E$3:$E$5,RANDBETWEEN(1,3),1) -> Long (more than one month) | AY20: =INDEX([1]Variables!$G$3:$G$5,RANDBETWEEN(1,3),1) -> infrequent (less than 3 times) | AZ20: 20 | BA20: =IF(ISNA(VLOOKUP(AW20,Variables!$K$1:$K$36,1,FALSE)),SUM('Other cost'!$B$2,'Salary in Industry'!$AR19,IF(ISNA(VLOOKUP(Simulation!AW20,'Ransom Statistics'!$A$1:$D$18,4,FALSE)),'Ransom Statistics'!$D$18,VLOOKUP(Simulation!AW20,'Ransom Statistics'!$A$1:$D$18,4,FALSE)))*IF(ISNA(VLOOKUP(AW20,'Industry Type P'!$A$2:$S$103,2,FALSE)),'Kidnapping Statistics'!$K$3,VLOOKUP(AW20,'Industry Type P'!$A$1:$S$102,MATCH($C20,'Industry Type P'!$A$1:$S$1,0),FALSE))*VLOOKUP(AY20,'travel frequence'!$A$1:$D$4,MATCH(AX20,'travel frequence'!$A$1:$D$1,0),FALSE)*AZ20*IF(ISNA(VLOOKUP(AZ20,'travel frequence'!$A$7:$B$23,2,FALSE)),'travel frequence'!$B$23,VLOOKUP(AZ20,'travel frequence'!$A$7:$B$23,2,FALSE)),0) -> 4100.799229 | BB20: =IF(VLOOKUP(AW20,'Industry Type P'!$A$1:$S$102,MATCH($C20,'Industry Type P'!$A$1:$S$1,0),FALSE)>RAND(),"Y","N") -> N | BC20: 0 | BD20: 0 | BE20: =IF(BB20="N"," ",INDEX('Other cost'!$A$9:$A$13,RANDBETWEEN(1,5),1)) ->  | BF20: =MIN($H20,IF(BB20="N",0,SUM(BD20,'Other cost'!$B$16,VLOOKUP(BE20,'Other cost'!$A$9:$B$13,2,FALSE),IF(BC20>=30,HLOOKUP(30,'Salary in Industry'!$N$1:$AQ$1001,$B20+1,FALSE),HLOOKUP(BC20,'Salary in Industry'!$N$1:$AQ$1001,$B20+1,FALSE)),IF(ISNA(VLOOKUP(AW20,'Ransom Statistics'!$A$1:$D$18,4,FALSE)),'Ransom Statistics'!$D$18,VLOOKUP(AW20,'Ransom Statistics'!$A$1:$D$18,4,FALSE))))) -> 0 | BG20: =INDEX([1]Variables!$A$2:$A$103,INT((RAND()*100)+1),1) -> Argentina | BH20: =INDEX(Variables!$E$3:$E$5,RANDBETWEEN(1,3),1) -> Long (more than one month) | BI20: =INDEX([1]Variables!$G$3:$G$5,RANDBETWEEN(1,3),1) -> very frequent ( more than 12 times a year) | BJ20: 10 | BK20: =IF(ISNA(VLOOKUP(BG20,Variables!$K$1:$K$36,1,FALSE)),SUM('Other cost'!$B$2,'Salary in Industry'!$AR19,IF(ISNA(VLOOKUP(Simulation!BG20,'Ransom Statistics'!$A$1:$D$18,4,FALSE)),'Ransom Statistics'!$D$18,VLOOKUP(Simulation!BG20,'Ransom Statistics'!$A$1:$D$18,4,FALSE)))*IF(ISNA(VLOOKUP(BG20,'Industry Type P'!$A$2:$S$103,2,FALSE)),'Kidnapping Statistics'!$K$3,VLOOKUP(BG20,'Industry Type P'!$A$1:$S$102,MATCH($C20,'Industry Type P'!$A$1:$S$1,0),FALSE))*VLOOKUP(BI20,'travel frequence'!$A$1:$D$4,MATCH(BH20,'travel frequence'!$A$1:$D$1,0),FALSE)*BJ20*IF(ISNA(VLOOKUP(BJ20,'travel frequence'!$A$7:$B$23,2,FALSE)),'travel frequence'!$B$23,VLOOKUP(BJ20,'travel frequence'!$A$7:$B$23,2,FALSE)),0) -> 6.578365429 | BL20: =IF(VLOOKUP(BG20,'Industry Type P'!$A$1:$S$102,MATCH($C20,'Industry Type P'!$A$1:$S$1,0),FALSE)>RAND(),"Y","N") -> N | BM20: 0 | BN20: 0 | BO20: =IF(BL20="N"," ",INDEX('Other cost'!$A$9:$A$13,RANDBETWEEN(1,5),1)) ->  | BP20: =MIN($H20,IF(BL20="N",0,SUM(BN20,'Other cost'!$B$16,VLOOKUP(BO20,'Other cost'!$A$9:$B$13,2,FALSE),IF(BM20>=30,HLOOKUP(30,'Salary in Industry'!$N$1:$AQ$1001,$B20+1,FALSE),HLOOKUP(BM20,'Salary in Industry'!$N$1:$AQ$1001,$B20+1,FALSE)),IF(ISNA(VLOOKUP(BG20,'Ransom Statistics'!$A$1:$D$18,4,FALSE)),'Ransom Statistics'!$D$18,VLOOKUP(BG20,'Ransom Statistics'!$A$1:$D$18,4,FALSE))))) -> 0 | BQ20: =INDEX([1]Variables!$A$2:$A$103,INT((RAND()*100)+1),1) -> Laos | BR20: =INDEX(Variables!$E$3:$E$5,RANDBETWEEN(1,3),1) -> Long (more than one month) | BS20: =INDEX([1]Variables!$G$3:$G$5,RANDBETWEEN(1,3),1) -> frequent (3 times to 12 times) | BT20: 11 | BU20: =IF(ISNA(VLOOKUP(BQ20,Variables!$K$1:$K$36,1,FALSE)),SUM('Other cost'!$B$2,'Salary in Industry'!$AR19,IF(ISNA(VLOOKUP(Simulation!BQ20,'Ransom Statistics'!$A$1:$D$18,4,FALSE)),'Ransom Statistics'!$D$18,VLOOKUP(Simulation!BQ20,'Ransom Statistics'!$A$1:$D$18,4,FALSE)))*IF(ISNA(VLOOKUP(BQ20,'Industry Type P'!$A$2:$S$103,2,FALSE)),'Kidnapping Statistics'!$K$3,VLOOKUP(BQ20,'Industry Type P'!$A$1:$S$102,MATCH($C20,'Industry Type P'!$A$1:$S$1,0),FALSE))*VLOOKUP(BS20,'travel frequence'!$A$1:$D$4,MATCH(BR20,'travel frequence'!$A$1:$D$1,0),FALSE)*BT20*IF(ISNA(VLOOKUP(BT20,'travel frequence'!$A$7:$B$23,2,FALSE)),'travel frequence'!$B$23,VLOOKUP(BT20,'travel frequence'!$A$7:$B$23,2,FALSE)),0) -> 6.907283701 | BV20: =IF(VLOOKUP(BQ20,'Industry Type P'!$A$1:$S$102,MATCH($C20,'Industry Type P'!$A$1:$S$1,0),FALSE)>RAND(),"Y","N") -> N | BW20: 0 | BX20: 0 | BY20: =IF(BV20="N"," ",INDEX('Other cost'!$A$9:$A$13,RANDBETWEEN(1,5),1)) ->  | BZ20: =MIN($H20,IF(BV20="N",0,SUM(BX20,'Other cost'!$B$16,VLOOKUP(BY20,'Other cost'!$A$9:$B$13,2,FALSE),IF(BW20>=30,HLOOKUP(30,'Salary in Industry'!$N$1:$AQ$1001,$B20+1,FALSE),HLOOKUP(BW20,'Salary in Industry'!$N$1:$AQ$1001,$B20+1,FALSE)),IF(ISNA(VLOOKUP(BQ20,'Ransom Statistics'!$A$1:$D$18,4,FALSE)),'Ransom Statistics'!$D$18,VLOOKUP(BQ20,'Ransom Statistics'!$A$1:$D$18,4,FALSE))))) -> 0 | CA20: =INDEX([1]Variables!$A$2:$A$103,INT((RAND()*100)+1),1) -> Belarus | CB20: =INDEX(Variables!$E$3:$E$5,RANDBETWEEN(1,3),1) -> Short (less a week) | CC20: =INDEX([1]Variables!$G$3:$G$5,RANDBETWEEN(1,3),1) -> infrequent (less than 3 times) | CD20: 20 | CE20: =IF(ISNA(VLOOKUP(CA20,Variables!$K$1:$K$36,1,FALSE)),SUM('Other cost'!$B$2,'Salary in Industry'!$AR19,IF(ISNA(VLOOKUP(Simulation!CA20,'Ransom Statistics'!$A$1:$D$18,4,FALSE)),'Ransom Statistics'!$D$18,VLOOKUP(Simulation!CA20,'Ransom Statistics'!$A$1:$D$18,4,FALSE)))*IF(ISNA(VLOOKUP(CA20,'Industry Type P'!$A$2:$S$103,2,FALSE)),'Kidnapping Statistics'!$K$3,VLOOKUP(CA20,'Industry Type P'!$A$1:$S$102,MATCH($C20,'Industry Type P'!$A$1:$S$1,0),FALSE))*VLOOKUP(CC20,'travel frequence'!$A$1:$D$4,MATCH(CB20,'travel frequence'!$A$1:$D$1,0),FALSE)*CD20*IF(ISNA(VLOOKUP(CD20,'travel frequence'!$A$7:$B$23,2,FALSE)),'travel frequence'!$B$23,VLOOKUP(CD20,'travel frequence'!$A$7:$B$23,2,FALSE)),0) -> 22.36799579 | CF20: =IF(VLOOKUP(CA20,'Industry Type P'!$A$1:$S$102,MATCH($C20,'Industry Type P'!$A$1:$S$1,0),FALSE)>RAND(),"Y","N") -> N | CG20: 0 | CH20: 0 | CI20: =IF(CF20="N"," ",INDEX('Other cost'!$A$9:$A$13,RANDBETWEEN(1,5),1)) ->  | CJ20: =MIN($H20,IF(CF20="N",0,SUM(CH20,'Other cost'!$B$16,VLOOKUP(CI20,'Other cost'!$A$9:$B$13,2,FALSE),IF(CG20>=30,HLOOKUP(30,'Salary in Industry'!$N$1:$AQ$1001,$B20+1,FALSE),HLOOKUP(CG20,'Salary in Industry'!$N$1:$AQ$1001,$B20+1,FALSE)),IF(ISNA(VLOOKUP(CA20,'Ransom Statistics'!$A$1:$D$18,4,FALSE)),'Ransom Statistics'!$D$18,VLOOKUP(CA20,'Ransom Statistics'!$A$1:$D$18,4,FALSE))))) -> 0 | CK20: =INDEX([1]Variables!$A$2:$A$103,INT((RAND()*100)+1),1) -> Malaysia | CL20: =INDEX(Variables!$E$3:$E$5,RANDBETWEEN(1,3),1) -> Medium (1 week to 1month) | CM20: =INDEX([1]Variables!$G$3:$G$5,RANDBETWEEN(1,3),1) -> infrequent (less than 3 times) | CN20: 9 | CO20: =IF(ISNA(VLOOKUP(CK20,Variables!$K$1:$K$36,1,FALSE)),SUM('Other cost'!$B$2,'Salary in Industry'!$AR19,IF(ISNA(VLOOKUP(Simulation!CK20,'Ransom Statistics'!$A$1:$D$18,4,FALSE)),'Ransom Statistics'!$D$18,VLOOKUP(Simulation!CK20,'Ransom Statistics'!$A$1:$D$18,4,FALSE)))*IF(ISNA(VLOOKUP(CK20,'Industry Type P'!$A$2:$S$103,2,FALSE)),'Kidnapping Statistics'!$K$3,VLOOKUP(CK20,'Industry Type P'!$A$1:$S$102,MATCH($C20,'Industry Type P'!$A$1:$S$1,0),FALSE))*VLOOKUP(CM20,'travel frequence'!$A$1:$D$4,MATCH(CL20,'travel frequence'!$A$1:$D$1,0),FALSE)*CN20*IF(ISNA(VLOOKUP(CN20,'travel frequence'!$A$7:$B$23,2,FALSE)),'travel frequence'!$B$23,VLOOKUP(CN20,'travel frequence'!$A$7:$B$23,2,FALSE)),0) -> 2046.239558 | CP20: =IF(VLOOKUP(CK20,'Industry Type P'!$A$1:$S$102,MATCH($C20,'Industry Type P'!$A$1:$S$1,0),FALSE)>RAND(),"Y","N") -> N | CQ20: 0 | CR20: 0 | CS20: =IF(CP20="N"," ",INDEX('Other cost'!$A$9:$A$13,RANDBETWEEN(1,5),1)) ->  | CT20: =MIN($H20,IF(CP20="N",0,SUM(CR20,'Other cost'!$B$16,VLOOKUP(CS20,'Other cost'!$A$9:$B$13,2,FALSE),IF(CQ20>=30,HLOOKUP(30,'Salary in Industry'!$N$1:$AQ$1001,$B20+1,FALSE),HLOOKUP(CQ20,'Salary in Industry'!$N$1:$AQ$1001,$B20+1,FALSE)),IF(ISNA(VLOOKUP(CK20,'Ransom Statistics'!$A$1:$D$18,4,FALSE)),'Ransom Statistics'!$D$18,VLOOKUP(CK20,'Ransom Statistics'!$A$1:$D$18,4,FALSE))))) -> 0 | CU20: =INDEX([1]Variables!$A$2:$A$103,INT((RAND()*100)+1),1) -> Colombia | CV20: =INDEX(Variables!$E$3:$E$5,RANDBETWEEN(1,3),1) -> Long (more than one month) | CW20: =INDEX([1]Variables!$G$3:$G$5,RANDBETWEEN(1,3),1) -> very frequent ( more than 12 times a year) | CX20: 12 | CY20: =IF(ISNA(VLOOKUP(CU20,Variables!$K$1:$K$36,1,FALSE)),SUM('Other cost'!$B$2,'Salary in Industry'!$AR19,IF(ISNA(VLOOKUP(Simulation!CU20,'Ransom Statistics'!$A$1:$D$18,4,FALSE)),'Ransom Statistics'!$D$18,VLOOKUP(Simulation!CU20,'Ransom Statistics'!$A$1:$D$18,4,FALSE)))*IF(ISNA(VLOOKUP(CU20,'Industry Type P'!$A$2:$S$103,2,FALSE)),'Kidnapping Statistics'!$K$3,VLOOKUP(CU20,'Industry Type P'!$A$1:$S$102,MATCH($C20,'Industry Type P'!$A$1:$S$1,0),FALSE))*VLOOKUP(CW20,'travel frequence'!$A$1:$D$4,MATCH(CV20,'travel frequence'!$A$1:$D$1,0),FALSE)*CX20*IF(ISNA(VLOOKUP(CX20,'travel frequence'!$A$7:$B$23,2,FALSE)),'travel frequence'!$B$23,VLOOKUP(CX20,'travel frequence'!$A$7:$B$23,2,FALSE)),0) -> 0 | CZ20: =IF(VLOOKUP(CU20,'Industry Type P'!$A$1:$S$102,MATCH($C20,'Industry Type P'!$A$1:$S$1,0),FALSE)>RAND(),"Y","N") -> N | DA20: 0 | DB20: 0 | DC20: =IF(CZ20="N"," ",INDEX('Other cost'!$A$9:$A$13,RANDBETWEEN(1,5),1)) ->  | DD20: =MIN($H20,IF(CZ20="N",0,SUM(DB20,'Other cost'!$B$16,VLOOKUP(DC20,'Other cost'!$A$9:$B$13,2,FALSE),IF(DA20>=30,HLOOKUP(30,'Salary in Industry'!$N$1:$AQ$1001,$B20+1,FALSE),HLOOKUP(DA20,'Salary in Industry'!$N$1:$AQ$1001,$B20+1,FALSE)),IF(ISNA(VLOOKUP(CU20,'Ransom Statistics'!$A$1:$D$18,4,FALSE)),'Ransom Statistics'!$D$18,VLOOKUP(CU20,'Ransom Statistics'!$A$1:$D$18,4,FALSE))))) -> 0 | DE20: 0 | DF20: =((IF(A20=0,0,IF(A20=1,M20,IF(A20=2,M20+W20,IF(A20=3,M20+W20+AG20,IF(A20=4,M20+W20+AG20+AQ20,IF(A20=5,M20+W20+AG20+AQ20+BA20,IF(A20=6,M20+W20+AG20+AQ20+BA20+BK20,IF(A20=7,M20+W20+AG20+AQ20+BA20+BK20+BU20,IF(A20=8,M20+W20+AG20+AQ20+BA20+BK20+BU20+CE20,IF(A20=9,M20+W20+AG20+AQ20+BA20+BK20+BU20+CE20+CO20,IF(A20=10,M20+W20+AG20+AQ20+BA20+BK20+BU20+CE20+CO20+CY20))))))))))))/(1+Variables!$G$12))*(1+Variables!$F$19) -> 2.808847573
